Workbook

Sheet Assumptions
A1: Tomato Interactive Spreadsheet Tool
A2: This Interactive Spreadsheet tool estimates the capital investment and operating expenses for building and operating a Controlled Environment vegetable facility in NYS. This tool allows the users to modify the inputs of a model farm and to have an estimate of the revenue, expenses, and profitability. The tables and figures in this spreadsheet change as the variables are modified. Users own management system, available resources, and location can affect the performance of the operation. Users should experiment with their own yields, inputs, and prices to develop a budget that will accurately represent their own operation.
A3: Guide on using this tool: 1. Input your data for the variables in the Input tab; 2. Change values of parameters in the Parameter tab; 3. Check out the Outcomes tab to view the costs, benefits, and profits of different SWD control strategies; Watch the figures on the Outcomes tab as you alter characteristics of the farm. 4. Check out other tabs to view the detailed cost of ech SWD control strategies. Explanations of what each tab do are shown in below.
A5: Spreadsheet | B5: Explanation
A6: Inputs | B6: This spreadsheet requires information on production area, lighting, heating, and labor. Users can make changes in the orange box to reflect their own operation and can see the resulting production and energy specifications in the yellow box.
A8: Cost estimates | B8: This spreadsheet includes items needed to calculate the variable costs and fixed costs of a Greenhouse operation. Users can make different choices and change parameters to calculate variable costs and fixed costs for their operation.
A13: Results | B13: This spreadsheet presents the total revenue, expenses and annual operating profit. Total annual costs and profitability are calculated on per head, per square foot, per house, per acre basis. These results change as the parameters change.
A14: Analysis | B14: Analysis tab reflects profits under alternative price and yield. Users can conduct sensitivity analysis under different assumptions to compare different scenarios. 1. Analysis with 20% Increase and 20% Decrease in Labor cost 2. Analysis with 20% Increase and 20% Decrease in Ulility cost 3. Analysis with 20% Increase and 20% Decrease in Packaging cost
A20: Notes:
B21: 1 | C21: Four options are available for users to choose the type of Greenhouse. Users can choose the type they wish to build.
B22: 2 | C22: Typical price for New York. Tomato prices can vary significantly depending on market conditions. Be sure to check current tomato prices in your market.
B23: 3 | C23: No lighting is used here as the greenhouse will produce tomato for 8 months (March- October). Users should make adjustments for the season and their location while filling information for lighting.
B24: 4 | C24: NYS Climate zones are used in this spreadsheet. Users can make different choices for glazing material and ASHRAE Climate Zone based on their Greenhouse and location. For Air changes per hour 0.5 to 1.0 are common values. Evapotranspiration latent load 10 W/ft2 is a decent number for tomato. Other assumptions regarding Custom transmittance, Boiler efficiency are standard and can be used for most of the Greenhouse.
B25: 5 | C25: Assumptions based on hour needed for per thousand plant per job in a year.
B26: 6 | C26: Require information on quantities for packaged items.
B27: 7 | C27: Variable costs require information on cost for production supplies, Labor, Packaging, etc. Variable costs are not auto asjusted for Greenhouse size or costs that changes with production.
B28: 8 | C28: The assumption is made for lacewing larvae. Users can modify the no. of beneficial insects per package, area covered per insects in the 'Inputs tab' based on the insects they use.
B29: 9 | C29: Fungicide/pesticide use will vary by amount needed and frequency of application depending on specific diseases and pests.
B30: 10 | C30: sticky trap is used for monitoring populations of insects.
B31: 11 | C31: Fringe benefit consists of workers compensation, social security, medical insurance, and other benefits which is included as a separate cost. We are assuming 30% of the wage as fringe benefits.
B32: 12 | C32: Three different fuel systems are available in this tool for heating. Users can select the heating system they wish to use. Calculations will automatically be updated when selecting different fuel heating systems. Fuel prices based on New York as of December, 2016. check your local availability and prices.
B33: 13 | C33: Depending on how users use electricity, they are charged for different electric services. Along with a basic customer charge (measured in kilowatt-hours, abbreviated kWh), larger users of electricity are also charged for something called demand (measured in kilowatts, abbreviated kW).
B34: 14 | C34: Fixed costs tend to be those costs that are incurred regardless of the level of production. Typical fixed costs include structure/building, machinery, and equipment.
B35: 15 | C35: Two options are available in this tool for lighting. Select the 'Yes' button if you wish to use light, or select 'none' to not include lights in the budget. Calculations will automatically be updated when selecting different options.
B36: 16 | C36: Land rent is the cost associated with either owning or renting 1 acre of land for the greenhouse. Rates based on New York, 2016. Check your local rates.
B37: 17 | C37: The annual fixed cost rate is an estimation of the cost of owning fixed assets per year. Costs include depreciation, interest, insurance, maintenance, and any taxes.
A46: Acknowledgement:
A47: 1 | B47: Kale Harbick, CEO, Greenhouse Logic.
A48: 2 | B48: Miguel I. Gomez, Associate Professor, Charles H. Dyson School of Applied Economics & Management, Cornell University.
A49: 3 | B49: Neil S. Mattson, Associate Professor, Horticulture (HORT), Cornell University.
A50: 4 | B50: Paul Askew, Owner, Paul's Nursery.
A51: 5 | B51: Cornell CEA team, Cornell Univeristy

Sheet Inputs
Q2: Surface area: | R2: Side of the roof (if Gable) | S2: =SQRT(($F$13/2)^2+$F$15^2) -> 15.8113883 | T2: Feet
C3: *** Please enter information in the ORANGE box | Q3: Freestanding Gable | R3: Sides | S3: =IF(params!$A$32=1, 2*Inputs!$F$14*Inputs!$F$16,0) -> 0 | T3: Square feet
J4: Outputs based on the information provided in the Orange Box | R4: Ends | S4: =IF(params!$A$32=1, 2*Inputs!$F$16*Inputs!$F$13,0) -> 0 | T4: Square feet
B5: Production | R5: Roof side | S5: =IF(params!$A$32=1, 2*Inputs!$S$2*Inputs!$F$14,0) -> 0 | T5: Square feet
C6: Choose type of Greenhouse1 : | E6: 1 | F6: No. of bay | R6: Roof peak | S6: =IF(params!$A$32=1, 2*1/2*Inputs!$F$13*Inputs!$F$15,0) -> 0 | T6: Square feet
F7: 1 | J7: Greenhouse area | K7: =IF(params!A32=1,Inputs!F13*Inputs!F14,IF(params!A32=2,Inputs!F13*Inputs!F14, IF(params!A32=3, Inputs!F13*Inputs!F14*Inputs!F9, IF(params!A32=4, Inputs!F13*Inputs!F14*Inputs!F10,0)))) -> 9000 | L7: Sq. feet | R7: Total SA area | S7: =SUM(S3:S6) -> 0 | T7: Square feet
F8: 1 | J8: Surface Area | K8: =CHOOSE(params!$A$32,S7,S12,S18,S23) -> 9824.55532 | L8: Sq. feet
F9: 3 | J9: Net production area | K9: =FLOOR(Inputs!K7*Inputs!F17,1) -> 8100 | L9: Sq. feet | Q9: Freestanding Quonset | R9: Sides | S9: =IF(params!$A$32=2, 2*Inputs!$F$14*Inputs!$F$16,0) -> 0 | T9: Square feet
D10: 1 | F10: 2 | J10: No. of Plants | K10: =FLOOR(K7/F18*F17,1) -> 2025 | R10: Ends | S10: =IF(params!$A$32=2, 2*Inputs!$F$16*Inputs!$F$13,0) -> 0 | T10: Square feet
J11: Harvest (year) | K11: =K10*F19 -> 70875 | L11: Pound | R11: Roof | S11: =IF(params!$A$32=2,PI()*$F$15^2+PI()*$F$15*$F$14,0) -> 0 | T11: Square feet
J12: Seed | K12: =CEILING(K10+(K10*Inputs!F21),1) -> 2127 | R12: Total SA area | S12: =SUM(S9:S11) -> 0 | T12: Square feet
C13: Greenhouse dimension | D13: Width | F13: 30 | G13: Feet | J13: Net annual production | K13: =FLOOR(K11-(K11*Inputs!F22),1) -> 63787 | L13: Pound
D14: Length | F14: 100 | G14: Feet | Q14: Gutter Connected (Gable) | R14: Sides | S14: =IF(params!$A$32=3, 2*Inputs!F14*Inputs!F16,0) -> 2000 | T14: Square feet
D15: Peak height (Gutter to peak) | F15: 5 | G15: Feet | R15: Ends | S15: =IF(params!$A$32=3, F10*2*Inputs!$F$16*Inputs!$F$13,0) -> 1200 | T15: Square feet
D16: Height (Ground to gutter) | F16: 10 | G16: Feet | J16: Annual heating load | K16: =IF($R$28="5A",-SUMIF(elmira!T2:T8761,"<0")*3600/1000000000,-SUMIF(nyc!T2:T8761,"<0")*3600/1000000000) -> 2452.833021 | L16: GJ | R16: Roof side | S16: =IF(params!$A$32=3, F10*2*Inputs!$S$2*Inputs!$F$14,0) -> 6324.55532 | T16: Square feet
D17: Space use efficiency | F17: 0.9 | J17: Annual heating load | K17: =K16/1.0551 -> 2324.739855 | L17: MMBtu | R17: Roof peak | S17: =IF(params!$A$32=3, F10*2*1/2*Inputs!$F$13*Inputs!$F$15,0) -> 300 | T17: Square feet
D18: Area per plant | F18: 4 | G18: Sq. feet | R18: Total SA area | S18: =SUM(S14:S17) -> 9824.55532 | T18: Square feet
D19: Harvest per plant per year | F19: 35 | G19: Pound | J19: Fuel use:
D20: Concrete-% of floor | F20: 0.1 | J20: Propane | K20: =$K$17*1000000/91330/$R$50 -> 29946.21772 | L20: gal | Q20: Gutter Connected (Quonset) | R20: Sides | S20: =IF(params!$A$32=4, 2*Inputs!$F$14*Inputs!$F$16,0) -> 0 | T20: Square feet
D21: Overseeding | F21: 0.05 | J21: Natural gas | K21: =$K$17*1000000/100000/$R$50 -> 27349.88064 | L21: therms | R21: Ends | S21: =IF(params!$A$32=4, F9*2*Inputs!$F$16*Inputs!$F$13,0) -> 0 | T21: Square feet
D22: Shrink | F22: 0.1 | J22: Fuel oil | K22: =$K$17*1000000/139600/$R$50 -> 19591.60505 | L22: gal | R22: Roof | S22: =IF(params!$A$32=4,F9*(PI()*$F$15^2+PI()*$F$15*$F$14),0) -> 0 | T22: Square feet
D23: Price2 | F23: 1.35 | G23: per pound | R23: Total SA area | S23: =SUM(S20:S22) -> 0 | T23: Square feet
Q25: Greenhouse air temp (March- Oct) | R25: =F40 -> 70 | S25: F
B26: Lighting3 | C26: Number of lamps in Greenhouse | F26: 0 | G26: lamps | Q26: Greenhouse air temp (Nov-Feb) | R26: 10 | S26: C
C27: Watt consumption per lamp | F27: 0 | G27: watt | Q27: Greenhouse air temp | R27: =(R25-32)*5/9 -> 21.11111111 | S27: C
C28: Hours operated per year | F28: 0 | G28: hour | Q28: ASHRAE climate zone | R28: =IF(params!A12=1,"4A", IF(params!A12=2,"5A",0)) -> 4A
Q29: Air changes per hour | R29: =F38 -> 1 | S29: ACH
B30: The energy model below can only be used by NYS user. User from other states please select location as "Other state" in the box below: | Q30: Infiltration rate | R30: =R29*R32/3600 -> 0.7388093565 | S30: m3/s
C31: Location | Q31: Greenhouse volume | R31: =IF(params!A32=1,((F15/2*F13*F14)+(F13*F14*F16)),IF(params!A32=2,(PI()*F15^2*100)/2+(F13*F14*F16),IF(params!A32=3,(PI()*F15^2*100)/2+(F13*F14*F16)*F9,IF(params!A32=4,((F15/2*F13*F14)+(F13*F14*F16))*F10)))) -> 93926.99082 | S31: ft3
B32: Heating4 | C32: =IF(params!A37=1, "Ideally use energy model from Cornell CEA or other model or use the folowing formula to get a reasonably accurate estimate to help in making decisions relative to the size of the greenhouse or type of heating", "No need to fill this information below. Please input your own estimation for fuel use in the Cost estimates tab") -> Ideally use energy model from Cornell CEA or other model or use the folowing formula to get a reasonably accurate estimate to help in making decisions relative to the size of the greenhouse or type of heating | Q32: Greenhouse volume | R32: =R31/35.3147 -> 2659.713683 | S32: m3
Q33: Greenhouse surface area | R33: =K8/10.7639 -> 912.7319392 | S33: m2
Q34: Greenhouse area | R34: =K7/10.7639 -> 836.1281692 | S34: m2
C35: Glazing material
C36: Custom u-value | F36: 1 | G36: Btu/(sqft*degF*h) | J36: 0.5 to 1.0 are common values | Q36: Glazing | R36: =IF(params!A2=1,"Glass",IF(params!A2=2,"Poly",IF(params!A3=3,"Double poly",IF(params!A4=4,"Custom",0)))) -> Glass
C37: Custom transmittance | F37: 0.9 | Q37: u-value | R37: =IF(params!A2=4,F36,VLOOKUP(R36,glazing_prop,2,0)) -> 1.098901099 | S37: Btu/(sqft*degF*h)
C38: Air changes per hour | F38: 1 | G38: ACH | Q38: u-value | R38: =R37*10.7639/3.412/(5/9) -> 6.240102805 | S38: W/(m2*degC)
C39: ASHRAE Climate Zone | J39: 4A: NYC, Buffalo, Albany. 5A: Elmira, Ithaca | Q39: Transmittance | R39: =IF(params!A2=4,F37,VLOOKUP(R36,glazing_prop,3,0)) -> 0.7
C40: Greenhouse air temperature | F40: 70 | G40: F
C41: Evapotranspiration latent load | F41: 10 | G41: W/ft2 | J41: Energy Model-Kale Harbick, CEO, Greenhouse Logic | Q41: Lighting power | R41: =F26*F27 -> 0 | S41: W
C42: Greenhouse RH% | F42: 0.7 | Q42: Lighting hours | R42: =F28 -> 0 | S42: h
C43: Boiler efficiency | F43: 0.85
Q44: ET latent load | R44: =F41 -> 10 | S44: W/ft2
Q45: ET latent load | R45: =R44*10.7639 -> 107.639 | S45: W/m2
Q46: Greenhouse RH | R46: =F42 -> 0.7
B47: Labor5 | C47: Seed/ Transplant/Harvest/ Package | F47: 11 | G47: hrs/per thousand | Q47: Saturation pressure | R47: =EXP(77.345+0.0057*(R27+273.15)-7235/(R27+273.15))/(R27+273.15)^8.2 -> 2496.506861 | S47: Pa
C48: Delivering to market | F48: 1 | G48: hrs/per thousand | Q48: Humidity ratio @ sat. | R48: =0.62198*R47/(101325-R47) -> 0.01571183864 | S48: kg/kg
C49: Production management | F49: 2 | G49: hrs/per thousand | Q49: Humidity ratio | R49: =R46*R48 -> 0.01099828705 | S49: kg/kg
C50: Other (Marketing, Maintainence, etc.) | F50: 1 | G50: hrs/per thousand | Q50: Boiler efficiency | R50: =F43 -> 0.85
B54: Others6 | C54: No. of Pelleted seed | F54: 1000 | G54: /per package
C55: No. of Rockwool cubes | F55: 6000 | G55: /per case
C56: No. of Rockwool slabs | F56: 12 | G56: /per bag
C57: No. of beneficial insects | F57: 650 | G57: /per package
C58: Sq. feet covered per insects | F58: 0.9 | G58: /per insects
C59: Foam tray per case | F59: 344 | G59: /case
C60: Clamshell per box | F60: 12 | G60: /box
C61: Labels per roll | F61: 2500 | G61: /roll

Sheet Cost estimates
C3: *** Please enter information in the Orange Box
D5: Quantity/Year | E5: Unit | F5: Price ($) / Unit | H5: Total Cost per year
A6: VARIABLE COSTS7
B7: Production Supplies
C8: Seed (package) | D8: =CEILING((Inputs!K10+(Inputs!K10*Inputs!F21))/Inputs!F54, 1) -> 3 | E8: packages | F8: 110 | G8: /package | H8: =D8*F8 -> 330 | J8: References:
C9: Rockwool cubes, 1" cubes | D9: =CEILING(Inputs!K13/Inputs!F55,1) -> 11 | E9: cases | F9: 159 | G9: /case | H9: 1749
C10: Beneficial Insects8 | D10: =CEILING((Inputs!K7/Inputs!F58)/Inputs!F57,1) -> 16 | E10: packages | F10: 36 | G10: /package | H10: 576 | J10: Hydroponic Lettuce Budget Analysis- The Ohio State University Extension. http://u.osu.edu/greenhouse/hydroponic-crop-program-economic-budgets/
C11: Growth Medium
C12: 2 plants/slab | D12: =CEILING(IF(params!A18=1,Inputs!K10/(Inputs!F56*2),0),1) -> 85 | E12: slabs | F12: 65 | G12: /slabs | H12: =D12*F12 -> 5525
C13: 4 cu. Ft./bag | D13: =CEILING(IF(params!A18=2,Inputs!K10/9,0),1) -> 0 | E13: bags | F13: 10 | G13: /bag | H13: =D13*F13 -> 0
C14: Bato Buckets | D14: =Inputs!K10 -> 2025 | F14: 4 | G14: /bucket | H14: =IF(params!A18=2,D14*F14,0) -> 0
C15: Fertilizer
C16: Blended Mix | D16: =CEILING(Inputs!K7*0.162760416666666,1) -> 1465 | E16: pounds | F16: 1 | G16: /pound | H16: 1465
C17: CaNO3 | D17: =CEILING(Inputs!K7*0.162760416666666,1) -> 1465 | E17: pounds | F17: 0.46 | G17: /pound | H17: 673.9
C18: Additions | D18: =CEILING(Inputs!K7*0.00217013888888888,1) -> 20 | E18: pounds | F18: 1 | G18: /pound | H18: 20
C19: Fungicide/Pesticide9 | D19: =CEILING(Inputs!K7*0.00217013888888888,1) -> 20 | E19: gallons | F19: 60 | G19: /gallon | H19: 1200
C20: Sanitizer | D20: =CEILING(Inputs!K13/29545,1) -> 3 | E20: gallons | F20: 35 | G20: /gallon | H20: 105
C21: Sticky Traps10 | D21: =CEILING(Inputs!K7*0.0001,1) -> 1 | E21: packages | F21: 30 | G21: /package | H21: 30
C22: Heated seedling support mat, 22X96 | D22: 1 | E22: mat | F22: 114 | G22: /mat | H22: 114
C23: Trays | D23: 10 | E23: trays | F23: 1 | G23: /tray | H23: 10
C24: Clips , 7500/case | D24: 1 | E24: cases | F24: 83 | G24: /package | H24: 83
C25: Twine | D25: 1 | E25: boxes | F25: 22 | G25: /box | H25: 22
C26: Tomahooks | D26: 800 | E26: hooks | F26: 0.15 | G26: /package | H26: 120
C28: Total Production Supplies cost | H28: =SUM(H8:H26) -> 12022.9 | M28: =#REF!*20% ->  | N28: 20% change in labor
B30: Production Labor | J30: www.labor.ny.gov
C31: Seed/ Transplant/Harvest/ Package | D31: =(Inputs!F47*Inputs!$K$13)/1000 -> 701.657 | E31: hours/year | F31: 13 | G31: /hour | H31: =D31*F31 -> 9121.541
C32: Delivering to market | D32: =(Inputs!F48*Inputs!$K$13)/1000 -> 63.787 | E32: hours/year | F32: 12 | G32: /hour | H32: =D32*F32 -> 765.444
C33: Production management | D33: =(Inputs!F49*Inputs!$K$13)/1000 -> 127.574 | E33: hours/year | F33: 13 | G33: /hour | H33: =D33*F33 -> 1658.462
C34: Other (Marketing, Maintainence, etc.) | D34: =(Inputs!F50*Inputs!$K$13)/1000 -> 63.787 | E34: hours/year | F34: 12 | G34: /hour | H34: =D34*F34 -> 765.444
C35: Fringe benefit11 | F35: 0.3 | G35: /hour | H35: =(F31*F35*D31)+(F32*F35*D32)+(F33*F35*D33)+(F34*F35*D34) -> 3693.2673 | M35: =H44*20% -> 2149.6 | N35: 20% change in packaging
C37: Total Production Labor | H37: =SUM(H31:H35) -> 16004.1583 | L37: =H37*20% -> 3200.83166
B39: Packaging Costs | J39: http://avisbag.com/about-us.html
C40: Foam Trays | D40: =CEILING((Inputs!$K$13/2)/Inputs!F59,1) -> 93 | E40: cases | F40: 80 | G40: /case | H40: =D40*F40 -> 7440 | M40: =H49*20% -> 3008.486871 | N40: 20% change in energy
C41: Boxes | D41: =CEILING((Inputs!$K$13/2)/Inputs!F60,1) -> 2658 | E41: box | F41: 1 | G41: box | H41: =D41*F41 -> 2658
C42: Labels & Stickers | D42: =CEILING((Inputs!$K$13/2)/Inputs!F61,1) -> 13 | E42: roll | F42: 50 | G42: /roll | H42: =D42*F42 -> 650
C44: Total Packaging Costs | H44: =SUM(H40:H42) -> 10748 | L44: =H44*20% -> 2149.6
B46: Utilities12
C47: =IF(params!A37=1, "Fuel choice only for NYS user (choose one):", "Ignore this Fuel choice if Other State user:") -> Fuel choice only for NYS user (choose one): | D47: 3
D48: =IF(params!A22=1,Inputs!K20,0) -> 0 | E48: gal | F48: 2.48 | G48: $/gallon | H48: =IF(params!$A$37=1,D48*F48,0) -> 0 | J48: www.eia.gov, NYSERDA
D49: =IF(params!A22=2,Inputs!K21,0) -> 27349.88064 | E49: therms | F49: 0.55 | G49: $/therm | H49: =IF(params!$A$37=1,D49*F49,0) -> 15042.43435 | J49: www.eia.gov, NYSERDA
D50: =IF(params!A22=3,Inputs!K22,0) -> 0 | E50: gal | F50: 2.38 | G50: $/gallon | H50: =IF(params!$A$37=1,D50*F50,0) -> 0 | J50: www.eia.gov, NYSERDA
C51: =IF(params!A37=2, "Fuel Choice (for Other State user):", "Ignore Fuel choice below if NYS user:") -> Ignore Fuel choice below if NYS user:
C52: Liquid Propane | E52: gal | G52: $/gallon | H52: =IF(params!$A$37=2,D52*F52,0) -> 0
C53: Natural Gas | D53: 20000 | E53: therms | F53: 0.75 | G53: $/therm | H53: =IF(params!$A$37=2,D53*F53,0) -> 0
C54: Fuel Oil | E54: gal | G54: $/gallon | H54: =IF(params!$A$37=2,D54*F54,0) -> 0
C55: Electricity (general - non fans) | D55: 500 | E55: kWh | F55: 0.06 | G55: /kWh | H55: =D55*F55 -> 30
C56: Electricity (fans and pads) | D56: 10000 | E56: kWh | F56: 0.06 | G56: /kWh | H56: 600
C57: Electricity (fanjets/Horizontal Air Fans) | D57: 2000 | E57: kWh | F57: 0.06 | G57: /kWh | H57: 120
C58: Electricity (lights) | D58: =Inputs!F26*Inputs!F27*Inputs!F28/1000 -> 0 | E58: kWh | F58: 0.06 | G58: /kWh | H58: =IF(params!A27=2, D58*F58,0) -> 0
C59: Demand charge13 (fans) | D59: =7*(Inputs!F13*Inputs!F14)/8000 -> 2.625 | E59: kW | F59: =10*12 -> 120 | G59: /kW | H59: =D59*F59 -> 315
C60: Demand charge (lights) | D60: =Inputs!F26*Inputs!F27/1000 -> 0 | E60: kW | F60: =10*12 -> 120 | G60: /kW | H60: =IF(params!A27=2, D60*F60,0) -> 0
C61: Water and Sewer | D61: 100000 | E61: gallons | F61: 0.0131951 | G61: /gallon | H61: 1319.51
C62: Telephone | D62: 12 | E62: months | F62: 50 | G62: /month | H62: 600
C63: Cell Phone | D63: 12 | E63: months | F63: 40 | G63: /month | H63: 480
C65: Total Utilities Costs | H65: =SUM(H48:H63) -> 18506.94435 | L65: =H65*20% -> 3701.388871
B68: Miscellaneous Costs
C69: Advertising, Mailings, Flyers | D69: 1 | E69: campaigns | F69: 200 | G69: /campaigns | H69: =F69*D69 -> 200 | J69: Hydroponic Lettuce Budget Analysis- The Ohio State University Extension. http://u.osu.edu/greenhouse/hydroponic-crop-program-economic-budgets/
C70: Continuing Education | D70: 1 | E70: meetings | F70: 75 | G70: /meetings | H70: =D70*F70 -> 75
C71: Internet Service | D71: 12 | E71: months | F71: 20 | G71: /months | H71: 240
C72: Laboratory Fees | D72: 36 | E72: tests | F72: 20 | G72: /tests | H72: 720
C73: Office Supplies | D73: 12 | E73: months | F73: 25 | G73: /months | H73: 300
C74: Postage | D74: 12 | E74: months | F74: 15 | G74: /months | H74: 180
C75: Marketing Materials & Promotions | D75: 1 | E75: promos | F75: 300 | G75: /promos | H75: 300
C76: Record Keeping | D76: 12 | E76: months | F76: 50 | G76: /months | H76: 600
C77: Software | D77: 3 | E77: programs | F77: 50 | G77: /programs | H77: 150
C78: Subscriptions | D78: 3 | E78: subscriptions | F78: 35 | G78: /subscriptions | H78: 105
C79: Marketing & Trade Shows | D79: 0 | E79: trade show | F79: 500 | G79: /trade show | H79: 0
C81: Total Miscellaneous Costs | H81: =SUM(H69:H79) -> 2870
B83: Professional Services
C84: Accountant | D84: 5 | E84: hours | F84: 50 | G84: /hour | H84: =D84*F84 -> 250
C85: Lawyer | D85: 4 | E85: hours | F85: 125 | G85: /hour | H85: =D85*F85 -> 500
C87: Total Professional Services | H87: =SUM(H84:H85) -> 750
C89: TOTAL VARIABLE COSTS | H89: =SUM(H87,H81,H65,H44,H37,H28) -> 60902.00265
A93: Fixed Costs14
B94: Greenhouse Structure
J95: http://griffins.com/publications#pdf
D96: Quantity/Year | E96: Unit | F96: Price/Unit | H96: Total Cost per year
C98: Concrete | D98: =Inputs!K7*Inputs!F20 -> 900 | E98: sq. ft. | F98: 2 | G98: /sq. ft. | H98: =D98*F98 -> 1800
C99: Frame, Ends, Door | D99: =IF(params!A32=1,Inputs!F7,IF(params!A32=2,Inputs!F8,IF(params!A32=3,Inputs!F9,IF(params!A32=4,Inputs!F10)))) -> 3 | E99: houses | F99: 15000 | G99: /houses | H99: 45000
C100: Glazing material (Glass/Poly/Double Poly) | D100: =IF(params!A32=1,Inputs!F7,IF(params!A32=2,Inputs!F8,IF(params!A32=3,Inputs!F9,IF(params!A32=4,Inputs!F10)))) -> 3 | E100: houses | F100: 5000 | G100: /houses | H100: 15000
C101: Energy/Shade Curtains | D101: =Inputs!K7-D98 -> 8100 | E101: sq. ft. | F101: 4 | G101: /sq. ft. | H101: 32400
C102: Ground Cover | D102: =Inputs!K7-D98 -> 8100 | E102: sq. ft. | F102: 0.075 | G102: /sq. ft. | H102: 607.5
C103: Permits | D103: 4 | E103: permits | F103: 80 | G103: /permits | H103: 320
C104: Site Preparation | D104: =IF(params!A32=1,Inputs!F7,IF(params!A32=2,Inputs!F8,IF(params!A32=3,Inputs!F9,IF(params!A32=4,Inputs!F10)))) -> 3 | E104: houses | F104: 1000 | G104: /houses | H104: 3000
C105: House Construction | D105: =150*D104 -> 450 | E105: hours | F105: 10 | G105: /hours | H105: 4500
C107: Total Greenhouse Structure Costs | H107: =SUM(H98:H105) -> 102627.5
C109: Total Annual Greenhouse Stucture Costs17 (Annual costs of owning the greenhouse includes depreciation and/or principal payments, interest, repairs, taxes, and insurance) | F109: 0.2 | H109: =H107*F109*8/12 -> 13683.66667
B112: Greenhouse Environmental Control Equipment
C113: Back-up Generator | D113: 1 | E113: generators | F113: 6000 | G113: /generators | H113: =D113*F113 -> 6000
C114: Cooling System (fan, vent, & pad) | D114: 1 | E114: systems | F114: 2000 | G114: /systems | H114: 2000
C115: Fanjets, 30" 1hp / Horizontal Air Fans | D115: 1 | E115: fanjets / HAF | F115: 1500 | G115: /fanjets / HAF | H115: 1500
C116: Electrical Panel | D116: 1 | E116: panels | F116: 1500 | G116: /panels | H116: 1500
C117: Computer for Environmental Control | D117: 1 | E117: computers | F117: 2500 | G117: /computers | H117: 2500
C118: Extra Building Supplies | D118: 1 | E118: houses | F118: 1500 | G118: /houses | H118: 1500
C119: Heating System (reflects utility choice from above)
C120: Liquid Propane | D120: 1 | E120: heaters | F120: 2500 | G120: /heaters | H120: =IF(params!A22=1, D120*F120,0) -> 0
C121: Natural Gas | D121: 1 | E121: heaters | F121: 2000 | G121: /heaters | H121: =IF(params!A22=2, D121*F121,0) -> 2000
C122: Fuel Oil | D122: 1 | E122: heaters | F122: 2000 | G122: /heaters | H122: =IF(params!A22=3, D122*F122,0) -> 0
C123: Poly Inflation Kit | D123: 1 | E123: kits | F123: 150 | G123: /kits | H123: =D123*F123 -> 150
C124: Low Voltage Wiring Package | D124: 1 | E124: packages | F124: 400 | G124: /packages | H124: =D124*F124 -> 400
C125: Protective Equipment (PPE) | D125: 1 | E125: sets | F125: 50 | G125: /sets | H125: =D125*F125 -> 50
C126: Grow Lights15 | D126: 2
H127: =IF(params!A27=1,0,0) -> 0
D128: =Inputs!F26 -> 0 | E128: Lights | F128: 460 | G128: /Lights | H128: =IF(params!A27=2,D128*F128,0) -> 0
C131: Total Greenhouse Environmental Control Equipment Costs | H131: =SUM(H113:H129) -> 17600
C133: Total Annual Equipment Costs (Annual costs of owning the equipment includes depreciation and/or principal payments, interest, repairs, taxes, and insurance) | F133: 0.2 | H133: =H131*F133*8/12 -> 2346.666667
B136: Growing & Delivery | J136: https://www.greenhousemegastore.com/category/gas-greenhouse-heaters
C137: Back Pack Sprayer | D137: 1 | E137: sprayers | F137: 100 | G137: /sprayers | H137: =D137*F137 -> 100
C138: Carbon Dioxide Generator | D138: 1 | E138: generators | F138: 480 | G138: /generators | H138: 480
C139: Cooler | D139: 1 | E139: coolers | F139: 2500 | G139: /coolers | H139: 2500
C140: Delivery Van with A/C | D140: 1 | E140: vans | F140: 6000 | G140: /vans | H140: 6000
C141: Fertilizer Mixing Pump | D141: 1 | E141: pumps | F141: 30 | G141: /pumps | H141: 30
C142: Feeding System | D142: 1 | E142: unit | F142: 3200 | G142: /unit | H142: =D142*F142 -> 3200
C143: Meters and Sensors- EC | D143: 1 | E143: meters | F143: 160 | G143: /meters | H143: 160
C144: pH | D144: 1 | E144: sensors | F144: 50 | G144: /sensors | H144: 50
C145: Thermometer | D145: 1 | E145: thermometers | F145: 25 | G145: /thermometers | H145: 25
C146: Monitor- Humidity | D146: 1 | E146: sensors | F146: 120 | G146: /sensors | H146: 120
C147: CO2 | D147: 1 | E147: sensors | F147: 500 | G147: /sensors | H147: 500
C148: Drip irrigation | D148: 1 | E148: system | F148: 20000 | G148: /system | H148: =F148*D148 -> 20000
C149: Scale | D149: 1 | E149: scales | F149: 100 | G149: /scales | H149: =D149*F149 -> 100
C152: Total Other Equipment | H152: =SUM(H137:H149) -> 33265
C154: Total Annual Growing & Delivery Costs (Annual costs of owning the greenhouse includes depreciation and/or principal payments, interest, repairs, taxes, and insurance) | F154: 0.2 | H154: =H152*F154*8/12 -> 4435.333333
B157: Miscellaneous
C158: Land Rent16 | D158: 1 | E158: Acre | F158: 100 | G158: /acre | H158: =D158*F158 -> 100 | J158: https://www.ers.usda.gov/topics/farm-economy/land-use-land-value-tenure/farmland-value/
C160: Total Miscellaneous Costs | H160: =H158 -> 100
C164: TOTAL ANNUAL FIXED COSTS | H164: =H160+H154+H133+H109 -> 20565.66667
C166: TOTAL ANNUAL COSTS | E166: (Variable Costs + Annual Fixed Costs) | H166: =SUM(H164,H89) -> 81467.66932

Sheet Results
B5: Total Annual Revenue and Expenses
B7: REVENUE
C8: Price | E8: =Inputs!F23 -> 1.35 | F8: /pound
C9: Total Sold | E9: =FLOOR(Inputs!K11-(Inputs!K11*Inputs!F22),1) -> 63787 | F9: /Pound
C11: Annual Revenue | F11: =E8*E9 -> 86112.45
B13: EXPENSES
C14: Variable cost | E14: ='Cost estimates'!H89 -> 60902.00265
C15: Annual Fixed costs | E15: ='Cost estimates'!H164 -> 20565.66667
C17: Total Annual Expenses | F17: =SUM(E14:E15) -> 81467.66932
B19: Annual Operating Profit | F19: =F11-F17 -> 4644.780679
C22: Variable Costs ($) | D22: Fixed Costs ($) | E22: Total Annual Costs ($) | F22: Annual Profit ($)
B24: Per Head | C24: ='Cost estimates'!H89/Inputs!K13 -> 0.95477139 | D24: ='Cost estimates'!H164/Inputs!K13 -> 0.3224115677 | E24: ='Cost estimates'!H166/Inputs!K13 -> 1.277182958 | F24: =F19/Inputs!K13 -> 0.07281704232
B25: Per Square Foot | C25: ='Cost estimates'!H89/Inputs!K7 -> 6.766889184 | D25: ='Cost estimates'!H164/Inputs!K7 -> 2.285074074 | E25: ='Cost estimates'!H166/Inputs!K7 -> 9.051963258 | F25: =F19/Inputs!K7 -> 0.5160867421
B26: Per House | C26: ='Cost estimates'!H89/'Cost estimates'!D99 -> 20300.66755 | D26: ='Cost estimates'!H164/'Cost estimates'!D99 -> 6855.222222 | E26: ='Cost estimates'!H166/'Cost estimates'!D99 -> 27155.88977 | F26: =F19/'Cost estimates'!D99 -> 1548.260226
B27: Acre (43,560 sq. ft./acre) | C27: ='Cost estimates'!H89/(Inputs!K7/43560) -> 294765.6928 | D27: ='Cost estimates'!H164/(Inputs!K7/43560) -> 99537.82667 | E27: ='Cost estimates'!H166/(Inputs!K7/43560) -> 394303.5195 | F27: =F19/(Inputs!K7/43560) -> 22480.73848

Sheet Sim1I (hidden)
C3: *** Please enter information in the Blue box
J4: Outputs based on the information provided in the Blue box
B5: Production
C6: Choose type of Greenhouse : | E6: 1
C7: 1 | J7: Greenhouse area | K7: =Inputs!K7 -> 9000 | L7: Sq. feet
J8: Side of the roof (if Gable) | K8: =Inputs!K8 -> 9824.55532 | L8: Feet
J9: Surface Area | K9: =Inputs!K9 -> 8100 | L9: Sq. feet
J10: No of plant | K10: =FLOOR(K7/F16*F15,1) -> 2025 | S10: Note:
C11: Greenhouse dimension | D11: Width | F11: =Inputs!F13 -> 30 | G11: Feet | J11: harvested (year) | K11: =K10*F17 -> 101250 | L11: Pound | Q11: Surface area:
D12: Length | F12: =Inputs!F14 -> 100 | G12: Feet | J12: Seed | K12: =CEILING(K10+(K10*Inputs!F21),1) -> 2127 | S12: Freestanding Gable | T12: Sides | U12: =IF(Sim1I!C7=1, 2*Sim1I!F12*Sim1I!F14,0) -> 2000 | V12: Square feet
D13: Radius of the roof | F13: =Inputs!F15 -> 5 | G13: Feet | J13: Net annual production | K13: =FLOOR(K11-(K11*Inputs!F20),1) -> 91125 | L13: Pound | T13: Ends | U13: =IF(Sim1I!C7=1, 2*Sim1I!F14*Sim1I!F11,0) -> 600 | V13: Square feet
D14: Height | F14: =Inputs!F16 -> 10 | G14: Feet | T14: Roof | U14: =IF(Sim1I!C7=1, 2*Sim1I!K8*Sim1I!F12,0) -> 1964911.064 | V14: Square feet
D15: Space use efficiency | F15: =Inputs!F17 -> 0.9 | T15: Roof peak | U15: =IF(Sim1I!C7=1, 2*1/2*Sim1I!F11*Sim1I!F13) -> 150 | V15: Square feet
D16: Area per plant | F16: =Inputs!F18 -> 4 | G16: sq. feet | T16: Total SA area | U16: =SUM(U12:U15) -> 1967661.064 | V16: Square feet
D17: Harvest per plant per year | F17: 50 | G17: Pound (high)
D18: Concrete-% of floor | F18: =Inputs!F20 -> 0.1 | J18: Annual heating load | K18: =Inputs!K16 -> 2452.833021 | L18: GJ | S18: Freestanding Quonset | T18: Sides | U18: 2000 | V18: Square feet
D19: Overseeding | F19: =Inputs!F21 -> 0.05 | J19: Annual heating load | K19: =Inputs!K17 -> 2324.739855 | L19: MMBtu | T19: Ends | U19: 600 | V19: Square feet
D20: Shrink | F20: =Inputs!F22 -> 0.1 | K20: =Inputs!K18 -> 0 | T20: Roof | U20: 2648.5 | V20: Square feet
D21: Price19 | F21: =Inputs!F23 -> 1.35 | G21: per pound | J21: Fuel use: | K21: =Inputs!K19 -> 0 | T21: Total SA area | U21: 5248.5 | V21: Square feet
J22: Propane | K22: =Inputs!K20 -> 29946.21772 | L22: gal
J23: Natural gas | K23: =Inputs!K21 -> 27349.88064 | L23: therms
J24: Fuel oil | K24: =Inputs!K22 -> 19591.60505 | L24: gal
K25: =Inputs!K23 -> 0
B26: Lighting | C26: Number of lamps in Greenhouse | F26: =Inputs!F26 -> 0 | G26: lamps | J26: Pond pump energy | K26: =Inputs!#REF! ->  | L26: kWh
C27: Watt consumption per lamp | F27: =Inputs!F27 -> 0 | G27: watt | J27: Pond pump energy | K27: =Inputs!#REF! ->  | L27: kW
C28: Hours operated per year | F28: =Inputs!F28 -> 0 | G28: hour
E31: 1
B32: Heating4 | C32: Ideally use energy model from Cornell CEA or other model
C33: OR use the folowing formula to get a reasonably accurate estimate to help in making decisions relative to the size of the greenhouse or type of heating.
C35: Glazing material | F35: =Inputs!F35 -> 0
C36: Custom u-value | F36: =Inputs!F36 -> 1 | G36: Btu/(sqft*degF*h)
C37: Custom transmittance | F37: =Inputs!F37 -> 0.9
C38: Air changes per hour | F38: =Inputs!F38 -> 1 | G38: ACH
C39: ASHRAE Climate Zone | F39: =Inputs!F39 -> 0
C40: Greenhouse air temperature | F40: =Inputs!F40 -> 70 | G40: F
C41: Evapotranspiration latent load | F41: =Inputs!F41 -> 10 | G41: W/ft2
C42: Greenhouse RH% | F42: =Inputs!F42 -> 0.7 | T42: Use Degree -days if you are in NYS from the following table or from nearby weather station data:
C43: Boiler efficiency | F43: =Inputs!F43 -> 0.85 | U43: Albany | V43: 4302
U46: Binghamton | V46: 4296
B47: Labor | C47: Seed/ Transplant/Harvest/ Package | F47: =Inputs!F47 -> 11 | G47: hrs/per thousand | U47: Buffalo | V47: 4316
C48: Delivering to market | F48: =Inputs!F48 -> 1 | G48: hrs/per thousand | U48: Ithaca | V48: 4023
C49: Production management | F49: =Inputs!F49 -> 2 | G49: hrs/per thousand | U49: New york | V49: 3089
C50: Other (Marketing, Maintainence, etc.) | F50: =Inputs!F50 -> 1 | G50: hrs/per thousand | U50: Rochester | V50: 4231
B54: Others6 | C54: No. of Pelleted seed | F54: =Inputs!F54 -> 1000 | G54: /per package
C55: No. of Rockwool cubes | F55: =Inputs!F55 -> 6000 | G55: /per case
C56: No. of Rockwool slabs | F56: =Inputs!F56 -> 12 | G56: /per bag
C57: No. of beneficial insects | F57: =Inputs!F57 -> 650 | G57: /per package
C58: Sq. feet covered per insects | F58: =Inputs!F58 -> 0.9 | G58: /per insects
C59: Foam tray per case | F59: =Inputs!F59 -> 344 | G59: /case
C60: Clamshell per box | F60: =Inputs!F60 -> 12 | G60: /box
C61: Labels per roll | F61: =Inputs!F61 -> 2500 | G61: /roll

Sheet Sim1C (hidden)
C3: *** Please enter information in the Orange Box
D5: Quantity/Year | E5: Unit | F5: Price ($) / Unit | H5: Total Cost per year
A6: VARIABLE COSTS7
B7: Production Supplies
C8: Seed (package) | D8: =CEILING((Sim1I!K10+(Sim1I!K10*Inputs!F21))/Inputs!F54, 1) -> 3 | E8: packages | F8: ='Cost estimates'!F8 -> 110 | G8: /package | H8: =D8*F8 -> 330 | J8: References:
C9: Rockwool cubes, 1" cubes | D9: =CEILING(Sim1I!K13/Inputs!F55,1) -> 16 | E9: cases | F9: ='Cost estimates'!F9 -> 159 | G9: /case | H9: 2544
C10: Beneficial Insects | D10: =CEILING((Inputs!K7/Inputs!F58)/Inputs!F57,1) -> 16 | E10: packages | F10: ='Cost estimates'!F10 -> 36 | G10: /package | H10: 576 | J10: Hydroponic Tomato Budget Analysis- The Ohio State University Extension. http://u.osu.edu/greenhouse/hydroponic-crop-program-economic-budgets/
C11: Growth Medium | F11: ='Cost estimates'!F11 -> 0
C12: 2 plants/slab | D12: =CEILING(IF(params!A18=1,Inputs!K10/(Inputs!F56*2),0),1) -> 85 | E12: slabs | F12: ='Cost estimates'!F12 -> 65 | G12: /slabs | H12: =D12*F12 -> 5525
C13: 4 cu. Ft./bag | D13: =CEILING(IF(params!A18=2,Inputs!K10/9,0),1) -> 0 | E13: bags | F13: ='Cost estimates'!F13 -> 10 | G13: /bag | H13: =D13*F13 -> 0
C14: Bato Buckets | D14: =Inputs!K10 -> 2025 | F14: ='Cost estimates'!F14 -> 4 | G14: /bucket | H14: ='Cost estimates'!H14 -> 0
C15: Fertilizer | F15: ='Cost estimates'!F15 -> 0
C16: Blended Mix | D16: =CEILING(Inputs!K7*0.162760416666666,1) -> 1465 | E16: pounds | F16: ='Cost estimates'!F16 -> 1 | G16: /pound | H16: 1465
C17: CaNO3 | D17: =CEILING(Inputs!K7*0.162760416666666,1) -> 1465 | E17: pounds | F17: ='Cost estimates'!F17 -> 0.46 | G17: /pound | H17: 673.9
C18: Additions | D18: =CEILING(Inputs!K7*0.00217013888888888,1) -> 20 | E18: pounds | F18: ='Cost estimates'!F18 -> 1 | G18: /pound | H18: 20
C19: Fungicide/Pesticide3 | D19: =CEILING(Inputs!K7*0.00217013888888888,1) -> 20 | E19: gallons | F19: ='Cost estimates'!F19 -> 60 | G19: /gallon | H19: 1200
C20: Sanitizer | D20: =CEILING(Sim1I!K13/29545,1) -> 4 | E20: gallons | F20: ='Cost estimates'!F20 -> 35 | G20: /gallon | H20: 140
C21: Sticky Traps4 | D21: =CEILING(Inputs!K7*0.0001,1) -> 1 | E21: packages | F21: ='Cost estimates'!F21 -> 30 | G21: /package | H21: 30
C22: Heated seedling support mat, 22X96 | D22: ='Cost estimates'!D22 -> 1 | E22: mat | F22: ='Cost estimates'!F22 -> 114 | G22: /mat | H22: 114 | J22: www.labor.ny.gov
C23: Trays | D23: ='Cost estimates'!D23 -> 10 | E23: trays | F23: ='Cost estimates'!F23 -> 1 | G23: /tray | H23: 10
C24: Clips , 7500/case | D24: ='Cost estimates'!D24 -> 1 | E24: cases | F24: ='Cost estimates'!F24 -> 83 | G24: /package | H24: 83
C25: Twine | D25: ='Cost estimates'!D25 -> 1 | E25: boxes | F25: ='Cost estimates'!F25 -> 22 | G25: /box | H25: 22
C26: Tomahooks | D26: ='Cost estimates'!D26 -> 800 | E26: hooks | F26: ='Cost estimates'!F26 -> 0.15 | G26: /package | H26: 120
C28: Total Production Supplies cost | H28: =SUM(H8:H26) -> 12852.9 | M28: =#REF!*20% ->  | N28: 20% change in labor
B30: Production Labor
C31: Seed/ Transplant/Harvest/ Package | D31: =(Inputs!$F47*Sim1I!$K$13)/1000 -> 1002.375 | E31: hours/year | F31: ='Cost estimates'!F31 -> 13 | G31: /hour | H31: =D31*F31 -> 13030.875 | J31: http://avisbag.com/about-us.html
C32: Delivering to market | D32: =(Inputs!$F48*Sim1I!$K$13)/1000 -> 91.125 | E32: hours/year | F32: ='Cost estimates'!F32 -> 12 | G32: /hour | H32: =D32*F32 -> 1093.5
C33: Production management | D33: =(Inputs!$F49*Sim1I!$K$13)/1000 -> 182.25 | E33: hours/year | F33: ='Cost estimates'!F33 -> 13 | G33: /hour | H33: =D33*F33 -> 2369.25
C34: Other (Marketing, Maintainence, etc.) | D34: =(Inputs!$F50*Sim1I!$K$13)/1000 -> 91.125 | E34: hours/year | F34: ='Cost estimates'!F34 -> 12 | G34: /hour | H34: =D34*F34 -> 1093.5
C35: Fringe benefit | F35: ='Cost estimates'!F35 -> 0.3 | G35: /hour | H35: =(F31*F35*D31)+(F32*F35*D32)+(F33*F35*D33)+(F34*F35*D34) -> 5276.1375 | M35: =H44*20% -> 3077.4 | N35: 20% change in packaging
C37: Total Production Labor | H37: =SUM(H31:H35) -> 22863.2625 | J37: =H37*20% -> 4572.6525
B39: Packaging Costs | J39: www.eia.gov, NYSERDA
C40: Foam Trays | D40: =CEILING((Sim1I!$K$13/2)/Inputs!F59,1) -> 133 | E40: cases | F40: ='Cost estimates'!F40 -> 80 | G40: /case | H40: =D40*F40 -> 10640 | J40: www.eia.gov, NYSERDA | M40: =H49*20% -> 3008.486871 | N40: 20% change in energy
C41: Boxes | D41: =CEILING((Sim1I!$K$13/2)/Inputs!F60,1) -> 3797 | E41: box | F41: ='Cost estimates'!F41 -> 1 | G41: box | H41: =D41*F41 -> 3797 | J41: www.eia.gov, NYSERDA
C42: Labels & Stickers | D42: =CEILING((Sim1I!$K$13/2)/Inputs!F61,1) -> 19 | E42: roll | F42: ='Cost estimates'!F42 -> 50 | G42: /roll | H42: =D42*F42 -> 950
C44: Total Packaging Costs | H44: =SUM(H40:H42) -> 15387 | J44: =H44*20% -> 3077.4
B46: Utilities
C47: =IF(params!A37=1, "Fuel choice only for NYS user (choose one):", "Ignore this Fuel choice if Other State user:") -> Fuel choice only for NYS user (choose one): | D47: 3
D48: ='Cost estimates'!D48 -> 0 | E48: gal | F48: ='Cost estimates'!F48 -> 2.48 | G48: $/gallon | H48: ='Cost estimates'!H48 -> 0
D49: ='Cost estimates'!D49 -> 27349.88064 | E49: therms | F49: ='Cost estimates'!F49 -> 0.55 | G49: $/therm | H49: ='Cost estimates'!H49 -> 15042.43435
D50: ='Cost estimates'!D50 -> 0 | E50: gal | F50: ='Cost estimates'!F50 -> 2.38 | G50: $/gallon | H50: ='Cost estimates'!H50 -> 0
C51: =IF(params!A37=2, "Fuel Choice (for Other State user):", "Ignore Fuel choice below if NYS user:") -> Ignore Fuel choice below if NYS user: | D51: ='Cost estimates'!D51 -> 0 | F51: ='Cost estimates'!F51 -> 0 | H51: ='Cost estimates'!H51 -> 0
C52: Liquid Propane | D52: ='Cost estimates'!D52 -> 0 | E52: gal | F52: ='Cost estimates'!F52 -> 0 | G52: $/gallon | H52: ='Cost estimates'!H52 -> 0
C53: Natural Gas | D53: ='Cost estimates'!D53 -> 20000 | E53: therms | F53: ='Cost estimates'!F53 -> 0.75 | G53: $/therm | H53: ='Cost estimates'!H53 -> 0
C54: Fuel Oil | D54: ='Cost estimates'!D54 -> 0 | E54: gal | F54: ='Cost estimates'!F54 -> 0 | G54: $/gallon | H54: ='Cost estimates'!H54 -> 0
C55: Electricity (general - non fans) | D55: ='Cost estimates'!D55 -> 500 | E55: kWh | F55: ='Cost estimates'!F55 -> 0.06 | G55: /kWh | H55: =D55*F55 -> 30
C56: Electricity (fans and pads) | D56: ='Cost estimates'!D56 -> 10000 | E56: kWh | F56: ='Cost estimates'!F56 -> 0.06 | G56: /kWh | H56: 600
C57: Electricity (fanjets/Horizontal Air Fans) | D57: ='Cost estimates'!D57 -> 2000 | E57: kWh | F57: ='Cost estimates'!F57 -> 0.06 | G57: /kWh | H57: 120
C58: Electricity (lights) | D58: ='Cost estimates'!D58 -> 0 | E58: kWh | F58: ='Cost estimates'!F58 -> 0.06 | G58: /kWh | H58: 0
C59: Demand charge13 (fans) | D59: ='Cost estimates'!D59 -> 2.625 | E59: kW | F59: ='Cost estimates'!F59 -> 120 | G59: /kW | H59: =D59*F59 -> 315
C60: Demand charge (lights) | D60: ='Cost estimates'!D60 -> 0 | E60: kW | F60: ='Cost estimates'!F60 -> 120 | G60: /kW | H60: =D60*F60 -> 0
C61: Water and Sewer | D61: ='Cost estimates'!D61 -> 100000 | E61: gallons | F61: ='Cost estimates'!F61 -> 0.0131951 | G61: /gallon | H61: 1319.51
C62: Telephone | D62: ='Cost estimates'!D62 -> 12 | E62: months | F62: ='Cost estimates'!F62 -> 50 | G62: /month | H62: 600
C63: Cell Phone | D63: ='Cost estimates'!D63 -> 12 | E63: months | F63: ='Cost estimates'!F63 -> 40 | G63: /month | H63: 480
C65: Total Utilities Costs | H65: =SUM(H48:H63) -> 18506.94435 | J65: =H65*20% -> 3701.388871
B68: Miscellaneous Costs | J68: https://www.greenhousemegastore.com/category/gas-greenhouse-heaters
C69: Advertising, Mailings, Flyers | D69: ='Cost estimates'!D69 -> 1 | E69: campaigns | F69: ='Cost estimates'!F69 -> 200 | G69: /campaigns | H69: =F69*D69 -> 200
C70: Continuing Education | D70: ='Cost estimates'!D70 -> 1 | E70: meetings | F70: ='Cost estimates'!F70 -> 75 | G70: /meetings | H70: =D70*F70 -> 75
C71: Internet Service | D71: ='Cost estimates'!D71 -> 12 | E71: months | F71: ='Cost estimates'!F71 -> 20 | G71: /months | H71: 240
C72: Laboratory Fees | D72: ='Cost estimates'!D72 -> 36 | E72: tests | F72: ='Cost estimates'!F72 -> 20 | G72: /tests | H72: 720
C73: Office Supplies | D73: ='Cost estimates'!D73 -> 12 | E73: months | F73: ='Cost estimates'!F73 -> 25 | G73: /months | H73: 300
C74: Postage | D74: ='Cost estimates'!D74 -> 12 | E74: months | F74: ='Cost estimates'!F74 -> 15 | G74: /months | H74: 180
C75: Marketing Materials & Promotions | D75: ='Cost estimates'!D75 -> 1 | E75: promos | F75: ='Cost estimates'!F75 -> 300 | G75: /promos | H75: 300
C76: Record Keeping | D76: ='Cost estimates'!D76 -> 12 | E76: months | F76: ='Cost estimates'!F76 -> 50 | G76: /months | H76: 600
C77: Software | D77: ='Cost estimates'!D77 -> 3 | E77: programs | F77: ='Cost estimates'!F77 -> 50 | G77: /programs | H77: 150
C78: Subscriptions | D78: ='Cost estimates'!D78 -> 3 | E78: subscriptions | F78: ='Cost estimates'!F78 -> 35 | G78: /subscriptions | H78: 105
C79: Marketing & Trade Shows | D79: ='Cost estimates'!D79 -> 0 | E79: trade show | F79: ='Cost estimates'!F79 -> 500 | G79: /trade show | H79: 0
C81: Total Miscellaneous Costs | H81: =SUM(H69:H79) -> 2870
B83: Professional Services
C84: Accountant | D84: ='Cost estimates'!D84 -> 5 | E84: hours | F84: ='Cost estimates'!F84 -> 50 | G84: /hour | H84: =D84*F84 -> 250
C85: Lawyer | D85: ='Cost estimates'!D85 -> 4 | E85: hours | F85: ='Cost estimates'!F85 -> 125 | G85: /hour | H85: =D85*F85 -> 500
C87: Total Professional Services | H87: =SUM(H84:H85) -> 750
C89: TOTAL VARIABLE COSTS | H89: =SUM(H87,H81,H65,H44,H37,H28) -> 73230.10685
A93: Fixed Costs14
B94: Greenhouse Structure
D96: Quantity/Year | E96: Unit | F96: Price/Unit | H96: Total Cost per year
C98: Concrete | D98: =Inputs!K7*Inputs!F20 -> 900 | E98: sq. ft. | F98: ='Cost estimates'!F98 -> 2 | G98: /sq. ft. | H98: =D98*F98 -> 1800
C99: Frame, Ends, Door | D99: ='Cost estimates'!D99 -> 3 | E99: houses | F99: ='Cost estimates'!F99 -> 15000 | G99: /houses | H99: 45000
C100: Glazing material (Glass/Poly/Double poly | D100: ='Cost estimates'!D100 -> 3 | E100: houses | F100: ='Cost estimates'!F100 -> 5000 | G100: /houses | H100: 15000
C101: Energy/Shade Curtains | D101: ='Cost estimates'!D101 -> 8100 | E101: sq. ft. | F101: ='Cost estimates'!F101 -> 4 | G101: /sq. ft. | H101: 32400
C102: Ground Cover | D102: ='Cost estimates'!D102 -> 8100 | E102: sq. ft. | F102: ='Cost estimates'!F102 -> 0.075 | G102: /sq. ft. | H102: 607.5
C103: Permits | D103: ='Cost estimates'!D103 -> 4 | E103: permits | F103: ='Cost estimates'!F103 -> 80 | G103: /permits | H103: 320
C104: Site Preparation | D104: ='Cost estimates'!D104 -> 3 | E104: houses | F104: ='Cost estimates'!F104 -> 1000 | G104: /houses | H104: 3000
C105: House Construction | D105: ='Cost estimates'!D105 -> 450 | E105: hours | F105: ='Cost estimates'!F105 -> 10 | G105: /hours | H105: 4500
C107: Total Greenhouse Structure Costs | H107: =SUM(H98:H105) -> 102627.5
C109: Total Annual Greenhouse Stucture Costs18 (Annual costs of owning the greenhouse includes depreciation and/or principal payments, interest, repairs, taxes, and insurance) | F109: ='Cost estimates'!F109 -> 0.2 | H109: =H107*F109 -> 20525.5 | J109: https://shop.amhydro.com/collections/complete-nft-systems
J110: Controlled Environment Agriculture Scoping Study (1996), CEA Program, Cornell University
B112: Greenhouse Environmental Control Equipment
C113: Back-up Generator | D113: ='Cost estimates'!D113 -> 1 | E113: generators | F113: ='Cost estimates'!F113 -> 6000 | G113: /generators | H113: =D113*F113 -> 6000
C114: Cooling System (fan, vent, & pad) | D114: ='Cost estimates'!D114 -> 1 | E114: systems | F114: ='Cost estimates'!F114 -> 2000 | G114: /systems | H114: 2000
C115: Fanjets, 30" 1hp / Horizontal Air Fans | D115: ='Cost estimates'!D115 -> 1 | E115: fanjets / HAF | F115: ='Cost estimates'!F115 -> 1500 | G115: /fanjets / HAF | H115: 1500
C116: Electrical Panel | D116: ='Cost estimates'!D116 -> 1 | E116: panels | F116: ='Cost estimates'!F116 -> 1500 | G116: /panels | H116: 1500
C117: Computer for Environmental Control | D117: ='Cost estimates'!D117 -> 1 | E117: computers | F117: ='Cost estimates'!F117 -> 2500 | G117: /computers | H117: 2500
C118: Extra Building Supplies | D118: ='Cost estimates'!D118 -> 1 | E118: houses | F118: ='Cost estimates'!F118 -> 1500 | G118: /houses | H118: 1500
C119: Heating System (reflects utility choice from above) | D119: ='Cost estimates'!D119 -> 0 | F119: ='Cost estimates'!F119 -> 0
C120: Liquid Propane | D120: ='Cost estimates'!D120 -> 1 | E120: heaters | F120: ='Cost estimates'!F120 -> 2500 | G120: /heaters | H120: =IF(D47=1, D120*F120,0) -> 0
C121: Natural Gas | D121: ='Cost estimates'!D121 -> 1 | E121: heaters | F121: ='Cost estimates'!F121 -> 2000 | G121: /heaters | H121: =IF(D47=2, D121*F121,0) -> 0 | J121: https://www.ers.usda.gov/topics/farm-economy/land-use-land-value-tenure/farmland-value/
C122: Fuel Oil | D122: ='Cost estimates'!D122 -> 1 | E122: heaters | F122: ='Cost estimates'!F122 -> 2000 | G122: /heaters | H122: =IF(D47=3, D122*F122,0) -> 2000
C123: Poly Inflation Kit | D123: ='Cost estimates'!D123 -> 1 | E123: kits | F123: ='Cost estimates'!F123 -> 150 | G123: /kits | H123: =D123*F123 -> 150
C124: Low Voltage Wiring Package | D124: ='Cost estimates'!D124 -> 1 | E124: packages | F124: ='Cost estimates'!F124 -> 400 | G124: /packages | H124: =D124*F124 -> 400
C125: Protective Equipment (PPE) | D125: ='Cost estimates'!D125 -> 1 | E125: sets | F125: ='Cost estimates'!F125 -> 50 | G125: /sets | H125: =D125*F125 -> 50
C126: Grow Lights15
D127: ='Cost estimates'!D127 -> 0 | H127: ='Cost estimates'!H127 -> 0
D128: ='Cost estimates'!D128 -> 0 | E128: Lights | F128: ='Cost estimates'!F128 -> 460 | G128: /Lights | H128: ='Cost estimates'!H128 -> 0
C131: Total Greenhouse Environmental Control Equipment Costs | H131: =SUM(H113:H129) -> 17600
C133: Total Annual Equipment Costs (Annual costs of owning the equipment includes depreciation and/or principal payments, interest, repairs, taxes, and insurance) | F133: ='Cost estimates'!F133 -> 0.2 | H133: =H131*F133 -> 3520
B136: Growing & Delivery
C137: Back Pack Sprayer | D137: ='Cost estimates'!D137 -> 1 | E137: sprayers | F137: ='Cost estimates'!F137 -> 100 | G137: /sprayers | H137: =D137*F137 -> 100
C138: Carbon Dioxide Generator | D138: ='Cost estimates'!D138 -> 1 | E138: generators | F138: ='Cost estimates'!F138 -> 480 | G138: /generators | H138: 480
C139: Cooler | D139: ='Cost estimates'!D139 -> 1 | E139: coolers | F139: ='Cost estimates'!F139 -> 2500 | G139: /coolers | H139: 2500
C140: Delivery Van with A/C | D140: ='Cost estimates'!D140 -> 1 | E140: vans | F140: ='Cost estimates'!F140 -> 6000 | G140: /vans | H140: 6000
C141: Fertilizer Mixing Pump | D141: ='Cost estimates'!D141 -> 1 | E141: pumps | F141: ='Cost estimates'!F141 -> 30 | G141: /pumps | H141: 30
C142: Feeding System | D142: ='Cost estimates'!D142 -> 1 | E142: unit | F142: ='Cost estimates'!F142 -> 3200 | G142: /unit | H142: =D142*F142 -> 3200
C143: Meters and Sensors- EC | D143: ='Cost estimates'!D143 -> 1 | E143: meters | F143: ='Cost estimates'!F143 -> 160 | G143: /meters | H143: 160
C144: pH | D144: ='Cost estimates'!D144 -> 1 | E144: sensors | F144: ='Cost estimates'!F144 -> 50 | G144: /sensors | H144: 50
C145: Thermometer | D145: ='Cost estimates'!D145 -> 1 | E145: thermometers | F145: ='Cost estimates'!F145 -> 25 | G145: /thermometers | H145: 25
C146: Monitor- Humidity | D146: ='Cost estimates'!D146 -> 1 | E146: sensors | F146: ='Cost estimates'!F146 -> 120 | G146: /sensors | H146: 120
C147: CO2 | D147: ='Cost estimates'!D147 -> 1 | E147: sensors | F147: ='Cost estimates'!F147 -> 500 | G147: /sensors | H147: 500
C148: Drip irrigation | D148: ='Cost estimates'!D148 -> 1 | E148: system | F148: ='Cost estimates'!F148 -> 20000 | G148: /system | H148: =F148*D148 -> 20000
C149: Scale | D149: ='Cost estimates'!D149 -> 1 | E149: scales | F149: ='Cost estimates'!F149 -> 100 | G149: /scales | H149: =D149*F149 -> 100
C152: Total Other Equipment | H152: =SUM(H137:H149) -> 33265
C154: Total Annual Growing & Delivery Costs (Annual costs of owning the greenhouse includes depreciation and/or principal payments, interest, repairs, taxes, and insurance) | F154: ='Cost estimates'!F154 -> 0.2 | H154: =H152*F154 -> 6653
B157: Miscellaneous
C158: Land Rent17 | D158: ='Cost estimates'!D158 -> 1 | E158: Acre | F158: ='Cost estimates'!F158 -> 100 | G158: /acre | H158: =D158*F158 -> 100
C160: Total Miscellaneous Costs | H160: =H158 -> 100
C164: TOTAL ANNUAL FIXED COSTS | H164: =H160+H154+H133+H109 -> 30798.5
C166: TOTAL ANNUAL COSTS | E166: (Variable Costs + Annual Fixed Costs) | H166: =SUM(H164,H89) -> 104028.6069

Sheet Sim2I (hidden)
C3: *** Please enter information in the Blue box
J4: Outputs based on the information provided in the Blue box
B5: Production
C6: Choose type of Greenhouse : | E6: 1
C7: 1 | J7: Greenhouse area | K7: =Inputs!K7 -> 9000 | L7: Sq. feet
J8: Side of the roof (if Gable) | K8: =Inputs!K8 -> 9824.55532 | L8: Feet
J9: Surface Area | K9: =Inputs!K9 -> 8100 | L9: Sq. feet
J10: No of plant | K10: =Inputs!K10 -> 2025 | S10: Note:
C11: Greenhouse dimension | D11: Width | F11: =Inputs!F13 -> 30 | G11: Feet | J11: harvested (year) | K11: =K10*F17 -> 70875 | L11: pound | Q11: Surface area:
D12: Length | F12: =Inputs!F14 -> 100 | G12: Feet | J12: Seed | K12: =CEILING(K10+(K10*Inputs!F21),1) -> 2127 | S12: Freestanding Gable | T12: Sides | U12: =IF(Sim2I!C7=1, 2*Sim2I!F12*Sim2I!F14,0) -> 2000 | V12: Square feet
D13: Radius of the roof | F13: =Inputs!F15 -> 5 | G13: Feet | J13: Net annual production | K13: =FLOOR(K11-(K11*Inputs!F22),1) -> 63787 | L13: Heads | T13: Ends | U13: =IF(Sim2I!C7=1, 2*Sim2I!F14*Sim2I!F11,0) -> 600 | V13: Square feet
D14: Height | F14: =Inputs!F16 -> 10 | G14: Feet | T14: Roof | U14: =IF(Sim2I!C7=1, 2*Sim2I!K8*Sim2I!F12,0) -> 1964911.064 | V14: Square feet
D15: Space use efficiency | F15: =Inputs!F17 -> 0.9 | T15: Roof peak | U15: =IF(Sim2I!C7=1, 2*1/2*Sim2I!F11*Sim2I!F13) -> 150 | V15: Square feet
D16: Area per plant | F16: =Inputs!F18 -> 4 | G16: sq. feet | T16: Total SA area | U16: =SUM(U12:U15) -> 1967661.064 | V16: Square feet
D17: Harvest per plant per year | F17: 35 | G17: Pound (average)
D18: Concrete-% of floor | F18: =Inputs!F20 -> 0.1 | J18: Annual heating load | K18: =Inputs!K16 -> 2452.833021 | L18: GJ | S18: Freestanding Quonset | T18: Sides | U18: 2000 | V18: Square feet
D19: Overseeding | F19: =Inputs!F21 -> 0.05 | J19: Annual heating load | K19: =Inputs!K17 -> 2324.739855 | L19: MMBtu | T19: Ends | U19: 600 | V19: Square feet
D20: Shrink | F20: =Inputs!F22 -> 0.1 | K20: =Inputs!K18 -> 0 | T20: Roof | U20: 2648.5 | V20: Square feet
D21: Price19 | F21: =Inputs!F23 -> 1.35 | G21: per pound | J21: Fuel use: | K21: =Inputs!K19 -> 0 | T21: Total SA area | U21: 5248.5 | V21: Square feet
J22: Propane | K22: =Inputs!K20 -> 29946.21772 | L22: gal
J23: Natural gas | K23: =Inputs!K21 -> 27349.88064 | L23: therms
J24: Fuel oil | K24: =Inputs!K22 -> 19591.60505 | L24: gal
K25: =Inputs!K23 -> 0
B26: Lighting | C26: Number of lamps in Greenhouse | F26: =Inputs!F26 -> 0 | G26: lamps | J26: Pond pump energy | K26: =Inputs!#REF! ->  | L26: kWh
C27: Watt consumption per lamp | F27: =Inputs!F27 -> 0 | G27: watt | J27: Pond pump energy | K27: =Inputs!#REF! ->  | L27: kW
C28: Hours operated per year | F28: =Inputs!F28 -> 0 | G28: hour
E31: 1
B32: Heating4 | C32: Ideally use energy model from Cornell CEA or other model
C33: OR use the folowing formula to get a reasonably accurate estimate to help in making decisions relative to the size of the greenhouse or type of heating.
C35: Glazing material | F35: =Inputs!F35 -> 0
C36: Custom u-value | F36: =Inputs!F36 -> 1 | G36: Btu/(sqft*degF*h)
C37: Custom transmittance | F37: =Inputs!F37 -> 0.9
C38: Air changes per hour | F38: =Inputs!F38 -> 1 | G38: ACH
C39: ASHRAE Climate Zone | F39: =Inputs!F39 -> 0
C40: Greenhouse air temperature | F40: =Inputs!F40 -> 70 | G40: F
C41: Evapotranspiration latent load | F41: =Inputs!F41 -> 10 | G41: W/ft2
C42: Greenhouse RH% | F42: =Inputs!F42 -> 0.7 | T42: Use Degree -days if you are in NYS from the following table or from nearby weather station data:
C43: Boiler efficiency | F43: =Inputs!F43 -> 0.85 | U43: Albany | V43: 4302
U46: Binghamton | V46: 4296
B47: Labor | C47: Seed/ Transplant/Harvest/ Package | F47: =Inputs!F47 -> 11 | G47: hrs/per thousand | U47: Buffalo | V47: 4316
C48: Delivering to market | F48: =Inputs!F48 -> 1 | G48: hrs/per thousand | U48: Ithaca | V48: 4023
C49: Production management | F49: =Inputs!F49 -> 2 | G49: hrs/per thousand | U49: New york | V49: 3089
C50: Other (Marketing, Maintainence, etc.) | F50: =Inputs!F50 -> 1 | G50: hrs/per thousand | U50: Rochester | V50: 4231
B54: Others6 | C54: No. of Pelleted seed | F54: =Inputs!F54 -> 1000 | G54: /per package
C55: No. of Rockwool cubes | F55: =Inputs!F55 -> 6000 | G55: /per case
C56: No. of Rockwool slabs | F56: =Inputs!F56 -> 12 | G56: /per bag
C57: No. of beneficial insects | F57: =Inputs!F57 -> 650 | G57: /per package
C58: Sq. feet covered per insects | F58: =Inputs!F58 -> 0.9 | G58: /per insects
C59: Foam tray per case | F59: =Inputs!F59 -> 344 | G59: /case
C60: Clamshell per box | F60: =Inputs!F60 -> 12 | G60: /box
C61: Labels per roll | F61: =Inputs!F61 -> 2500 | G61: /roll

Sheet Sim2C (hidden)
C3: *** Please enter information in the Orange Box
D5: Quantity/Year | E5: Unit | F5: Price ($) / Unit | H5: Total Cost per year
A6: VARIABLE COSTS7
B7: Production Supplies
C8: Seed (package) | D8: =CEILING((Sim2I!K10+(Sim2I!K10*Inputs!F21))/Inputs!F54, 1) -> 3 | E8: packages | F8: ='Cost estimates'!F8 -> 110 | G8: /package | H8: =D8*F8 -> 330 | J8: References:
C9: Rockwool cubes, 1" cubes | D9: =CEILING(Sim2I!K13/Inputs!F55,1) -> 11 | E9: cases | F9: ='Cost estimates'!F9 -> 159 | G9: /case | H9: 1749
C10: Beneficial Insects | D10: =CEILING((Inputs!K7/Inputs!F58)/Inputs!F57,1) -> 16 | E10: packages | F10: ='Cost estimates'!F10 -> 36 | G10: /package | H10: 576 | J10: Hydroponic Lettuce Budget Analysis- The Ohio State University Extension. http://u.osu.edu/greenhouse/hydroponic-crop-program-economic-budgets/
C11: Growth Medium | F11: ='Cost estimates'!F11 -> 0
C12: 2 plants/slab | D12: =CEILING(IF(params!A18=1,Inputs!K10/(Inputs!F56*2),0),1) -> 85 | E12: slabs | F12: ='Cost estimates'!F12 -> 65 | G12: /slabs | H12: =D12*F12 -> 5525
C13: 4 cu. Ft./bag | D13: =CEILING(IF(params!A18=2,Inputs!K10/9,0),1) -> 0 | E13: bags | F13: ='Cost estimates'!F13 -> 10 | G13: /bag | H13: =D13*F13 -> 0
C14: Bato Buckets | D14: =Inputs!K10 -> 2025 | F14: ='Cost estimates'!F14 -> 4 | G14: /bucket | H14: ='Cost estimates'!H14 -> 0
C15: Fertilizer | F15: ='Cost estimates'!F15 -> 0
C16: Blended Mix | D16: =CEILING(Inputs!K7*0.162760416666666,1) -> 1465 | E16: pounds | F16: ='Cost estimates'!F16 -> 1 | G16: /pound | H16: 1465
C17: CaNO3 | D17: =CEILING(Inputs!K7*0.162760416666666,1) -> 1465 | E17: pounds | F17: ='Cost estimates'!F17 -> 0.46 | G17: /pound | H17: 673.9
C18: Additions | D18: =CEILING(Inputs!K7*0.00217013888888888,1) -> 20 | E18: pounds | F18: ='Cost estimates'!F18 -> 1 | G18: /pound | H18: 20
C19: Fungicide/Pesticide3 | D19: =CEILING(Inputs!K7*0.00217013888888888,1) -> 20 | E19: gallons | F19: ='Cost estimates'!F19 -> 60 | G19: /gallon | H19: 1200
C20: Sanitizer | D20: =CEILING(Sim2I!K13/29545,1) -> 3 | E20: gallons | F20: ='Cost estimates'!F20 -> 35 | G20: /gallon | H20: 105
C21: Sticky Traps4 | D21: =CEILING(Inputs!K7*0.0001,1) -> 1 | E21: packages | F21: ='Cost estimates'!F21 -> 30 | G21: /package | H21: 30
C22: Heated seedling support mat, 22X96 | D22: ='Cost estimates'!D22 -> 1 | E22: mat | F22: ='Cost estimates'!F22 -> 114 | G22: /mat | H22: 114 | J22: www.labor.ny.gov
C23: Trays | D23: ='Cost estimates'!D23 -> 10 | E23: trays | F23: ='Cost estimates'!F23 -> 1 | G23: /tray | H23: 10
C24: Clips , 7500/case | D24: ='Cost estimates'!D24 -> 1 | E24: cases | F24: ='Cost estimates'!F24 -> 83 | G24: /package | H24: 83
C25: Twine | D25: ='Cost estimates'!D25 -> 1 | E25: boxes | F25: ='Cost estimates'!F25 -> 22 | G25: /box | H25: 22
C26: Tomahooks | D26: ='Cost estimates'!D26 -> 800 | E26: hooks | F26: ='Cost estimates'!F26 -> 0.15 | G26: /package | H26: 120
C28: Total Production Supplies cost | H28: =SUM(H8:H26) -> 12022.9 | M28: =#REF!*20% ->  | N28: 20% change in labor
B30: Production Labor
C31: Seed/ Transplant/Harvest/ Package | D31: =(Inputs!F47*Sim2I!$K$13)/1000 -> 701.657 | E31: hours/year | F31: ='Cost estimates'!F31 -> 13 | G31: /hour | H31: =D31*F31 -> 9121.541 | J31: http://avisbag.com/about-us.html
C32: Delivering to market | D32: =(Inputs!F48*Sim2I!$K$13)/1000 -> 63.787 | E32: hours/year | F32: ='Cost estimates'!F32 -> 12 | G32: /hour | H32: =D32*F32 -> 765.444
C33: Production management | D33: =(Inputs!F49*Sim2I!$K$13)/1000 -> 127.574 | E33: hours/year | F33: ='Cost estimates'!F33 -> 13 | G33: /hour | H33: =D33*F33 -> 1658.462
C34: Other (Marketing, Maintainence, etc.) | D34: =(Inputs!F50*Sim2I!$K$13)/1000 -> 63.787 | E34: hours/year | F34: ='Cost estimates'!F34 -> 12 | G34: /hour | H34: =D34*F34 -> 765.444
C35: Fringe benefit | F35: ='Cost estimates'!F35 -> 0.3 | G35: /hour | H35: =(F31*F35*D31)+(F32*F35*D32)+(F33*F35*D33)+(F34*F35*D34) -> 3693.2673 | M35: =H44*20% -> 2149.6 | N35: 20% change in packaging
C37: Total Production Labor | H37: =SUM(H31:H35) -> 16004.1583 | J37: =H37*20% -> 3200.83166
B39: Packaging Costs | J39: www.eia.gov, NYSERDA
C40: Foam Trays | D40: =CEILING((Sim2I!$K$13/2)/Inputs!F59,1) -> 93 | E40: cases | F40: ='Cost estimates'!F40 -> 80 | G40: /case | H40: =D40*F40 -> 7440 | J40: www.eia.gov, NYSERDA | M40: =H49*20% -> 3008.486871 | N40: 20% change in energy
C41: Boxes | D41: =CEILING((Sim2I!$K$13/2)/Inputs!F60,1) -> 2658 | E41: box | F41: ='Cost estimates'!F41 -> 1 | G41: box | H41: =D41*F41 -> 2658 | J41: www.eia.gov, NYSERDA
C42: Labels & Stickers | D42: =CEILING((Sim2I!$K$13/2)/Inputs!F61,1) -> 13 | E42: roll | F42: ='Cost estimates'!F42 -> 50 | G42: /roll | H42: =D42*F42 -> 650
C44: Total Packaging Costs | H44: =SUM(H40:H42) -> 10748 | J44: =H44*20% -> 2149.6
B46: Utilities
C47: =IF(params!A37=1, "Fuel choice only for NYS user (choose one):", "Ignore this Fuel choice if Other State user:") -> Fuel choice only for NYS user (choose one): | D47: 3
D48: ='Cost estimates'!D48 -> 0 | E48: gal | F48: ='Cost estimates'!F48 -> 2.48 | G48: $/gallon | H48: ='Cost estimates'!H48 -> 0
D49: ='Cost estimates'!D49 -> 27349.88064 | E49: therms | F49: ='Cost estimates'!F49 -> 0.55 | G49: $/therm | H49: ='Cost estimates'!H49 -> 15042.43435
D50: ='Cost estimates'!D50 -> 0 | E50: gal | F50: ='Cost estimates'!F50 -> 2.38 | G50: $/gallon | H50: ='Cost estimates'!H50 -> 0
C51: =IF(params!A37=2, "Fuel Choice (for Other State user):", "Ignore Fuel choice below if NYS user:") -> Ignore Fuel choice below if NYS user: | D51: ='Cost estimates'!D51 -> 0 | F51: ='Cost estimates'!F51 -> 0 | H51: ='Cost estimates'!H51 -> 0
C52: Liquid Propane | D52: ='Cost estimates'!D52 -> 0 | E52: gal | F52: ='Cost estimates'!F52 -> 0 | G52: $/gallon | H52: ='Cost estimates'!H52 -> 0
C53: Natural Gas | D53: ='Cost estimates'!D53 -> 20000 | E53: therms | F53: ='Cost estimates'!F53 -> 0.75 | G53: $/therm | H53: ='Cost estimates'!H53 -> 0
C54: Fuel Oil | D54: ='Cost estimates'!D54 -> 0 | E54: gal | F54: ='Cost estimates'!F54 -> 0 | G54: $/gallon | H54: ='Cost estimates'!H54 -> 0
C55: Electricity (general - non fans) | D55: ='Cost estimates'!D55 -> 500 | E55: kWh | F55: ='Cost estimates'!F55 -> 0.06 | G55: /kWh | H55: =D55*F55 -> 30
C56: Electricity (fans and pads) | D56: ='Cost estimates'!D56 -> 10000 | E56: kWh | F56: ='Cost estimates'!F56 -> 0.06 | G56: /kWh | H56: 600
C57: Electricity (fanjets/Horizontal Air Fans) | D57: ='Cost estimates'!D57 -> 2000 | E57: kWh | F57: ='Cost estimates'!F57 -> 0.06 | G57: /kWh | H57: 120
C58: Electricity (lights) | D58: ='Cost estimates'!D58 -> 0 | E58: kWh | F58: ='Cost estimates'!F58 -> 0.06 | G58: /kWh | H58: 0
C59: Demand charge13 (fans) | D59: ='Cost estimates'!D59 -> 2.625 | E59: kW | F59: ='Cost estimates'!F59 -> 120 | G59: /kW | H59: =D59*F59 -> 315
C60: Demand charge (lights) | D60: ='Cost estimates'!D60 -> 0 | E60: kW | F60: ='Cost estimates'!F60 -> 120 | G60: /kW | H60: =D60*F60 -> 0
C61: Water and Sewer | D61: ='Cost estimates'!D61 -> 100000 | E61: gallons | F61: ='Cost estimates'!F61 -> 0.0131951 | G61: /gallon | H61: 1319.51
C62: Telephone | D62: ='Cost estimates'!D62 -> 12 | E62: months | F62: ='Cost estimates'!F62 -> 50 | G62: /month | H62: 600
C63: Cell Phone | D63: ='Cost estimates'!D63 -> 12 | E63: months | F63: ='Cost estimates'!F63 -> 40 | G63: /month | H63: 480
C65: Total Utilities Costs | H65: =SUM(H48:H63) -> 18506.94435 | J65: =H65*20% -> 3701.388871
B68: Miscellaneous Costs | J68: https://www.greenhousemegastore.com/category/gas-greenhouse-heaters
C69: Advertising, Mailings, Flyers | D69: ='Cost estimates'!D69 -> 1 | E69: campaigns | F69: ='Cost estimates'!F69 -> 200 | G69: /campaigns | H69: =F69*D69 -> 200
C70: Continuing Education | D70: ='Cost estimates'!D70 -> 1 | E70: meetings | F70: ='Cost estimates'!F70 -> 75 | G70: /meetings | H70: =D70*F70 -> 75
C71: Internet Service | D71: ='Cost estimates'!D71 -> 12 | E71: months | F71: ='Cost estimates'!F71 -> 20 | G71: /months | H71: 240
C72: Laboratory Fees | D72: ='Cost estimates'!D72 -> 36 | E72: tests | F72: ='Cost estimates'!F72 -> 20 | G72: /tests | H72: 720
C73: Office Supplies | D73: ='Cost estimates'!D73 -> 12 | E73: months | F73: ='Cost estimates'!F73 -> 25 | G73: /months | H73: 300
C74: Postage | D74: ='Cost estimates'!D74 -> 12 | E74: months | F74: ='Cost estimates'!F74 -> 15 | G74: /months | H74: 180
C75: Marketing Materials & Promotions | D75: ='Cost estimates'!D75 -> 1 | E75: promos | F75: ='Cost estimates'!F75 -> 300 | G75: /promos | H75: 300
C76: Record Keeping | D76: ='Cost estimates'!D76 -> 12 | E76: months | F76: ='Cost estimates'!F76 -> 50 | G76: /months | H76: 600
C77: Software | D77: ='Cost estimates'!D77 -> 3 | E77: programs | F77: ='Cost estimates'!F77 -> 50 | G77: /programs | H77: 150
C78: Subscriptions | D78: ='Cost estimates'!D78 -> 3 | E78: subscriptions | F78: ='Cost estimates'!F78 -> 35 | G78: /subscriptions | H78: 105
C79: Marketing & Trade Shows | D79: ='Cost estimates'!D79 -> 0 | E79: trade show | F79: ='Cost estimates'!F79 -> 500 | G79: /trade show | H79: 0
C81: Total Miscellaneous Costs | H81: =SUM(H69:H79) -> 2870
B83: Professional Services
C84: Accountant | D84: ='Cost estimates'!D84 -> 5 | E84: hours | F84: ='Cost estimates'!F84 -> 50 | G84: /hour | H84: =D84*F84 -> 250
C85: Lawyer | D85: ='Cost estimates'!D85 -> 4 | E85: hours | F85: ='Cost estimates'!F85 -> 125 | G85: /hour | H85: =D85*F85 -> 500
C87: Total Professional Services | H87: =SUM(H84:H85) -> 750
C89: TOTAL VARIABLE COSTS | H89: =SUM(H87,H81,H65,H44,H37,H28) -> 60902.00265
A93: Fixed Costs14
B94: Greenhouse Structure
D96: Quantity/Year | E96: Unit | F96: Price/Unit | H96: Total Cost per year
C98: Concrete | D98: =Inputs!K7*Inputs!F20 -> 900 | E98: sq. ft. | F98: ='Cost estimates'!F98 -> 2 | G98: /sq. ft. | H98: =D98*F98 -> 1800
C99: Frame, Ends, Door | D99: ='Cost estimates'!D99 -> 3 | E99: houses | F99: ='Cost estimates'!F99 -> 15000 | G99: /houses | H99: 45000
C100: Glazing material (Glass/Poly/Double poly | D100: ='Cost estimates'!D100 -> 3 | E100: houses | F100: ='Cost estimates'!F100 -> 5000 | G100: /houses | H100: 15000
C101: Energy/Shade Curtains | D101: ='Cost estimates'!D101 -> 8100 | E101: sq. ft. | F101: ='Cost estimates'!F101 -> 4 | G101: /sq. ft. | H101: 32400
C102: Ground Cover | D102: ='Cost estimates'!D102 -> 8100 | E102: sq. ft. | F102: ='Cost estimates'!F102 -> 0.075 | G102: /sq. ft. | H102: 607.5
C103: Permits | D103: ='Cost estimates'!D103 -> 4 | E103: permits | F103: ='Cost estimates'!F103 -> 80 | G103: /permits | H103: 320
C104: Site Preparation | D104: ='Cost estimates'!D104 -> 3 | E104: houses | F104: ='Cost estimates'!F104 -> 1000 | G104: /houses | H104: 3000
C105: House Construction | D105: ='Cost estimates'!D105 -> 450 | E105: hours | F105: ='Cost estimates'!F105 -> 10 | G105: /hours | H105: 4500
C107: Total Greenhouse Structure Costs | H107: =SUM(H98:H105) -> 102627.5
C109: Total Annual Greenhouse Stucture Costs18 (Annual costs of owning the greenhouse includes depreciation and/or principal payments, interest, repairs, taxes, and insurance) | F109: ='Cost estimates'!F109 -> 0.2 | H109: =H107*F109 -> 20525.5 | J109: https://shop.amhydro.com/collections/complete-nft-systems
J110: Controlled Environment Agriculture Scoping Study (1996), CEA Program, Cornell University
B112: Greenhouse Environmental Control Equipment
C113: Back-up Generator | D113: ='Cost estimates'!D113 -> 1 | E113: generators | F113: ='Cost estimates'!F113 -> 6000 | G113: /generators | H113: =D113*F113 -> 6000
C114: Cooling System (fan, vent, & pad) | D114: ='Cost estimates'!D114 -> 1 | E114: systems | F114: ='Cost estimates'!F114 -> 2000 | G114: /systems | H114: 2000
C115: Fanjets, 30" 1hp / Horizontal Air Fans | D115: ='Cost estimates'!D115 -> 1 | E115: fanjets / HAF | F115: ='Cost estimates'!F115 -> 1500 | G115: /fanjets / HAF | H115: 1500
C116: Electrical Panel | D116: ='Cost estimates'!D116 -> 1 | E116: panels | F116: ='Cost estimates'!F116 -> 1500 | G116: /panels | H116: 1500
C117: Computer for Environmental Control | D117: ='Cost estimates'!D117 -> 1 | E117: computers | F117: ='Cost estimates'!F117 -> 2500 | G117: /computers | H117: 2500
C118: Extra Building Supplies | D118: ='Cost estimates'!D118 -> 1 | E118: houses | F118: ='Cost estimates'!F118 -> 1500 | G118: /houses | H118: 1500
C119: Heating System (reflects utility choice from above) | D119: ='Cost estimates'!D119 -> 0 | F119: ='Cost estimates'!F119 -> 0
C120: Liquid Propane | D120: ='Cost estimates'!D120 -> 1 | E120: heaters | F120: ='Cost estimates'!F120 -> 2500 | G120: /heaters | H120: =IF(D47=1, D120*F120,0) -> 0
C121: Natural Gas | D121: ='Cost estimates'!D121 -> 1 | E121: heaters | F121: ='Cost estimates'!F121 -> 2000 | G121: /heaters | H121: =IF(D47=2, D121*F121,0) -> 0 | J121: https://www.ers.usda.gov/topics/farm-economy/land-use-land-value-tenure/farmland-value/
C122: Fuel Oil | D122: ='Cost estimates'!D122 -> 1 | E122: heaters | F122: ='Cost estimates'!F122 -> 2000 | G122: /heaters | H122: =IF(D47=3, D122*F122,0) -> 2000
C123: Poly Inflation Kit | D123: ='Cost estimates'!D123 -> 1 | E123: kits | F123: ='Cost estimates'!F123 -> 150 | G123: /kits | H123: =D123*F123 -> 150
C124: Low Voltage Wiring Package | D124: ='Cost estimates'!D124 -> 1 | E124: packages | F124: ='Cost estimates'!F124 -> 400 | G124: /packages | H124: =D124*F124 -> 400
C125: Protective Equipment (PPE) | D125: ='Cost estimates'!D125 -> 1 | E125: sets | F125: ='Cost estimates'!F125 -> 50 | G125: /sets | H125: =D125*F125 -> 50
C126: Grow Lights15
D127: ='Cost estimates'!D127 -> 0 | H127: ='Cost estimates'!H127 -> 0
D128: ='Cost estimates'!D128 -> 0 | E128: Lights | F128: ='Cost estimates'!F128 -> 460 | G128: /Lights | H128: ='Cost estimates'!H128 -> 0
C131: Total Greenhouse Environmental Control Equipment Costs | H131: =SUM(H113:H129) -> 17600
C133: Total Annual Equipment Costs (Annual costs of owning the equipment includes depreciation and/or principal payments, interest, repairs, taxes, and insurance) | F133: ='Cost estimates'!F133 -> 0.2 | H133: =H131*F133 -> 3520
B136: Growing & Delivery
C137: Back Pack Sprayer | D137: ='Cost estimates'!D137 -> 1 | E137: sprayers | F137: ='Cost estimates'!F137 -> 100 | G137: /sprayers | H137: =D137*F137 -> 100
C138: Carbon Dioxide Generator | D138: ='Cost estimates'!D138 -> 1 | E138: generators | F138: ='Cost estimates'!F138 -> 480 | G138: /generators | H138: 480
C139: Cooler | D139: ='Cost estimates'!D139 -> 1 | E139: coolers | F139: ='Cost estimates'!F139 -> 2500 | G139: /coolers | H139: 2500
C140: Delivery Van with A/C | D140: ='Cost estimates'!D140 -> 1 | E140: vans | F140: ='Cost estimates'!F140 -> 6000 | G140: /vans | H140: 6000
C141: Fertilizer Mixing Pump | D141: ='Cost estimates'!D141 -> 1 | E141: pumps | F141: ='Cost estimates'!F141 -> 30 | G141: /pumps | H141: 30
C142: Feeding System | D142: ='Cost estimates'!D142 -> 1 | E142: unit | F142: ='Cost estimates'!F142 -> 3200 | G142: /unit | H142: =D142*F142 -> 3200
C143: Meters and Sensors- EC | D143: ='Cost estimates'!D143 -> 1 | E143: meters | F143: ='Cost estimates'!F143 -> 160 | G143: /meters | H143: 160
C144: pH | D144: ='Cost estimates'!D144 -> 1 | E144: sensors | F144: ='Cost estimates'!F144 -> 50 | G144: /sensors | H144: 50
C145: Thermometer | D145: ='Cost estimates'!D145 -> 1 | E145: thermometers | F145: ='Cost estimates'!F145 -> 25 | G145: /thermometers | H145: 25
C146: Monitor- Humidity | D146: ='Cost estimates'!D146 -> 1 | E146: sensors | F146: ='Cost estimates'!F146 -> 120 | G146: /sensors | H146: 120
C147: CO2 | D147: ='Cost estimates'!D147 -> 1 | E147: sensors | F147: ='Cost estimates'!F147 -> 500 | G147: /sensors | H147: 500
C148: Drip irrigation | D148: ='Cost estimates'!D148 -> 1 | E148: system | F148: ='Cost estimates'!F148 -> 20000 | G148: /system | H148: =F148*D148 -> 20000
C149: Scale | D149: ='Cost estimates'!D149 -> 1 | E149: scales | F149: ='Cost estimates'!F149 -> 100 | G149: /scales | H149: =D149*F149 -> 100
C152: Total Other Equipment | H152: =SUM(H137:H149) -> 33265
C154: Total Annual Growing & Delivery Costs (Annual costs of owning the greenhouse includes depreciation and/or principal payments, interest, repairs, taxes, and insurance) | F154: ='Cost estimates'!F154 -> 0.2 | H154: =H152*F154 -> 6653
B157: Miscellaneous
C158: Land Rent17 | D158: ='Cost estimates'!D158 -> 1 | E158: Acre | F158: ='Cost estimates'!F158 -> 100 | G158: /acre | H158: =D158*F158 -> 100
C160: Total Miscellaneous Costs | H160: =H158 -> 100
C164: TOTAL ANNUAL FIXED COSTS | H164: =H160+H154+H133+H109 -> 30798.5
C166: TOTAL ANNUAL COSTS | E166: (Variable Costs + Annual Fixed Costs) | H166: =SUM(H164,H89) -> 91700.50265

Sheet Sim3I (hidden)
C3: *** Please enter information in the Blue box
J4: Outputs based on the information provided in the Blue box
B5: Production
C6: Choose type of Greenhouse : | E6: 1
C7: 1 | J7: Greenhouse area | K7: =Inputs!K7 -> 9000 | L7: Sq. feet
J8: Side of the roof (if Gable) | K8: =Inputs!K8 -> 9824.55532 | L8: Feet
J9: Surface Area | K9: =Inputs!K9 -> 8100 | L9: Sq. feet
J10: No of plant | K10: =Inputs!K10 -> 2025 | S10: Note:
C11: Greenhouse dimension | D11: Width | F11: =Inputs!F13 -> 30 | G11: Feet | J11: harvested (year) | K11: =K10*F17 -> 50625 | L11: pound | Q11: Surface area:
D12: Length | F12: =Inputs!F14 -> 100 | G12: Feet | J12: Seed | K12: =CEILING(K10+(K10*Inputs!F21),1) -> 2127 | S12: Freestanding Gable | T12: Sides | U12: =IF(Sim3I!C7=1, 2*Sim3I!F12*Sim3I!F14,0) -> 2000 | V12: Square feet
D13: Radius of the roof | F13: =Inputs!F15 -> 5 | G13: Feet | J13: Net annual production | K13: =FLOOR(K11-(K11*Inputs!F22),1) -> 45562 | L13: pound | T13: Ends | U13: =IF(Sim3I!C7=1, 2*Sim3I!F14*Sim3I!F11,0) -> 600 | V13: Square feet
D14: Height | F14: =Inputs!F16 -> 10 | G14: Feet | T14: Roof | U14: =IF(Sim3I!C7=1, 2*Sim3I!K8*Sim3I!F12,0) -> 1964911.064 | V14: Square feet
D15: Space use efficiency | F15: =Inputs!F17 -> 0.9 | T15: Roof peak | U15: =IF(Sim3I!C7=1, 2*1/2*Sim3I!F11*Sim3I!F13) -> 150 | V15: Square feet
D16: Area per plant | F16: =Inputs!F18 -> 4 | G16: sq. feet | T16: Total SA area | U16: =SUM(U12:U15) -> 1967661.064 | V16: Square feet
D17: Harvest per plant per year | F17: 25 | G17: Pound (low)
D18: Concrete-% of floor | F18: =Inputs!F20 -> 0.1 | J18: Annual heating load | K18: =Inputs!K16 -> 2452.833021 | L18: GJ | S18: Freestanding Quonset | T18: Sides | U18: 2000 | V18: Square feet
D19: Overseeding | F19: =Inputs!F21 -> 0.05 | J19: Annual heating load | K19: =Inputs!K17 -> 2324.739855 | L19: MMBtu | T19: Ends | U19: 600 | V19: Square feet
D20: Shrink | F20: =Inputs!F22 -> 0.1 | K20: =Inputs!K18 -> 0 | T20: Roof | U20: 2648.5 | V20: Square feet
D21: Price19 | F21: =Inputs!F23 -> 1.35 | G21: per pound | J21: Fuel use: | K21: =Inputs!K19 -> 0 | T21: Total SA area | U21: 5248.5 | V21: Square feet
J22: Propane | K22: =Inputs!K20 -> 29946.21772 | L22: gal
J23: Natural gas | K23: =Inputs!K21 -> 27349.88064 | L23: therms
J24: Fuel oil | K24: =Inputs!K22 -> 19591.60505 | L24: gal
K25: =Inputs!K23 -> 0
B26: Lighting | C26: Number of lamps in Greenhouse | F26: =Inputs!F26 -> 0 | G26: lamps | J26: Pond pump energy | K26: =Inputs!#REF! ->  | L26: kWh
C27: Watt consumption per lamp | F27: =Inputs!F27 -> 0 | G27: watt | J27: Pond pump energy | K27: =Inputs!#REF! ->  | L27: kW
C28: Hours operated per year | F28: =Inputs!F28 -> 0 | G28: hour
E31: 1
B32: Heating4 | C32: Ideally use energy model from Cornell CEA or other model
C33: OR use the folowing formula to get a reasonably accurate estimate to help in making decisions relative to the size of the greenhouse or type of heating.
C35: Glazing material | F35: =Inputs!F35 -> 0
C36: Custom u-value | F36: =Inputs!F36 -> 1 | G36: Btu/(sqft*degF*h)
C37: Custom transmittance | F37: =Inputs!F37 -> 0.9
C38: Air changes per hour | F38: =Inputs!F38 -> 1 | G38: ACH
C39: ASHRAE Climate Zone | F39: =Inputs!F39 -> 0
C40: Greenhouse air temperature | F40: =Inputs!F40 -> 70 | G40: F
C41: Evapotranspiration latent load | F41: =Inputs!F41 -> 10 | G41: W/ft2
C42: Greenhouse RH% | F42: =Inputs!F42 -> 0.7 | T42: Use Degree -days if you are in NYS from the following table or from nearby weather station data:
C43: Boiler efficiency | F43: =Inputs!F43 -> 0.85 | U43: Albany | V43: 4302
U46: Binghamton | V46: 4296
B47: Labor | C47: Seed/ Transplant/Harvest/ Package | F47: =Inputs!F47 -> 11 | G47: hrs/per thousand | U47: Buffalo | V47: 4316
C48: Delivering to market | F48: =Inputs!F48 -> 1 | G48: hrs/per thousand | U48: Ithaca | V48: 4023
C49: Production management | F49: =Inputs!F49 -> 2 | G49: hrs/per thousand | U49: New york | V49: 3089
C50: Other (Marketing, Maintainence, etc.) | F50: =Inputs!F50 -> 1 | G50: hrs/per thousand | U50: Rochester | V50: 4231
B54: Others6 | C54: No. of Pelleted seed | F54: =Inputs!F54 -> 1000 | G54: /per package
C55: No. of Rockwool cubes | F55: =Inputs!F55 -> 6000 | G55: /per case
C56: No. of Rockwool slabs | F56: =Inputs!F56 -> 12 | G56: /per bag
C57: No. of beneficial insects | F57: =Inputs!F57 -> 650 | G57: /per package
C58: Sq. feet covered per insects | F58: =Inputs!F58 -> 0.9 | G58: /per insects
C59: Foam tray per case | F59: =Inputs!F59 -> 344 | G59: /case
C60: Clamshell per box | F60: =Inputs!F60 -> 12 | G60: /box
C61: Labels per roll | F61: =Inputs!F61 -> 2500 | G61: /roll

Sheet Sim3C (hidden)
C3: *** Please enter information in the Orange Box
D5: Quantity/Year | E5: Unit | F5: Price ($) / Unit | H5: Total Cost per year
A6: VARIABLE COSTS7
B7: Production Supplies
C8: Seed (package) | D8: =CEILING((Sim3I!K10+(Sim3I!K10*Inputs!F21))/Inputs!F54, 1) -> 3 | E8: packages | F8: ='Cost estimates'!F8 -> 110 | G8: /package | H8: =D8*F8 -> 330 | J8: References:
C9: Rockwool cubes, 1" cubes | D9: =CEILING(Sim3I!K13/Inputs!F55,1) -> 8 | E9: cases | F9: ='Cost estimates'!F9 -> 159 | G9: /case | H9: 1272
C10: Beneficial Insects | D10: =CEILING((Inputs!K7/Inputs!F58)/Inputs!F57,1) -> 16 | E10: packages | F10: ='Cost estimates'!F10 -> 36 | G10: /package | H10: 576 | J10: Hydroponic Lettuce Budget Analysis- The Ohio State University Extension. http://u.osu.edu/greenhouse/hydroponic-crop-program-economic-budgets/
C11: Growth Medium | F11: ='Cost estimates'!F11 -> 0
C12: 2 plants/slab | D12: =CEILING(IF(params!A18=1,Inputs!K10/(Inputs!F56*2),0),1) -> 85 | E12: slabs | F12: ='Cost estimates'!F12 -> 65 | G12: /slabs | H12: =D12*F12 -> 5525
C13: 4 cu. Ft./bag | D13: =CEILING(IF(params!A18=2,Inputs!K10/9,0),1) -> 0 | E13: bags | F13: ='Cost estimates'!F13 -> 10 | G13: /bag | H13: =D13*F13 -> 0
C14: Bato Buckets | D14: =Inputs!K10 -> 2025 | F14: ='Cost estimates'!F14 -> 4 | G14: /bucket | H14: ='Cost estimates'!H14 -> 0
C15: Fertilizer | F15: ='Cost estimates'!F15 -> 0
C16: Blended Mix | D16: =CEILING(Inputs!K7*0.162760416666666,1) -> 1465 | E16: pounds | F16: ='Cost estimates'!F16 -> 1 | G16: /pound | H16: 1465
C17: CaNO3 | D17: =CEILING(Inputs!K7*0.162760416666666,1) -> 1465 | E17: pounds | F17: ='Cost estimates'!F17 -> 0.46 | G17: /pound | H17: 673.9
C18: Additions | D18: =CEILING(Inputs!K7*0.00217013888888888,1) -> 20 | E18: pounds | F18: ='Cost estimates'!F18 -> 1 | G18: /pound | H18: 20
C19: Fungicide/Pesticide3 | D19: =CEILING(Inputs!K7*0.00217013888888888,1) -> 20 | E19: gallons | F19: ='Cost estimates'!F19 -> 60 | G19: /gallon | H19: 1200
C20: Sanitizer | D20: =CEILING(Sim3I!K13/29545,1) -> 2 | E20: gallons | F20: ='Cost estimates'!F20 -> 35 | G20: /gallon | H20: 70
C21: Sticky Traps4 | D21: =CEILING(Inputs!K7*0.0001,1) -> 1 | E21: packages | F21: ='Cost estimates'!F21 -> 30 | G21: /package | H21: 30
C22: Heated seedling support mat, 22X96 | D22: ='Cost estimates'!D22 -> 1 | E22: mat | F22: ='Cost estimates'!F22 -> 114 | G22: /mat | H22: 114 | J22: www.labor.ny.gov
C23: Trays | D23: ='Cost estimates'!D23 -> 10 | E23: trays | F23: ='Cost estimates'!F23 -> 1 | G23: /tray | H23: 10
C24: Clips , 7500/case | D24: ='Cost estimates'!D24 -> 1 | E24: cases | F24: ='Cost estimates'!F24 -> 83 | G24: /package | H24: 83
C25: Twine | D25: ='Cost estimates'!D25 -> 1 | E25: boxes | F25: ='Cost estimates'!F25 -> 22 | G25: /box | H25: 22
C26: Tomahooks | D26: ='Cost estimates'!D26 -> 800 | E26: hooks | F26: ='Cost estimates'!F26 -> 0.15 | G26: /package | H26: 120
C28: Total Production Supplies cost | H28: =SUM(H8:H26) -> 11510.9 | M28: =#REF!*20% ->  | N28: 20% change in labor
B30: Production Labor
C31: Seed/ Transplant/Harvest/ Package | D31: =(Inputs!F47*Sim3I!$K$13)/1000 -> 501.182 | E31: hours/year | F31: ='Cost estimates'!F31 -> 13 | G31: /hour | H31: =D31*F31 -> 6515.366 | J31: http://avisbag.com/about-us.html
C32: Delivering to market | D32: =(Inputs!F48*Sim3I!$K$13)/1000 -> 45.562 | E32: hours/year | F32: ='Cost estimates'!F32 -> 12 | G32: /hour | H32: =D32*F32 -> 546.744
C33: Production management | D33: =(Inputs!F49*Sim3I!$K$13)/1000 -> 91.124 | E33: hours/year | F33: ='Cost estimates'!F33 -> 13 | G33: /hour | H33: =D33*F33 -> 1184.612
C34: Other (Marketing, Maintainence, etc.) | D34: =(Inputs!F50*Sim3I!$K$13)/1000 -> 45.562 | E34: hours/year | F34: ='Cost estimates'!F34 -> 12 | G34: /hour | H34: =D34*F34 -> 546.744
C35: Fringe benefit | F35: ='Cost estimates'!F35 -> 0.3 | G35: /hour | H35: =(F31*F35*D31)+(F32*F35*D32)+(F33*F35*D33)+(F34*F35*D34) -> 2638.0398 | M35: =H44*20% -> 1551.8 | N35: 20% change in packaging
C37: Total Production Labor | H37: =SUM(H31:H35) -> 11431.5058 | J37: =H37*20% -> 2286.30116
B39: Packaging Costs | J39: www.eia.gov, NYSERDA
C40: Foam Trays | D40: =CEILING((Sim3I!$K$13/2)/Inputs!F59,1) -> 67 | E40: cases | F40: ='Cost estimates'!F40 -> 80 | G40: /case | H40: =D40*F40 -> 5360 | J40: www.eia.gov, NYSERDA | M40: =H49*20% -> 3008.486871 | N40: 20% change in energy
C41: Boxes | D41: =CEILING((Sim3I!$K$13/2)/Inputs!F60,1) -> 1899 | E41: box | F41: ='Cost estimates'!F41 -> 1 | G41: box | H41: =D41*F41 -> 1899 | J41: www.eia.gov, NYSERDA
C42: Labels & Stickers | D42: =CEILING((Sim3I!$K$13/2)/Inputs!F61,1) -> 10 | E42: roll | F42: ='Cost estimates'!F42 -> 50 | G42: /roll | H42: =D42*F42 -> 500
C44: Total Packaging Costs | H44: =SUM(H40:H42) -> 7759 | J44: =H44*20% -> 1551.8
B46: Utilities
C47: =IF(params!A37=1, "Fuel choice only for NYS user (choose one):", "Ignore this Fuel choice if Other State user:") -> Fuel choice only for NYS user (choose one): | D47: 3
D48: ='Cost estimates'!D48 -> 0 | E48: gal | F48: ='Cost estimates'!F48 -> 2.48 | G48: $/gallon | H48: ='Cost estimates'!H48 -> 0
D49: ='Cost estimates'!D49 -> 27349.88064 | E49: therms | F49: ='Cost estimates'!F49 -> 0.55 | G49: $/therm | H49: ='Cost estimates'!H49 -> 15042.43435
D50: ='Cost estimates'!D50 -> 0 | E50: gal | F50: ='Cost estimates'!F50 -> 2.38 | G50: $/gallon | H50: ='Cost estimates'!H50 -> 0
C51: =IF(params!A37=2, "Fuel Choice (for Other State user):", "Ignore Fuel choice below if NYS user:") -> Ignore Fuel choice below if NYS user: | D51: ='Cost estimates'!D51 -> 0 | F51: ='Cost estimates'!F51 -> 0 | H51: ='Cost estimates'!H51 -> 0
C52: Liquid Propane | D52: ='Cost estimates'!D52 -> 0 | E52: gal | F52: ='Cost estimates'!F52 -> 0 | G52: $/gallon | H52: ='Cost estimates'!H52 -> 0
C53: Natural Gas | D53: ='Cost estimates'!D53 -> 20000 | E53: therms | F53: ='Cost estimates'!F53 -> 0.75 | G53: $/therm | H53: ='Cost estimates'!H53 -> 0
C54: Fuel Oil | D54: ='Cost estimates'!D54 -> 0 | E54: gal | F54: ='Cost estimates'!F54 -> 0 | G54: $/gallon | H54: ='Cost estimates'!H54 -> 0
C55: Electricity (general - non fans) | D55: ='Cost estimates'!D55 -> 500 | E55: kWh | F55: ='Cost estimates'!F55 -> 0.06 | G55: /kWh | H55: =D55*F55 -> 30
C56: Electricity (fans and pads) | D56: ='Cost estimates'!D56 -> 10000 | E56: kWh | F56: ='Cost estimates'!F56 -> 0.06 | G56: /kWh | H56: 600
C57: Electricity (fanjets/Horizontal Air Fans) | D57: ='Cost estimates'!D57 -> 2000 | E57: kWh | F57: ='Cost estimates'!F57 -> 0.06 | G57: /kWh | H57: 120
C58: Electricity (lights) | D58: ='Cost estimates'!D58 -> 0 | E58: kWh | F58: ='Cost estimates'!F58 -> 0.06 | G58: /kWh | H58: 0
C59: Demand charge13 (fans) | D59: ='Cost estimates'!D59 -> 2.625 | E59: kW | F59: ='Cost estimates'!F59 -> 120 | G59: /kW | H59: =D59*F59 -> 315
C60: Demand charge (lights) | D60: ='Cost estimates'!D60 -> 0 | E60: kW | F60: ='Cost estimates'!F60 -> 120 | G60: /kW | H60: =D60*F60 -> 0
C61: Water and Sewer | D61: ='Cost estimates'!D61 -> 100000 | E61: gallons | F61: ='Cost estimates'!F61 -> 0.0131951 | G61: /gallon | H61: 1319.51
C62: Telephone | D62: ='Cost estimates'!D62 -> 12 | E62: months | F62: ='Cost estimates'!F62 -> 50 | G62: /month | H62: 600
C63: Cell Phone | D63: ='Cost estimates'!D63 -> 12 | E63: months | F63: ='Cost estimates'!F63 -> 40 | G63: /month | H63: 480
C65: Total Utilities Costs | H65: =SUM(H48:H63) -> 18506.94435 | J65: =H65*20% -> 3701.388871
B68: Miscellaneous Costs | J68: https://www.greenhousemegastore.com/category/gas-greenhouse-heaters
C69: Advertising, Mailings, Flyers | D69: ='Cost estimates'!D69 -> 1 | E69: campaigns | F69: ='Cost estimates'!F69 -> 200 | G69: /campaigns | H69: =F69*D69 -> 200
C70: Continuing Education | D70: ='Cost estimates'!D70 -> 1 | E70: meetings | F70: ='Cost estimates'!F70 -> 75 | G70: /meetings | H70: =D70*F70 -> 75
C71: Internet Service | D71: ='Cost estimates'!D71 -> 12 | E71: months | F71: ='Cost estimates'!F71 -> 20 | G71: /months | H71: 240
C72: Laboratory Fees | D72: ='Cost estimates'!D72 -> 36 | E72: tests | F72: ='Cost estimates'!F72 -> 20 | G72: /tests | H72: 720
C73: Office Supplies | D73: ='Cost estimates'!D73 -> 12 | E73: months | F73: ='Cost estimates'!F73 -> 25 | G73: /months | H73: 300
C74: Postage | D74: ='Cost estimates'!D74 -> 12 | E74: months | F74: ='Cost estimates'!F74 -> 15 | G74: /months | H74: 180
C75: Marketing Materials & Promotions | D75: ='Cost estimates'!D75 -> 1 | E75: promos | F75: ='Cost estimates'!F75 -> 300 | G75: /promos | H75: 300
C76: Record Keeping | D76: ='Cost estimates'!D76 -> 12 | E76: months | F76: ='Cost estimates'!F76 -> 50 | G76: /months | H76: 600
C77: Software | D77: ='Cost estimates'!D77 -> 3 | E77: programs | F77: ='Cost estimates'!F77 -> 50 | G77: /programs | H77: 150
C78: Subscriptions | D78: ='Cost estimates'!D78 -> 3 | E78: subscriptions | F78: ='Cost estimates'!F78 -> 35 | G78: /subscriptions | H78: 105
C79: Marketing & Trade Shows | D79: ='Cost estimates'!D79 -> 0 | E79: trade show | F79: ='Cost estimates'!F79 -> 500 | G79: /trade show | H79: 0
C81: Total Miscellaneous Costs | H81: =SUM(H69:H79) -> 2870
B83: Professional Services
C84: Accountant | D84: ='Cost estimates'!D84 -> 5 | E84: hours | F84: ='Cost estimates'!F84 -> 50 | G84: /hour | H84: =D84*F84 -> 250
C85: Lawyer | D85: ='Cost estimates'!D85 -> 4 | E85: hours | F85: ='Cost estimates'!F85 -> 125 | G85: /hour | H85: =D85*F85 -> 500
C87: Total Professional Services | H87: =SUM(H84:H85) -> 750
C89: TOTAL VARIABLE COSTS | H89: =SUM(H87,H81,H65,H44,H37,H28) -> 52828.35015
A93: Fixed Costs14
B94: Greenhouse Structure
D96: Quantity/Year | E96: Unit | F96: Price/Unit | H96: Total Cost per year
C98: Concrete | D98: =Inputs!K7*Inputs!F20 -> 900 | E98: sq. ft. | F98: ='Cost estimates'!F98 -> 2 | G98: /sq. ft. | H98: =D98*F98 -> 1800
C99: Frame, Ends, Door | D99: ='Cost estimates'!D99 -> 3 | E99: houses | F99: ='Cost estimates'!F99 -> 15000 | G99: /houses | H99: 45000
C100: Glazing material (Glass/Poly/Double poly | D100: ='Cost estimates'!D100 -> 3 | E100: houses | F100: ='Cost estimates'!F100 -> 5000 | G100: /houses | H100: 15000
C101: Energy/Shade Curtains | D101: ='Cost estimates'!D101 -> 8100 | E101: sq. ft. | F101: ='Cost estimates'!F101 -> 4 | G101: /sq. ft. | H101: 32400
C102: Ground Cover | D102: ='Cost estimates'!D102 -> 8100 | E102: sq. ft. | F102: ='Cost estimates'!F102 -> 0.075 | G102: /sq. ft. | H102: 607.5
C103: Permits | D103: ='Cost estimates'!D103 -> 4 | E103: permits | F103: ='Cost estimates'!F103 -> 80 | G103: /permits | H103: 320
C104: Site Preparation | D104: ='Cost estimates'!D104 -> 3 | E104: houses | F104: ='Cost estimates'!F104 -> 1000 | G104: /houses | H104: 3000
C105: House Construction | D105: ='Cost estimates'!D105 -> 450 | E105: hours | F105: ='Cost estimates'!F105 -> 10 | G105: /hours | H105: 4500
C107: Total Greenhouse Structure Costs | H107: =SUM(H98:H105) -> 102627.5
C109: Total Annual Greenhouse Stucture Costs18 (Annual costs of owning the greenhouse includes depreciation and/or principal payments, interest, repairs, taxes, and insurance) | F109: ='Cost estimates'!F109 -> 0.2 | H109: =H107*F109 -> 20525.5 | J109: https://shop.amhydro.com/collections/complete-nft-systems
J110: Controlled Environment Agriculture Scoping Study (1996), CEA Program, Cornell University
B112: Greenhouse Environmental Control Equipment
C113: Back-up Generator | D113: ='Cost estimates'!D113 -> 1 | E113: generators | F113: ='Cost estimates'!F113 -> 6000 | G113: /generators | H113: =D113*F113 -> 6000
C114: Cooling System (fan, vent, & pad) | D114: ='Cost estimates'!D114 -> 1 | E114: systems | F114: ='Cost estimates'!F114 -> 2000 | G114: /systems | H114: 2000
C115: Fanjets, 30" 1hp / Horizontal Air Fans | D115: ='Cost estimates'!D115 -> 1 | E115: fanjets / HAF | F115: ='Cost estimates'!F115 -> 1500 | G115: /fanjets / HAF | H115: 1500
C116: Electrical Panel | D116: ='Cost estimates'!D116 -> 1 | E116: panels | F116: ='Cost estimates'!F116 -> 1500 | G116: /panels | H116: 1500
C117: Computer for Environmental Control | D117: ='Cost estimates'!D117 -> 1 | E117: computers | F117: ='Cost estimates'!F117 -> 2500 | G117: /computers | H117: 2500
C118: Extra Building Supplies | D118: ='Cost estimates'!D118 -> 1 | E118: houses | F118: ='Cost estimates'!F118 -> 1500 | G118: /houses | H118: 1500
C119: Heating System (reflects utility choice from above) | D119: ='Cost estimates'!D119 -> 0 | F119: ='Cost estimates'!F119 -> 0
C120: Liquid Propane | D120: ='Cost estimates'!D120 -> 1 | E120: heaters | F120: ='Cost estimates'!F120 -> 2500 | G120: /heaters | H120: =IF(D47=1, D120*F120,0) -> 0
C121: Natural Gas | D121: ='Cost estimates'!D121 -> 1 | E121: heaters | F121: ='Cost estimates'!F121 -> 2000 | G121: /heaters | H121: =IF(D47=2, D121*F121,0) -> 0 | J121: https://www.ers.usda.gov/topics/farm-economy/land-use-land-value-tenure/farmland-value/
C122: Fuel Oil | D122: ='Cost estimates'!D122 -> 1 | E122: heaters | F122: ='Cost estimates'!F122 -> 2000 | G122: /heaters | H122: =IF(D47=3, D122*F122,0) -> 2000
C123: Poly Inflation Kit | D123: ='Cost estimates'!D123 -> 1 | E123: kits | F123: ='Cost estimates'!F123 -> 150 | G123: /kits | H123: =D123*F123 -> 150
C124: Low Voltage Wiring Package | D124: ='Cost estimates'!D124 -> 1 | E124: packages | F124: ='Cost estimates'!F124 -> 400 | G124: /packages | H124: =D124*F124 -> 400
C125: Protective Equipment (PPE) | D125: ='Cost estimates'!D125 -> 1 | E125: sets | F125: ='Cost estimates'!F125 -> 50 | G125: /sets | H125: =D125*F125 -> 50
C126: Grow Lights15
D127: ='Cost estimates'!D127 -> 0 | H127: ='Cost estimates'!H127 -> 0
D128: ='Cost estimates'!D128 -> 0 | E128: Lights | F128: ='Cost estimates'!F128 -> 460 | G128: /Lights | H128: ='Cost estimates'!H128 -> 0
C131: Total Greenhouse Environmental Control Equipment Costs | H131: =SUM(H113:H129) -> 17600
C133: Total Annual Equipment Costs (Annual costs of owning the equipment includes depreciation and/or principal payments, interest, repairs, taxes, and insurance) | F133: ='Cost estimates'!F133 -> 0.2 | H133: =H131*F133 -> 3520
B136: Growing & Delivery
C137: Back Pack Sprayer | D137: ='Cost estimates'!D137 -> 1 | E137: sprayers | F137: ='Cost estimates'!F137 -> 100 | G137: /sprayers | H137: =D137*F137 -> 100
C138: Carbon Dioxide Generator | D138: ='Cost estimates'!D138 -> 1 | E138: generators | F138: ='Cost estimates'!F138 -> 480 | G138: /generators | H138: 480
C139: Cooler | D139: ='Cost estimates'!D139 -> 1 | E139: coolers | F139: ='Cost estimates'!F139 -> 2500 | G139: /coolers | H139: 2500
C140: Delivery Van with A/C | D140: ='Cost estimates'!D140 -> 1 | E140: vans | F140: ='Cost estimates'!F140 -> 6000 | G140: /vans | H140: 6000
C141: Fertilizer Mixing Pump | D141: ='Cost estimates'!D141 -> 1 | E141: pumps | F141: ='Cost estimates'!F141 -> 30 | G141: /pumps | H141: 30
C142: Feeding System | D142: ='Cost estimates'!D142 -> 1 | E142: unit | F142: ='Cost estimates'!F142 -> 3200 | G142: /unit | H142: =D142*F142 -> 3200
C143: Meters and Sensors- EC | D143: ='Cost estimates'!D143 -> 1 | E143: meters | F143: ='Cost estimates'!F143 -> 160 | G143: /meters | H143: 160
C144: pH | D144: ='Cost estimates'!D144 -> 1 | E144: sensors | F144: ='Cost estimates'!F144 -> 50 | G144: /sensors | H144: 50
C145: Thermometer | D145: ='Cost estimates'!D145 -> 1 | E145: thermometers | F145: ='Cost estimates'!F145 -> 25 | G145: /thermometers | H145: 25
C146: Monitor- Humidity | D146: ='Cost estimates'!D146 -> 1 | E146: sensors | F146: ='Cost estimates'!F146 -> 120 | G146: /sensors | H146: 120
C147: CO2 | D147: ='Cost estimates'!D147 -> 1 | E147: sensors | F147: ='Cost estimates'!F147 -> 500 | G147: /sensors | H147: 500
C148: Drip irrigation | D148: ='Cost estimates'!D148 -> 1 | E148: system | F148: ='Cost estimates'!F148 -> 20000 | G148: /system | H148: =F148*D148 -> 20000
C149: Scale | D149: ='Cost estimates'!D149 -> 1 | E149: scales | F149: ='Cost estimates'!F149 -> 100 | G149: /scales | H149: =D149*F149 -> 100
C152: Total Other Equipment | H152: =SUM(H137:H149) -> 33265
C154: Total Annual Growing & Delivery Costs (Annual costs of owning the greenhouse includes depreciation and/or principal payments, interest, repairs, taxes, and insurance) | F154: ='Cost estimates'!F154 -> 0.2 | H154: =H152*F154 -> 6653
B157: Miscellaneous
C158: Land Rent17 | D158: ='Cost estimates'!D158 -> 1 | E158: Acre | F158: ='Cost estimates'!F158 -> 100 | G158: /acre | H158: =D158*F158 -> 100
C160: Total Miscellaneous Costs | H160: =H158 -> 100
C164: TOTAL ANNUAL FIXED COSTS | H164: =H160+H154+H133+H109 -> 30798.5
C166: TOTAL ANNUAL COSTS | E166: (Variable Costs + Annual Fixed Costs) | H166: =SUM(H164,H89) -> 83626.85015

Sheet Analysis
F3: Annual Profit Based On Different Assumptions
E12: Price/pound
E13: Actual | F13: High | G13: Average | H13: Low
E14: =Inputs!F23 -> 1.35 | F14: 2 | G14: 1.5 | H14: 1
B15: Annual Output | C15: Actual | D15: =Inputs!$K$13 -> 63787 | E15: =($D$15*$E$14)-'Cost estimates'!$H$166 -> 4644.780679 | F15: =$D$15*$F$14-'Cost estimates'!$H$166 -> 46106.33068 | G15: =$D$15*$G$14-'Cost estimates'!$H$166 -> 14212.83068 | H15: =$D$15*$H$14-'Cost estimates'!$H$166 -> -17680.66932
C16: High | D16: =Sim1I!$K$13 -> 91125 | E16: =($D$16*$E$14)-Sim1C!H166 -> 18990.14315 | F16: =($D$16*$F$14)-'Cost estimates'!H166 -> 100782.3307 | G16: =($D$16*$G$14)-'Cost estimates'!H166 -> 55219.83068 | H16: =($D$16*$H$14)-'Cost estimates'!H166 -> 9657.330679
C17: Average | D17: =Sim2I!$K$13 -> 63787 | E17: =($D$17*$E$14)-Sim2C!H166 -> -5588.052655 | F17: =$D$17*$F$14-Sim2C!H166 -> 35873.49735 | G17: =($D$17*$G$14)-Sim2C!H166 -> 3979.997345 | H17: =($D$17*$H$14)-Sim2C!H166 -> -27913.50265
C18: Poor | D18: =Sim3I!$K$13 -> 45562 | E18: =($D$18*$E$14)-Sim3C!H166 -> -22118.15015 | F18: =($D$18*$F$14)-Sim3C!H166 -> 7497.149845 | G18: =($D$18*$G$14)-Sim3C!H166 -> -15283.85015 | H18: =($D$18*$H$14)-Sim3C!H166 -> -38064.85015
H25: With 20% Increase in Labor Cost
E35: Price
E36: Actual | F36: High | G36: Average | H36: Low
E37: =Inputs!F23 -> 1.35 | F37: 2 | G37: 1.5 | H37: 1
B38: Annual Output | C38: Actual | D38: =Inputs!$K$13 -> 63787 | E38: =E15-'Cost estimates'!$L$37 -> 1443.949019 | F38: =F15-'Cost estimates'!$L$37 -> 42905.49902 | G38: =G15-'Cost estimates'!$L$37 -> 11011.99902 | H38: =H15-'Cost estimates'!$L$37 -> -20881.50098
C39: High | D39: =Sim1I!$K$13 -> 91125 | E39: =E16-Sim1C!$J$37 -> 14417.49065 | F39: =F16-Sim1C!$J$37 -> 96209.67818 | G39: =G16-Sim1C!$J$37 -> 50647.17818 | H39: =H16-Sim1C!$J$37 -> 5084.678179
C40: Average | D40: =Sim2I!$K$13 -> 63787 | E40: =E17-Sim2C!$J$37 -> -8788.884315 | F40: =F17-Sim2C!$J$37 -> 32672.66569 | G40: =G17-Sim2C!$J$37 -> 779.1656853 | H40: =H17-Sim2C!$J$37 -> -31114.33431
C41: Poor | D41: =Sim3I!$K$13 -> 45562 | E41: =E18-Sim3C!$J$37 -> -24404.45131 | F41: =F18-Sim3C!$J$37 -> 5210.848685 | G41: =G18-Sim3C!$J$37 -> -17570.15131 | H41: =H18-Sim3C!$J$37 -> -40351.15131
H47: With 20% Decrease in Labor Cost
E57: Price
E59: Actual | F59: High | G59: Average | H59: Low
E60: =Inputs!F23 -> 1.35 | F60: 2 | G60: 1.5 | H60: 1
B61: Annual Output | C61: Actual | D61: =Inputs!$K$13 -> 63787 | E61: =E15+'Cost estimates'!$L$37 -> 7845.612339 | F61: =F15+'Cost estimates'!$L$37 -> 49307.16234 | G61: =G15+'Cost estimates'!$L$37 -> 17413.66234 | H61: =H15+'Cost estimates'!$L$37 -> -14479.83766
C62: High | D62: =Sim1I!$K$13 -> 91125 | E62: =E16+Sim1I!$J$37 -> 18990.14315 | F62: =F16+Sim1I!$J$37 -> 100782.3307 | G62: =G16+Sim1I!$J$37 -> 55219.83068 | H62: =H16+Sim1I!$J$37 -> 9657.330679
C63: Average | D63: =Sim2I!$K$13 -> 63787 | E63: =E17+Sim2I!$J$37 -> -5588.052655 | F63: =F17+Sim2I!$J$37 -> 35873.49735 | G63: =G17+Sim2I!$J$37 -> 3979.997345 | H63: =H17+Sim2I!$J$37 -> -27913.50265
C64: Poor | D64: =Sim3I!$K$13 -> 45562 | E64: =E18+Sim3I!$J$37 -> -22118.15015 | F64: =F18+Sim3I!$J$37 -> 7497.149845 | G64: =G18+Sim3I!$J$37 -> -15283.85015 | H64: =H18+Sim3I!$J$37 -> -38064.85015
H71: With 20% Increase in Utility Cost
E79: Price
E81: Actual | F81: High | G81: Average | H81: Low
E82: =Inputs!F23 -> 1.35 | F82: 2 | G82: 1.5 | H82: 1
B83: Annual Output | C83: Actual | D83: =Inputs!$K$13 -> 63787 | E83: =E15-'Cost estimates'!$L$65 -> 943.3918077 | F83: =F15-'Cost estimates'!$L$65 -> 42404.94181 | G83: =G15-'Cost estimates'!$L$65 -> 10511.44181 | H83: =H15-'Cost estimates'!$L$65 -> -21382.05819
C84: High | D84: =Sim1I!$K$13 -> 91125 | E84: =E16-Sim1C!$J$65 -> 15288.75427 | F84: =F16-Sim1C!$J$65 -> 97080.94181 | G84: =G16-Sim1C!$J$65 -> 51518.44181 | H84: =H16-Sim1C!$J$65 -> 5955.941808
C85: Average | D85: =Sim2I!$K$13 -> 63787 | E85: =E17-Sim2C!$J$65 -> -9289.441526 | F85: =F17-Sim2C!$J$65 -> 32172.10847 | G85: =G17-Sim2C!$J$65 -> 278.6084744 | H85: =H17-Sim2C!$J$65 -> -31614.89153
C86: Poor | D86: =Sim3I!$K$13 -> 45562 | E86: =E18-Sim3C!$J$65 -> -25819.53903 | F86: =F18-Sim3C!$J$65 -> 3795.760974 | G86: =G18-Sim3C!$J$65 -> -18985.23903 | H86: =H18-Sim3C!$J$65 -> -41766.23903
H95: With 20% Decrease in Utility Cost
E105: Price
E107: Actual | F107: High | G107: Average | H107: Low
E108: =Inputs!F23 -> 1.35 | F108: 2 | G108: 1.5 | H108: 1
B109: Annual Output | C109: Actual | D109: =Inputs!$K$13 -> 63787 | E109: =E15+'Cost estimates'!$L$65 -> 8346.16955 | F109: =F15+'Cost estimates'!$L$65 -> 49807.71955 | G109: =G15+'Cost estimates'!$L$65 -> 17914.21955 | H109: =H15+'Cost estimates'!$L$65 -> -13979.28045
C110: High | D110: =Sim1I!$K$13 -> 91125 | E110: =E16+Sim1C!$J$65 -> 22691.53202 | F110: =F16+Sim1C!$J$65 -> 104483.7195 | G110: =G16+Sim1C!$J$65 -> 58921.21955 | H110: =H16+Sim1C!$J$65 -> 13358.71955
C111: Average | D111: =Sim2I!$K$13 -> 63787 | E111: =E17+Sim2C!$J$65 -> -1886.663784 | F111: =F17+Sim2C!$J$65 -> 39574.88622 | G111: =G17+Sim2C!$J$65 -> 7681.386216 | H111: =H17+Sim2C!$J$65 -> -24212.11378
C112: Poor | D112: =Sim3I!$K$13 -> 45562 | E112: =E18+Sim3C!$J$65 -> -18416.76128 | F112: =F18+Sim3C!$J$65 -> 11198.53872 | G112: =G18+Sim3C!$J$65 -> -11582.46128 | H112: =H18+Sim3C!$J$65 -> -34363.46128
H120: With 20% Increase in Packaging Cost
E130: Price
E132: Actual | F132: High | G132: Average | H132: Low
E133: =Inputs!F23 -> 1.35 | F133: 2 | G133: 1.5 | H133: 1
B134: Annual Output | C134: Actual | D134: =Inputs!$K$13 -> 63787 | E134: =E15-'Cost estimates'!$L$44 -> 2495.180679 | F134: =F15-'Cost estimates'!$L$44 -> 43956.73068 | G134: =G15-'Cost estimates'!$L$44 -> 12063.23068 | H134: =H15-'Cost estimates'!$L$44 -> -19830.26932
C135: High | D135: =Sim1I!$K$13 -> 91125 | E135: =E16-Sim1C!$J$44 -> 15912.74315 | F135: =F16-Sim1C!$J$44 -> 97704.93068 | G135: =G16-Sim1C!$J$44 -> 52142.43068 | H135: =H16-Sim1C!$J$44 -> 6579.930679
C136: Average | D136: =Sim2I!$K$13 -> 63787 | E136: =E17-Sim2C!$J$44 -> -7737.652655 | F136: =F17-Sim2C!$J$44 -> 33723.89735 | G136: =G17-Sim2C!$J$44 -> 1830.397345 | H136: =H17-Sim2C!$J$44 -> -30063.10265
C137: Poor | D137: =Sim3I!$K$13 -> 45562 | E137: =E18-Sim3C!$J$44 -> -23669.95015 | F137: =F18-Sim3C!$J$44 -> 5945.349845 | G137: =G18-Sim3C!$J$44 -> -16835.65015 | H137: =H18-Sim3C!$J$44 -> -39616.65015
H144: With 20% Decrease in Packaging Cost
E153: Price
E155: Actual | F155: High | G155: Average | H155: Low
E156: =Inputs!F23 -> 1.35 | F156: 2 | G156: 1.5 | H156: 1
B157: Annual Output | C157: Actual | D157: =Inputs!$K$13 -> 63787 | E157: =E15+'Cost estimates'!$L$44 -> 6794.380679 | F157: =F15+'Cost estimates'!$L$44 -> 48255.93068 | G157: =G15+'Cost estimates'!$L$44 -> 16362.43068 | H157: =H15+'Cost estimates'!$L$44 -> -15531.06932
C158: High | D158: =Sim1I!$K$13 -> 91125 | E158: =E16+Sim1C!$J$44 -> 22067.54315 | F158: =F16+Sim1C!$J$44 -> 103859.7307 | G158: =G16+Sim1C!$J$44 -> 58297.23068 | H158: =H16+Sim1C!$J$44 -> 12734.73068
C159: Average | D159: =Sim2I!$K$13 -> 63787 | E159: =E17+Sim2C!$J$44 -> -3438.452655 | F159: =F17+Sim2C!$J$44 -> 38023.09735 | G159: =G17+Sim2C!$J$44 -> 6129.597345 | H159: =H17+Sim2C!$J$44 -> -25763.90265
C160: Poor | D160: =Sim3I!$K$13 -> 45562 | E160: =E18+Sim3C!$J$44 -> -20566.35015 | F160: =F18+Sim3C!$J$44 -> 9048.949845 | G160: =G18+Sim3C!$J$44 -> -13732.05015 | H160: =H18+Sim3C!$J$44 -> -36513.05015

Sheet elmira_dli (hidden)
A1: Date | B1: Month | C1: Day | D1: Outdoor DLI (mol/m2/d) | E1: Indoor DLI (mol/m2/d) | F1: Supp DLI (mol/m2/d) | G1: Supp hrs
A2: 2015-01-01 | B2: =MONTH(A2) -> 1 | C2: =DAY(A2) -> 1 | D2: =3600*SUMIFS(elmira!U2:U8761,elmira!B2:B8761,"="&B2,elmira!C2:C8761,"="&C2)/1000000 -> 16.667289 | E2: =Inputs!$R$39*elmira_dli!D2 -> 11.6671023 | F2: =MAX(0,Inputs!$F$25-E2) -> 0 | G2: =F2/(3600*Inputs!#REF!/1000000) -> 
A3: 2015-01-02 | B3: =MONTH(A3) -> 1 | C3: =DAY(A3) -> 2 | D3: =3600*SUMIFS(elmira!U3:U8762,elmira!B3:B8762,"="&B3,elmira!C3:C8762,"="&C3)/1000000 -> 14.6836206 | E3: =Inputs!$R$39*elmira_dli!D3 -> 10.27853442 | F3: =MAX(0,Inputs!$F$25-E3) -> 0 | G3: =F3/(3600*Inputs!#REF!/1000000) -> 
A4: 2015-01-03 | B4: 1 | C4: 3 | D4: =3600*SUMIFS(elmira!U4:U8763,elmira!B4:B8763,"="&B4,elmira!C4:C8763,"="&C4)/1000000 -> 17.2787958 | E4: =Inputs!$R$39*elmira_dli!D4 -> 12.09515706 | F4: =MAX(0,Inputs!$F$25-E4) -> 0 | G4: =F4/(3600*Inputs!#REF!/1000000) -> 
A5: 2015-01-04 | B5: 1 | C5: 4 | D5: =3600*SUMIFS(elmira!U5:U8764,elmira!B5:B8764,"="&B5,elmira!C5:C8764,"="&C5)/1000000 -> 7.1441892 | E5: =Inputs!$R$39*elmira_dli!D5 -> 5.00093244 | F5: =MAX(0,Inputs!$F$25-E5) -> 0 | G5: =F5/(3600*Inputs!#REF!/1000000) -> 
A6: 2015-01-05 | B6: 1 | C6: 5 | D6: =3600*SUMIFS(elmira!U6:U8765,elmira!B6:B8765,"="&B6,elmira!C6:C8765,"="&C6)/1000000 -> 5.8838886 | E6: =Inputs!$R$39*elmira_dli!D6 -> 4.11872202 | F6: =MAX(0,Inputs!$F$25-E6) -> 0 | G6: =F6/(3600*Inputs!#REF!/1000000) -> 
A7: 2015-01-06 | B7: 1 | C7: 6 | D7: =3600*SUMIFS(elmira!U7:U8766,elmira!B7:B8766,"="&B7,elmira!C7:C8766,"="&C7)/1000000 -> 13.5873828 | E7: =Inputs!$R$39*elmira_dli!D7 -> 9.51116796 | F7: =MAX(0,Inputs!$F$25-E7) -> 0 | G7: =F7/(3600*Inputs!#REF!/1000000) -> 
A8: 2015-01-07 | B8: 1 | C8: 7 | D8: =3600*SUMIFS(elmira!U8:U8767,elmira!B8:B8767,"="&B8,elmira!C8:C8767,"="&C8)/1000000 -> 4.5415566 | E8: =Inputs!$R$39*elmira_dli!D8 -> 3.17908962 | F8: =MAX(0,Inputs!$F$25-E8) -> 0 | G8: =F8/(3600*Inputs!#REF!/1000000) -> 
A9: 2015-01-08 | B9: 1 | C9: 8 | D9: =3600*SUMIFS(elmira!U9:U8768,elmira!B9:B8768,"="&B9,elmira!C9:C8768,"="&C9)/1000000 -> 6.935382 | E9: =Inputs!$R$39*elmira_dli!D9 -> 4.8547674 | F9: =MAX(0,Inputs!$F$25-E9) -> 0 | G9: =F9/(3600*Inputs!#REF!/1000000) -> 
A10: 2015-01-09 | B10: 1 | C10: 9 | D10: =3600*SUMIFS(elmira!U10:U8769,elmira!B10:B8769,"="&B10,elmira!C10:C8769,"="&C10)/1000000 -> 17.3235402 | E10: =Inputs!$R$39*elmira_dli!D10 -> 12.12647814 | F10: =MAX(0,Inputs!$F$25-E10) -> 0 | G10: =F10/(3600*Inputs!#REF!/1000000) -> 
A11: 2015-01-10 | B11: 1 | C11: 10 | D11: =3600*SUMIFS(elmira!U11:U8770,elmira!B11:B8770,"="&B11,elmira!C11:C8770,"="&C11)/1000000 -> 10.3210416 | E11: =Inputs!$R$39*elmira_dli!D11 -> 7.22472912 | F11: =MAX(0,Inputs!$F$25-E11) -> 0 | G11: =F11/(3600*Inputs!#REF!/1000000) -> 
A12: 2015-01-11 | B12: 1 | C12: 11 | D12: =3600*SUMIFS(elmira!U12:U8771,elmira!B12:B8771,"="&B12,elmira!C12:C8771,"="&C12)/1000000 -> 17.5398048 | E12: =Inputs!$R$39*elmira_dli!D12 -> 12.27786336 | F12: =MAX(0,Inputs!$F$25-E12) -> 0 | G12: =F12/(3600*Inputs!#REF!/1000000) -> 
A13: 2015-01-12 | B13: 1 | C13: 12 | D13: =3600*SUMIFS(elmira!U13:U8772,elmira!B13:B8772,"="&B13,elmira!C13:C8772,"="&C13)/1000000 -> 17.0550738 | E13: =Inputs!$R$39*elmira_dli!D13 -> 11.93855166 | F13: =MAX(0,Inputs!$F$25-E13) -> 0 | G13: =F13/(3600*Inputs!#REF!/1000000) -> 
A14: 2015-01-13 | B14: 1 | C14: 13 | D14: =3600*SUMIFS(elmira!U14:U8773,elmira!B14:B8773,"="&B14,elmira!C14:C8773,"="&C14)/1000000 -> 18.7329888 | E14: =Inputs!$R$39*elmira_dli!D14 -> 13.11309216 | F14: =MAX(0,Inputs!$F$25-E14) -> 0 | G14: =F14/(3600*Inputs!#REF!/1000000) -> 
A15: 2015-01-14 | B15: 1 | C15: 14 | D15: =3600*SUMIFS(elmira!U15:U8774,elmira!B15:B8774,"="&B15,elmira!C15:C8774,"="&C15)/1000000 -> 8.0316198 | E15: =Inputs!$R$39*elmira_dli!D15 -> 5.62213386 | F15: =MAX(0,Inputs!$F$25-E15) -> 0 | G15: =F15/(3600*Inputs!#REF!/1000000) -> 
A16: 2015-01-15 | B16: 1 | C16: 15 | D16: =3600*SUMIFS(elmira!U16:U8775,elmira!B16:B8775,"="&B16,elmira!C16:C8775,"="&C16)/1000000 -> 6.5848842 | E16: =Inputs!$R$39*elmira_dli!D16 -> 4.60941894 | F16: =MAX(0,Inputs!$F$25-E16) -> 0 | G16: =F16/(3600*Inputs!#REF!/1000000) -> 
A17: 2015-01-16 | B17: 1 | C17: 16 | D17: =3600*SUMIFS(elmira!U17:U8776,elmira!B17:B8776,"="&B17,elmira!C17:C8776,"="&C17)/1000000 -> 5.5035612 | E17: =Inputs!$R$39*elmira_dli!D17 -> 3.85249284 | F17: =MAX(0,Inputs!$F$25-E17) -> 0 | G17: =F17/(3600*Inputs!#REF!/1000000) -> 
A18: 2015-01-17 | B18: 1 | C18: 17 | D18: =3600*SUMIFS(elmira!U18:U8777,elmira!B18:B8777,"="&B18,elmira!C18:C8777,"="&C18)/1000000 -> 5.630337 | E18: =Inputs!$R$39*elmira_dli!D18 -> 3.9412359 | F18: =MAX(0,Inputs!$F$25-E18) -> 0 | G18: =F18/(3600*Inputs!#REF!/1000000) -> 
A19: 2015-01-18 | B19: 1 | C19: 18 | D19: =3600*SUMIFS(elmira!U19:U8778,elmira!B19:B8778,"="&B19,elmira!C19:C8778,"="&C19)/1000000 -> 9.172602 | E19: =Inputs!$R$39*elmira_dli!D19 -> 6.4208214 | F19: =MAX(0,Inputs!$F$25-E19) -> 0 | G19: =F19/(3600*Inputs!#REF!/1000000) -> 
A20: 2015-01-19 | B20: 1 | C20: 19 | D20: =3600*SUMIFS(elmira!U20:U8779,elmira!B20:B8779,"="&B20,elmira!C20:C8779,"="&C20)/1000000 -> 4.623588 | E20: =Inputs!$R$39*elmira_dli!D20 -> 3.2365116 | F20: =MAX(0,Inputs!$F$25-E20) -> 0 | G20: =F20/(3600*Inputs!#REF!/1000000) -> 
A21: 2015-01-20 | B21: 1 | C21: 20 | D21: =3600*SUMIFS(elmira!U21:U8780,elmira!B21:B8780,"="&B21,elmira!C21:C8780,"="&C21)/1000000 -> 15.9290064 | E21: =Inputs!$R$39*elmira_dli!D21 -> 11.15030448 | F21: =MAX(0,Inputs!$F$25-E21) -> 0 | G21: =F21/(3600*Inputs!#REF!/1000000) -> 
A22: 2015-01-21 | B22: 1 | C22: 21 | D22: =3600*SUMIFS(elmira!U22:U8781,elmira!B22:B8781,"="&B22,elmira!C22:C8781,"="&C22)/1000000 -> 20.4556482 | E22: =Inputs!$R$39*elmira_dli!D22 -> 14.31895374 | F22: =MAX(0,Inputs!$F$25-E22) -> 0 | G22: =F22/(3600*Inputs!#REF!/1000000) -> 
A23: 2015-01-22 | B23: 1 | C23: 22 | D23: =3600*SUMIFS(elmira!U23:U8782,elmira!B23:B8782,"="&B23,elmira!C23:C8782,"="&C23)/1000000 -> 18.2631726 | E23: =Inputs!$R$39*elmira_dli!D23 -> 12.78422082 | F23: =MAX(0,Inputs!$F$25-E23) -> 0 | G23: =F23/(3600*Inputs!#REF!/1000000) -> 
A24: 2015-01-23 | B24: 1 | C24: 23 | D24: =3600*SUMIFS(elmira!U24:U8783,elmira!B24:B8783,"="&B24,elmira!C24:C8783,"="&C24)/1000000 -> 18.6509574 | E24: =Inputs!$R$39*elmira_dli!D24 -> 13.05567018 | F24: =MAX(0,Inputs!$F$25-E24) -> 0 | G24: =F24/(3600*Inputs!#REF!/1000000) -> 
A25: 2015-01-24 | B25: 1 | C25: 24 | D25: =3600*SUMIFS(elmira!U25:U8784,elmira!B25:B8784,"="&B25,elmira!C25:C8784,"="&C25)/1000000 -> 9.6722478 | E25: =Inputs!$R$39*elmira_dli!D25 -> 6.77057346 | F25: =MAX(0,Inputs!$F$25-E25) -> 0 | G25: =F25/(3600*Inputs!#REF!/1000000) -> 
A26: 2015-01-25 | B26: 1 | C26: 25 | D26: =3600*SUMIFS(elmira!U26:U8785,elmira!B26:B8785,"="&B26,elmira!C26:C8785,"="&C26)/1000000 -> 20.8508904 | E26: =Inputs!$R$39*elmira_dli!D26 -> 14.59562328 | F26: =MAX(0,Inputs!$F$25-E26) -> 0 | G26: =F26/(3600*Inputs!#REF!/1000000) -> 
A27: 2015-01-26 | B27: 1 | C27: 26 | D27: =3600*SUMIFS(elmira!U27:U8786,elmira!B27:B8786,"="&B27,elmira!C27:C8786,"="&C27)/1000000 -> 19.2251772 | E27: =Inputs!$R$39*elmira_dli!D27 -> 13.45762404 | F27: =MAX(0,Inputs!$F$25-E27) -> 0 | G27: =F27/(3600*Inputs!#REF!/1000000) -> 
A28: 2015-01-27 | B28: 1 | C28: 27 | D28: =3600*SUMIFS(elmira!U28:U8787,elmira!B28:B8787,"="&B28,elmira!C28:C8787,"="&C28)/1000000 -> 9.0458262 | E28: =Inputs!$R$39*elmira_dli!D28 -> 6.33207834 | F28: =MAX(0,Inputs!$F$25-E28) -> 0 | G28: =F28/(3600*Inputs!#REF!/1000000) -> 
A29: 2015-01-28 | B29: 1 | C29: 28 | D29: =3600*SUMIFS(elmira!U29:U8788,elmira!B29:B8788,"="&B29,elmira!C29:C8788,"="&C29)/1000000 -> 19.4861862 | E29: =Inputs!$R$39*elmira_dli!D29 -> 13.64033034 | F29: =MAX(0,Inputs!$F$25-E29) -> 0 | G29: =F29/(3600*Inputs!#REF!/1000000) -> 
A30: 2015-01-29 | B30: 1 | C30: 29 | D30: =3600*SUMIFS(elmira!U30:U8789,elmira!B30:B8789,"="&B30,elmira!C30:C8789,"="&C30)/1000000 -> 18.6211278 | E30: =Inputs!$R$39*elmira_dli!D30 -> 13.03478946 | F30: =MAX(0,Inputs!$F$25-E30) -> 0 | G30: =F30/(3600*Inputs!#REF!/1000000) -> 
A31: 2015-01-30 | B31: 1 | C31: 30 | D31: =3600*SUMIFS(elmira!U31:U8790,elmira!B31:B8790,"="&B31,elmira!C31:C8790,"="&C31)/1000000 -> 11.4172794 | E31: =Inputs!$R$39*elmira_dli!D31 -> 7.99209558 | F31: =MAX(0,Inputs!$F$25-E31) -> 0 | G31: =F31/(3600*Inputs!#REF!/1000000) -> 
A32: 2015-01-31 | B32: 1 | C32: 31 | D32: =3600*SUMIFS(elmira!U32:U8791,elmira!B32:B8791,"="&B32,elmira!C32:C8791,"="&C32)/1000000 -> 9.8288532 | E32: =Inputs!$R$39*elmira_dli!D32 -> 6.88019724 | F32: =MAX(0,Inputs!$F$25-E32) -> 0 | G32: =F32/(3600*Inputs!#REF!/1000000) -> 
A33: 2015-02-01 | B33: 2 | C33: 1 | D33: =3600*SUMIFS(elmira!U33:U8792,elmira!B33:B8792,"="&B33,elmira!C33:C8792,"="&C33)/1000000 -> 8.0987364 | E33: =Inputs!$R$39*elmira_dli!D33 -> 5.66911548 | F33: =MAX(0,Inputs!$F$25-E33) -> 0 | G33: =F33/(3600*Inputs!#REF!/1000000) -> 
A34: 2015-02-02 | B34: 2 | C34: 2 | D34: =3600*SUMIFS(elmira!U34:U8793,elmira!B34:B8793,"="&B34,elmira!C34:C8793,"="&C34)/1000000 -> 21.551886 | E34: =Inputs!$R$39*elmira_dli!D34 -> 15.0863202 | F34: =MAX(0,Inputs!$F$25-E34) -> 0 | G34: =F34/(3600*Inputs!#REF!/1000000) -> 
A35: 2015-02-03 | B35: 2 | C35: 3 | D35: =3600*SUMIFS(elmira!U35:U8794,elmira!B35:B8794,"="&B35,elmira!C35:C8794,"="&C35)/1000000 -> 18.1736838 | E35: =Inputs!$R$39*elmira_dli!D35 -> 12.72157866 | F35: =MAX(0,Inputs!$F$25-E35) -> 0 | G35: =F35/(3600*Inputs!#REF!/1000000) -> 
A36: 2015-02-04 | B36: 2 | C36: 4 | D36: =3600*SUMIFS(elmira!U36:U8795,elmira!B36:B8795,"="&B36,elmira!C36:C8795,"="&C36)/1000000 -> 7.7706108 | E36: =Inputs!$R$39*elmira_dli!D36 -> 5.43942756 | F36: =MAX(0,Inputs!$F$25-E36) -> 0 | G36: =F36/(3600*Inputs!#REF!/1000000) -> 
A37: 2015-02-05 | B37: 2 | C37: 5 | D37: =3600*SUMIFS(elmira!U37:U8796,elmira!B37:B8796,"="&B37,elmira!C37:C8796,"="&C37)/1000000 -> 22.9165902 | E37: =Inputs!$R$39*elmira_dli!D37 -> 16.04161314 | F37: =MAX(0,Inputs!$F$25-E37) -> 0 | G37: =F37/(3600*Inputs!#REF!/1000000) -> 
A38: 2015-02-06 | B38: 2 | C38: 6 | D38: =3600*SUMIFS(elmira!U38:U8797,elmira!B38:B8797,"="&B38,elmira!C38:C8797,"="&C38)/1000000 -> 24.945003 | E38: =Inputs!$R$39*elmira_dli!D38 -> 17.4615021 | F38: =MAX(0,Inputs!$F$25-E38) -> 0 | G38: =F38/(3600*Inputs!#REF!/1000000) -> 
A39: 2015-02-07 | B39: 2 | C39: 7 | D39: =3600*SUMIFS(elmira!U39:U8798,elmira!B39:B8798,"="&B39,elmira!C39:C8798,"="&C39)/1000000 -> 24.1023168 | E39: =Inputs!$R$39*elmira_dli!D39 -> 16.87162176 | F39: =MAX(0,Inputs!$F$25-E39) -> 0 | G39: =F39/(3600*Inputs!#REF!/1000000) -> 
A40: 2015-02-08 | B40: 2 | C40: 8 | D40: =3600*SUMIFS(elmira!U40:U8799,elmira!B40:B8799,"="&B40,elmira!C40:C8799,"="&C40)/1000000 -> 25.5266802 | E40: =Inputs!$R$39*elmira_dli!D40 -> 17.86867614 | F40: =MAX(0,Inputs!$F$25-E40) -> 0 | G40: =F40/(3600*Inputs!#REF!/1000000) -> 
A41: 2015-02-09 | B41: 2 | C41: 9 | D41: =3600*SUMIFS(elmira!U41:U8800,elmira!B41:B8800,"="&B41,elmira!C41:C8800,"="&C41)/1000000 -> 25.5937968 | E41: =Inputs!$R$39*elmira_dli!D41 -> 17.91565776 | F41: =MAX(0,Inputs!$F$25-E41) -> 0 | G41: =F41/(3600*Inputs!#REF!/1000000) -> 
A42: 2015-02-10 | B42: 2 | C42: 10 | D42: =3600*SUMIFS(elmira!U42:U8801,elmira!B42:B8801,"="&B42,elmira!C42:C8801,"="&C42)/1000000 -> 6.413364 | E42: =Inputs!$R$39*elmira_dli!D42 -> 4.4893548 | F42: =MAX(0,Inputs!$F$25-E42) -> 0 | G42: =F42/(3600*Inputs!#REF!/1000000) -> 
A43: 2015-02-11 | B43: 2 | C43: 11 | D43: =3600*SUMIFS(elmira!U43:U8802,elmira!B43:B8802,"="&B43,elmira!C43:C8802,"="&C43)/1000000 -> 24.1321464 | E43: =Inputs!$R$39*elmira_dli!D43 -> 16.89250248 | F43: =MAX(0,Inputs!$F$25-E43) -> 0 | G43: =F43/(3600*Inputs!#REF!/1000000) -> 
A44: 2015-02-12 | B44: 2 | C44: 12 | D44: =3600*SUMIFS(elmira!U44:U8803,elmira!B44:B8803,"="&B44,elmira!C44:C8803,"="&C44)/1000000 -> 18.829935 | E44: =Inputs!$R$39*elmira_dli!D44 -> 13.1809545 | F44: =MAX(0,Inputs!$F$25-E44) -> 0 | G44: =F44/(3600*Inputs!#REF!/1000000) -> 
A45: 2015-02-13 | B45: 2 | C45: 13 | D45: =3600*SUMIFS(elmira!U45:U8804,elmira!B45:B8804,"="&B45,elmira!C45:C8804,"="&C45)/1000000 -> 27.2642544 | E45: =Inputs!$R$39*elmira_dli!D45 -> 19.08497808 | F45: =MAX(0,Inputs!$F$25-E45) -> 0 | G45: =F45/(3600*Inputs!#REF!/1000000) -> 
A46: 2015-02-14 | B46: 2 | C46: 14 | D46: =3600*SUMIFS(elmira!U46:U8805,elmira!B46:B8805,"="&B46,elmira!C46:C8805,"="&C46)/1000000 -> 27.666954 | E46: =Inputs!$R$39*elmira_dli!D46 -> 19.3668678 | F46: =MAX(0,Inputs!$F$25-E46) -> 0 | G46: =F46/(3600*Inputs!#REF!/1000000) -> 
A47: 2015-02-15 | B47: 2 | C47: 15 | D47: =3600*SUMIFS(elmira!U47:U8806,elmira!B47:B8806,"="&B47,elmira!C47:C8806,"="&C47)/1000000 -> 27.331371 | E47: =Inputs!$R$39*elmira_dli!D47 -> 19.1319597 | F47: =MAX(0,Inputs!$F$25-E47) -> 0 | G47: =F47/(3600*Inputs!#REF!/1000000) -> 
A48: 2015-02-16 | B48: 2 | C48: 16 | D48: =3600*SUMIFS(elmira!U48:U8807,elmira!B48:B8807,"="&B48,elmira!C48:C8807,"="&C48)/1000000 -> 18.6882444 | E48: =Inputs!$R$39*elmira_dli!D48 -> 13.08177108 | F48: =MAX(0,Inputs!$F$25-E48) -> 0 | G48: =F48/(3600*Inputs!#REF!/1000000) -> 
A49: 2015-02-17 | B49: 2 | C49: 17 | D49: =3600*SUMIFS(elmira!U49:U8808,elmira!B49:B8808,"="&B49,elmira!C49:C8808,"="&C49)/1000000 -> 19.8888858 | E49: =Inputs!$R$39*elmira_dli!D49 -> 13.92222006 | F49: =MAX(0,Inputs!$F$25-E49) -> 0 | G49: =F49/(3600*Inputs!#REF!/1000000) -> 
A50: 2015-02-18 | B50: 2 | C50: 18 | D50: =3600*SUMIFS(elmira!U50:U8809,elmira!B50:B8809,"="&B50,elmira!C50:C8809,"="&C50)/1000000 -> 29.1509766 | E50: =Inputs!$R$39*elmira_dli!D50 -> 20.40568362 | F50: =MAX(0,Inputs!$F$25-E50) -> 0 | G50: =F50/(3600*Inputs!#REF!/1000000) -> 
A51: 2015-02-19 | B51: 2 | C51: 19 | D51: =3600*SUMIFS(elmira!U51:U8810,elmira!B51:B8810,"="&B51,elmira!C51:C8810,"="&C51)/1000000 -> 23.7070746 | E51: =Inputs!$R$39*elmira_dli!D51 -> 16.59495222 | F51: =MAX(0,Inputs!$F$25-E51) -> 0 | G51: =F51/(3600*Inputs!#REF!/1000000) -> 
A52: 2015-02-20 | B52: 2 | C52: 20 | D52: =3600*SUMIFS(elmira!U52:U8811,elmira!B52:B8811,"="&B52,elmira!C52:C8811,"="&C52)/1000000 -> 12.8565576 | E52: =Inputs!$R$39*elmira_dli!D52 -> 8.99959032 | F52: =MAX(0,Inputs!$F$25-E52) -> 0 | G52: =F52/(3600*Inputs!#REF!/1000000) -> 
A53: 2015-02-21 | B53: 2 | C53: 21 | D53: =3600*SUMIFS(elmira!U53:U8812,elmira!B53:B8812,"="&B53,elmira!C53:C8812,"="&C53)/1000000 -> 7.9272162 | E53: =Inputs!$R$39*elmira_dli!D53 -> 5.54905134 | F53: =MAX(0,Inputs!$F$25-E53) -> 0 | G53: =F53/(3600*Inputs!#REF!/1000000) -> 
A54: 2015-02-22 | B54: 2 | C54: 22 | D54: =3600*SUMIFS(elmira!U54:U8813,elmira!B54:B8813,"="&B54,elmira!C54:C8813,"="&C54)/1000000 -> 5.9211756 | E54: =Inputs!$R$39*elmira_dli!D54 -> 4.14482292 | F54: =MAX(0,Inputs!$F$25-E54) -> 0 | G54: =F54/(3600*Inputs!#REF!/1000000) -> 
A55: 2015-02-23 | B55: 2 | C55: 23 | D55: =3600*SUMIFS(elmira!U55:U8814,elmira!B55:B8814,"="&B55,elmira!C55:C8814,"="&C55)/1000000 -> 32.2979994 | E55: =Inputs!$R$39*elmira_dli!D55 -> 22.60859958 | F55: =MAX(0,Inputs!$F$25-E55) -> 0 | G55: =F55/(3600*Inputs!#REF!/1000000) -> 
A56: 2015-02-24 | B56: 2 | C56: 24 | D56: =3600*SUMIFS(elmira!U56:U8815,elmira!B56:B8815,"="&B56,elmira!C56:C8815,"="&C56)/1000000 -> 33.4762686 | E56: =Inputs!$R$39*elmira_dli!D56 -> 23.43338802 | F56: =MAX(0,Inputs!$F$25-E56) -> 0 | G56: =F56/(3600*Inputs!#REF!/1000000) -> 
A57: 2015-02-25 | B57: 2 | C57: 25 | D57: =3600*SUMIFS(elmira!U57:U8816,elmira!B57:B8816,"="&B57,elmira!C57:C8816,"="&C57)/1000000 -> 25.2656712 | E57: =Inputs!$R$39*elmira_dli!D57 -> 17.68596984 | F57: =MAX(0,Inputs!$F$25-E57) -> 0 | G57: =F57/(3600*Inputs!#REF!/1000000) -> 
A58: 2015-02-26 | B58: 2 | C58: 26 | D58: =3600*SUMIFS(elmira!U58:U8817,elmira!B58:B8817,"="&B58,elmira!C58:C8817,"="&C58)/1000000 -> 23.11794 | E58: =Inputs!$R$39*elmira_dli!D58 -> 16.182558 | F58: =MAX(0,Inputs!$F$25-E58) -> 0 | G58: =F58/(3600*Inputs!#REF!/1000000) -> 
A59: 2015-02-27 | B59: 2 | C59: 27 | D59: =3600*SUMIFS(elmira!U59:U8818,elmira!B59:B8818,"="&B59,elmira!C59:C8818,"="&C59)/1000000 -> 29.0614878 | E59: =Inputs!$R$39*elmira_dli!D59 -> 20.34304146 | F59: =MAX(0,Inputs!$F$25-E59) -> 0 | G59: =F59/(3600*Inputs!#REF!/1000000) -> 
A60: 2015-02-28 | B60: 2 | C60: 28 | D60: =3600*SUMIFS(elmira!U60:U8819,elmira!B60:B8819,"="&B60,elmira!C60:C8819,"="&C60)/1000000 -> 25.9815816 | E60: =Inputs!$R$39*elmira_dli!D60 -> 18.18710712 | F60: =MAX(0,Inputs!$F$25-E60) -> 0 | G60: =F60/(3600*Inputs!#REF!/1000000) -> 
A61: 2015-03-01 | B61: 3 | C61: 1 | D61: =3600*SUMIFS(elmira!U61:U8820,elmira!B61:B8820,"="&B61,elmira!C61:C8820,"="&C61)/1000000 -> 22.5362628 | E61: =Inputs!$R$39*elmira_dli!D61 -> 15.77538396 | F61: =MAX(0,Inputs!$F$25-E61) -> 0 | G61: =F61/(3600*Inputs!#REF!/1000000) -> 
A62: 2015-03-02 | B62: 3 | C62: 2 | D62: =3600*SUMIFS(elmira!U62:U8821,elmira!B62:B8821,"="&B62,elmira!C62:C8821,"="&C62)/1000000 -> 12.5135172 | E62: =Inputs!$R$39*elmira_dli!D62 -> 8.75946204 | F62: =MAX(0,Inputs!$F$25-E62) -> 0 | G62: =F62/(3600*Inputs!#REF!/1000000) -> 
A63: 2015-03-03 | B63: 3 | C63: 3 | D63: =3600*SUMIFS(elmira!U63:U8822,elmira!B63:B8822,"="&B63,elmira!C63:C8822,"="&C63)/1000000 -> 31.2539634 | E63: =Inputs!$R$39*elmira_dli!D63 -> 21.87777438 | F63: =MAX(0,Inputs!$F$25-E63) -> 0 | G63: =F63/(3600*Inputs!#REF!/1000000) -> 
A64: 2015-03-04 | B64: 3 | C64: 4 | D64: =3600*SUMIFS(elmira!U64:U8823,elmira!B64:B8823,"="&B64,elmira!C64:C8823,"="&C64)/1000000 -> 19.1580606 | E64: =Inputs!$R$39*elmira_dli!D64 -> 13.41064242 | F64: =MAX(0,Inputs!$F$25-E64) -> 0 | G64: =F64/(3600*Inputs!#REF!/1000000) -> 
A65: 2015-03-05 | B65: 3 | C65: 5 | D65: =3600*SUMIFS(elmira!U65:U8824,elmira!B65:B8824,"="&B65,elmira!C65:C8824,"="&C65)/1000000 -> 9.2024316 | E65: =Inputs!$R$39*elmira_dli!D65 -> 6.44170212 | F65: =MAX(0,Inputs!$F$25-E65) -> 0 | G65: =F65/(3600*Inputs!#REF!/1000000) -> 
A66: 2015-03-06 | B66: 3 | C66: 6 | D66: =3600*SUMIFS(elmira!U66:U8825,elmira!B66:B8825,"="&B66,elmira!C66:C8825,"="&C66)/1000000 -> 14.4226116 | E66: =Inputs!$R$39*elmira_dli!D66 -> 10.09582812 | F66: =MAX(0,Inputs!$F$25-E66) -> 0 | G66: =F66/(3600*Inputs!#REF!/1000000) -> 
A67: 2015-03-07 | B67: =MONTH(A67) -> 3 | C67: =DAY(A67) -> 7 | D67: =3600*SUMIFS(elmira!U67:U8826,elmira!B67:B8826,"="&B67,elmira!C67:C8826,"="&C67)/1000000 -> 9.3814092 | E67: =Inputs!$R$39*elmira_dli!D67 -> 6.56698644 | F67: =MAX(0,Inputs!$F$25-E67) -> 0 | G67: =F67/(3600*Inputs!#REF!/1000000) -> 
A68: 2015-03-08 | B68: 3 | C68: 8 | D68: =3600*SUMIFS(elmira!U68:U8827,elmira!B68:B8827,"="&B68,elmira!C68:C8827,"="&C68)/1000000 -> 8.5461804 | E68: =Inputs!$R$39*elmira_dli!D68 -> 5.98232628 | F68: =MAX(0,Inputs!$F$25-E68) -> 0 | G68: =F68/(3600*Inputs!#REF!/1000000) -> 
A69: 2015-03-09 | B69: 3 | C69: 9 | D69: =3600*SUMIFS(elmira!U69:U8828,elmira!B69:B8828,"="&B69,elmira!C69:C8828,"="&C69)/1000000 -> 32.3502012 | E69: =Inputs!$R$39*elmira_dli!D69 -> 22.64514084 | F69: =MAX(0,Inputs!$F$25-E69) -> 0 | G69: =F69/(3600*Inputs!#REF!/1000000) -> 
A70: 2015-03-10 | B70: 3 | C70: 10 | D70: =3600*SUMIFS(elmira!U70:U8829,elmira!B70:B8829,"="&B70,elmira!C70:C8829,"="&C70)/1000000 -> 24.945003 | E70: =Inputs!$R$39*elmira_dli!D70 -> 17.4615021 | F70: =MAX(0,Inputs!$F$25-E70) -> 0 | G70: =F70/(3600*Inputs!#REF!/1000000) -> 
A71: 2015-03-11 | B71: 3 | C71: 11 | D71: =3600*SUMIFS(elmira!U71:U8830,elmira!B71:B8830,"="&B71,elmira!C71:C8830,"="&C71)/1000000 -> 23.8562226 | E71: =Inputs!$R$39*elmira_dli!D71 -> 16.69935582 | F71: =MAX(0,Inputs!$F$25-E71) -> 0 | G71: =F71/(3600*Inputs!#REF!/1000000) -> 
A72: 2015-03-12 | B72: 3 | C72: 12 | D72: =3600*SUMIFS(elmira!U72:U8831,elmira!B72:B8831,"="&B72,elmira!C72:C8831,"="&C72)/1000000 -> 22.3945722 | E72: =Inputs!$R$39*elmira_dli!D72 -> 15.67620054 | F72: =MAX(0,Inputs!$F$25-E72) -> 0 | G72: =F72/(3600*Inputs!#REF!/1000000) -> 
A73: 2015-03-13 | B73: 3 | C73: 13 | D73: =3600*SUMIFS(elmira!U73:U8832,elmira!B73:B8832,"="&B73,elmira!C73:C8832,"="&C73)/1000000 -> 33.2898336 | E73: =Inputs!$R$39*elmira_dli!D73 -> 23.30288352 | F73: =MAX(0,Inputs!$F$25-E73) -> 0 | G73: =F73/(3600*Inputs!#REF!/1000000) -> 
A74: 2015-03-14 | B74: 3 | C74: 14 | D74: =3600*SUMIFS(elmira!U74:U8833,elmira!B74:B8833,"="&B74,elmira!C74:C8833,"="&C74)/1000000 -> 38.3086638 | E74: =Inputs!$R$39*elmira_dli!D74 -> 26.81606466 | F74: =MAX(0,Inputs!$F$25-E74) -> 0 | G74: =F74/(3600*Inputs!#REF!/1000000) -> 
A75: 2015-03-15 | B75: 3 | C75: 15 | D75: =3600*SUMIFS(elmira!U75:U8834,elmira!B75:B8834,"="&B75,elmira!C75:C8834,"="&C75)/1000000 -> 37.1975112 | E75: =Inputs!$R$39*elmira_dli!D75 -> 26.03825784 | F75: =MAX(0,Inputs!$F$25-E75) -> 0 | G75: =F75/(3600*Inputs!#REF!/1000000) -> 
A76: 2015-03-16 | B76: 3 | C76: 16 | D76: =3600*SUMIFS(elmira!U76:U8835,elmira!B76:B8835,"="&B76,elmira!C76:C8835,"="&C76)/1000000 -> 22.4393166 | E76: =Inputs!$R$39*elmira_dli!D76 -> 15.70752162 | F76: =MAX(0,Inputs!$F$25-E76) -> 0 | G76: =F76/(3600*Inputs!#REF!/1000000) -> 
A77: 2015-03-17 | B77: 3 | C77: 17 | D77: =3600*SUMIFS(elmira!U77:U8836,elmira!B77:B8836,"="&B77,elmira!C77:C8836,"="&C77)/1000000 -> 14.318208 | E77: =Inputs!$R$39*elmira_dli!D77 -> 10.0227456 | F77: =MAX(0,Inputs!$F$25-E77) -> 0 | G77: =F77/(3600*Inputs!#REF!/1000000) -> 
A78: 2015-03-18 | B78: 3 | C78: 18 | D78: =3600*SUMIFS(elmira!U78:U8837,elmira!B78:B8837,"="&B78,elmira!C78:C8837,"="&C78)/1000000 -> 17.3235402 | E78: =Inputs!$R$39*elmira_dli!D78 -> 12.12647814 | F78: =MAX(0,Inputs!$F$25-E78) -> 0 | G78: =F78/(3600*Inputs!#REF!/1000000) -> 
A79: 2015-03-19 | B79: 3 | C79: 19 | D79: =3600*SUMIFS(elmira!U79:U8838,elmira!B79:B8838,"="&B79,elmira!C79:C8838,"="&C79)/1000000 -> 22.185765 | E79: =Inputs!$R$39*elmira_dli!D79 -> 15.5300355 | F79: =MAX(0,Inputs!$F$25-E79) -> 0 | G79: =F79/(3600*Inputs!#REF!/1000000) -> 
A80: 2015-03-20 | B80: 3 | C80: 20 | D80: =3600*SUMIFS(elmira!U80:U8839,elmira!B80:B8839,"="&B80,elmira!C80:C8839,"="&C80)/1000000 -> 18.8821368 | E80: =Inputs!$R$39*elmira_dli!D80 -> 13.21749576 | F80: =MAX(0,Inputs!$F$25-E80) -> 0 | G80: =F80/(3600*Inputs!#REF!/1000000) -> 
A81: 2015-03-21 | B81: 3 | C81: 21 | D81: =3600*SUMIFS(elmira!U81:U8840,elmira!B81:B8840,"="&B81,elmira!C81:C8840,"="&C81)/1000000 -> 12.8416428 | E81: =Inputs!$R$39*elmira_dli!D81 -> 8.98914996 | F81: =MAX(0,Inputs!$F$25-E81) -> 0 | G81: =F81/(3600*Inputs!#REF!/1000000) -> 
A82: 2015-03-22 | B82: 3 | C82: 22 | D82: =3600*SUMIFS(elmira!U82:U8841,elmira!B82:B8841,"="&B82,elmira!C82:C8841,"="&C82)/1000000 -> 11.6186292 | E82: =Inputs!$R$39*elmira_dli!D82 -> 8.13304044 | F82: =MAX(0,Inputs!$F$25-E82) -> 0 | G82: =F82/(3600*Inputs!#REF!/1000000) -> 
A83: 2015-03-23 | B83: 3 | C83: 23 | D83: =3600*SUMIFS(elmira!U83:U8842,elmira!B83:B8842,"="&B83,elmira!C83:C8842,"="&C83)/1000000 -> 12.192849 | E83: =Inputs!$R$39*elmira_dli!D83 -> 8.5349943 | F83: =MAX(0,Inputs!$F$25-E83) -> 0 | G83: =F83/(3600*Inputs!#REF!/1000000) -> 
A84: 2015-03-24 | B84: 3 | C84: 24 | D84: =3600*SUMIFS(elmira!U84:U8843,elmira!B84:B8843,"="&B84,elmira!C84:C8843,"="&C84)/1000000 -> 22.9762494 | E84: =Inputs!$R$39*elmira_dli!D84 -> 16.08337458 | F84: =MAX(0,Inputs!$F$25-E84) -> 0 | G84: =F84/(3600*Inputs!#REF!/1000000) -> 
A85: 2015-03-25 | B85: 3 | C85: 25 | D85: =3600*SUMIFS(elmira!U85:U8844,elmira!B85:B8844,"="&B85,elmira!C85:C8844,"="&C85)/1000000 -> 43.1336016 | E85: =Inputs!$R$39*elmira_dli!D85 -> 30.19352112 | F85: =MAX(0,Inputs!$F$25-E85) -> 0 | G85: =F85/(3600*Inputs!#REF!/1000000) -> 
A86: 2015-03-26 | B86: 3 | C86: 26 | D86: =3600*SUMIFS(elmira!U86:U8845,elmira!B86:B8845,"="&B86,elmira!C86:C8845,"="&C86)/1000000 -> 38.4950988 | E86: =Inputs!$R$39*elmira_dli!D86 -> 26.94656916 | F86: =MAX(0,Inputs!$F$25-E86) -> 0 | G86: =F86/(3600*Inputs!#REF!/1000000) -> 
A87: 2015-03-27 | B87: 3 | C87: 27 | D87: =3600*SUMIFS(elmira!U87:U8846,elmira!B87:B8846,"="&B87,elmira!C87:C8846,"="&C87)/1000000 -> 42.9397092 | E87: =Inputs!$R$39*elmira_dli!D87 -> 30.05779644 | F87: =MAX(0,Inputs!$F$25-E87) -> 0 | G87: =F87/(3600*Inputs!#REF!/1000000) -> 
A88: 2015-03-28 | B88: 3 | C88: 28 | D88: =3600*SUMIFS(elmira!U88:U8847,elmira!B88:B8847,"="&B88,elmira!C88:C8847,"="&C88)/1000000 -> 42.768189 | E88: =Inputs!$R$39*elmira_dli!D88 -> 29.9377323 | F88: =MAX(0,Inputs!$F$25-E88) -> 0 | G88: =F88/(3600*Inputs!#REF!/1000000) -> 
A89: 2015-03-29 | B89: 3 | C89: 29 | D89: =3600*SUMIFS(elmira!U89:U8848,elmira!B89:B8848,"="&B89,elmira!C89:C8848,"="&C89)/1000000 -> 29.6207928 | E89: =Inputs!$R$39*elmira_dli!D89 -> 20.73455496 | F89: =MAX(0,Inputs!$F$25-E89) -> 0 | G89: =F89/(3600*Inputs!#REF!/1000000) -> 
A90: 2015-03-30 | B90: 3 | C90: 30 | D90: =3600*SUMIFS(elmira!U90:U8849,elmira!B90:B8849,"="&B90,elmira!C90:C8849,"="&C90)/1000000 -> 13.0206204 | E90: =Inputs!$R$39*elmira_dli!D90 -> 9.11443428 | F90: =MAX(0,Inputs!$F$25-E90) -> 0 | G90: =F90/(3600*Inputs!#REF!/1000000) -> 
A91: 2015-03-31 | B91: 3 | C91: 31 | D91: =3600*SUMIFS(elmira!U91:U8850,elmira!B91:B8850,"="&B91,elmira!C91:C8850,"="&C91)/1000000 -> 17.338455 | E91: =Inputs!$R$39*elmira_dli!D91 -> 12.1369185 | F91: =MAX(0,Inputs!$F$25-E91) -> 0 | G91: =F91/(3600*Inputs!#REF!/1000000) -> 
A92: 2015-04-01 | B92: 4 | C92: 1 | D92: =3600*SUMIFS(elmira!U92:U8851,elmira!B92:B8851,"="&B92,elmira!C92:C8851,"="&C92)/1000000 -> 12.6253782 | E92: =Inputs!$R$39*elmira_dli!D92 -> 8.83776474 | F92: =MAX(0,Inputs!$F$25-E92) -> 0 | G92: =F92/(3600*Inputs!#REF!/1000000) -> 
A93: 2015-04-02 | B93: 4 | C93: 2 | D93: =3600*SUMIFS(elmira!U93:U8852,elmira!B93:B8852,"="&B93,elmira!C93:C8852,"="&C93)/1000000 -> 20.6047962 | E93: =Inputs!$R$39*elmira_dli!D93 -> 14.42335734 | F93: =MAX(0,Inputs!$F$25-E93) -> 0 | G93: =F93/(3600*Inputs!#REF!/1000000) -> 
A94: 2015-04-03 | B94: 4 | C94: 3 | D94: =3600*SUMIFS(elmira!U94:U8853,elmira!B94:B8853,"="&B94,elmira!C94:C8853,"="&C94)/1000000 -> 48.8981718 | E94: =Inputs!$R$39*elmira_dli!D94 -> 34.22872026 | F94: =MAX(0,Inputs!$F$25-E94) -> 0 | G94: =F94/(3600*Inputs!#REF!/1000000) -> 
A95: 2015-04-04 | B95: 4 | C95: 4 | D95: =3600*SUMIFS(elmira!U95:U8854,elmira!B95:B8854,"="&B95,elmira!C95:C8854,"="&C95)/1000000 -> 34.6097934 | E95: =Inputs!$R$39*elmira_dli!D95 -> 24.22685538 | F95: =MAX(0,Inputs!$F$25-E95) -> 0 | G95: =F95/(3600*Inputs!#REF!/1000000) -> 
A96: 2015-04-05 | B96: 4 | C96: 5 | D96: =3600*SUMIFS(elmira!U96:U8855,elmira!B96:B8855,"="&B96,elmira!C96:C8855,"="&C96)/1000000 -> 16.0557822 | E96: =Inputs!$R$39*elmira_dli!D96 -> 11.23904754 | F96: =MAX(0,Inputs!$F$25-E96) -> 0 | G96: =F96/(3600*Inputs!#REF!/1000000) -> 
A97: 2015-04-06 | B97: 4 | C97: 6 | D97: =3600*SUMIFS(elmira!U97:U8856,elmira!B97:B8856,"="&B97,elmira!C97:C8856,"="&C97)/1000000 -> 27.0554472 | E97: =Inputs!$R$39*elmira_dli!D97 -> 18.93881304 | F97: =MAX(0,Inputs!$F$25-E97) -> 0 | G97: =F97/(3600*Inputs!#REF!/1000000) -> 
A98: 2015-04-07 | B98: 4 | C98: 7 | D98: =3600*SUMIFS(elmira!U98:U8857,elmira!B98:B8857,"="&B98,elmira!C98:C8857,"="&C98)/1000000 -> 26.6005458 | E98: =Inputs!$R$39*elmira_dli!D98 -> 18.62038206 | F98: =MAX(0,Inputs!$F$25-E98) -> 0 | G98: =F98/(3600*Inputs!#REF!/1000000) -> 
A99: 2015-04-08 | B99: 4 | C99: 8 | D99: =3600*SUMIFS(elmira!U99:U8858,elmira!B99:B8858,"="&B99,elmira!C99:C8858,"="&C99)/1000000 -> 26.9361288 | E99: =Inputs!$R$39*elmira_dli!D99 -> 18.85529016 | F99: =MAX(0,Inputs!$F$25-E99) -> 0 | G99: =F99/(3600*Inputs!#REF!/1000000) -> 
A100: 2015-04-09 | B100: 4 | C100: 9 | D100: =3600*SUMIFS(elmira!U100:U8859,elmira!B100:B8859,"="&B100,elmira!C100:C8859,"="&C100)/1000000 -> 31.3285374 | E100: =Inputs!$R$39*elmira_dli!D100 -> 21.92997618 | F100: =MAX(0,Inputs!$F$25-E100) -> 0 | G100: =F100/(3600*Inputs!#REF!/1000000) -> 
A101: 2015-04-10 | B101: 4 | C101: 10 | D101: =3600*SUMIFS(elmira!U101:U8860,elmira!B101:B8860,"="&B101,elmira!C101:C8860,"="&C101)/1000000 -> 23.9904558 | E101: =Inputs!$R$39*elmira_dli!D101 -> 16.79331906 | F101: =MAX(0,Inputs!$F$25-E101) -> 0 | G101: =F101/(3600*Inputs!#REF!/1000000) -> 
A102: 2015-04-11 | B102: 4 | C102: 11 | D102: =3600*SUMIFS(elmira!U102:U8861,elmira!B102:B8861,"="&B102,elmira!C102:C8861,"="&C102)/1000000 -> 48.8683422 | E102: =Inputs!$R$39*elmira_dli!D102 -> 34.20783954 | F102: =MAX(0,Inputs!$F$25-E102) -> 0 | G102: =F102/(3600*Inputs!#REF!/1000000) -> 
A103: 2015-04-12 | B103: 4 | C103: 12 | D103: =3600*SUMIFS(elmira!U103:U8862,elmira!B103:B8862,"="&B103,elmira!C103:C8862,"="&C103)/1000000 -> 47.615499 | E103: =Inputs!$R$39*elmira_dli!D103 -> 33.3308493 | F103: =MAX(0,Inputs!$F$25-E103) -> 0 | G103: =F103/(3600*Inputs!#REF!/1000000) -> 
A104: 2015-04-13 | B104: 4 | C104: 13 | D104: =3600*SUMIFS(elmira!U104:U8863,elmira!B104:B8863,"="&B104,elmira!C104:C8863,"="&C104)/1000000 -> 14.0870286 | E104: =Inputs!$R$39*elmira_dli!D104 -> 9.86092002 | F104: =MAX(0,Inputs!$F$25-E104) -> 0 | G104: =F104/(3600*Inputs!#REF!/1000000) -> 
A105: 2015-04-14 | B105: 4 | C105: 14 | D105: =3600*SUMIFS(elmira!U105:U8864,elmira!B105:B8864,"="&B105,elmira!C105:C8864,"="&C105)/1000000 -> 20.2170114 | E105: =Inputs!$R$39*elmira_dli!D105 -> 14.15190798 | F105: =MAX(0,Inputs!$F$25-E105) -> 0 | G105: =F105/(3600*Inputs!#REF!/1000000) -> 
A106: 2015-04-15 | B106: 4 | C106: 15 | D106: =3600*SUMIFS(elmira!U106:U8865,elmira!B106:B8865,"="&B106,elmira!C106:C8865,"="&C106)/1000000 -> 13.5650106 | E106: =Inputs!$R$39*elmira_dli!D106 -> 9.49550742 | F106: =MAX(0,Inputs!$F$25-E106) -> 0 | G106: =F106/(3600*Inputs!#REF!/1000000) -> 
A107: 2015-04-16 | B107: 4 | C107: 16 | D107: =3600*SUMIFS(elmira!U107:U8866,elmira!B107:B8866,"="&B107,elmira!C107:C8866,"="&C107)/1000000 -> 34.1325198 | E107: =Inputs!$R$39*elmira_dli!D107 -> 23.89276386 | F107: =MAX(0,Inputs!$F$25-E107) -> 0 | G107: =F107/(3600*Inputs!#REF!/1000000) -> 
A108: 2015-04-17 | B108: 4 | C108: 17 | D108: =3600*SUMIFS(elmira!U108:U8867,elmira!B108:B8867,"="&B108,elmira!C108:C8867,"="&C108)/1000000 -> 23.043366 | E108: =Inputs!$R$39*elmira_dli!D108 -> 16.1303562 | F108: =MAX(0,Inputs!$F$25-E108) -> 0 | G108: =F108/(3600*Inputs!#REF!/1000000) -> 
A109: 2015-04-18 | B109: 4 | C109: 18 | D109: =3600*SUMIFS(elmira!U109:U8868,elmira!B109:B8868,"="&B109,elmira!C109:C8868,"="&C109)/1000000 -> 16.1974728 | E109: =Inputs!$R$39*elmira_dli!D109 -> 11.33823096 | F109: =MAX(0,Inputs!$F$25-E109) -> 0 | G109: =F109/(3600*Inputs!#REF!/1000000) -> 
A110: 2015-04-19 | B110: 4 | C110: 19 | D110: =3600*SUMIFS(elmira!U110:U8869,elmira!B110:B8869,"="&B110,elmira!C110:C8869,"="&C110)/1000000 -> 18.6136704 | E110: =Inputs!$R$39*elmira_dli!D110 -> 13.02956928 | F110: =MAX(0,Inputs!$F$25-E110) -> 0 | G110: =F110/(3600*Inputs!#REF!/1000000) -> 
A111: 2015-04-20 | B111: 4 | C111: 20 | D111: =3600*SUMIFS(elmira!U111:U8870,elmira!B111:B8870,"="&B111,elmira!C111:C8870,"="&C111)/1000000 -> 13.1101092 | E111: =Inputs!$R$39*elmira_dli!D111 -> 9.17707644 | F111: =MAX(0,Inputs!$F$25-E111) -> 0 | G111: =F111/(3600*Inputs!#REF!/1000000) -> 
A112: 2015-04-21 | B112: 4 | C112: 21 | D112: =3600*SUMIFS(elmira!U112:U8871,elmira!B112:B8871,"="&B112,elmira!C112:C8871,"="&C112)/1000000 -> 13.6768716 | E112: =Inputs!$R$39*elmira_dli!D112 -> 9.57381012 | F112: =MAX(0,Inputs!$F$25-E112) -> 0 | G112: =F112/(3600*Inputs!#REF!/1000000) -> 
A113: 2015-04-22 | B113: 4 | C113: 22 | D113: =3600*SUMIFS(elmira!U113:U8872,elmira!B113:B8872,"="&B113,elmira!C113:C8872,"="&C113)/1000000 -> 14.8178538 | E113: =Inputs!$R$39*elmira_dli!D113 -> 10.37249766 | F113: =MAX(0,Inputs!$F$25-E113) -> 0 | G113: =F113/(3600*Inputs!#REF!/1000000) -> 
A114: 2015-04-23 | B114: 4 | C114: 23 | D114: =3600*SUMIFS(elmira!U114:U8873,elmira!B114:B8873,"="&B114,elmira!C114:C8873,"="&C114)/1000000 -> 45.8033508 | E114: =Inputs!$R$39*elmira_dli!D114 -> 32.06234556 | F114: =MAX(0,Inputs!$F$25-E114) -> 0 | G114: =F114/(3600*Inputs!#REF!/1000000) -> 
A115: 2015-04-24 | B115: 4 | C115: 24 | D115: =3600*SUMIFS(elmira!U115:U8874,elmira!B115:B8874,"="&B115,elmira!C115:C8874,"="&C115)/1000000 -> 15.958836 | E115: =Inputs!$R$39*elmira_dli!D115 -> 11.1711852 | F115: =MAX(0,Inputs!$F$25-E115) -> 0 | G115: =F115/(3600*Inputs!#REF!/1000000) -> 
A116: 2015-04-25 | B116: 4 | C116: 25 | D116: =3600*SUMIFS(elmira!U116:U8875,elmira!B116:B8875,"="&B116,elmira!C116:C8875,"="&C116)/1000000 -> 51.5902932 | E116: =Inputs!$R$39*elmira_dli!D116 -> 36.11320524 | F116: =MAX(0,Inputs!$F$25-E116) -> 0 | G116: =F116/(3600*Inputs!#REF!/1000000) -> 
A117: 2015-04-26 | B117: 4 | C117: 26 | D117: =3600*SUMIFS(elmira!U117:U8876,elmira!B117:B8876,"="&B117,elmira!C117:C8876,"="&C117)/1000000 -> 25.1239806 | E117: =Inputs!$R$39*elmira_dli!D117 -> 17.58678642 | F117: =MAX(0,Inputs!$F$25-E117) -> 0 | G117: =F117/(3600*Inputs!#REF!/1000000) -> 
A118: 2015-04-27 | B118: 4 | C118: 27 | D118: =3600*SUMIFS(elmira!U118:U8877,elmira!B118:B8877,"="&B118,elmira!C118:C8877,"="&C118)/1000000 -> 42.4549782 | E118: =Inputs!$R$39*elmira_dli!D118 -> 29.71848474 | F118: =MAX(0,Inputs!$F$25-E118) -> 0 | G118: =F118/(3600*Inputs!#REF!/1000000) -> 
A119: 2015-04-28 | B119: 4 | C119: 28 | D119: =3600*SUMIFS(elmira!U119:U8878,elmira!B119:B8878,"="&B119,elmira!C119:C8878,"="&C119)/1000000 -> 42.954624 | E119: =Inputs!$R$39*elmira_dli!D119 -> 30.0682368 | F119: =MAX(0,Inputs!$F$25-E119) -> 0 | G119: =F119/(3600*Inputs!#REF!/1000000) -> 
A120: 2015-04-29 | B120: 4 | C120: 29 | D120: =3600*SUMIFS(elmira!U120:U8879,elmira!B120:B8879,"="&B120,elmira!C120:C8879,"="&C120)/1000000 -> 15.958836 | E120: =Inputs!$R$39*elmira_dli!D120 -> 11.1711852 | F120: =MAX(0,Inputs!$F$25-E120) -> 0 | G120: =F120/(3600*Inputs!#REF!/1000000) -> 
A121: 2015-04-30 | B121: 4 | C121: 30 | D121: =3600*SUMIFS(elmira!U121:U8880,elmira!B121:B8880,"="&B121,elmira!C121:C8880,"="&C121)/1000000 -> 30.7021158 | E121: =Inputs!$R$39*elmira_dli!D121 -> 21.49148106 | F121: =MAX(0,Inputs!$F$25-E121) -> 0 | G121: =F121/(3600*Inputs!#REF!/1000000) -> 
A122: 2015-05-01 | B122: 5 | C122: 1 | D122: =3600*SUMIFS(elmira!U122:U8881,elmira!B122:B8881,"="&B122,elmira!C122:C8881,"="&C122)/1000000 -> 37.697157 | E122: =Inputs!$R$39*elmira_dli!D122 -> 26.3880099 | F122: =MAX(0,Inputs!$F$25-E122) -> 0 | G122: =F122/(3600*Inputs!#REF!/1000000) -> 
A123: 2015-05-02 | B123: 5 | C123: 2 | D123: =3600*SUMIFS(elmira!U123:U8882,elmira!B123:B8882,"="&B123,elmira!C123:C8882,"="&C123)/1000000 -> 24.9524604 | E123: =Inputs!$R$39*elmira_dli!D123 -> 17.46672228 | F123: =MAX(0,Inputs!$F$25-E123) -> 0 | G123: =F123/(3600*Inputs!#REF!/1000000) -> 
A124: 2015-05-03 | B124: 5 | C124: 3 | D124: =3600*SUMIFS(elmira!U124:U8883,elmira!B124:B8883,"="&B124,elmira!C124:C8883,"="&C124)/1000000 -> 34.1996364 | E124: =Inputs!$R$39*elmira_dli!D124 -> 23.93974548 | F124: =MAX(0,Inputs!$F$25-E124) -> 0 | G124: =F124/(3600*Inputs!#REF!/1000000) -> 
A125: 2015-05-04 | B125: 5 | C125: 4 | D125: =3600*SUMIFS(elmira!U125:U8884,elmira!B125:B8884,"="&B125,elmira!C125:C8884,"="&C125)/1000000 -> 35.8029774 | E125: =Inputs!$R$39*elmira_dli!D125 -> 25.06208418 | F125: =MAX(0,Inputs!$F$25-E125) -> 0 | G125: =F125/(3600*Inputs!#REF!/1000000) -> 
A126: 2015-05-05 | B126: 5 | C126: 5 | D126: =3600*SUMIFS(elmira!U126:U8885,elmira!B126:B8885,"="&B126,elmira!C126:C8885,"="&C126)/1000000 -> 49.628997 | E126: =Inputs!$R$39*elmira_dli!D126 -> 34.7402979 | F126: =MAX(0,Inputs!$F$25-E126) -> 0 | G126: =F126/(3600*Inputs!#REF!/1000000) -> 
A127: 2015-05-06 | B127: 5 | C127: 6 | D127: =3600*SUMIFS(elmira!U127:U8886,elmira!B127:B8886,"="&B127,elmira!C127:C8886,"="&C127)/1000000 -> 51.8363874 | E127: =Inputs!$R$39*elmira_dli!D127 -> 36.28547118 | F127: =MAX(0,Inputs!$F$25-E127) -> 0 | G127: =F127/(3600*Inputs!#REF!/1000000) -> 
A128: 2015-05-07 | B128: 5 | C128: 7 | D128: =3600*SUMIFS(elmira!U128:U8887,elmira!B128:B8887,"="&B128,elmira!C128:C8887,"="&C128)/1000000 -> 56.2586256 | E128: =Inputs!$R$39*elmira_dli!D128 -> 39.38103792 | F128: =MAX(0,Inputs!$F$25-E128) -> 0 | G128: =F128/(3600*Inputs!#REF!/1000000) -> 
A129: 2015-05-08 | B129: 5 | C129: 8 | D129: =3600*SUMIFS(elmira!U129:U8888,elmira!B129:B8888,"="&B129,elmira!C129:C8888,"="&C129)/1000000 -> 57.6307872 | E129: =Inputs!$R$39*elmira_dli!D129 -> 40.34155104 | F129: =MAX(0,Inputs!$F$25-E129) -> 0 | G129: =F129/(3600*Inputs!#REF!/1000000) -> 
A130: 2015-05-09 | B130: 5 | C130: 9 | D130: =3600*SUMIFS(elmira!U130:U8889,elmira!B130:B8889,"="&B130,elmira!C130:C8889,"="&C130)/1000000 -> 58.2721236 | E130: =Inputs!$R$39*elmira_dli!D130 -> 40.79048652 | F130: =MAX(0,Inputs!$F$25-E130) -> 0 | G130: =F130/(3600*Inputs!#REF!/1000000) -> 
A131: 2015-05-10 | B131: =MONTH(A131) -> 5 | C131: =DAY(A131) -> 10 | D131: =3600*SUMIFS(elmira!U131:U8890,elmira!B131:B8890,"="&B131,elmira!C131:C8890,"="&C131)/1000000 -> 57.6979038 | E131: =Inputs!$R$39*elmira_dli!D131 -> 40.38853266 | F131: =MAX(0,Inputs!$F$25-E131) -> 0 | G131: =F131/(3600*Inputs!#REF!/1000000) -> 
A132: 2015-05-11 | B132: 5 | C132: 11 | D132: =3600*SUMIFS(elmira!U132:U8891,elmira!B132:B8891,"="&B132,elmira!C132:C8891,"="&C132)/1000000 -> 52.1421408 | E132: =Inputs!$R$39*elmira_dli!D132 -> 36.49949856 | F132: =MAX(0,Inputs!$F$25-E132) -> 0 | G132: =F132/(3600*Inputs!#REF!/1000000) -> 
A133: 2015-05-12 | B133: 5 | C133: 12 | D133: =3600*SUMIFS(elmira!U133:U8892,elmira!B133:B8892,"="&B133,elmira!C133:C8892,"="&C133)/1000000 -> 51.8587596 | E133: =Inputs!$R$39*elmira_dli!D133 -> 36.30113172 | F133: =MAX(0,Inputs!$F$25-E133) -> 0 | G133: =F133/(3600*Inputs!#REF!/1000000) -> 
A134: 2015-05-13 | B134: 5 | C134: 13 | D134: =3600*SUMIFS(elmira!U134:U8893,elmira!B134:B8893,"="&B134,elmira!C134:C8893,"="&C134)/1000000 -> 58.0633164 | E134: =Inputs!$R$39*elmira_dli!D134 -> 40.64432148 | F134: =MAX(0,Inputs!$F$25-E134) -> 0 | G134: =F134/(3600*Inputs!#REF!/1000000) -> 
A135: 2015-05-14 | B135: 5 | C135: 14 | D135: =3600*SUMIFS(elmira!U135:U8894,elmira!B135:B8894,"="&B135,elmira!C135:C8894,"="&C135)/1000000 -> 26.0859852 | E135: =Inputs!$R$39*elmira_dli!D135 -> 18.26018964 | F135: =MAX(0,Inputs!$F$25-E135) -> 0 | G135: =F135/(3600*Inputs!#REF!/1000000) -> 
A136: 2015-05-15 | B136: 5 | C136: 15 | D136: =3600*SUMIFS(elmira!U136:U8895,elmira!B136:B8895,"="&B136,elmira!C136:C8895,"="&C136)/1000000 -> 38.8008522 | E136: =Inputs!$R$39*elmira_dli!D136 -> 27.16059654 | F136: =MAX(0,Inputs!$F$25-E136) -> 0 | G136: =F136/(3600*Inputs!#REF!/1000000) -> 
A137: 2015-05-16 | B137: 5 | C137: 16 | D137: =3600*SUMIFS(elmira!U137:U8896,elmira!B137:B8896,"="&B137,elmira!C137:C8896,"="&C137)/1000000 -> 24.9375456 | E137: =Inputs!$R$39*elmira_dli!D137 -> 17.45628192 | F137: =MAX(0,Inputs!$F$25-E137) -> 0 | G137: =F137/(3600*Inputs!#REF!/1000000) -> 
A138: 2015-05-17 | B138: 5 | C138: 17 | D138: =3600*SUMIFS(elmira!U138:U8897,elmira!B138:B8897,"="&B138,elmira!C138:C8897,"="&C138)/1000000 -> 55.8857556 | E138: =Inputs!$R$39*elmira_dli!D138 -> 39.12002892 | F138: =MAX(0,Inputs!$F$25-E138) -> 0 | G138: =F138/(3600*Inputs!#REF!/1000000) -> 
A139: 2015-05-18 | B139: 5 | C139: 18 | D139: =3600*SUMIFS(elmira!U139:U8898,elmira!B139:B8898,"="&B139,elmira!C139:C8898,"="&C139)/1000000 -> 53.6410782 | E139: =Inputs!$R$39*elmira_dli!D139 -> 37.54875474 | F139: =MAX(0,Inputs!$F$25-E139) -> 0 | G139: =F139/(3600*Inputs!#REF!/1000000) -> 
A140: 2015-05-19 | B140: 5 | C140: 19 | D140: =3600*SUMIFS(elmira!U140:U8899,elmira!B140:B8899,"="&B140,elmira!C140:C8899,"="&C140)/1000000 -> 50.9862438 | E140: =Inputs!$R$39*elmira_dli!D140 -> 35.69037066 | F140: =MAX(0,Inputs!$F$25-E140) -> 0 | G140: =F140/(3600*Inputs!#REF!/1000000) -> 
A141: 2015-05-20 | B141: 5 | C141: 20 | D141: =3600*SUMIFS(elmira!U141:U8900,elmira!B141:B8900,"="&B141,elmira!C141:C8900,"="&C141)/1000000 -> 42.1641396 | E141: =Inputs!$R$39*elmira_dli!D141 -> 29.51489772 | F141: =MAX(0,Inputs!$F$25-E141) -> 0 | G141: =F141/(3600*Inputs!#REF!/1000000) -> 
A142: 2015-05-21 | B142: 5 | C142: 21 | D142: =3600*SUMIFS(elmira!U142:U8901,elmira!B142:B8901,"="&B142,elmira!C142:C8901,"="&C142)/1000000 -> 41.7017808 | E142: =Inputs!$R$39*elmira_dli!D142 -> 29.19124656 | F142: =MAX(0,Inputs!$F$25-E142) -> 0 | G142: =F142/(3600*Inputs!#REF!/1000000) -> 
A143: 2015-05-22 | B143: 5 | C143: 22 | D143: =3600*SUMIFS(elmira!U143:U8902,elmira!B143:B8902,"="&B143,elmira!C143:C8902,"="&C143)/1000000 -> 16.5852576 | E143: =Inputs!$R$39*elmira_dli!D143 -> 11.60968032 | F143: =MAX(0,Inputs!$F$25-E143) -> 0 | G143: =F143/(3600*Inputs!#REF!/1000000) -> 
A144: 2015-05-23 | B144: 5 | C144: 23 | D144: =3600*SUMIFS(elmira!U144:U8903,elmira!B144:B8903,"="&B144,elmira!C144:C8903,"="&C144)/1000000 -> 20.7091998 | E144: =Inputs!$R$39*elmira_dli!D144 -> 14.49643986 | F144: =MAX(0,Inputs!$F$25-E144) -> 0 | G144: =F144/(3600*Inputs!#REF!/1000000) -> 
A145: 2015-05-24 | B145: 5 | C145: 24 | D145: =3600*SUMIFS(elmira!U145:U8904,elmira!B145:B8904,"="&B145,elmira!C145:C8904,"="&C145)/1000000 -> 18.0543654 | E145: =Inputs!$R$39*elmira_dli!D145 -> 12.63805578 | F145: =MAX(0,Inputs!$F$25-E145) -> 0 | G145: =F145/(3600*Inputs!#REF!/1000000) -> 
A146: 2015-05-25 | B146: 5 | C146: 25 | D146: =3600*SUMIFS(elmira!U146:U8905,elmira!B146:B8905,"="&B146,elmira!C146:C8905,"="&C146)/1000000 -> 20.545137 | E146: =Inputs!$R$39*elmira_dli!D146 -> 14.3815959 | F146: =MAX(0,Inputs!$F$25-E146) -> 0 | G146: =F146/(3600*Inputs!#REF!/1000000) -> 
A147: 2015-05-26 | B147: 5 | C147: 26 | D147: =3600*SUMIFS(elmira!U147:U8906,elmira!B147:B8906,"="&B147,elmira!C147:C8906,"="&C147)/1000000 -> 61.6130388 | E147: =Inputs!$R$39*elmira_dli!D147 -> 43.12912716 | F147: =MAX(0,Inputs!$F$25-E147) -> 0 | G147: =F147/(3600*Inputs!#REF!/1000000) -> 
A148: 2015-05-27 | B148: 5 | C148: 27 | D148: =3600*SUMIFS(elmira!U148:U8907,elmira!B148:B8907,"="&B148,elmira!C148:C8907,"="&C148)/1000000 -> 36.6829506 | E148: =Inputs!$R$39*elmira_dli!D148 -> 25.67806542 | F148: =MAX(0,Inputs!$F$25-E148) -> 0 | G148: =F148/(3600*Inputs!#REF!/1000000) -> 
A149: 2015-05-28 | B149: 5 | C149: 28 | D149: =3600*SUMIFS(elmira!U149:U8908,elmira!B149:B8908,"="&B149,elmira!C149:C8908,"="&C149)/1000000 -> 23.6101284 | E149: =Inputs!$R$39*elmira_dli!D149 -> 16.52708988 | F149: =MAX(0,Inputs!$F$25-E149) -> 0 | G149: =F149/(3600*Inputs!#REF!/1000000) -> 
A150: 2015-05-29 | B150: 5 | C150: 29 | D150: =3600*SUMIFS(elmira!U150:U8909,elmira!B150:B8909,"="&B150,elmira!C150:C8909,"="&C150)/1000000 -> 41.2095924 | E150: =Inputs!$R$39*elmira_dli!D150 -> 28.84671468 | F150: =MAX(0,Inputs!$F$25-E150) -> 0 | G150: =F150/(3600*Inputs!#REF!/1000000) -> 
A151: 2015-05-30 | B151: 5 | C151: 30 | D151: =3600*SUMIFS(elmira!U151:U8910,elmira!B151:B8910,"="&B151,elmira!C151:C8910,"="&C151)/1000000 -> 38.7635652 | E151: =Inputs!$R$39*elmira_dli!D151 -> 27.13449564 | F151: =MAX(0,Inputs!$F$25-E151) -> 0 | G151: =F151/(3600*Inputs!#REF!/1000000) -> 
A152: 2015-05-31 | B152: 5 | C152: 31 | D152: =3600*SUMIFS(elmira!U152:U8911,elmira!B152:B8911,"="&B152,elmira!C152:C8911,"="&C152)/1000000 -> 55.967787 | E152: =Inputs!$R$39*elmira_dli!D152 -> 39.1774509 | F152: =MAX(0,Inputs!$F$25-E152) -> 0 | G152: =F152/(3600*Inputs!#REF!/1000000) -> 
A153: 2015-06-01 | B153: 6 | C153: 1 | D153: =3600*SUMIFS(elmira!U153:U8912,elmira!B153:B8912,"="&B153,elmira!C153:C8912,"="&C153)/1000000 -> 29.2180932 | E153: =Inputs!$R$39*elmira_dli!D153 -> 20.45266524 | F153: =MAX(0,Inputs!$F$25-E153) -> 0 | G153: =F153/(3600*Inputs!#REF!/1000000) -> 
A154: 2015-06-02 | B154: 6 | C154: 2 | D154: =3600*SUMIFS(elmira!U154:U8913,elmira!B154:B8913,"="&B154,elmira!C154:C8913,"="&C154)/1000000 -> 29.4119856 | E154: =Inputs!$R$39*elmira_dli!D154 -> 20.58838992 | F154: =MAX(0,Inputs!$F$25-E154) -> 0 | G154: =F154/(3600*Inputs!#REF!/1000000) -> 
A155: 2015-06-03 | B155: 6 | C155: 3 | D155: =3600*SUMIFS(elmira!U155:U8914,elmira!B155:B8914,"="&B155,elmira!C155:C8914,"="&C155)/1000000 -> 11.0071224 | E155: =Inputs!$R$39*elmira_dli!D155 -> 7.70498568 | F155: =MAX(0,Inputs!$F$25-E155) -> 0 | G155: =F155/(3600*Inputs!#REF!/1000000) -> 
A156: 2015-06-04 | B156: 6 | C156: 4 | D156: =3600*SUMIFS(elmira!U156:U8915,elmira!B156:B8915,"="&B156,elmira!C156:C8915,"="&C156)/1000000 -> 11.0667816 | E156: =Inputs!$R$39*elmira_dli!D156 -> 7.74674712 | F156: =MAX(0,Inputs!$F$25-E156) -> 0 | G156: =F156/(3600*Inputs!#REF!/1000000) -> 
A157: 2015-06-05 | B157: 6 | C157: 5 | D157: =3600*SUMIFS(elmira!U157:U8916,elmira!B157:B8916,"="&B157,elmira!C157:C8916,"="&C157)/1000000 -> 12.30471 | E157: =Inputs!$R$39*elmira_dli!D157 -> 8.613297 | F157: =MAX(0,Inputs!$F$25-E157) -> 0 | G157: =F157/(3600*Inputs!#REF!/1000000) -> 
A158: 2015-06-06 | B158: 6 | C158: 6 | D158: =3600*SUMIFS(elmira!U158:U8917,elmira!B158:B8917,"="&B158,elmira!C158:C8917,"="&C158)/1000000 -> 14.4151542 | E158: =Inputs!$R$39*elmira_dli!D158 -> 10.09060794 | F158: =MAX(0,Inputs!$F$25-E158) -> 0 | G158: =F158/(3600*Inputs!#REF!/1000000) -> 
A159: 2015-06-07 | B159: 6 | C159: 7 | D159: =3600*SUMIFS(elmira!U159:U8918,elmira!B159:B8918,"="&B159,elmira!C159:C8918,"="&C159)/1000000 -> 51.045903 | E159: =Inputs!$R$39*elmira_dli!D159 -> 35.7321321 | F159: =MAX(0,Inputs!$F$25-E159) -> 0 | G159: =F159/(3600*Inputs!#REF!/1000000) -> 
A160: 2015-06-08 | B160: 6 | C160: 8 | D160: =3600*SUMIFS(elmira!U160:U8919,elmira!B160:B8919,"="&B160,elmira!C160:C8919,"="&C160)/1000000 -> 35.9968698 | E160: =Inputs!$R$39*elmira_dli!D160 -> 25.19780886 | F160: =MAX(0,Inputs!$F$25-E160) -> 0 | G160: =F160/(3600*Inputs!#REF!/1000000) -> 
A161: 2015-06-09 | B161: 6 | C161: 9 | D161: =3600*SUMIFS(elmira!U161:U8920,elmira!B161:B8920,"="&B161,elmira!C161:C8920,"="&C161)/1000000 -> 32.588838 | E161: =Inputs!$R$39*elmira_dli!D161 -> 22.8121866 | F161: =MAX(0,Inputs!$F$25-E161) -> 0 | G161: =F161/(3600*Inputs!#REF!/1000000) -> 
A162: 2015-06-10 | B162: 6 | C162: 10 | D162: =3600*SUMIFS(elmira!U162:U8921,elmira!B162:B8921,"="&B162,elmira!C162:C8921,"="&C162)/1000000 -> 60.8300118 | E162: =Inputs!$R$39*elmira_dli!D162 -> 42.58100826 | F162: =MAX(0,Inputs!$F$25-E162) -> 0 | G162: =F162/(3600*Inputs!#REF!/1000000) -> 
A163: 2015-06-11 | B163: 6 | C163: 11 | D163: =3600*SUMIFS(elmira!U163:U8922,elmira!B163:B8922,"="&B163,elmira!C163:C8922,"="&C163)/1000000 -> 28.5469272 | E163: =Inputs!$R$39*elmira_dli!D163 -> 19.98284904 | F163: =MAX(0,Inputs!$F$25-E163) -> 0 | G163: =F163/(3600*Inputs!#REF!/1000000) -> 
A164: 2015-06-12 | B164: 6 | C164: 12 | D164: =3600*SUMIFS(elmira!U164:U8923,elmira!B164:B8923,"="&B164,elmira!C164:C8923,"="&C164)/1000000 -> 17.9797914 | E164: =Inputs!$R$39*elmira_dli!D164 -> 12.58585398 | F164: =MAX(0,Inputs!$F$25-E164) -> 0 | G164: =F164/(3600*Inputs!#REF!/1000000) -> 
A165: 2015-06-13 | B165: 6 | C165: 13 | D165: =3600*SUMIFS(elmira!U165:U8924,elmira!B165:B8924,"="&B165,elmira!C165:C8924,"="&C165)/1000000 -> 13.6246698 | E165: =Inputs!$R$39*elmira_dli!D165 -> 9.53726886 | F165: =MAX(0,Inputs!$F$25-E165) -> 0 | G165: =F165/(3600*Inputs!#REF!/1000000) -> 
A166: 2015-06-14 | B166: 6 | C166: 14 | D166: =3600*SUMIFS(elmira!U166:U8925,elmira!B166:B8925,"="&B166,elmira!C166:C8925,"="&C166)/1000000 -> 43.141059 | E166: =Inputs!$R$39*elmira_dli!D166 -> 30.1987413 | F166: =MAX(0,Inputs!$F$25-E166) -> 0 | G166: =F166/(3600*Inputs!#REF!/1000000) -> 
A167: 2015-06-15 | B167: 6 | C167: 15 | D167: =3600*SUMIFS(elmira!U167:U8926,elmira!B167:B8926,"="&B167,elmira!C167:C8926,"="&C167)/1000000 -> 36.1012734 | E167: =Inputs!$R$39*elmira_dli!D167 -> 25.27089138 | F167: =MAX(0,Inputs!$F$25-E167) -> 0 | G167: =F167/(3600*Inputs!#REF!/1000000) -> 
A168: 2015-06-16 | B168: 6 | C168: 16 | D168: =3600*SUMIFS(elmira!U168:U8927,elmira!B168:B8927,"="&B168,elmira!C168:C8927,"="&C168)/1000000 -> 41.0679018 | E168: =Inputs!$R$39*elmira_dli!D168 -> 28.74753126 | F168: =MAX(0,Inputs!$F$25-E168) -> 0 | G168: =F168/(3600*Inputs!#REF!/1000000) -> 
A169: 2015-06-17 | B169: 6 | C169: 17 | D169: =3600*SUMIFS(elmira!U169:U8928,elmira!B169:B8928,"="&B169,elmira!C169:C8928,"="&C169)/1000000 -> 24.2141778 | E169: =Inputs!$R$39*elmira_dli!D169 -> 16.94992446 | F169: =MAX(0,Inputs!$F$25-E169) -> 0 | G169: =F169/(3600*Inputs!#REF!/1000000) -> 
A170: 2015-06-18 | B170: 6 | C170: 18 | D170: =3600*SUMIFS(elmira!U170:U8929,elmira!B170:B8929,"="&B170,elmira!C170:C8929,"="&C170)/1000000 -> 12.9833334 | E170: =Inputs!$R$39*elmira_dli!D170 -> 9.08833338 | F170: =MAX(0,Inputs!$F$25-E170) -> 0 | G170: =F170/(3600*Inputs!#REF!/1000000) -> 
A171: 2015-06-19 | B171: 6 | C171: 19 | D171: =3600*SUMIFS(elmira!U171:U8930,elmira!B171:B8930,"="&B171,elmira!C171:C8930,"="&C171)/1000000 -> 52.0302798 | E171: =Inputs!$R$39*elmira_dli!D171 -> 36.42119586 | F171: =MAX(0,Inputs!$F$25-E171) -> 0 | G171: =F171/(3600*Inputs!#REF!/1000000) -> 
A172: 2015-06-20 | B172: 6 | C172: 20 | D172: =3600*SUMIFS(elmira!U172:U8931,elmira!B172:B8931,"="&B172,elmira!C172:C8931,"="&C172)/1000000 -> 59.2042986 | E172: =Inputs!$R$39*elmira_dli!D172 -> 41.44300902 | F172: =MAX(0,Inputs!$F$25-E172) -> 0 | G172: =F172/(3600*Inputs!#REF!/1000000) -> 
A173: 2015-06-21 | B173: 6 | C173: 21 | D173: =3600*SUMIFS(elmira!U173:U8932,elmira!B173:B8932,"="&B173,elmira!C173:C8932,"="&C173)/1000000 -> 28.263546 | E173: =Inputs!$R$39*elmira_dli!D173 -> 19.7844822 | F173: =MAX(0,Inputs!$F$25-E173) -> 0 | G173: =F173/(3600*Inputs!#REF!/1000000) -> 
A174: 2015-06-22 | B174: 6 | C174: 22 | D174: =3600*SUMIFS(elmira!U174:U8933,elmira!B174:B8933,"="&B174,elmira!C174:C8933,"="&C174)/1000000 -> 45.2589606 | E174: =Inputs!$R$39*elmira_dli!D174 -> 31.68127242 | F174: =MAX(0,Inputs!$F$25-E174) -> 0 | G174: =F174/(3600*Inputs!#REF!/1000000) -> 
A175: 2015-06-23 | B175: 6 | C175: 23 | D175: =3600*SUMIFS(elmira!U175:U8934,elmira!B175:B8934,"="&B175,elmira!C175:C8934,"="&C175)/1000000 -> 46.8473868 | E175: =Inputs!$R$39*elmira_dli!D175 -> 32.79317076 | F175: =MAX(0,Inputs!$F$25-E175) -> 0 | G175: =F175/(3600*Inputs!#REF!/1000000) -> 
A176: 2015-06-24 | B176: 6 | C176: 24 | D176: =3600*SUMIFS(elmira!U176:U8935,elmira!B176:B8935,"="&B176,elmira!C176:C8935,"="&C176)/1000000 -> 50.6954052 | E176: =Inputs!$R$39*elmira_dli!D176 -> 35.48678364 | F176: =MAX(0,Inputs!$F$25-E176) -> 0 | G176: =F176/(3600*Inputs!#REF!/1000000) -> 
A177: 2015-06-25 | B177: 6 | C177: 25 | D177: =3600*SUMIFS(elmira!U177:U8936,elmira!B177:B8936,"="&B177,elmira!C177:C8936,"="&C177)/1000000 -> 41.0977314 | E177: =Inputs!$R$39*elmira_dli!D177 -> 28.76841198 | F177: =MAX(0,Inputs!$F$25-E177) -> 0 | G177: =F177/(3600*Inputs!#REF!/1000000) -> 
A178: 2015-06-26 | B178: 6 | C178: 26 | D178: =3600*SUMIFS(elmira!U178:U8937,elmira!B178:B8937,"="&B178,elmira!C178:C8937,"="&C178)/1000000 -> 28.0621962 | E178: =Inputs!$R$39*elmira_dli!D178 -> 19.64353734 | F178: =MAX(0,Inputs!$F$25-E178) -> 0 | G178: =F178/(3600*Inputs!#REF!/1000000) -> 
A179: 2015-06-27 | B179: 6 | C179: 27 | D179: =3600*SUMIFS(elmira!U179:U8938,elmira!B179:B8938,"="&B179,elmira!C179:C8938,"="&C179)/1000000 -> 36.7202376 | E179: =Inputs!$R$39*elmira_dli!D179 -> 25.70416632 | F179: =MAX(0,Inputs!$F$25-E179) -> 0 | G179: =F179/(3600*Inputs!#REF!/1000000) -> 
A180: 2015-06-28 | B180: 6 | C180: 28 | D180: =3600*SUMIFS(elmira!U180:U8939,elmira!B180:B8939,"="&B180,elmira!C180:C8939,"="&C180)/1000000 -> 40.4041932 | E180: =Inputs!$R$39*elmira_dli!D180 -> 28.28293524 | F180: =MAX(0,Inputs!$F$25-E180) -> 0 | G180: =F180/(3600*Inputs!#REF!/1000000) -> 
A181: 2015-06-29 | B181: 6 | C181: 29 | D181: =3600*SUMIFS(elmira!U181:U8940,elmira!B181:B8940,"="&B181,elmira!C181:C8940,"="&C181)/1000000 -> 34.4457306 | E181: =Inputs!$R$39*elmira_dli!D181 -> 24.11201142 | F181: =MAX(0,Inputs!$F$25-E181) -> 0 | G181: =F181/(3600*Inputs!#REF!/1000000) -> 
A182: 2015-06-30 | B182: 6 | C182: 30 | D182: =3600*SUMIFS(elmira!U182:U8941,elmira!B182:B8941,"="&B182,elmira!C182:C8941,"="&C182)/1000000 -> 59.099895 | E182: =Inputs!$R$39*elmira_dli!D182 -> 41.3699265 | F182: =MAX(0,Inputs!$F$25-E182) -> 0 | G182: =F182/(3600*Inputs!#REF!/1000000) -> 
A183: 2015-07-01 | B183: 7 | C183: 1 | D183: =3600*SUMIFS(elmira!U183:U8942,elmira!B183:B8942,"="&B183,elmira!C183:C8942,"="&C183)/1000000 -> 54.2451276 | E183: =Inputs!$R$39*elmira_dli!D183 -> 37.97158932 | F183: =MAX(0,Inputs!$F$25-E183) -> 0 | G183: =F183/(3600*Inputs!#REF!/1000000) -> 
A184: 2015-07-02 | B184: 7 | C184: 2 | D184: =3600*SUMIFS(elmira!U184:U8943,elmira!B184:B8943,"="&B184,elmira!C184:C8943,"="&C184)/1000000 -> 55.7738946 | E184: =Inputs!$R$39*elmira_dli!D184 -> 39.04172622 | F184: =MAX(0,Inputs!$F$25-E184) -> 0 | G184: =F184/(3600*Inputs!#REF!/1000000) -> 
A185: 2015-07-03 | B185: 7 | C185: 3 | D185: =3600*SUMIFS(elmira!U185:U8944,elmira!B185:B8944,"="&B185,elmira!C185:C8944,"="&C185)/1000000 -> 59.808348 | E185: =Inputs!$R$39*elmira_dli!D185 -> 41.8658436 | F185: =MAX(0,Inputs!$F$25-E185) -> 0 | G185: =F185/(3600*Inputs!#REF!/1000000) -> 
A186: 2015-07-04 | B186: 7 | C186: 4 | D186: =3600*SUMIFS(elmira!U186:U8945,elmira!B186:B8945,"="&B186,elmira!C186:C8945,"="&C186)/1000000 -> 28.3157478 | E186: =Inputs!$R$39*elmira_dli!D186 -> 19.82102346 | F186: =MAX(0,Inputs!$F$25-E186) -> 0 | G186: =F186/(3600*Inputs!#REF!/1000000) -> 
A187: 2015-07-05 | B187: 7 | C187: 5 | D187: =3600*SUMIFS(elmira!U187:U8946,elmira!B187:B8946,"="&B187,elmira!C187:C8946,"="&C187)/1000000 -> 47.5707546 | E187: =Inputs!$R$39*elmira_dli!D187 -> 33.29952822 | F187: =MAX(0,Inputs!$F$25-E187) -> 0 | G187: =F187/(3600*Inputs!#REF!/1000000) -> 
A188: 2015-07-06 | B188: 7 | C188: 6 | D188: =3600*SUMIFS(elmira!U188:U8947,elmira!B188:B8947,"="&B188,elmira!C188:C8947,"="&C188)/1000000 -> 48.6893646 | E188: =Inputs!$R$39*elmira_dli!D188 -> 34.08255522 | F188: =MAX(0,Inputs!$F$25-E188) -> 0 | G188: =F188/(3600*Inputs!#REF!/1000000) -> 
A189: 2015-07-07 | B189: 7 | C189: 7 | D189: =3600*SUMIFS(elmira!U189:U8948,elmira!B189:B8948,"="&B189,elmira!C189:C8948,"="&C189)/1000000 -> 32.5962954 | E189: =Inputs!$R$39*elmira_dli!D189 -> 22.81740678 | F189: =MAX(0,Inputs!$F$25-E189) -> 0 | G189: =F189/(3600*Inputs!#REF!/1000000) -> 
A190: 2015-07-08 | B190: 7 | C190: 8 | D190: =3600*SUMIFS(elmira!U190:U8949,elmira!B190:B8949,"="&B190,elmira!C190:C8949,"="&C190)/1000000 -> 47.72736 | E190: =Inputs!$R$39*elmira_dli!D190 -> 33.409152 | F190: =MAX(0,Inputs!$F$25-E190) -> 0 | G190: =F190/(3600*Inputs!#REF!/1000000) -> 
A191: 2015-07-09 | B191: 7 | C191: 9 | D191: =3600*SUMIFS(elmira!U191:U8950,elmira!B191:B8950,"="&B191,elmira!C191:C8950,"="&C191)/1000000 -> 30.3217884 | E191: =Inputs!$R$39*elmira_dli!D191 -> 21.22525188 | F191: =MAX(0,Inputs!$F$25-E191) -> 0 | G191: =F191/(3600*Inputs!#REF!/1000000) -> 
A192: 2015-07-10 | B192: 7 | C192: 10 | D192: =3600*SUMIFS(elmira!U192:U8951,elmira!B192:B8951,"="&B192,elmira!C192:C8951,"="&C192)/1000000 -> 48.0181986 | E192: =Inputs!$R$39*elmira_dli!D192 -> 33.61273902 | F192: =MAX(0,Inputs!$F$25-E192) -> 0 | G192: =F192/(3600*Inputs!#REF!/1000000) -> 
A193: 2015-07-11 | B193: 7 | C193: 11 | D193: =3600*SUMIFS(elmira!U193:U8952,elmira!B193:B8952,"="&B193,elmira!C193:C8952,"="&C193)/1000000 -> 56.9596212 | E193: =Inputs!$R$39*elmira_dli!D193 -> 39.87173484 | F193: =MAX(0,Inputs!$F$25-E193) -> 0 | G193: =F193/(3600*Inputs!#REF!/1000000) -> 
A194: 2015-07-12 | B194: 7 | C194: 12 | D194: =3600*SUMIFS(elmira!U194:U8953,elmira!B194:B8953,"="&B194,elmira!C194:C8953,"="&C194)/1000000 -> 12.3196248 | E194: =Inputs!$R$39*elmira_dli!D194 -> 8.62373736 | F194: =MAX(0,Inputs!$F$25-E194) -> 0 | G194: =F194/(3600*Inputs!#REF!/1000000) -> 
A195: 2015-07-13 | B195: =MONTH(A195) -> 7 | C195: =DAY(A195) -> 13 | D195: =3600*SUMIFS(elmira!U195:U8954,elmira!B195:B8954,"="&B195,elmira!C195:C8954,"="&C195)/1000000 -> 38.666619 | E195: =Inputs!$R$39*elmira_dli!D195 -> 27.0666333 | F195: =MAX(0,Inputs!$F$25-E195) -> 0 | G195: =F195/(3600*Inputs!#REF!/1000000) -> 
A196: 2015-07-14 | B196: 7 | C196: 14 | D196: =3600*SUMIFS(elmira!U196:U8955,elmira!B196:B8955,"="&B196,elmira!C196:C8955,"="&C196)/1000000 -> 14.2138044 | E196: =Inputs!$R$39*elmira_dli!D196 -> 9.94966308 | F196: =MAX(0,Inputs!$F$25-E196) -> 0 | G196: =F196/(3600*Inputs!#REF!/1000000) -> 
A197: 2015-07-15 | B197: 7 | C197: 15 | D197: =3600*SUMIFS(elmira!U197:U8956,elmira!B197:B8956,"="&B197,elmira!C197:C8956,"="&C197)/1000000 -> 28.8079362 | E197: =Inputs!$R$39*elmira_dli!D197 -> 20.16555534 | F197: =MAX(0,Inputs!$F$25-E197) -> 0 | G197: =F197/(3600*Inputs!#REF!/1000000) -> 
A198: 2015-07-16 | B198: 7 | C198: 16 | D198: =3600*SUMIFS(elmira!U198:U8957,elmira!B198:B8957,"="&B198,elmira!C198:C8957,"="&C198)/1000000 -> 22.9165902 | E198: =Inputs!$R$39*elmira_dli!D198 -> 16.04161314 | F198: =MAX(0,Inputs!$F$25-E198) -> 0 | G198: =F198/(3600*Inputs!#REF!/1000000) -> 
A199: 2015-07-17 | B199: 7 | C199: 17 | D199: =3600*SUMIFS(elmira!U199:U8958,elmira!B199:B8958,"="&B199,elmira!C199:C8958,"="&C199)/1000000 -> 45.6169158 | E199: =Inputs!$R$39*elmira_dli!D199 -> 31.93184106 | F199: =MAX(0,Inputs!$F$25-E199) -> 0 | G199: =F199/(3600*Inputs!#REF!/1000000) -> 
A200: 2015-07-18 | B200: 7 | C200: 18 | D200: =3600*SUMIFS(elmira!U200:U8959,elmira!B200:B8959,"="&B200,elmira!C200:C8959,"="&C200)/1000000 -> 18.5167242 | E200: =Inputs!$R$39*elmira_dli!D200 -> 12.96170694 | F200: =MAX(0,Inputs!$F$25-E200) -> 0 | G200: =F200/(3600*Inputs!#REF!/1000000) -> 
... 166 more rows

Sheet elmira (hidden)
A1: Date (MM/DD/YYYY) | B1: month | C1: day | D1: Time (HH:MM) | E1: GHI (W/m^2) | F1: TotCld (tenths) | G1: Dry-bulb (C) | H1: Dew-point (C) | I1: RHum (%) | J1: Conduction (W) | K1: Solar (W) | L1: Infiltration (W) | M1: Lights (W) | N1: ET (W) | O1: pws (Pa) | P1: hrsat (kg/kg) | Q1: hr (kg/kg) | R1: Ventilation (m3/s) | S1: Vent load (W) | T1: Htg Load (W) | U1: PAR (umol/m2/s)
A2: 2001-01-01 | B2: =MONTH(A2) -> 1 | C2: =DAY(A2) -> 1 | D2: 01:00:00 | E2: 0 | F2: 10 | G2: -6 | H2: -10 | I2: 70 | J2: =Inputs!$R$38*Inputs!$R$33*(G2-Inputs!$R$26) -> -91128.65814 | K2: =Inputs!$R$34*E2*Inputs!$R$39 -> 0 | L2: =params!$C$16*Inputs!$R$30*(G2-Inputs!$R$26) -> -14270.19997 | M2: =Inputs!$R$41*Inputs!$R$42/8760 -> 0 | N2: 0 | O2: =EXP(77.345+0.0057*(G2+273.15)-7235/(G2+273.15))/(G2+273.15)^8.2 -> 389.766162 | P2: =0.62198*O2/(101325-O2) -> 0.00240180508 | Q2: =P2*I2/100 -> 0.001681263556 | R2: =-N2/(1.202*2465560*MAX(0,(Inputs!$R$49-Q2))) -> 0 | S2: =params!$C$16*R2*(G2-Inputs!$R$26) -> 0 | T2: =J2+K2+L2+M2+N2+S2 -> -105398.8581 | U2: =E2*params!$C$8 -> 0
A3: 2001-01-01 | B3: =MONTH(A3) -> 1 | C3: =DAY(A3) -> 1 | D3: 02:00:00 | E3: 0 | F3: 10 | G3: -6 | H3: -9 | I3: 77 | J3: =Inputs!$R$38*Inputs!$R$33*(G3-Inputs!$R$26) -> -91128.65814 | K3: =Inputs!$R$34*E3*Inputs!$R$39 -> 0 | L3: =params!$C$16*Inputs!$R$30*(G3-Inputs!$R$26) -> -14270.19997 | M3: =Inputs!$R$41*Inputs!$R$42/8760 -> 0 | N3: 0 | O3: =EXP(77.345+0.0057*(G3+273.15)-7235/(G3+273.15))/(G3+273.15)^8.2 -> 389.766162 | P3: =0.62198*O3/(101325-O3) -> 0.00240180508 | Q3: =P3*I3/100 -> 0.001849389912 | R3: =-N3/(1.202*2465560*MAX(0,(Inputs!$R$49-Q3))) -> 0 | S3: =params!$C$16*R3*(G3-Inputs!$R$26) -> 0 | T3: =J3+K3+L3+M3+N3+S3 -> -105398.8581 | U3: =E3*params!$C$8 -> 0
A4: 2001-01-01 | B4: 1 | C4: 1 | D4: 03:00:00 | E4: 0 | F4: 10 | G4: -6 | H4: -8 | I4: 84 | J4: =Inputs!$R$38*Inputs!$R$33*(G4-Inputs!$R$26) -> -91128.65814 | K4: =Inputs!$R$34*E4*Inputs!$R$39 -> 0 | L4: =params!$C$16*Inputs!$R$30*(G4-Inputs!$R$26) -> -14270.19997 | M4: =Inputs!$R$41*Inputs!$R$42/8760 -> 0 | N4: 0 | O4: 389.766162 | P4: 0.00240180508 | Q4: 0.002017516267 | R4: =-N4/(1.202*2465560*MAX(0,(Inputs!$R$49-Q4))) -> 0 | S4: =params!$C$16*R4*(G4-Inputs!$R$26) -> 0 | T4: -105398.8581 | U4: =E4*params!$C$8 -> 0
A5: 2001-01-01 | B5: 1 | C5: 1 | D5: 04:00:00 | E5: 0 | F5: 10 | G5: -6 | H5: -9 | I5: 77 | J5: =Inputs!$R$38*Inputs!$R$33*(G5-Inputs!$R$26) -> -91128.65814 | K5: =Inputs!$R$34*E5*Inputs!$R$39 -> 0 | L5: =params!$C$16*Inputs!$R$30*(G5-Inputs!$R$26) -> -14270.19997 | M5: =Inputs!$R$41*Inputs!$R$42/8760 -> 0 | N5: 0 | O5: 389.766162 | P5: 0.00240180508 | Q5: 0.001849389912 | R5: =-N5/(1.202*2465560*MAX(0,(Inputs!$R$49-Q5))) -> 0 | S5: =params!$C$16*R5*(G5-Inputs!$R$26) -> 0 | T5: -105398.8581 | U5: =E5*params!$C$8 -> 0
A6: 2001-01-01 | B6: 1 | C6: =DAY(A6) -> 1 | D6: 05:00:00 | E6: 0 | F6: 10 | G6: -6 | H6: -9 | I6: 77 | J6: =Inputs!$R$38*Inputs!$R$33*(G6-Inputs!$R$26) -> -91128.65814 | K6: =Inputs!$R$34*E6*Inputs!$R$39 -> 0 | L6: =params!$C$16*Inputs!$R$30*(G6-Inputs!$R$26) -> -14270.19997 | M6: =Inputs!$R$41*Inputs!$R$42/8760 -> 0 | N6: 0 | O6: 389.766162 | P6: 0.00240180508 | Q6: 0.001849389912 | R6: =-N6/(1.202*2465560*MAX(0,(Inputs!$R$49-Q6))) -> 0 | S6: =params!$C$16*R6*(G6-Inputs!$R$26) -> 0 | T6: -105398.8581 | U6: =E6*params!$C$8 -> 0
A7: 2001-01-01 | B7: 1 | C7: 1 | D7: 06:00:00 | E7: 0 | F7: 10 | G7: -6 | H7: -10 | I7: 70 | J7: =Inputs!$R$38*Inputs!$R$33*(G7-Inputs!$R$26) -> -91128.65814 | K7: =Inputs!$R$34*E7*Inputs!$R$39 -> 0 | L7: =params!$C$16*Inputs!$R$30*(G7-Inputs!$R$26) -> -14270.19997 | M7: =Inputs!$R$41*Inputs!$R$42/8760 -> 0 | N7: 0 | O7: 389.766162 | P7: 0.00240180508 | Q7: 0.001681263556 | R7: =-N7/(1.202*2465560*MAX(0,(Inputs!$R$49-Q7))) -> 0 | S7: =params!$C$16*R7*(G7-Inputs!$R$26) -> 0 | T7: -105398.8581 | U7: =E7*params!$C$8 -> 0
A8: 2001-01-01 | B8: 1 | C8: 1 | D8: 07:00:00 | E8: 0 | F8: 10 | G8: -7 | H8: -11 | I8: 70 | J8: =Inputs!$R$38*Inputs!$R$33*(G8-Inputs!$R$26) -> -96824.19927 | K8: =Inputs!$R$34*E8*Inputs!$R$39 -> 0 | L8: =params!$C$16*Inputs!$R$30*(G8-Inputs!$R$26) -> -15162.08747 | M8: =Inputs!$R$41*Inputs!$R$42/8760 -> 0 | N8: 0 | O8: 360.9876215 | P8: 0.002223832785 | Q8: 0.00155668295 | R8: =-N8/(1.202*2465560*MAX(0,(Inputs!$R$49-Q8))) -> 0 | S8: =params!$C$16*R8*(G8-Inputs!$R$26) -> 0 | T8: -111986.2867 | U8: =E8*params!$C$8 -> 0
A9: 2001-01-01 | B9: 1 | C9: 1 | D9: 08:00:00 | E9: 0 | F9: 4 | G9: -8 | H9: -12 | I9: 70 | J9: =Inputs!$R$38*Inputs!$R$33*(G9-Inputs!$R$26) -> -102519.7404 | K9: =Inputs!$R$34*E9*Inputs!$R$39 -> 0 | L9: =params!$C$16*Inputs!$R$30*(G9-Inputs!$R$26) -> -16053.97497 | M9: =Inputs!$R$41*Inputs!$R$42/8760 -> 0 | N9: 0 | O9: 334.1161189 | P9: 0.002057745567 | Q9: 0.001440421897 | R9: =-N9/(1.202*2465560*MAX(0,(Inputs!$R$49-Q9))) -> 0 | S9: =params!$C$16*R9*(G9-Inputs!$R$26) -> 0 | T9: -118573.7154 | U9: =E9*params!$C$8 -> 0
A10: 2001-01-01 | B10: 1 | C10: 1 | D10: 09:00:00 | E10: 94 | F10: 4 | G10: -7 | H10: -12 | I10: 64 | J10: =Inputs!$R$38*Inputs!$R$33*(G10-Inputs!$R$26) -> -96824.19927 | K10: =Inputs!$R$34*E10*Inputs!$R$39 -> 55017.23353 | L10: =params!$C$16*Inputs!$R$30*(G10-Inputs!$R$26) -> -15162.08747 | M10: =Inputs!$R$41*Inputs!$R$42/8760 -> 0 | N10: 0 | O10: 360.9876215 | P10: 0.002223832785 | Q10: 0.001423252982 | R10: =-N10/(1.202*2465560*MAX(0,(Inputs!$R$49-Q10))) -> 0 | S10: =params!$C$16*R10*(G10-Inputs!$R$26) -> 0 | T10: -56969.05321 | U10: =E10*params!$C$8 -> 194.721
A11: 2001-01-01 | B11: 1 | C11: 1 | D11: 10:00:00 | E11: 237 | F11: 4 | G11: -7 | H11: -12 | I11: 64 | J11: =Inputs!$R$38*Inputs!$R$33*(G11-Inputs!$R$26) -> -96824.19927 | K11: =Inputs!$R$34*E11*Inputs!$R$39 -> 138713.6633 | L11: =params!$C$16*Inputs!$R$30*(G11-Inputs!$R$26) -> -15162.08747 | M11: =Inputs!$R$41*Inputs!$R$42/8760 -> 0 | N11: 0 | O11: 360.9876215 | P11: 0.002223832785 | Q11: 0.001423252982 | R11: =-N11/(1.202*2465560*MAX(0,(Inputs!$R$49-Q11))) -> 0 | S11: =params!$C$16*R11*(G11-Inputs!$R$26) -> 0 | T11: 26727.37652 | U11: =E11*params!$C$8 -> 490.9455
A12: 2001-01-01 | B12: 1 | C12: 1 | D12: 11:00:00 | E12: 332 | F12: 4 | G12: -6 | H12: -11 | I12: 64 | J12: =Inputs!$R$38*Inputs!$R$33*(G12-Inputs!$R$26) -> -91128.65814 | K12: =Inputs!$R$34*E12*Inputs!$R$39 -> 194316.1865 | L12: =params!$C$16*Inputs!$R$30*(G12-Inputs!$R$26) -> -14270.19997 | M12: =Inputs!$R$41*Inputs!$R$42/8760 -> 0 | N12: 0 | O12: 389.766162 | P12: 0.00240180508 | Q12: 0.001537155251 | R12: =-N12/(1.202*2465560*MAX(0,(Inputs!$R$49-Q12))) -> 0 | S12: =params!$C$16*R12*(G12-Inputs!$R$26) -> 0 | T12: 88917.3284 | U12: =E12*params!$C$8 -> 687.738
A13: 2001-01-01 | B13: 1 | C13: 1 | D13: 12:00:00 | E13: 372 | F13: 0 | G13: -4 | H13: -12 | I13: 50 | J13: =Inputs!$R$38*Inputs!$R$33*(G13-Inputs!$R$26) -> -79737.57587 | K13: =Inputs!$R$34*E13*Inputs!$R$39 -> 217727.7752 | L13: =params!$C$16*Inputs!$R$30*(G13-Inputs!$R$26) -> -12486.42498 | M13: =Inputs!$R$41*Inputs!$R$42/8760 -> 0 | N13: 0 | O13: 453.5153204 | P13: 0.002796404355 | Q13: 0.001398202177 | R13: =-N13/(1.202*2465560*MAX(0,(Inputs!$R$49-Q13))) -> 0 | S13: =params!$C$16*R13*(G13-Inputs!$R$26) -> 0 | T13: 125503.7744 | U13: =E13*params!$C$8 -> 770.598
A14: 2001-01-01 | B14: 1 | C14: 1 | D14: 13:00:00 | E14: 411 | F14: 0 | G14: -3 | H14: -12 | I14: 46 | J14: =Inputs!$R$38*Inputs!$R$33*(G14-Inputs!$R$26) -> -74042.03474 | K14: =Inputs!$R$34*E14*Inputs!$R$39 -> 240554.0743 | L14: =params!$C$16*Inputs!$R$30*(G14-Inputs!$R$26) -> -11594.53748 | M14: =Inputs!$R$41*Inputs!$R$42/8760 -> 0 | N14: 0 | O14: 488.7362191 | P14: 0.003014631266 | Q14: 0.001386730382 | R14: =-N14/(1.202*2465560*MAX(0,(Inputs!$R$49-Q14))) -> 0 | S14: =params!$C$16*R14*(G14-Inputs!$R$26) -> 0 | T14: 154917.5021 | U14: =E14*params!$C$8 -> 851.3865
A15: 2001-01-01 | B15: 1 | C15: 1 | D15: 14:00:00 | E15: 366 | F15: 0 | G15: -3 | H15: -12 | I15: 46 | J15: =Inputs!$R$38*Inputs!$R$33*(G15-Inputs!$R$26) -> -74042.03474 | K15: =Inputs!$R$34*E15*Inputs!$R$39 -> 214216.0369 | L15: =params!$C$16*Inputs!$R$30*(G15-Inputs!$R$26) -> -11594.53748 | M15: =Inputs!$R$41*Inputs!$R$42/8760 -> 0 | N15: 0 | O15: 488.7362191 | P15: 0.003014631266 | Q15: 0.001386730382 | R15: =-N15/(1.202*2465560*MAX(0,(Inputs!$R$49-Q15))) -> 0 | S15: =params!$C$16*R15*(G15-Inputs!$R$26) -> 0 | T15: 128579.4647 | U15: =E15*params!$C$8 -> 758.169
A16: 2001-01-01 | B16: 1 | C16: 1 | D16: 15:00:00 | E16: 269 | F16: 0 | G16: -3 | H16: -12 | I16: 46 | J16: =Inputs!$R$38*Inputs!$R$33*(G16-Inputs!$R$26) -> -74042.03474 | K16: =Inputs!$R$34*E16*Inputs!$R$39 -> 157442.9343 | L16: =params!$C$16*Inputs!$R$30*(G16-Inputs!$R$26) -> -11594.53748 | M16: =Inputs!$R$41*Inputs!$R$42/8760 -> 0 | N16: 0 | O16: 488.7362191 | P16: 0.003014631266 | Q16: 0.001386730382 | R16: =-N16/(1.202*2465560*MAX(0,(Inputs!$R$49-Q16))) -> 0 | S16: =params!$C$16*R16*(G16-Inputs!$R$26) -> 0 | T16: 71806.36204 | U16: =E16*params!$C$8 -> 557.2335
A17: 2001-01-01 | B17: 1 | C17: 1 | D17: 16:00:00 | E17: 139 | F17: 0 | G17: -4 | H17: -12 | I17: 50 | J17: =Inputs!$R$38*Inputs!$R$33*(G17-Inputs!$R$26) -> -79737.57587 | K17: =Inputs!$R$34*E17*Inputs!$R$39 -> 81355.27086 | L17: =params!$C$16*Inputs!$R$30*(G17-Inputs!$R$26) -> -12486.42498 | M17: =Inputs!$R$41*Inputs!$R$42/8760 -> 0 | N17: 0 | O17: 453.5153204 | P17: 0.002796404355 | Q17: 0.001398202177 | R17: =-N17/(1.202*2465560*MAX(0,(Inputs!$R$49-Q17))) -> 0 | S17: =params!$C$16*R17*(G17-Inputs!$R$26) -> 0 | T17: -10868.72999 | U17: =E17*params!$C$8 -> 287.9385
A18: 2001-01-01 | B18: 1 | C18: 1 | D18: 17:00:00 | E18: 15 | F18: 0 | G18: -6 | H18: -13 | I18: 54 | J18: =Inputs!$R$38*Inputs!$R$33*(G18-Inputs!$R$26) -> -91128.65814 | K18: =Inputs!$R$34*E18*Inputs!$R$39 -> 8779.345776 | L18: =params!$C$16*Inputs!$R$30*(G18-Inputs!$R$26) -> -14270.19997 | M18: =Inputs!$R$41*Inputs!$R$42/8760 -> 0 | N18: 0 | O18: 389.766162 | P18: 0.00240180508 | Q18: 0.001296974743 | R18: =-N18/(1.202*2465560*MAX(0,(Inputs!$R$49-Q18))) -> 0 | S18: =params!$C$16*R18*(G18-Inputs!$R$26) -> 0 | T18: -96619.51234 | U18: =E18*params!$C$8 -> 31.0725
A19: 2001-01-01 | B19: 1 | C19: 1 | D19: 18:00:00 | E19: 0 | F19: 0 | G19: -8 | H19: -13 | I19: 64 | J19: =Inputs!$R$38*Inputs!$R$33*(G19-Inputs!$R$26) -> -102519.7404 | K19: =Inputs!$R$34*E19*Inputs!$R$39 -> 0 | L19: =params!$C$16*Inputs!$R$30*(G19-Inputs!$R$26) -> -16053.97497 | M19: =Inputs!$R$41*Inputs!$R$42/8760 -> 0 | N19: 0 | O19: 334.1161189 | P19: 0.002057745567 | Q19: 0.001316957163 | R19: =-N19/(1.202*2465560*MAX(0,(Inputs!$R$49-Q19))) -> 0 | S19: =params!$C$16*R19*(G19-Inputs!$R$26) -> 0 | T19: -118573.7154 | U19: =E19*params!$C$8 -> 0
A20: 2001-01-01 | B20: 1 | C20: 1 | D20: 19:00:00 | E20: 0 | F20: 0 | G20: -12 | H20: -14 | I20: 83 | J20: =Inputs!$R$38*Inputs!$R$33*(G20-Inputs!$R$26) -> -125301.9049 | K20: =Inputs!$R$34*E20*Inputs!$R$39 -> 0 | L20: =params!$C$16*Inputs!$R$30*(G20-Inputs!$R$26) -> -19621.52496 | M20: =Inputs!$R$41*Inputs!$R$42/8760 -> 0 | N20: 0 | O20: 243.5669654 | P20: 0.001498730049 | Q20: 0.001243945941 | R20: =-N20/(1.202*2465560*MAX(0,(Inputs!$R$49-Q20))) -> 0 | S20: =params!$C$16*R20*(G20-Inputs!$R$26) -> 0 | T20: -144923.4299 | U20: =E20*params!$C$8 -> 0
A21: 2001-01-01 | B21: 1 | C21: 1 | D21: 20:00:00 | E21: 0 | F21: 0 | G21: -14 | H21: -16 | I21: 83 | J21: =Inputs!$R$38*Inputs!$R$33*(G21-Inputs!$R$26) -> -136692.9872 | K21: =Inputs!$R$34*E21*Inputs!$R$39 -> 0 | L21: =params!$C$16*Inputs!$R$30*(G21-Inputs!$R$26) -> -21405.29996 | M21: =Inputs!$R$41*Inputs!$R$42/8760 -> 0 | N21: 0 | O21: 207.1044257 | P21: 0.001273907155 | Q21: 0.001057342939 | R21: =-N21/(1.202*2465560*MAX(0,(Inputs!$R$49-Q21))) -> 0 | S21: =params!$C$16*R21*(G21-Inputs!$R$26) -> 0 | T21: -158098.2872 | U21: =E21*params!$C$8 -> 0
A22: 2001-01-01 | B22: 1 | C22: 1 | D22: 21:00:00 | E22: 0 | F22: 0 | G22: -15 | H22: -17 | I22: 83 | J22: =Inputs!$R$38*Inputs!$R$33*(G22-Inputs!$R$26) -> -142388.5283 | K22: =Inputs!$R$34*E22*Inputs!$R$39 -> 0 | L22: =params!$C$16*Inputs!$R$30*(G22-Inputs!$R$26) -> -22297.18746 | M22: =Inputs!$R$41*Inputs!$R$42/8760 -> 0 | N22: 0 | O22: 190.7720143 | P22: 0.001173256372 | Q22: 0.0009738027891 | R22: =-N22/(1.202*2465560*MAX(0,(Inputs!$R$49-Q22))) -> 0 | S22: =params!$C$16*R22*(G22-Inputs!$R$26) -> 0 | T22: -164685.7158 | U22: =E22*params!$C$8 -> 0
A23: 2001-01-01 | B23: 1 | C23: 1 | D23: 22:00:00 | E23: 0 | F23: 0 | G23: -15 | H23: -17 | I23: 83 | J23: =Inputs!$R$38*Inputs!$R$33*(G23-Inputs!$R$26) -> -142388.5283 | K23: =Inputs!$R$34*E23*Inputs!$R$39 -> 0 | L23: =params!$C$16*Inputs!$R$30*(G23-Inputs!$R$26) -> -22297.18746 | M23: =Inputs!$R$41*Inputs!$R$42/8760 -> 0 | N23: 0 | O23: 190.7720143 | P23: 0.001173256372 | Q23: 0.0009738027891 | R23: =-N23/(1.202*2465560*MAX(0,(Inputs!$R$49-Q23))) -> 0 | S23: =params!$C$16*R23*(G23-Inputs!$R$26) -> 0 | T23: -164685.7158 | U23: =E23*params!$C$8 -> 0
A24: 2001-01-01 | B24: 1 | C24: 1 | D24: 23:00:00 | E24: 0 | F24: 0 | G24: -17 | H24: -18 | I24: 91 | J24: =Inputs!$R$38*Inputs!$R$33*(G24-Inputs!$R$26) -> -153779.6106 | K24: =Inputs!$R$34*E24*Inputs!$R$39 -> 0 | L24: =params!$C$16*Inputs!$R$30*(G24-Inputs!$R$26) -> -24080.96246 | M24: =Inputs!$R$41*Inputs!$R$42/8760 -> 0 | N24: 0 | O24: 161.519815 | P24: 0.0009930668096 | Q24: 0.0009036907967 | R24: =-N24/(1.202*2465560*MAX(0,(Inputs!$R$49-Q24))) -> 0 | S24: =params!$C$16*R24*(G24-Inputs!$R$26) -> 0 | T24: -177860.5731 | U24: =E24*params!$C$8 -> 0
A25: 2001-01-01 | B25: 1 | C25: 1 | D25: 1 | E25: 0 | F25: 10 | G25: -14 | H25: -16 | I25: 83 | J25: =Inputs!$R$38*Inputs!$R$33*(G25-Inputs!$R$26) -> -136692.9872 | K25: =Inputs!$R$34*E25*Inputs!$R$39 -> 0 | L25: =params!$C$16*Inputs!$R$30*(G25-Inputs!$R$26) -> -21405.29996 | M25: =Inputs!$R$41*Inputs!$R$42/8760 -> 0 | N25: 0 | O25: 207.1044257 | P25: 0.001273907155 | Q25: 0.001057342939 | R25: =-N25/(1.202*2465560*MAX(0,(Inputs!$R$49-Q25))) -> 0 | S25: =params!$C$16*R25*(G25-Inputs!$R$26) -> 0 | T25: -158098.2872 | U25: =E25*params!$C$8 -> 0
A26: 2001-01-02 | B26: 1 | C26: 2 | D26: 01:00:00 | E26: 0 | F26: 10 | G26: -12 | H26: -14 | I26: 83 | J26: =Inputs!$R$38*Inputs!$R$33*(G26-Inputs!$R$26) -> -125301.9049 | K26: =Inputs!$R$34*E26*Inputs!$R$39 -> 0 | L26: =params!$C$16*Inputs!$R$30*(G26-Inputs!$R$26) -> -19621.52496 | M26: =Inputs!$R$41*Inputs!$R$42/8760 -> 0 | N26: 0 | O26: 243.5669654 | P26: 0.001498730049 | Q26: 0.001243945941 | R26: =-N26/(1.202*2465560*MAX(0,(Inputs!$R$49-Q26))) -> 0 | S26: =params!$C$16*R26*(G26-Inputs!$R$26) -> 0 | T26: -144923.4299 | U26: =E26*params!$C$8 -> 0
A27: 2001-01-02 | B27: 1 | C27: 2 | D27: 02:00:00 | E27: 0 | F27: 10 | G27: -12 | H27: -13 | I27: 91 | J27: =Inputs!$R$38*Inputs!$R$33*(G27-Inputs!$R$26) -> -125301.9049 | K27: =Inputs!$R$34*E27*Inputs!$R$39 -> 0 | L27: =params!$C$16*Inputs!$R$30*(G27-Inputs!$R$26) -> -19621.52496 | M27: =Inputs!$R$41*Inputs!$R$42/8760 -> 0 | N27: 0 | O27: 243.5669654 | P27: 0.001498730049 | Q27: 0.001363844345 | R27: =-N27/(1.202*2465560*MAX(0,(Inputs!$R$49-Q27))) -> 0 | S27: =params!$C$16*R27*(G27-Inputs!$R$26) -> 0 | T27: -144923.4299 | U27: =E27*params!$C$8 -> 0
A28: 2001-01-02 | B28: 1 | C28: 2 | D28: 03:00:00 | E28: 0 | F28: 10 | G28: -12 | H28: -13 | I28: 91 | J28: =Inputs!$R$38*Inputs!$R$33*(G28-Inputs!$R$26) -> -125301.9049 | K28: =Inputs!$R$34*E28*Inputs!$R$39 -> 0 | L28: =params!$C$16*Inputs!$R$30*(G28-Inputs!$R$26) -> -19621.52496 | M28: =Inputs!$R$41*Inputs!$R$42/8760 -> 0 | N28: 0 | O28: 243.5669654 | P28: 0.001498730049 | Q28: 0.001363844345 | R28: =-N28/(1.202*2465560*MAX(0,(Inputs!$R$49-Q28))) -> 0 | S28: =params!$C$16*R28*(G28-Inputs!$R$26) -> 0 | T28: -144923.4299 | U28: =E28*params!$C$8 -> 0
A29: 2001-01-02 | B29: 1 | C29: 2 | D29: 04:00:00 | E29: 0 | F29: 10 | G29: -11 | H29: -13 | I29: 84 | J29: =Inputs!$R$38*Inputs!$R$33*(G29-Inputs!$R$26) -> -119606.3638 | K29: =Inputs!$R$34*E29*Inputs!$R$39 -> 0 | L29: =params!$C$16*Inputs!$R$30*(G29-Inputs!$R$26) -> -18729.63747 | M29: =Inputs!$R$41*Inputs!$R$42/8760 -> 0 | N29: 0 | O29: 263.8639748 | P29: 0.001623948844 | Q29: 0.001364117029 | R29: =-N29/(1.202*2465560*MAX(0,(Inputs!$R$49-Q29))) -> 0 | S29: =params!$C$16*R29*(G29-Inputs!$R$26) -> 0 | T29: -138336.0013 | U29: =E29*params!$C$8 -> 0
A30: 2001-01-02 | B30: 1 | C30: 2 | D30: 05:00:00 | E30: 0 | F30: 10 | G30: -12 | H30: -13 | I30: 91 | J30: =Inputs!$R$38*Inputs!$R$33*(G30-Inputs!$R$26) -> -125301.9049 | K30: =Inputs!$R$34*E30*Inputs!$R$39 -> 0 | L30: =params!$C$16*Inputs!$R$30*(G30-Inputs!$R$26) -> -19621.52496 | M30: =Inputs!$R$41*Inputs!$R$42/8760 -> 0 | N30: 0 | O30: 243.5669654 | P30: 0.001498730049 | Q30: 0.001363844345 | R30: =-N30/(1.202*2465560*MAX(0,(Inputs!$R$49-Q30))) -> 0 | S30: =params!$C$16*R30*(G30-Inputs!$R$26) -> 0 | T30: -144923.4299 | U30: =E30*params!$C$8 -> 0
A31: 2001-01-02 | B31: 1 | C31: 2 | D31: 06:00:00 | E31: 0 | F31: 4 | G31: -12 | H31: -14 | I31: 83 | J31: =Inputs!$R$38*Inputs!$R$33*(G31-Inputs!$R$26) -> -125301.9049 | K31: =Inputs!$R$34*E31*Inputs!$R$39 -> 0 | L31: =params!$C$16*Inputs!$R$30*(G31-Inputs!$R$26) -> -19621.52496 | M31: =Inputs!$R$41*Inputs!$R$42/8760 -> 0 | N31: 0 | O31: 243.5669654 | P31: 0.001498730049 | Q31: 0.001243945941 | R31: =-N31/(1.202*2465560*MAX(0,(Inputs!$R$49-Q31))) -> 0 | S31: =params!$C$16*R31*(G31-Inputs!$R$26) -> 0 | T31: -144923.4299 | U31: =E31*params!$C$8 -> 0
A32: 2001-01-02 | B32: 1 | C32: 2 | D32: 07:00:00 | E32: 0 | F32: 8 | G32: -13 | H32: -14 | I32: 91 | J32: =Inputs!$R$38*Inputs!$R$33*(G32-Inputs!$R$26) -> -130997.4461 | K32: =Inputs!$R$34*E32*Inputs!$R$39 -> 0 | L32: =params!$C$16*Inputs!$R$30*(G32-Inputs!$R$26) -> -20513.41246 | M32: =Inputs!$R$41*Inputs!$R$42/8760 -> 0 | N32: 0 | O32: 224.6756667 | P32: 0.001382228713 | Q32: 0.001257828129 | R32: =-N32/(1.202*2465560*MAX(0,(Inputs!$R$49-Q32))) -> 0 | S32: =params!$C$16*R32*(G32-Inputs!$R$26) -> 0 | T32: -151510.8585 | U32: =E32*params!$C$8 -> 0
A33: 2001-01-02 | B33: 1 | C33: 2 | D33: 08:00:00 | E33: 0 | F33: 10 | G33: -11 | H33: -15 | I33: 70 | J33: =Inputs!$R$38*Inputs!$R$33*(G33-Inputs!$R$26) -> -119606.3638 | K33: =Inputs!$R$34*E33*Inputs!$R$39 -> 0 | L33: =params!$C$16*Inputs!$R$30*(G33-Inputs!$R$26) -> -18729.63747 | M33: =Inputs!$R$41*Inputs!$R$42/8760 -> 0 | N33: 0 | O33: 263.8639748 | P33: 0.001623948844 | Q33: 0.001136764191 | R33: =-N33/(1.202*2465560*MAX(0,(Inputs!$R$49-Q33))) -> 0 | S33: =params!$C$16*R33*(G33-Inputs!$R$26) -> 0 | T33: -138336.0013 | U33: =E33*params!$C$8 -> 0
A34: 2001-01-02 | B34: 1 | C34: 2 | D34: 09:00:00 | E34: 105 | F34: 10 | G34: -11 | H34: -15 | I34: 70 | J34: =Inputs!$R$38*Inputs!$R$33*(G34-Inputs!$R$26) -> -119606.3638 | K34: =Inputs!$R$34*E34*Inputs!$R$39 -> 61455.42043 | L34: =params!$C$16*Inputs!$R$30*(G34-Inputs!$R$26) -> -18729.63747 | M34: =Inputs!$R$41*Inputs!$R$42/8760 -> 0 | N34: 0 | O34: 263.8639748 | P34: 0.001623948844 | Q34: 0.001136764191 | R34: =-N34/(1.202*2465560*MAX(0,(Inputs!$R$49-Q34))) -> 0 | S34: =params!$C$16*R34*(G34-Inputs!$R$26) -> 0 | T34: -76880.58084 | U34: =E34*params!$C$8 -> 217.5075
A35: 2001-01-02 | B35: 1 | C35: 2 | D35: 10:00:00 | E35: 223 | F35: 10 | G35: -10 | H35: -16 | I35: 58 | J35: =Inputs!$R$38*Inputs!$R$33*(G35-Inputs!$R$26) -> -113910.8227 | K35: =Inputs!$R$34*E35*Inputs!$R$39 -> 130519.6072 | L35: =params!$C$16*Inputs!$R$30*(G35-Inputs!$R$26) -> -17837.74997 | M35: =Inputs!$R$41*Inputs!$R$42/8760 -> 0 | N35: 0 | O35: 285.6569595 | P35: 0.0017584528 | Q35: 0.001019902624 | R35: =-N35/(1.202*2465560*MAX(0,(Inputs!$R$49-Q35))) -> 0 | S35: =params!$C$16*R35*(G35-Inputs!$R$26) -> 0 | T35: -1228.965435 | U35: =E35*params!$C$8 -> 461.9445
A36: 2001-01-02 | B36: 1 | C36: 2 | D36: 11:00:00 | E36: 287 | F36: 8 | G36: -9 | H36: -15 | I36: 58 | J36: =Inputs!$R$38*Inputs!$R$33*(G36-Inputs!$R$26) -> -108215.2815 | K36: =Inputs!$R$34*E36*Inputs!$R$39 -> 167978.1492 | L36: =params!$C$16*Inputs!$R$30*(G36-Inputs!$R$26) -> -16945.86247 | M36: =Inputs!$R$41*Inputs!$R$42/8760 -> 0 | N36: 0 | O36: 309.040986 | P36: 0.001902841039 | Q36: 0.001103647803 | R36: =-N36/(1.202*2465560*MAX(0,(Inputs!$R$49-Q36))) -> 0 | S36: =params!$C$16*R36*(G36-Inputs!$R$26) -> 0 | T36: 42817.00518 | U36: =E36*params!$C$8 -> 594.5205
A37: 2001-01-02 | B37: 1 | C37: 2 | D37: 12:00:00 | E37: 142 | F37: 8 | G37: -9 | H37: -14 | I37: 64 | J37: =Inputs!$R$38*Inputs!$R$33*(G37-Inputs!$R$26) -> -108215.2815 | K37: =Inputs!$R$34*E37*Inputs!$R$39 -> 83111.14001 | L37: =params!$C$16*Inputs!$R$30*(G37-Inputs!$R$26) -> -16945.86247 | M37: =Inputs!$R$41*Inputs!$R$42/8760 -> 0 | N37: 0 | O37: 309.040986 | P37: 0.001902841039 | Q37: 0.001217818265 | R37: =-N37/(1.202*2465560*MAX(0,(Inputs!$R$49-Q37))) -> 0 | S37: =params!$C$16*R37*(G37-Inputs!$R$26) -> 0 | T37: -42050.00399 | U37: =E37*params!$C$8 -> 294.153
A38: 2001-01-02 | B38: 1 | C38: 2 | D38: 13:00:00 | E38: 411 | F38: 3 | G38: -8 | H38: -14 | I38: 58 | J38: =Inputs!$R$38*Inputs!$R$33*(G38-Inputs!$R$26) -> -102519.7404 | K38: =Inputs!$R$34*E38*Inputs!$R$39 -> 240554.0743 | L38: =params!$C$16*Inputs!$R$30*(G38-Inputs!$R$26) -> -16053.97497 | M38: =Inputs!$R$41*Inputs!$R$42/8760 -> 0 | N38: 0 | O38: 334.1161189 | P38: 0.002057745567 | Q38: 0.001193492429 | R38: =-N38/(1.202*2465560*MAX(0,(Inputs!$R$49-Q38))) -> 0 | S38: =params!$C$16*R38*(G38-Inputs!$R$26) -> 0 | T38: 121980.3589 | U38: =E38*params!$C$8 -> 851.3865
A39: 2001-01-02 | B39: 1 | C39: 2 | D39: 14:00:00 | E39: 366 | F39: 3 | G39: -7 | H39: -14 | I39: 54 | J39: =Inputs!$R$38*Inputs!$R$33*(G39-Inputs!$R$26) -> -96824.19927 | K39: =Inputs!$R$34*E39*Inputs!$R$39 -> 214216.0369 | L39: =params!$C$16*Inputs!$R$30*(G39-Inputs!$R$26) -> -15162.08747 | M39: =Inputs!$R$41*Inputs!$R$42/8760 -> 0 | N39: 0 | O39: 360.9876215 | P39: 0.002223832785 | Q39: 0.001200869704 | R39: =-N39/(1.202*2465560*MAX(0,(Inputs!$R$49-Q39))) -> 0 | S39: =params!$C$16*R39*(G39-Inputs!$R$26) -> 0 | T39: 102229.7502 | U39: =E39*params!$C$8 -> 758.169
A40: 2001-01-02 | B40: 1 | C40: 2 | D40: 15:00:00 | E40: 275 | F40: 0 | G40: -6 | H40: -15 | I40: 45 | J40: =Inputs!$R$38*Inputs!$R$33*(G40-Inputs!$R$26) -> -91128.65814 | K40: =Inputs!$R$34*E40*Inputs!$R$39 -> 160954.6726 | L40: =params!$C$16*Inputs!$R$30*(G40-Inputs!$R$26) -> -14270.19997 | M40: =Inputs!$R$41*Inputs!$R$42/8760 -> 0 | N40: 0 | O40: 389.766162 | P40: 0.00240180508 | Q40: 0.001080812286 | R40: =-N40/(1.202*2465560*MAX(0,(Inputs!$R$49-Q40))) -> 0 | S40: =params!$C$16*R40*(G40-Inputs!$R$26) -> 0 | T40: 55555.81445 | U40: =E40*params!$C$8 -> 569.6625
A41: 2001-01-02 | B41: 1 | C41: 2 | D41: 16:00:00 | E41: 145 | F41: 10 | G41: -7 | H41: -16 | I41: 45 | J41: =Inputs!$R$38*Inputs!$R$33*(G41-Inputs!$R$26) -> -96824.19927 | K41: =Inputs!$R$34*E41*Inputs!$R$39 -> 84867.00917 | L41: =params!$C$16*Inputs!$R$30*(G41-Inputs!$R$26) -> -15162.08747 | M41: =Inputs!$R$41*Inputs!$R$42/8760 -> 0 | N41: 0 | O41: 360.9876215 | P41: 0.002223832785 | Q41: 0.001000724753 | R41: =-N41/(1.202*2465560*MAX(0,(Inputs!$R$49-Q41))) -> 0 | S41: =params!$C$16*R41*(G41-Inputs!$R$26) -> 0 | T41: -27119.27757 | U41: =E41*params!$C$8 -> 300.3675
A42: 2001-01-02 | B42: 1 | C42: 2 | D42: 17:00:00 | E42: 15 | F42: 10 | G42: -7 | H42: -15 | I42: 49 | J42: =Inputs!$R$38*Inputs!$R$33*(G42-Inputs!$R$26) -> -96824.19927 | K42: =Inputs!$R$34*E42*Inputs!$R$39 -> 8779.345776 | L42: =params!$C$16*Inputs!$R$30*(G42-Inputs!$R$26) -> -15162.08747 | M42: =Inputs!$R$41*Inputs!$R$42/8760 -> 0 | N42: 0 | O42: 360.9876215 | P42: 0.002223832785 | Q42: 0.001089678065 | R42: =-N42/(1.202*2465560*MAX(0,(Inputs!$R$49-Q42))) -> 0 | S42: =params!$C$16*R42*(G42-Inputs!$R$26) -> 0 | T42: -103206.941 | U42: =E42*params!$C$8 -> 31.0725
A43: 2001-01-02 | B43: 1 | C43: 2 | D43: 18:00:00 | E43: 0 | F43: 10 | G43: -8 | H43: -14 | I43: 58 | J43: =Inputs!$R$38*Inputs!$R$33*(G43-Inputs!$R$26) -> -102519.7404 | K43: =Inputs!$R$34*E43*Inputs!$R$39 -> 0 | L43: =params!$C$16*Inputs!$R$30*(G43-Inputs!$R$26) -> -16053.97497 | M43: =Inputs!$R$41*Inputs!$R$42/8760 -> 0 | N43: 0 | O43: 334.1161189 | P43: 0.002057745567 | Q43: 0.001193492429 | R43: =-N43/(1.202*2465560*MAX(0,(Inputs!$R$49-Q43))) -> 0 | S43: =params!$C$16*R43*(G43-Inputs!$R$26) -> 0 | T43: -118573.7154 | U43: =E43*params!$C$8 -> 0
A44: 2001-01-02 | B44: 1 | C44: 2 | D44: 19:00:00 | E44: 0 | F44: 10 | G44: -10 | H44: -14 | I44: 70 | J44: =Inputs!$R$38*Inputs!$R$33*(G44-Inputs!$R$26) -> -113910.8227 | K44: =Inputs!$R$34*E44*Inputs!$R$39 -> 0 | L44: =params!$C$16*Inputs!$R$30*(G44-Inputs!$R$26) -> -17837.74997 | M44: =Inputs!$R$41*Inputs!$R$42/8760 -> 0 | N44: 0 | O44: 285.6569595 | P44: 0.0017584528 | Q44: 0.00123091696 | R44: =-N44/(1.202*2465560*MAX(0,(Inputs!$R$49-Q44))) -> 0 | S44: =params!$C$16*R44*(G44-Inputs!$R$26) -> 0 | T44: -131748.5726 | U44: =E44*params!$C$8 -> 0
A45: 2001-01-02 | B45: 1 | C45: 2 | D45: 20:00:00 | E45: 0 | F45: 10 | G45: -9 | H45: -13 | I45: 70 | J45: =Inputs!$R$38*Inputs!$R$33*(G45-Inputs!$R$26) -> -108215.2815 | K45: =Inputs!$R$34*E45*Inputs!$R$39 -> 0 | L45: =params!$C$16*Inputs!$R$30*(G45-Inputs!$R$26) -> -16945.86247 | M45: =Inputs!$R$41*Inputs!$R$42/8760 -> 0 | N45: 0 | O45: 309.040986 | P45: 0.001902841039 | Q45: 0.001331988728 | R45: =-N45/(1.202*2465560*MAX(0,(Inputs!$R$49-Q45))) -> 0 | S45: =params!$C$16*R45*(G45-Inputs!$R$26) -> 0 | T45: -125161.144 | U45: =E45*params!$C$8 -> 0
A46: 2001-01-02 | B46: 1 | C46: 2 | D46: 21:00:00 | E46: 0 | F46: 10 | G46: -8 | H46: -13 | I46: 64 | J46: =Inputs!$R$38*Inputs!$R$33*(G46-Inputs!$R$26) -> -102519.7404 | K46: =Inputs!$R$34*E46*Inputs!$R$39 -> 0 | L46: =params!$C$16*Inputs!$R$30*(G46-Inputs!$R$26) -> -16053.97497 | M46: =Inputs!$R$41*Inputs!$R$42/8760 -> 0 | N46: 0 | O46: 334.1161189 | P46: 0.002057745567 | Q46: 0.001316957163 | R46: =-N46/(1.202*2465560*MAX(0,(Inputs!$R$49-Q46))) -> 0 | S46: =params!$C$16*R46*(G46-Inputs!$R$26) -> 0 | T46: -118573.7154 | U46: =E46*params!$C$8 -> 0
A47: 2001-01-02 | B47: 1 | C47: 2 | D47: 22:00:00 | E47: 0 | F47: 10 | G47: -8 | H47: -11 | I47: 77 | J47: =Inputs!$R$38*Inputs!$R$33*(G47-Inputs!$R$26) -> -102519.7404 | K47: =Inputs!$R$34*E47*Inputs!$R$39 -> 0 | L47: =params!$C$16*Inputs!$R$30*(G47-Inputs!$R$26) -> -16053.97497 | M47: =Inputs!$R$41*Inputs!$R$42/8760 -> 0 | N47: 0 | O47: 334.1161189 | P47: 0.002057745567 | Q47: 0.001584464087 | R47: =-N47/(1.202*2465560*MAX(0,(Inputs!$R$49-Q47))) -> 0 | S47: =params!$C$16*R47*(G47-Inputs!$R$26) -> 0 | T47: -118573.7154 | U47: =E47*params!$C$8 -> 0
A48: 2001-01-02 | B48: 1 | C48: 2 | D48: 23:00:00 | E48: 0 | F48: 10 | G48: -8 | H48: -11 | I48: 77 | J48: =Inputs!$R$38*Inputs!$R$33*(G48-Inputs!$R$26) -> -102519.7404 | K48: =Inputs!$R$34*E48*Inputs!$R$39 -> 0 | L48: =params!$C$16*Inputs!$R$30*(G48-Inputs!$R$26) -> -16053.97497 | M48: =Inputs!$R$41*Inputs!$R$42/8760 -> 0 | N48: 0 | O48: 334.1161189 | P48: 0.002057745567 | Q48: 0.001584464087 | R48: =-N48/(1.202*2465560*MAX(0,(Inputs!$R$49-Q48))) -> 0 | S48: =params!$C$16*R48*(G48-Inputs!$R$26) -> 0 | T48: -118573.7154 | U48: =E48*params!$C$8 -> 0
A49: 2001-01-02 | B49: 1 | C49: 2 | D49: 1 | E49: 0 | F49: 10 | G49: -7 | H49: -9 | I49: 84 | J49: =Inputs!$R$38*Inputs!$R$33*(G49-Inputs!$R$26) -> -96824.19927 | K49: =Inputs!$R$34*E49*Inputs!$R$39 -> 0 | L49: =params!$C$16*Inputs!$R$30*(G49-Inputs!$R$26) -> -15162.08747 | M49: =Inputs!$R$41*Inputs!$R$42/8760 -> 0 | N49: 0 | O49: 360.9876215 | P49: 0.002223832785 | Q49: 0.001868019539 | R49: =-N49/(1.202*2465560*MAX(0,(Inputs!$R$49-Q49))) -> 0 | S49: =params!$C$16*R49*(G49-Inputs!$R$26) -> 0 | T49: -111986.2867 | U49: =E49*params!$C$8 -> 0
A50: 2001-01-03 | B50: 1 | C50: 3 | D50: 01:00:00 | E50: 0 | F50: 10 | G50: -6 | H50: -10 | I50: 70 | J50: =Inputs!$R$38*Inputs!$R$33*(G50-Inputs!$R$26) -> -91128.65814 | K50: =Inputs!$R$34*E50*Inputs!$R$39 -> 0 | L50: =params!$C$16*Inputs!$R$30*(G50-Inputs!$R$26) -> -14270.19997 | M50: =Inputs!$R$41*Inputs!$R$42/8760 -> 0 | N50: 0 | O50: 389.766162 | P50: 0.00240180508 | Q50: 0.001681263556 | R50: =-N50/(1.202*2465560*MAX(0,(Inputs!$R$49-Q50))) -> 0 | S50: =params!$C$16*R50*(G50-Inputs!$R$26) -> 0 | T50: -105398.8581 | U50: =E50*params!$C$8 -> 0
A51: 2001-01-03 | B51: 1 | C51: 3 | D51: 02:00:00 | E51: 0 | F51: 10 | G51: -5 | H51: -9 | I51: 71 | J51: =Inputs!$R$38*Inputs!$R$33*(G51-Inputs!$R$26) -> -85433.117 | K51: =Inputs!$R$34*E51*Inputs!$R$39 -> 0 | L51: =params!$C$16*Inputs!$R$30*(G51-Inputs!$R$26) -> -13378.31248 | M51: =Inputs!$R$41*Inputs!$R$42/8760 -> 0 | N51: 0 | O51: 420.5680235 | P51: 0.002592402475 | Q51: 0.001840605757 | R51: =-N51/(1.202*2465560*MAX(0,(Inputs!$R$49-Q51))) -> 0 | S51: =params!$C$16*R51*(G51-Inputs!$R$26) -> 0 | T51: -98811.42948 | U51: =E51*params!$C$8 -> 0
A52: 2001-01-03 | B52: 1 | C52: 3 | D52: 03:00:00 | E52: 0 | F52: 10 | G52: -6 | H52: -9 | I52: 77 | J52: =Inputs!$R$38*Inputs!$R$33*(G52-Inputs!$R$26) -> -91128.65814 | K52: =Inputs!$R$34*E52*Inputs!$R$39 -> 0 | L52: =params!$C$16*Inputs!$R$30*(G52-Inputs!$R$26) -> -14270.19997 | M52: =Inputs!$R$41*Inputs!$R$42/8760 -> 0 | N52: 0 | O52: 389.766162 | P52: 0.00240180508 | Q52: 0.001849389912 | R52: =-N52/(1.202*2465560*MAX(0,(Inputs!$R$49-Q52))) -> 0 | S52: =params!$C$16*R52*(G52-Inputs!$R$26) -> 0 | T52: -105398.8581 | U52: =E52*params!$C$8 -> 0
A53: 2001-01-03 | B53: 1 | C53: 3 | D53: 04:00:00 | E53: 0 | F53: 10 | G53: -6 | H53: -9 | I53: 77 | J53: =Inputs!$R$38*Inputs!$R$33*(G53-Inputs!$R$26) -> -91128.65814 | K53: =Inputs!$R$34*E53*Inputs!$R$39 -> 0 | L53: =params!$C$16*Inputs!$R$30*(G53-Inputs!$R$26) -> -14270.19997 | M53: =Inputs!$R$41*Inputs!$R$42/8760 -> 0 | N53: 0 | O53: 389.766162 | P53: 0.00240180508 | Q53: 0.001849389912 | R53: =-N53/(1.202*2465560*MAX(0,(Inputs!$R$49-Q53))) -> 0 | S53: =params!$C$16*R53*(G53-Inputs!$R$26) -> 0 | T53: -105398.8581 | U53: =E53*params!$C$8 -> 0
A54: 2001-01-03 | B54: 1 | C54: 3 | D54: 05:00:00 | E54: 0 | F54: 8 | G54: -6 | H54: -10 | I54: 70 | J54: =Inputs!$R$38*Inputs!$R$33*(G54-Inputs!$R$26) -> -91128.65814 | K54: =Inputs!$R$34*E54*Inputs!$R$39 -> 0 | L54: =params!$C$16*Inputs!$R$30*(G54-Inputs!$R$26) -> -14270.19997 | M54: =Inputs!$R$41*Inputs!$R$42/8760 -> 0 | N54: 0 | O54: 389.766162 | P54: 0.00240180508 | Q54: 0.001681263556 | R54: =-N54/(1.202*2465560*MAX(0,(Inputs!$R$49-Q54))) -> 0 | S54: =params!$C$16*R54*(G54-Inputs!$R$26) -> 0 | T54: -105398.8581 | U54: =E54*params!$C$8 -> 0
A55: 2001-01-03 | B55: 1 | C55: 3 | D55: 06:00:00 | E55: 0 | F55: 3 | G55: -7 | H55: -11 | I55: 70 | J55: =Inputs!$R$38*Inputs!$R$33*(G55-Inputs!$R$26) -> -96824.19927 | K55: =Inputs!$R$34*E55*Inputs!$R$39 -> 0 | L55: =params!$C$16*Inputs!$R$30*(G55-Inputs!$R$26) -> -15162.08747 | M55: =Inputs!$R$41*Inputs!$R$42/8760 -> 0 | N55: 0 | O55: 360.9876215 | P55: 0.002223832785 | Q55: 0.00155668295 | R55: =-N55/(1.202*2465560*MAX(0,(Inputs!$R$49-Q55))) -> 0 | S55: =params!$C$16*R55*(G55-Inputs!$R$26) -> 0 | T55: -111986.2867 | U55: =E55*params!$C$8 -> 0
A56: 2001-01-03 | B56: 1 | C56: 3 | D56: 07:00:00 | E56: 0 | F56: 3 | G56: -8 | H56: -12 | I56: 70 | J56: =Inputs!$R$38*Inputs!$R$33*(G56-Inputs!$R$26) -> -102519.7404 | K56: =Inputs!$R$34*E56*Inputs!$R$39 -> 0 | L56: =params!$C$16*Inputs!$R$30*(G56-Inputs!$R$26) -> -16053.97497 | M56: =Inputs!$R$41*Inputs!$R$42/8760 -> 0 | N56: 0 | O56: 334.1161189 | P56: 0.002057745567 | Q56: 0.001440421897 | R56: =-N56/(1.202*2465560*MAX(0,(Inputs!$R$49-Q56))) -> 0 | S56: =params!$C$16*R56*(G56-Inputs!$R$26) -> 0 | T56: -118573.7154 | U56: =E56*params!$C$8 -> 0
A57: 2001-01-03 | B57: 1 | C57: 3 | D57: 08:00:00 | E57: 0 | F57: 0 | G57: -8 | H57: -12 | I57: 70 | J57: =Inputs!$R$38*Inputs!$R$33*(G57-Inputs!$R$26) -> -102519.7404 | K57: =Inputs!$R$34*E57*Inputs!$R$39 -> 0 | L57: =params!$C$16*Inputs!$R$30*(G57-Inputs!$R$26) -> -16053.97497 | M57: =Inputs!$R$41*Inputs!$R$42/8760 -> 0 | N57: 0 | O57: 334.1161189 | P57: 0.002057745567 | Q57: 0.001440421897 | R57: =-N57/(1.202*2465560*MAX(0,(Inputs!$R$49-Q57))) -> 0 | S57: =params!$C$16*R57*(G57-Inputs!$R$26) -> 0 | T57: -118573.7154 | U57: =E57*params!$C$8 -> 0
A58: 2001-01-03 | B58: 1 | C58: 3 | D58: 09:00:00 | E58: 105 | F58: 0 | G58: -7 | H58: -11 | I58: 70 | J58: =Inputs!$R$38*Inputs!$R$33*(G58-Inputs!$R$26) -> -96824.19927 | K58: =Inputs!$R$34*E58*Inputs!$R$39 -> 61455.42043 | L58: =params!$C$16*Inputs!$R$30*(G58-Inputs!$R$26) -> -15162.08747 | M58: =Inputs!$R$41*Inputs!$R$42/8760 -> 0 | N58: 0 | O58: 360.9876215 | P58: 0.002223832785 | Q58: 0.00155668295 | R58: =-N58/(1.202*2465560*MAX(0,(Inputs!$R$49-Q58))) -> 0 | S58: =params!$C$16*R58*(G58-Inputs!$R$26) -> 0 | T58: -50530.86631 | U58: =E58*params!$C$8 -> 217.5075
A59: 2001-01-03 | B59: 1 | C59: 3 | D59: 10:00:00 | E59: 237 | F59: 0 | G59: -6 | H59: -11 | I59: 64 | J59: =Inputs!$R$38*Inputs!$R$33*(G59-Inputs!$R$26) -> -91128.65814 | K59: =Inputs!$R$34*E59*Inputs!$R$39 -> 138713.6633 | L59: =params!$C$16*Inputs!$R$30*(G59-Inputs!$R$26) -> -14270.19997 | M59: =Inputs!$R$41*Inputs!$R$42/8760 -> 0 | N59: 0 | O59: 389.766162 | P59: 0.00240180508 | Q59: 0.001537155251 | R59: =-N59/(1.202*2465560*MAX(0,(Inputs!$R$49-Q59))) -> 0 | S59: =params!$C$16*R59*(G59-Inputs!$R$26) -> 0 | T59: 33314.80515 | U59: =E59*params!$C$8 -> 490.9455
A60: 2001-01-03 | B60: 1 | C60: 3 | D60: 11:00:00 | E60: 345 | F60: 1 | G60: -5 | H60: -11 | I60: 59 | J60: =Inputs!$R$38*Inputs!$R$33*(G60-Inputs!$R$26) -> -85433.117 | K60: =Inputs!$R$34*E60*Inputs!$R$39 -> 201924.9529 | L60: =params!$C$16*Inputs!$R$30*(G60-Inputs!$R$26) -> -13378.31248 | M60: =Inputs!$R$41*Inputs!$R$42/8760 -> 0 | N60: 0 | O60: 420.5680235 | P60: 0.002592402475 | Q60: 0.00152951746 | R60: =-N60/(1.202*2465560*MAX(0,(Inputs!$R$49-Q60))) -> 0 | S60: =params!$C$16*R60*(G60-Inputs!$R$26) -> 0 | T60: 103113.5234 | U60: =E60*params!$C$8 -> 714.6675
A61: 2001-01-03 | B61: 1 | C61: 3 | D61: 12:00:00 | E61: 403 | F61: 1 | G61: -4 | H61: -11 | I61: 54 | J61: =Inputs!$R$38*Inputs!$R$33*(G61-Inputs!$R$26) -> -79737.57587 | K61: =Inputs!$R$34*E61*Inputs!$R$39 -> 235871.7565 | L61: =params!$C$16*Inputs!$R$30*(G61-Inputs!$R$26) -> -12486.42498 | M61: =Inputs!$R$41*Inputs!$R$42/8760 -> 0 | N61: 0 | O61: 453.5153204 | P61: 0.002796404355 | Q61: 0.001510058351 | R61: =-N61/(1.202*2465560*MAX(0,(Inputs!$R$49-Q61))) -> 0 | S61: =params!$C$16*R61*(G61-Inputs!$R$26) -> 0 | T61: 143647.7557 | U61: =E61*params!$C$8 -> 834.8145
A62: 2001-01-03 | B62: 1 | C62: 3 | D62: 13:00:00 | E62: 417 | F62: 1 | G62: -3 | H62: -11 | I62: 50 | J62: =Inputs!$R$38*Inputs!$R$33*(G62-Inputs!$R$26) -> -74042.03474 | K62: =Inputs!$R$34*E62*Inputs!$R$39 -> 244065.8126 | L62: =params!$C$16*Inputs!$R$30*(G62-Inputs!$R$26) -> -11594.53748 | M62: =Inputs!$R$41*Inputs!$R$42/8760 -> 0 | N62: 0 | O62: 488.7362191 | P62: 0.003014631266 | Q62: 0.001507315633 | R62: =-N62/(1.202*2465560*MAX(0,(Inputs!$R$49-Q62))) -> 0 | S62: =params!$C$16*R62*(G62-Inputs!$R$26) -> 0 | T62: 158429.2404 | U62: =E62*params!$C$8 -> 863.8155
A63: 2001-01-03 | B63: 1 | C63: 3 | D63: 14:00:00 | E63: 372 | F63: 0 | G63: -2 | H63: -11 | I63: 46 | J63: =Inputs!$R$38*Inputs!$R$33*(G63-Inputs!$R$26) -> -68346.4936 | K63: =Inputs!$R$34*E63*Inputs!$R$39 -> 217727.7752 | L63: =params!$C$16*Inputs!$R$30*(G63-Inputs!$R$26) -> -10702.64998 | M63: =Inputs!$R$41*Inputs!$R$42/8760 -> 0 | N63: 0 | O63: 526.3651631 | P63: 0.003247946807 | Q63: 0.001494055531 | R63: =-N63/(1.202*2465560*MAX(0,(Inputs!$R$49-Q63))) -> 0 | S63: =params!$C$16*R63*(G63-Inputs!$R$26) -> 0 | T63: 138678.6317 | U63: =E63*params!$C$8 -> 770.598
A64: 2001-01-03 | B64: 1 | C64: 3 | D64: 15:00:00 | E64: 275 | F64: 0 | G64: -2 | H64: -11 | I64: 46 | J64: =Inputs!$R$38*Inputs!$R$33*(G64-Inputs!$R$26) -> -68346.4936 | K64: =Inputs!$R$34*E64*Inputs!$R$39 -> 160954.6726 | L64: =params!$C$16*Inputs!$R$30*(G64-Inputs!$R$26) -> -10702.64998 | M64: =Inputs!$R$41*Inputs!$R$42/8760 -> 0 | N64: 0 | O64: 526.3651631 | P64: 0.003247946807 | Q64: 0.001494055531 | R64: =-N64/(1.202*2465560*MAX(0,(Inputs!$R$49-Q64))) -> 0 | S64: =params!$C$16*R64*(G64-Inputs!$R$26) -> 0 | T64: 81905.52898 | U64: =E64*params!$C$8 -> 569.6625
A65: 2001-01-03 | B65: 1 | C65: 3 | D65: 16:00:00 | E65: 145 | F65: 0 | G65: -2 | H65: -12 | I65: 42 | J65: =Inputs!$R$38*Inputs!$R$33*(G65-Inputs!$R$26) -> -68346.4936 | K65: =Inputs!$R$34*E65*Inputs!$R$39 -> 84867.00917 | L65: =params!$C$16*Inputs!$R$30*(G65-Inputs!$R$26) -> -10702.64998 | M65: =Inputs!$R$41*Inputs!$R$42/8760 -> 0 | N65: 0 | O65: 526.3651631 | P65: 0.003247946807 | Q65: 0.001364137659 | R65: =-N65/(1.202*2465560*MAX(0,(Inputs!$R$49-Q65))) -> 0 | S65: =params!$C$16*R65*(G65-Inputs!$R$26) -> 0 | T65: 5817.865585 | U65: =E65*params!$C$8 -> 300.3675
A66: 2001-01-03 | B66: 1 | C66: 3 | D66: 17:00:00 | E66: 18 | F66: 4 | G66: -3 | H66: -12 | I66: 46 | J66: =Inputs!$R$38*Inputs!$R$33*(G66-Inputs!$R$26) -> -74042.03474 | K66: =Inputs!$R$34*E66*Inputs!$R$39 -> 10535.21493 | L66: =params!$C$16*Inputs!$R$30*(G66-Inputs!$R$26) -> -11594.53748 | M66: =Inputs!$R$41*Inputs!$R$42/8760 -> 0 | N66: 0 | O66: 488.7362191 | P66: 0.003014631266 | Q66: 0.001386730382 | R66: =-N66/(1.202*2465560*MAX(0,(Inputs!$R$49-Q66))) -> 0 | S66: =params!$C$16*R66*(G66-Inputs!$R$26) -> 0 | T66: -75101.35728 | U66: =E66*params!$C$8 -> 37.287
A67: 2001-01-03 | B67: =MONTH(A67) -> 1 | C67: =DAY(A67) -> 3 | D67: 18:00:00 | E67: 0 | F67: 10 | G67: -3 | H67: -12 | I67: 46 | J67: =Inputs!$R$38*Inputs!$R$33*(G67-Inputs!$R$26) -> -74042.03474 | K67: =Inputs!$R$34*E67*Inputs!$R$39 -> 0 | L67: =params!$C$16*Inputs!$R$30*(G67-Inputs!$R$26) -> -11594.53748 | M67: =Inputs!$R$41*Inputs!$R$42/8760 -> 0 | N67: 0 | O67: =EXP(77.345+0.0057*(G67+273.15)-7235/(G67+273.15))/(G67+273.15)^8.2 -> 488.7362191 | P67: =0.62198*O67/(101325-O67) -> 0.003014631266 | Q67: =P67*I67/100 -> 0.001386730382 | R67: =-N67/(1.202*2465560*MAX(0,(Inputs!$R$49-Q67))) -> 0 | S67: =params!$C$16*R67*(G67-Inputs!$R$26) -> 0 | T67: =J67+K67+L67+M67+N67+S67 -> -85636.57222 | U67: =E67*params!$C$8 -> 0
A68: 2001-01-03 | B68: 1 | C68: 3 | D68: 19:00:00 | E68: 0 | F68: 10 | G68: -3 | H68: -12 | I68: 46 | J68: =Inputs!$R$38*Inputs!$R$33*(G68-Inputs!$R$26) -> -74042.03474 | K68: =Inputs!$R$34*E68*Inputs!$R$39 -> 0 | L68: =params!$C$16*Inputs!$R$30*(G68-Inputs!$R$26) -> -11594.53748 | M68: =Inputs!$R$41*Inputs!$R$42/8760 -> 0 | N68: 0 | O68: 488.7362191 | P68: 0.003014631266 | Q68: 0.001386730382 | R68: =-N68/(1.202*2465560*MAX(0,(Inputs!$R$49-Q68))) -> 0 | S68: =params!$C$16*R68*(G68-Inputs!$R$26) -> 0 | T68: -85636.57222 | U68: =E68*params!$C$8 -> 0
A69: 2001-01-03 | B69: 1 | C69: 3 | D69: 20:00:00 | E69: 0 | F69: 10 | G69: -4 | H69: -12 | I69: 50 | J69: =Inputs!$R$38*Inputs!$R$33*(G69-Inputs!$R$26) -> -79737.57587 | K69: =Inputs!$R$34*E69*Inputs!$R$39 -> 0 | L69: =params!$C$16*Inputs!$R$30*(G69-Inputs!$R$26) -> -12486.42498 | M69: =Inputs!$R$41*Inputs!$R$42/8760 -> 0 | N69: 0 | O69: 453.5153204 | P69: 0.002796404355 | Q69: 0.001398202177 | R69: =-N69/(1.202*2465560*MAX(0,(Inputs!$R$49-Q69))) -> 0 | S69: =params!$C$16*R69*(G69-Inputs!$R$26) -> 0 | T69: -92224.00085 | U69: =E69*params!$C$8 -> 0
A70: 2001-01-03 | B70: 1 | C70: 3 | D70: 21:00:00 | E70: 0 | F70: 10 | G70: -4 | H70: -12 | I70: 50 | J70: =Inputs!$R$38*Inputs!$R$33*(G70-Inputs!$R$26) -> -79737.57587 | K70: =Inputs!$R$34*E70*Inputs!$R$39 -> 0 | L70: =params!$C$16*Inputs!$R$30*(G70-Inputs!$R$26) -> -12486.42498 | M70: =Inputs!$R$41*Inputs!$R$42/8760 -> 0 | N70: 0 | O70: 453.5153204 | P70: 0.002796404355 | Q70: 0.001398202177 | R70: =-N70/(1.202*2465560*MAX(0,(Inputs!$R$49-Q70))) -> 0 | S70: =params!$C$16*R70*(G70-Inputs!$R$26) -> 0 | T70: -92224.00085 | U70: =E70*params!$C$8 -> 0
A71: 2001-01-03 | B71: 1 | C71: 3 | D71: 22:00:00 | E71: 0 | F71: 10 | G71: -4 | H71: -11 | I71: 54 | J71: =Inputs!$R$38*Inputs!$R$33*(G71-Inputs!$R$26) -> -79737.57587 | K71: =Inputs!$R$34*E71*Inputs!$R$39 -> 0 | L71: =params!$C$16*Inputs!$R$30*(G71-Inputs!$R$26) -> -12486.42498 | M71: =Inputs!$R$41*Inputs!$R$42/8760 -> 0 | N71: 0 | O71: 453.5153204 | P71: 0.002796404355 | Q71: 0.001510058351 | R71: =-N71/(1.202*2465560*MAX(0,(Inputs!$R$49-Q71))) -> 0 | S71: =params!$C$16*R71*(G71-Inputs!$R$26) -> 0 | T71: -92224.00085 | U71: =E71*params!$C$8 -> 0
A72: 2001-01-03 | B72: 1 | C72: 3 | D72: 23:00:00 | E72: 0 | F72: 10 | G72: -4 | H72: -11 | I72: 54 | J72: =Inputs!$R$38*Inputs!$R$33*(G72-Inputs!$R$26) -> -79737.57587 | K72: =Inputs!$R$34*E72*Inputs!$R$39 -> 0 | L72: =params!$C$16*Inputs!$R$30*(G72-Inputs!$R$26) -> -12486.42498 | M72: =Inputs!$R$41*Inputs!$R$42/8760 -> 0 | N72: 0 | O72: 453.5153204 | P72: 0.002796404355 | Q72: 0.001510058351 | R72: =-N72/(1.202*2465560*MAX(0,(Inputs!$R$49-Q72))) -> 0 | S72: =params!$C$16*R72*(G72-Inputs!$R$26) -> 0 | T72: -92224.00085 | U72: =E72*params!$C$8 -> 0
A73: 2001-01-03 | B73: 1 | C73: 3 | D73: 1 | E73: 0 | F73: 10 | G73: -5 | H73: -10 | I73: 65 | J73: =Inputs!$R$38*Inputs!$R$33*(G73-Inputs!$R$26) -> -85433.117 | K73: =Inputs!$R$34*E73*Inputs!$R$39 -> 0 | L73: =params!$C$16*Inputs!$R$30*(G73-Inputs!$R$26) -> -13378.31248 | M73: =Inputs!$R$41*Inputs!$R$42/8760 -> 0 | N73: 0 | O73: 420.5680235 | P73: 0.002592402475 | Q73: 0.001685061609 | R73: =-N73/(1.202*2465560*MAX(0,(Inputs!$R$49-Q73))) -> 0 | S73: =params!$C$16*R73*(G73-Inputs!$R$26) -> 0 | T73: -98811.42948 | U73: =E73*params!$C$8 -> 0
A74: 2001-01-04 | B74: 1 | C74: 4 | D74: 01:00:00 | E74: 0 | F74: 10 | G74: -5 | H74: -9 | I74: 71 | J74: =Inputs!$R$38*Inputs!$R$33*(G74-Inputs!$R$26) -> -85433.117 | K74: =Inputs!$R$34*E74*Inputs!$R$39 -> 0 | L74: =params!$C$16*Inputs!$R$30*(G74-Inputs!$R$26) -> -13378.31248 | M74: =Inputs!$R$41*Inputs!$R$42/8760 -> 0 | N74: 0 | O74: 420.5680235 | P74: 0.002592402475 | Q74: 0.001840605757 | R74: =-N74/(1.202*2465560*MAX(0,(Inputs!$R$49-Q74))) -> 0 | S74: =params!$C$16*R74*(G74-Inputs!$R$26) -> 0 | T74: -98811.42948 | U74: =E74*params!$C$8 -> 0
A75: 2001-01-04 | B75: 1 | C75: 4 | D75: 02:00:00 | E75: 0 | F75: 10 | G75: -5 | H75: -9 | I75: 71 | J75: =Inputs!$R$38*Inputs!$R$33*(G75-Inputs!$R$26) -> -85433.117 | K75: =Inputs!$R$34*E75*Inputs!$R$39 -> 0 | L75: =params!$C$16*Inputs!$R$30*(G75-Inputs!$R$26) -> -13378.31248 | M75: =Inputs!$R$41*Inputs!$R$42/8760 -> 0 | N75: 0 | O75: 420.5680235 | P75: 0.002592402475 | Q75: 0.001840605757 | R75: =-N75/(1.202*2465560*MAX(0,(Inputs!$R$49-Q75))) -> 0 | S75: =params!$C$16*R75*(G75-Inputs!$R$26) -> 0 | T75: -98811.42948 | U75: =E75*params!$C$8 -> 0
A76: 2001-01-04 | B76: 1 | C76: 4 | D76: 03:00:00 | E76: 0 | F76: 10 | G76: -4 | H76: -9 | I76: 65 | J76: =Inputs!$R$38*Inputs!$R$33*(G76-Inputs!$R$26) -> -79737.57587 | K76: =Inputs!$R$34*E76*Inputs!$R$39 -> 0 | L76: =params!$C$16*Inputs!$R$30*(G76-Inputs!$R$26) -> -12486.42498 | M76: =Inputs!$R$41*Inputs!$R$42/8760 -> 0 | N76: 0 | O76: 453.5153204 | P76: 0.002796404355 | Q76: 0.00181766283 | R76: =-N76/(1.202*2465560*MAX(0,(Inputs!$R$49-Q76))) -> 0 | S76: =params!$C$16*R76*(G76-Inputs!$R$26) -> 0 | T76: -92224.00085 | U76: =E76*params!$C$8 -> 0
A77: 2001-01-04 | B77: 1 | C77: 4 | D77: 04:00:00 | E77: 0 | F77: 10 | G77: -4 | H77: -9 | I77: 65 | J77: =Inputs!$R$38*Inputs!$R$33*(G77-Inputs!$R$26) -> -79737.57587 | K77: =Inputs!$R$34*E77*Inputs!$R$39 -> 0 | L77: =params!$C$16*Inputs!$R$30*(G77-Inputs!$R$26) -> -12486.42498 | M77: =Inputs!$R$41*Inputs!$R$42/8760 -> 0 | N77: 0 | O77: 453.5153204 | P77: 0.002796404355 | Q77: 0.00181766283 | R77: =-N77/(1.202*2465560*MAX(0,(Inputs!$R$49-Q77))) -> 0 | S77: =params!$C$16*R77*(G77-Inputs!$R$26) -> 0 | T77: -92224.00085 | U77: =E77*params!$C$8 -> 0
A78: 2001-01-04 | B78: 1 | C78: 4 | D78: 05:00:00 | E78: 0 | F78: 10 | G78: -4 | H78: -8 | I78: 71 | J78: =Inputs!$R$38*Inputs!$R$33*(G78-Inputs!$R$26) -> -79737.57587 | K78: =Inputs!$R$34*E78*Inputs!$R$39 -> 0 | L78: =params!$C$16*Inputs!$R$30*(G78-Inputs!$R$26) -> -12486.42498 | M78: =Inputs!$R$41*Inputs!$R$42/8760 -> 0 | N78: 0 | O78: 453.5153204 | P78: 0.002796404355 | Q78: 0.001985447092 | R78: =-N78/(1.202*2465560*MAX(0,(Inputs!$R$49-Q78))) -> 0 | S78: =params!$C$16*R78*(G78-Inputs!$R$26) -> 0 | T78: -92224.00085 | U78: =E78*params!$C$8 -> 0
A79: 2001-01-04 | B79: 1 | C79: 4 | D79: 06:00:00 | E79: 0 | F79: 10 | G79: -4 | H79: -8 | I79: 71 | J79: =Inputs!$R$38*Inputs!$R$33*(G79-Inputs!$R$26) -> -79737.57587 | K79: =Inputs!$R$34*E79*Inputs!$R$39 -> 0 | L79: =params!$C$16*Inputs!$R$30*(G79-Inputs!$R$26) -> -12486.42498 | M79: =Inputs!$R$41*Inputs!$R$42/8760 -> 0 | N79: 0 | O79: 453.5153204 | P79: 0.002796404355 | Q79: 0.001985447092 | R79: =-N79/(1.202*2465560*MAX(0,(Inputs!$R$49-Q79))) -> 0 | S79: =params!$C$16*R79*(G79-Inputs!$R$26) -> 0 | T79: -92224.00085 | U79: =E79*params!$C$8 -> 0
A80: 2001-01-04 | B80: 1 | C80: 4 | D80: 07:00:00 | E80: 0 | F80: 10 | G80: -4 | H80: -8 | I80: 71 | J80: =Inputs!$R$38*Inputs!$R$33*(G80-Inputs!$R$26) -> -79737.57587 | K80: =Inputs!$R$34*E80*Inputs!$R$39 -> 0 | L80: =params!$C$16*Inputs!$R$30*(G80-Inputs!$R$26) -> -12486.42498 | M80: =Inputs!$R$41*Inputs!$R$42/8760 -> 0 | N80: 0 | O80: 453.5153204 | P80: 0.002796404355 | Q80: 0.001985447092 | R80: =-N80/(1.202*2465560*MAX(0,(Inputs!$R$49-Q80))) -> 0 | S80: =params!$C$16*R80*(G80-Inputs!$R$26) -> 0 | T80: -92224.00085 | U80: =E80*params!$C$8 -> 0
A81: 2001-01-04 | B81: 1 | C81: 4 | D81: 08:00:00 | E81: 0 | F81: 10 | G81: -4 | H81: -8 | I81: 71 | J81: =Inputs!$R$38*Inputs!$R$33*(G81-Inputs!$R$26) -> -79737.57587 | K81: =Inputs!$R$34*E81*Inputs!$R$39 -> 0 | L81: =params!$C$16*Inputs!$R$30*(G81-Inputs!$R$26) -> -12486.42498 | M81: =Inputs!$R$41*Inputs!$R$42/8760 -> 0 | N81: 0 | O81: 453.5153204 | P81: 0.002796404355 | Q81: 0.001985447092 | R81: =-N81/(1.202*2465560*MAX(0,(Inputs!$R$49-Q81))) -> 0 | S81: =params!$C$16*R81*(G81-Inputs!$R$26) -> 0 | T81: -92224.00085 | U81: =E81*params!$C$8 -> 0
A82: 2001-01-04 | B82: 1 | C82: 4 | D82: 09:00:00 | E82: 95 | F82: 10 | G82: -4 | H82: -8 | I82: 71 | J82: =Inputs!$R$38*Inputs!$R$33*(G82-Inputs!$R$26) -> -79737.57587 | K82: =Inputs!$R$34*E82*Inputs!$R$39 -> 55602.52325 | L82: =params!$C$16*Inputs!$R$30*(G82-Inputs!$R$26) -> -12486.42498 | M82: =Inputs!$R$41*Inputs!$R$42/8760 -> 0 | N82: 0 | O82: 453.5153204 | P82: 0.002796404355 | Q82: 0.001985447092 | R82: =-N82/(1.202*2465560*MAX(0,(Inputs!$R$49-Q82))) -> 0 | S82: =params!$C$16*R82*(G82-Inputs!$R$26) -> 0 | T82: -36621.4776 | U82: =E82*params!$C$8 -> 196.7925
A83: 2001-01-04 | B83: 1 | C83: 4 | D83: 10:00:00 | E83: 94 | F83: 10 | G83: -3 | H83: -8 | I83: 65 | J83: =Inputs!$R$38*Inputs!$R$33*(G83-Inputs!$R$26) -> -74042.03474 | K83: =Inputs!$R$34*E83*Inputs!$R$39 -> 55017.23353 | L83: =params!$C$16*Inputs!$R$30*(G83-Inputs!$R$26) -> -11594.53748 | M83: =Inputs!$R$41*Inputs!$R$42/8760 -> 0 | N83: 0 | O83: 488.7362191 | P83: 0.003014631266 | Q83: 0.001959510323 | R83: =-N83/(1.202*2465560*MAX(0,(Inputs!$R$49-Q83))) -> 0 | S83: =params!$C$16*R83*(G83-Inputs!$R$26) -> 0 | T83: -30619.33869 | U83: =E83*params!$C$8 -> 194.721
A84: 2001-01-04 | B84: 1 | C84: 4 | D84: 11:00:00 | E84: 137 | F84: 10 | G84: -2 | H84: -8 | I84: 60 | J84: =Inputs!$R$38*Inputs!$R$33*(G84-Inputs!$R$26) -> -68346.4936 | K84: =Inputs!$R$34*E84*Inputs!$R$39 -> 80184.69142 | L84: =params!$C$16*Inputs!$R$30*(G84-Inputs!$R$26) -> -10702.64998 | M84: =Inputs!$R$41*Inputs!$R$42/8760 -> 0 | N84: 0 | O84: 526.3651631 | P84: 0.003247946807 | Q84: 0.001948768084 | R84: =-N84/(1.202*2465560*MAX(0,(Inputs!$R$49-Q84))) -> 0 | S84: =params!$C$16*R84*(G84-Inputs!$R$26) -> 0 | T84: 1135.547838 | U84: =E84*params!$C$8 -> 283.7955
A85: 2001-01-04 | B85: 1 | C85: 4 | D85: 12:00:00 | E85: 316 | F85: 8 | G85: -1 | H85: -9 | I85: 50 | J85: =Inputs!$R$38*Inputs!$R$33*(G85-Inputs!$R$26) -> -62650.95247 | K85: =Inputs!$R$34*E85*Inputs!$R$39 -> 184951.551 | L85: =params!$C$16*Inputs!$R$30*(G85-Inputs!$R$26) -> -9810.762482 | M85: =Inputs!$R$41*Inputs!$R$42/8760 -> 0 | N85: 0 | O85: 566.5431037 | P85: 0.00349725959 | Q85: 0.001748629795 | R85: =-N85/(1.202*2465560*MAX(0,(Inputs!$R$49-Q85))) -> 0 | S85: =params!$C$16*R85*(G85-Inputs!$R$26) -> 0 | T85: 112489.8361 | U85: =E85*params!$C$8 -> 654.594
A86: 2001-01-04 | B86: 1 | C86: 4 | D86: 13:00:00 | E86: 131 | F86: 10 | G86: -2 | H86: -9 | I86: 55 | J86: =Inputs!$R$38*Inputs!$R$33*(G86-Inputs!$R$26) -> -68346.4936 | K86: =Inputs!$R$34*E86*Inputs!$R$39 -> 76672.95311 | L86: =params!$C$16*Inputs!$R$30*(G86-Inputs!$R$26) -> -10702.64998 | M86: =Inputs!$R$41*Inputs!$R$42/8760 -> 0 | N86: 0 | O86: 526.3651631 | P86: 0.003247946807 | Q86: 0.001786370744 | R86: =-N86/(1.202*2465560*MAX(0,(Inputs!$R$49-Q86))) -> 0 | S86: =params!$C$16*R86*(G86-Inputs!$R$26) -> 0 | T86: -2376.190472 | U86: =E86*params!$C$8 -> 271.3665
A87: 2001-01-04 | B87: 1 | C87: 4 | D87: 14:00:00 | E87: 69 | F87: 10 | G87: -2 | H87: -8 | I87: 60 | J87: =Inputs!$R$38*Inputs!$R$33*(G87-Inputs!$R$26) -> -68346.4936 | K87: =Inputs!$R$34*E87*Inputs!$R$39 -> 40384.99057 | L87: =params!$C$16*Inputs!$R$30*(G87-Inputs!$R$26) -> -10702.64998 | M87: =Inputs!$R$41*Inputs!$R$42/8760 -> 0 | N87: 0 | O87: 526.3651631 | P87: 0.003247946807 | Q87: 0.001948768084 | R87: =-N87/(1.202*2465560*MAX(0,(Inputs!$R$49-Q87))) -> 0 | S87: =params!$C$16*R87*(G87-Inputs!$R$26) -> 0 | T87: -38664.15301 | U87: =E87*params!$C$8 -> 142.9335
A88: 2001-01-04 | B88: 1 | C88: 4 | D88: 15:00:00 | E88: 59 | F88: 10 | G88: -2 | H88: -8 | I88: 60 | J88: =Inputs!$R$38*Inputs!$R$33*(G88-Inputs!$R$26) -> -68346.4936 | K88: =Inputs!$R$34*E88*Inputs!$R$39 -> 34532.09339 | L88: =params!$C$16*Inputs!$R$30*(G88-Inputs!$R$26) -> -10702.64998 | M88: =Inputs!$R$41*Inputs!$R$42/8760 -> 0 | N88: 0 | O88: 526.3651631 | P88: 0.003247946807 | Q88: 0.001948768084 | R88: =-N88/(1.202*2465560*MAX(0,(Inputs!$R$49-Q88))) -> 0 | S88: =params!$C$16*R88*(G88-Inputs!$R$26) -> 0 | T88: -44517.0502 | U88: =E88*params!$C$8 -> 122.2185
A89: 2001-01-04 | B89: 1 | C89: 4 | D89: 16:00:00 | E89: 47 | F89: 10 | G89: -2 | H89: -7 | I89: 65 | J89: =Inputs!$R$38*Inputs!$R$33*(G89-Inputs!$R$26) -> -68346.4936 | K89: =Inputs!$R$34*E89*Inputs!$R$39 -> 27508.61677 | L89: =params!$C$16*Inputs!$R$30*(G89-Inputs!$R$26) -> -10702.64998 | M89: =Inputs!$R$41*Inputs!$R$42/8760 -> 0 | N89: 0 | O89: 526.3651631 | P89: 0.003247946807 | Q89: 0.002111165424 | R89: =-N89/(1.202*2465560*MAX(0,(Inputs!$R$49-Q89))) -> 0 | S89: =params!$C$16*R89*(G89-Inputs!$R$26) -> 0 | T89: -51540.52682 | U89: =E89*params!$C$8 -> 97.3605
A90: 2001-01-04 | B90: 1 | C90: 4 | D90: 17:00:00 | E90: 10 | F90: 10 | G90: -2 | H90: -8 | I90: 60 | J90: =Inputs!$R$38*Inputs!$R$33*(G90-Inputs!$R$26) -> -68346.4936 | K90: =Inputs!$R$34*E90*Inputs!$R$39 -> 5852.897184 | L90: =params!$C$16*Inputs!$R$30*(G90-Inputs!$R$26) -> -10702.64998 | M90: =Inputs!$R$41*Inputs!$R$42/8760 -> 0 | N90: 0 | O90: 526.3651631 | P90: 0.003247946807 | Q90: 0.001948768084 | R90: =-N90/(1.202*2465560*MAX(0,(Inputs!$R$49-Q90))) -> 0 | S90: =params!$C$16*R90*(G90-Inputs!$R$26) -> 0 | T90: -73196.2464 | U90: =E90*params!$C$8 -> 20.715
A91: 2001-01-04 | B91: 1 | C91: 4 | D91: 18:00:00 | E91: 0 | F91: 10 | G91: -3 | H91: -8 | I91: 65 | J91: =Inputs!$R$38*Inputs!$R$33*(G91-Inputs!$R$26) -> -74042.03474 | K91: =Inputs!$R$34*E91*Inputs!$R$39 -> 0 | L91: =params!$C$16*Inputs!$R$30*(G91-Inputs!$R$26) -> -11594.53748 | M91: =Inputs!$R$41*Inputs!$R$42/8760 -> 0 | N91: 0 | O91: 488.7362191 | P91: 0.003014631266 | Q91: 0.001959510323 | R91: =-N91/(1.202*2465560*MAX(0,(Inputs!$R$49-Q91))) -> 0 | S91: =params!$C$16*R91*(G91-Inputs!$R$26) -> 0 | T91: -85636.57222 | U91: =E91*params!$C$8 -> 0
A92: 2001-01-04 | B92: 1 | C92: 4 | D92: 19:00:00 | E92: 0 | F92: 10 | G92: -3 | H92: -8 | I92: 65 | J92: =Inputs!$R$38*Inputs!$R$33*(G92-Inputs!$R$26) -> -74042.03474 | K92: =Inputs!$R$34*E92*Inputs!$R$39 -> 0 | L92: =params!$C$16*Inputs!$R$30*(G92-Inputs!$R$26) -> -11594.53748 | M92: =Inputs!$R$41*Inputs!$R$42/8760 -> 0 | N92: 0 | O92: 488.7362191 | P92: 0.003014631266 | Q92: 0.001959510323 | R92: =-N92/(1.202*2465560*MAX(0,(Inputs!$R$49-Q92))) -> 0 | S92: =params!$C$16*R92*(G92-Inputs!$R$26) -> 0 | T92: -85636.57222 | U92: =E92*params!$C$8 -> 0
A93: 2001-01-04 | B93: 1 | C93: 4 | D93: 20:00:00 | E93: 0 | F93: 10 | G93: -3 | H93: -8 | I93: 65 | J93: =Inputs!$R$38*Inputs!$R$33*(G93-Inputs!$R$26) -> -74042.03474 | K93: =Inputs!$R$34*E93*Inputs!$R$39 -> 0 | L93: =params!$C$16*Inputs!$R$30*(G93-Inputs!$R$26) -> -11594.53748 | M93: =Inputs!$R$41*Inputs!$R$42/8760 -> 0 | N93: 0 | O93: 488.7362191 | P93: 0.003014631266 | Q93: 0.001959510323 | R93: =-N93/(1.202*2465560*MAX(0,(Inputs!$R$49-Q93))) -> 0 | S93: =params!$C$16*R93*(G93-Inputs!$R$26) -> 0 | T93: -85636.57222 | U93: =E93*params!$C$8 -> 0
A94: 2001-01-04 | B94: 1 | C94: 4 | D94: 21:00:00 | E94: 0 | F94: 10 | G94: -3 | H94: -8 | I94: 65 | J94: =Inputs!$R$38*Inputs!$R$33*(G94-Inputs!$R$26) -> -74042.03474 | K94: =Inputs!$R$34*E94*Inputs!$R$39 -> 0 | L94: =params!$C$16*Inputs!$R$30*(G94-Inputs!$R$26) -> -11594.53748 | M94: =Inputs!$R$41*Inputs!$R$42/8760 -> 0 | N94: 0 | O94: 488.7362191 | P94: 0.003014631266 | Q94: 0.001959510323 | R94: =-N94/(1.202*2465560*MAX(0,(Inputs!$R$49-Q94))) -> 0 | S94: =params!$C$16*R94*(G94-Inputs!$R$26) -> 0 | T94: -85636.57222 | U94: =E94*params!$C$8 -> 0
A95: 2001-01-04 | B95: 1 | C95: 4 | D95: 22:00:00 | E95: 0 | F95: 8 | G95: -4 | H95: -9 | I95: 65 | J95: =Inputs!$R$38*Inputs!$R$33*(G95-Inputs!$R$26) -> -79737.57587 | K95: =Inputs!$R$34*E95*Inputs!$R$39 -> 0 | L95: =params!$C$16*Inputs!$R$30*(G95-Inputs!$R$26) -> -12486.42498 | M95: =Inputs!$R$41*Inputs!$R$42/8760 -> 0 | N95: 0 | O95: 453.5153204 | P95: 0.002796404355 | Q95: 0.00181766283 | R95: =-N95/(1.202*2465560*MAX(0,(Inputs!$R$49-Q95))) -> 0 | S95: =params!$C$16*R95*(G95-Inputs!$R$26) -> 0 | T95: -92224.00085 | U95: =E95*params!$C$8 -> 0
A96: 2001-01-04 | B96: 1 | C96: 4 | D96: 23:00:00 | E96: 0 | F96: 10 | G96: -5 | H96: -10 | I96: 65 | J96: =Inputs!$R$38*Inputs!$R$33*(G96-Inputs!$R$26) -> -85433.117 | K96: =Inputs!$R$34*E96*Inputs!$R$39 -> 0 | L96: =params!$C$16*Inputs!$R$30*(G96-Inputs!$R$26) -> -13378.31248 | M96: =Inputs!$R$41*Inputs!$R$42/8760 -> 0 | N96: 0 | O96: 420.5680235 | P96: 0.002592402475 | Q96: 0.001685061609 | R96: =-N96/(1.202*2465560*MAX(0,(Inputs!$R$49-Q96))) -> 0 | S96: =params!$C$16*R96*(G96-Inputs!$R$26) -> 0 | T96: -98811.42948 | U96: =E96*params!$C$8 -> 0
A97: 2001-01-04 | B97: 1 | C97: 4 | D97: 1 | E97: 0 | F97: 3 | G97: -7 | H97: -11 | I97: 70 | J97: =Inputs!$R$38*Inputs!$R$33*(G97-Inputs!$R$26) -> -96824.19927 | K97: =Inputs!$R$34*E97*Inputs!$R$39 -> 0 | L97: =params!$C$16*Inputs!$R$30*(G97-Inputs!$R$26) -> -15162.08747 | M97: =Inputs!$R$41*Inputs!$R$42/8760 -> 0 | N97: 0 | O97: 360.9876215 | P97: 0.002223832785 | Q97: 0.00155668295 | R97: =-N97/(1.202*2465560*MAX(0,(Inputs!$R$49-Q97))) -> 0 | S97: =params!$C$16*R97*(G97-Inputs!$R$26) -> 0 | T97: -111986.2867 | U97: =E97*params!$C$8 -> 0
A98: 2001-01-05 | B98: 1 | C98: 5 | D98: 01:00:00 | E98: 0 | F98: 5 | G98: -8 | H98: -11 | I98: 77 | J98: =Inputs!$R$38*Inputs!$R$33*(G98-Inputs!$R$26) -> -102519.7404 | K98: =Inputs!$R$34*E98*Inputs!$R$39 -> 0 | L98: =params!$C$16*Inputs!$R$30*(G98-Inputs!$R$26) -> -16053.97497 | M98: =Inputs!$R$41*Inputs!$R$42/8760 -> 0 | N98: 0 | O98: 334.1161189 | P98: 0.002057745567 | Q98: 0.001584464087 | R98: =-N98/(1.202*2465560*MAX(0,(Inputs!$R$49-Q98))) -> 0 | S98: =params!$C$16*R98*(G98-Inputs!$R$26) -> 0 | T98: -118573.7154 | U98: =E98*params!$C$8 -> 0
A99: 2001-01-05 | B99: 1 | C99: 5 | D99: 02:00:00 | E99: 0 | F99: 8 | G99: -8 | H99: -11 | I99: 77 | J99: =Inputs!$R$38*Inputs!$R$33*(G99-Inputs!$R$26) -> -102519.7404 | K99: =Inputs!$R$34*E99*Inputs!$R$39 -> 0 | L99: =params!$C$16*Inputs!$R$30*(G99-Inputs!$R$26) -> -16053.97497 | M99: =Inputs!$R$41*Inputs!$R$42/8760 -> 0 | N99: 0 | O99: 334.1161189 | P99: 0.002057745567 | Q99: 0.001584464087 | R99: =-N99/(1.202*2465560*MAX(0,(Inputs!$R$49-Q99))) -> 0 | S99: =params!$C$16*R99*(G99-Inputs!$R$26) -> 0 | T99: -118573.7154 | U99: =E99*params!$C$8 -> 0
A100: 2001-01-05 | B100: 1 | C100: 5 | D100: 03:00:00 | E100: 0 | F100: 7 | G100: -9 | H100: -11 | I100: 84 | J100: =Inputs!$R$38*Inputs!$R$33*(G100-Inputs!$R$26) -> -108215.2815 | K100: =Inputs!$R$34*E100*Inputs!$R$39 -> 0 | L100: =params!$C$16*Inputs!$R$30*(G100-Inputs!$R$26) -> -16945.86247 | M100: =Inputs!$R$41*Inputs!$R$42/8760 -> 0 | N100: 0 | O100: 309.040986 | P100: 0.001902841039 | Q100: 0.001598386473 | R100: =-N100/(1.202*2465560*MAX(0,(Inputs!$R$49-Q100))) -> 0 | S100: =params!$C$16*R100*(G100-Inputs!$R$26) -> 0 | T100: -125161.144 | U100: =E100*params!$C$8 -> 0
A101: 2001-01-05 | B101: 1 | C101: 5 | D101: 04:00:00 | E101: 0 | F101: 9 | G101: -9 | H101: -11 | I101: 84 | J101: =Inputs!$R$38*Inputs!$R$33*(G101-Inputs!$R$26) -> -108215.2815 | K101: =Inputs!$R$34*E101*Inputs!$R$39 -> 0 | L101: =params!$C$16*Inputs!$R$30*(G101-Inputs!$R$26) -> -16945.86247 | M101: =Inputs!$R$41*Inputs!$R$42/8760 -> 0 | N101: 0 | O101: 309.040986 | P101: 0.001902841039 | Q101: 0.001598386473 | R101: =-N101/(1.202*2465560*MAX(0,(Inputs!$R$49-Q101))) -> 0 | S101: =params!$C$16*R101*(G101-Inputs!$R$26) -> 0 | T101: -125161.144 | U101: =E101*params!$C$8 -> 0
A102: 2001-01-05 | B102: 1 | C102: 5 | D102: 05:00:00 | E102: 0 | F102: 10 | G102: -7 | H102: -8 | I102: 92 | J102: =Inputs!$R$38*Inputs!$R$33*(G102-Inputs!$R$26) -> -96824.19927 | K102: =Inputs!$R$34*E102*Inputs!$R$39 -> 0 | L102: =params!$C$16*Inputs!$R$30*(G102-Inputs!$R$26) -> -15162.08747 | M102: =Inputs!$R$41*Inputs!$R$42/8760 -> 0 | N102: 0 | O102: 360.9876215 | P102: 0.002223832785 | Q102: 0.002045926162 | R102: =-N102/(1.202*2465560*MAX(0,(Inputs!$R$49-Q102))) -> 0 | S102: =params!$C$16*R102*(G102-Inputs!$R$26) -> 0 | T102: -111986.2867 | U102: =E102*params!$C$8 -> 0
A103: 2001-01-05 | B103: 1 | C103: 5 | D103: 06:00:00 | E103: 0 | F103: 10 | G103: -5 | H103: -8 | I103: 77 | J103: =Inputs!$R$38*Inputs!$R$33*(G103-Inputs!$R$26) -> -85433.117 | K103: =Inputs!$R$34*E103*Inputs!$R$39 -> 0 | L103: =params!$C$16*Inputs!$R$30*(G103-Inputs!$R$26) -> -13378.31248 | M103: =Inputs!$R$41*Inputs!$R$42/8760 -> 0 | N103: 0 | O103: 420.5680235 | P103: 0.002592402475 | Q103: 0.001996149906 | R103: =-N103/(1.202*2465560*MAX(0,(Inputs!$R$49-Q103))) -> 0 | S103: =params!$C$16*R103*(G103-Inputs!$R$26) -> 0 | T103: -98811.42948 | U103: =E103*params!$C$8 -> 0
A104: 2001-01-05 | B104: 1 | C104: 5 | D104: 07:00:00 | E104: 0 | F104: 10 | G104: -4 | H104: -7 | I104: 77 | J104: =Inputs!$R$38*Inputs!$R$33*(G104-Inputs!$R$26) -> -79737.57587 | K104: =Inputs!$R$34*E104*Inputs!$R$39 -> 0 | L104: =params!$C$16*Inputs!$R$30*(G104-Inputs!$R$26) -> -12486.42498 | M104: =Inputs!$R$41*Inputs!$R$42/8760 -> 0 | N104: 0 | O104: 453.5153204 | P104: 0.002796404355 | Q104: 0.002153231353 | R104: =-N104/(1.202*2465560*MAX(0,(Inputs!$R$49-Q104))) -> 0 | S104: =params!$C$16*R104*(G104-Inputs!$R$26) -> 0 | T104: -92224.00085 | U104: =E104*params!$C$8 -> 0
A105: 2001-01-05 | B105: 1 | C105: 5 | D105: 08:00:00 | E105: 0 | F105: 10 | G105: -4 | H105: -7 | I105: 77 | J105: =Inputs!$R$38*Inputs!$R$33*(G105-Inputs!$R$26) -> -79737.57587 | K105: =Inputs!$R$34*E105*Inputs!$R$39 -> 0 | L105: =params!$C$16*Inputs!$R$30*(G105-Inputs!$R$26) -> -12486.42498 | M105: =Inputs!$R$41*Inputs!$R$42/8760 -> 0 | N105: 0 | O105: 453.5153204 | P105: 0.002796404355 | Q105: 0.002153231353 | R105: =-N105/(1.202*2465560*MAX(0,(Inputs!$R$49-Q105))) -> 0 | S105: =params!$C$16*R105*(G105-Inputs!$R$26) -> 0 | T105: -92224.00085 | U105: =E105*params!$C$8 -> 0
A106: 2001-01-05 | B106: 1 | C106: 5 | D106: 09:00:00 | E106: 74 | F106: 10 | G106: -4 | H106: -7 | I106: 77 | J106: =Inputs!$R$38*Inputs!$R$33*(G106-Inputs!$R$26) -> -79737.57587 | K106: =Inputs!$R$34*E106*Inputs!$R$39 -> 43311.43916 | L106: =params!$C$16*Inputs!$R$30*(G106-Inputs!$R$26) -> -12486.42498 | M106: =Inputs!$R$41*Inputs!$R$42/8760 -> 0 | N106: 0 | O106: 453.5153204 | P106: 0.002796404355 | Q106: 0.002153231353 | R106: =-N106/(1.202*2465560*MAX(0,(Inputs!$R$49-Q106))) -> 0 | S106: =params!$C$16*R106*(G106-Inputs!$R$26) -> 0 | T106: -48912.56169 | U106: =E106*params!$C$8 -> 153.291
A107: 2001-01-05 | B107: 1 | C107: 5 | D107: 10:00:00 | E107: 108 | F107: 10 | G107: -4 | H107: -6 | I107: 84 | J107: =Inputs!$R$38*Inputs!$R$33*(G107-Inputs!$R$26) -> -79737.57587 | K107: =Inputs!$R$34*E107*Inputs!$R$39 -> 63211.28959 | L107: =params!$C$16*Inputs!$R$30*(G107-Inputs!$R$26) -> -12486.42498 | M107: =Inputs!$R$41*Inputs!$R$42/8760 -> 0 | N107: 0 | O107: 453.5153204 | P107: 0.002796404355 | Q107: 0.002348979658 | R107: =-N107/(1.202*2465560*MAX(0,(Inputs!$R$49-Q107))) -> 0 | S107: =params!$C$16*R107*(G107-Inputs!$R$26) -> 0 | T107: -29012.71126 | U107: =E107*params!$C$8 -> 223.722
A108: 2001-01-05 | B108: 1 | C108: 5 | D108: 11:00:00 | E108: 59 | F108: 10 | G108: -4 | H108: -7 | I108: 77 | J108: =Inputs!$R$38*Inputs!$R$33*(G108-Inputs!$R$26) -> -79737.57587 | K108: =Inputs!$R$34*E108*Inputs!$R$39 -> 34532.09339 | L108: =params!$C$16*Inputs!$R$30*(G108-Inputs!$R$26) -> -12486.42498 | M108: =Inputs!$R$41*Inputs!$R$42/8760 -> 0 | N108: 0 | O108: 453.5153204 | P108: 0.002796404355 | Q108: 0.002153231353 | R108: =-N108/(1.202*2465560*MAX(0,(Inputs!$R$49-Q108))) -> 0 | S108: =params!$C$16*R108*(G108-Inputs!$R$26) -> 0 | T108: -57691.90746 | U108: =E108*params!$C$8 -> 122.2185
A109: 2001-01-05 | B109: 1 | C109: 5 | D109: 12:00:00 | E109: 105 | F109: 10 | G109: -3 | H109: -7 | I109: 71 | J109: =Inputs!$R$38*Inputs!$R$33*(G109-Inputs!$R$26) -> -74042.03474 | K109: =Inputs!$R$34*E109*Inputs!$R$39 -> 61455.42043 | L109: =params!$C$16*Inputs!$R$30*(G109-Inputs!$R$26) -> -11594.53748 | M109: =Inputs!$R$41*Inputs!$R$42/8760 -> 0 | N109: 0 | O109: 488.7362191 | P109: 0.003014631266 | Q109: 0.002140388199 | R109: =-N109/(1.202*2465560*MAX(0,(Inputs!$R$49-Q109))) -> 0 | S109: =params!$C$16*R109*(G109-Inputs!$R$26) -> 0 | T109: -24181.15178 | U109: =E109*params!$C$8 -> 217.5075
A110: 2001-01-05 | B110: 1 | C110: 5 | D110: 13:00:00 | E110: 107 | F110: 10 | G110: -2 | H110: -6 | I110: 71 | J110: =Inputs!$R$38*Inputs!$R$33*(G110-Inputs!$R$26) -> -68346.4936 | K110: =Inputs!$R$34*E110*Inputs!$R$39 -> 62625.99987 | L110: =params!$C$16*Inputs!$R$30*(G110-Inputs!$R$26) -> -10702.64998 | M110: =Inputs!$R$41*Inputs!$R$42/8760 -> 0 | N110: 0 | O110: 526.3651631 | P110: 0.003247946807 | Q110: 0.002306042233 | R110: =-N110/(1.202*2465560*MAX(0,(Inputs!$R$49-Q110))) -> 0 | S110: =params!$C$16*R110*(G110-Inputs!$R$26) -> 0 | T110: -16423.14371 | U110: =E110*params!$C$8 -> 221.6505
A111: 2001-01-05 | B111: 1 | C111: 5 | D111: 14:00:00 | E111: 195 | F111: 10 | G111: -2 | H111: -6 | I111: 71 | J111: =Inputs!$R$38*Inputs!$R$33*(G111-Inputs!$R$26) -> -68346.4936 | K111: =Inputs!$R$34*E111*Inputs!$R$39 -> 114131.4951 | L111: =params!$C$16*Inputs!$R$30*(G111-Inputs!$R$26) -> -10702.64998 | M111: =Inputs!$R$41*Inputs!$R$42/8760 -> 0 | N111: 0 | O111: 526.3651631 | P111: 0.003247946807 | Q111: 0.002306042233 | R111: =-N111/(1.202*2465560*MAX(0,(Inputs!$R$49-Q111))) -> 0 | S111: =params!$C$16*R111*(G111-Inputs!$R$26) -> 0 | T111: 35082.35151 | U111: =E111*params!$C$8 -> 403.9425
A112: 2001-01-05 | B112: 1 | C112: 5 | D112: 15:00:00 | E112: 97 | F112: 10 | G112: -2 | H112: -6 | I112: 71 | J112: =Inputs!$R$38*Inputs!$R$33*(G112-Inputs!$R$26) -> -68346.4936 | K112: =Inputs!$R$34*E112*Inputs!$R$39 -> 56773.10269 | L112: =params!$C$16*Inputs!$R$30*(G112-Inputs!$R$26) -> -10702.64998 | M112: =Inputs!$R$41*Inputs!$R$42/8760 -> 0 | N112: 0 | O112: 526.3651631 | P112: 0.003247946807 | Q112: 0.002306042233 | R112: =-N112/(1.202*2465560*MAX(0,(Inputs!$R$49-Q112))) -> 0 | S112: =params!$C$16*R112*(G112-Inputs!$R$26) -> 0 | T112: -22276.0409 | U112: =E112*params!$C$8 -> 200.9355
A113: 2001-01-05 | B113: 1 | C113: 5 | D113: 16:00:00 | E113: 24 | F113: 10 | G113: -1 | H113: -6 | I113: 66 | J113: =Inputs!$R$38*Inputs!$R$33*(G113-Inputs!$R$26) -> -62650.95247 | K113: =Inputs!$R$34*E113*Inputs!$R$39 -> 14046.95324 | L113: =params!$C$16*Inputs!$R$30*(G113-Inputs!$R$26) -> -9810.762482 | M113: =Inputs!$R$41*Inputs!$R$42/8760 -> 0 | N113: 0 | O113: 566.5431037 | P113: 0.00349725959 | Q113: 0.002308191329 | R113: =-N113/(1.202*2465560*MAX(0,(Inputs!$R$49-Q113))) -> 0 | S113: =params!$C$16*R113*(G113-Inputs!$R$26) -> 0 | T113: -58414.76171 | U113: =E113*params!$C$8 -> 49.716
A114: 2001-01-05 | B114: 1 | C114: 5 | D114: 17:00:00 | E114: 20 | F114: 10 | G114: -2 | H114: -5 | I114: 78 | J114: =Inputs!$R$38*Inputs!$R$33*(G114-Inputs!$R$26) -> -68346.4936 | K114: =Inputs!$R$34*E114*Inputs!$R$39 -> 11705.79437 | L114: =params!$C$16*Inputs!$R$30*(G114-Inputs!$R$26) -> -10702.64998 | M114: =Inputs!$R$41*Inputs!$R$42/8760 -> 0 | N114: 0 | O114: 526.3651631 | P114: 0.003247946807 | Q114: 0.002533398509 | R114: =-N114/(1.202*2465560*MAX(0,(Inputs!$R$49-Q114))) -> 0 | S114: =params!$C$16*R114*(G114-Inputs!$R$26) -> 0 | T114: -67343.34922 | U114: =E114*params!$C$8 -> 41.43
A115: 2001-01-05 | B115: 1 | C115: 5 | D115: 18:00:00 | E115: 0 | F115: 10 | G115: -2 | H115: -4 | I115: 85 | J115: =Inputs!$R$38*Inputs!$R$33*(G115-Inputs!$R$26) -> -68346.4936 | K115: =Inputs!$R$34*E115*Inputs!$R$39 -> 0 | L115: =params!$C$16*Inputs!$R$30*(G115-Inputs!$R$26) -> -10702.64998 | M115: =Inputs!$R$41*Inputs!$R$42/8760 -> 0 | N115: 0 | O115: 526.3651631 | P115: 0.003247946807 | Q115: 0.002760754786 | R115: =-N115/(1.202*2465560*MAX(0,(Inputs!$R$49-Q115))) -> 0 | S115: =params!$C$16*R115*(G115-Inputs!$R$26) -> 0 | T115: -79049.14358 | U115: =E115*params!$C$8 -> 0
A116: 2001-01-05 | B116: 1 | C116: 5 | D116: 19:00:00 | E116: 0 | F116: 10 | G116: -2 | H116: -5 | I116: 78 | J116: =Inputs!$R$38*Inputs!$R$33*(G116-Inputs!$R$26) -> -68346.4936 | K116: =Inputs!$R$34*E116*Inputs!$R$39 -> 0 | L116: =params!$C$16*Inputs!$R$30*(G116-Inputs!$R$26) -> -10702.64998 | M116: =Inputs!$R$41*Inputs!$R$42/8760 -> 0 | N116: 0 | O116: 526.3651631 | P116: 0.003247946807 | Q116: 0.002533398509 | R116: =-N116/(1.202*2465560*MAX(0,(Inputs!$R$49-Q116))) -> 0 | S116: =params!$C$16*R116*(G116-Inputs!$R$26) -> 0 | T116: -79049.14358 | U116: =E116*params!$C$8 -> 0
A117: 2001-01-05 | B117: 1 | C117: 5 | D117: 20:00:00 | E117: 0 | F117: 10 | G117: -3 | H117: -4 | I117: 92 | J117: =Inputs!$R$38*Inputs!$R$33*(G117-Inputs!$R$26) -> -74042.03474 | K117: =Inputs!$R$34*E117*Inputs!$R$39 -> 0 | L117: =params!$C$16*Inputs!$R$30*(G117-Inputs!$R$26) -> -11594.53748 | M117: =Inputs!$R$41*Inputs!$R$42/8760 -> 0 | N117: 0 | O117: 488.7362191 | P117: 0.003014631266 | Q117: 0.002773460765 | R117: =-N117/(1.202*2465560*MAX(0,(Inputs!$R$49-Q117))) -> 0 | S117: =params!$C$16*R117*(G117-Inputs!$R$26) -> 0 | T117: -85636.57222 | U117: =E117*params!$C$8 -> 0
A118: 2001-01-05 | B118: 1 | C118: 5 | D118: 21:00:00 | E118: 0 | F118: 10 | G118: -2 | H118: -4 | I118: 85 | J118: =Inputs!$R$38*Inputs!$R$33*(G118-Inputs!$R$26) -> -68346.4936 | K118: =Inputs!$R$34*E118*Inputs!$R$39 -> 0 | L118: =params!$C$16*Inputs!$R$30*(G118-Inputs!$R$26) -> -10702.64998 | M118: =Inputs!$R$41*Inputs!$R$42/8760 -> 0 | N118: 0 | O118: 526.3651631 | P118: 0.003247946807 | Q118: 0.002760754786 | R118: =-N118/(1.202*2465560*MAX(0,(Inputs!$R$49-Q118))) -> 0 | S118: =params!$C$16*R118*(G118-Inputs!$R$26) -> 0 | T118: -79049.14358 | U118: =E118*params!$C$8 -> 0
A119: 2001-01-05 | B119: 1 | C119: 5 | D119: 22:00:00 | E119: 0 | F119: 10 | G119: -2 | H119: -4 | I119: 85 | J119: =Inputs!$R$38*Inputs!$R$33*(G119-Inputs!$R$26) -> -68346.4936 | K119: =Inputs!$R$34*E119*Inputs!$R$39 -> 0 | L119: =params!$C$16*Inputs!$R$30*(G119-Inputs!$R$26) -> -10702.64998 | M119: =Inputs!$R$41*Inputs!$R$42/8760 -> 0 | N119: 0 | O119: 526.3651631 | P119: 0.003247946807 | Q119: 0.002760754786 | R119: =-N119/(1.202*2465560*MAX(0,(Inputs!$R$49-Q119))) -> 0 | S119: =params!$C$16*R119*(G119-Inputs!$R$26) -> 0 | T119: -79049.14358 | U119: =E119*params!$C$8 -> 0
A120: 2001-01-05 | B120: 1 | C120: 5 | D120: 23:00:00 | E120: 0 | F120: 10 | G120: -1.9 | H120: -4 | I120: 84 | J120: =Inputs!$R$38*Inputs!$R$33*(G120-Inputs!$R$26) -> -67776.93949 | K120: =Inputs!$R$34*E120*Inputs!$R$39 -> 0 | L120: =params!$C$16*Inputs!$R$30*(G120-Inputs!$R$26) -> -10613.46123 | M120: =Inputs!$R$41*Inputs!$R$42/8760 -> 0 | N120: 0 | O120: 530.2658689 | P120: 0.003272142816 | Q120: 0.002748599965 | R120: =-N120/(1.202*2465560*MAX(0,(Inputs!$R$49-Q120))) -> 0 | S120: =params!$C$16*R120*(G120-Inputs!$R$26) -> 0 | T120: -78390.40072 | U120: =E120*params!$C$8 -> 0
A121: 2001-01-05 | B121: 1 | C121: 5 | D121: 1 | E121: 0 | F121: 10 | G121: -2 | H121: -4 | I121: 85 | J121: =Inputs!$R$38*Inputs!$R$33*(G121-Inputs!$R$26) -> -68346.4936 | K121: =Inputs!$R$34*E121*Inputs!$R$39 -> 0 | L121: =params!$C$16*Inputs!$R$30*(G121-Inputs!$R$26) -> -10702.64998 | M121: =Inputs!$R$41*Inputs!$R$42/8760 -> 0 | N121: 0 | O121: 526.3651631 | P121: 0.003247946807 | Q121: 0.002760754786 | R121: =-N121/(1.202*2465560*MAX(0,(Inputs!$R$49-Q121))) -> 0 | S121: =params!$C$16*R121*(G121-Inputs!$R$26) -> 0 | T121: -79049.14358 | U121: =E121*params!$C$8 -> 0
A122: 2001-01-06 | B122: 1 | C122: 6 | D122: 01:00:00 | E122: 0 | F122: 10 | G122: -2 | H122: -4 | I122: 85 | J122: =Inputs!$R$38*Inputs!$R$33*(G122-Inputs!$R$26) -> -68346.4936 | K122: =Inputs!$R$34*E122*Inputs!$R$39 -> 0 | L122: =params!$C$16*Inputs!$R$30*(G122-Inputs!$R$26) -> -10702.64998 | M122: =Inputs!$R$41*Inputs!$R$42/8760 -> 0 | N122: 0 | O122: 526.3651631 | P122: 0.003247946807 | Q122: 0.002760754786 | R122: =-N122/(1.202*2465560*MAX(0,(Inputs!$R$49-Q122))) -> 0 | S122: =params!$C$16*R122*(G122-Inputs!$R$26) -> 0 | T122: -79049.14358 | U122: =E122*params!$C$8 -> 0
A123: 2001-01-06 | B123: 1 | C123: 6 | D123: 02:00:00 | E123: 0 | F123: 10 | G123: -3 | H123: -4 | I123: 92 | J123: =Inputs!$R$38*Inputs!$R$33*(G123-Inputs!$R$26) -> -74042.03474 | K123: =Inputs!$R$34*E123*Inputs!$R$39 -> 0 | L123: =params!$C$16*Inputs!$R$30*(G123-Inputs!$R$26) -> -11594.53748 | M123: =Inputs!$R$41*Inputs!$R$42/8760 -> 0 | N123: 0 | O123: 488.7362191 | P123: 0.003014631266 | Q123: 0.002773460765 | R123: =-N123/(1.202*2465560*MAX(0,(Inputs!$R$49-Q123))) -> 0 | S123: =params!$C$16*R123*(G123-Inputs!$R$26) -> 0 | T123: -85636.57222 | U123: =E123*params!$C$8 -> 0
A124: 2001-01-06 | B124: 1 | C124: 6 | D124: 03:00:00 | E124: 0 | F124: 10 | G124: -3 | H124: -4 | I124: 92 | J124: =Inputs!$R$38*Inputs!$R$33*(G124-Inputs!$R$26) -> -74042.03474 | K124: =Inputs!$R$34*E124*Inputs!$R$39 -> 0 | L124: =params!$C$16*Inputs!$R$30*(G124-Inputs!$R$26) -> -11594.53748 | M124: =Inputs!$R$41*Inputs!$R$42/8760 -> 0 | N124: 0 | O124: 488.7362191 | P124: 0.003014631266 | Q124: 0.002773460765 | R124: =-N124/(1.202*2465560*MAX(0,(Inputs!$R$49-Q124))) -> 0 | S124: =params!$C$16*R124*(G124-Inputs!$R$26) -> 0 | T124: -85636.57222 | U124: =E124*params!$C$8 -> 0
A125: 2001-01-06 | B125: 1 | C125: 6 | D125: 04:00:00 | E125: 0 | F125: 10 | G125: -1 | H125: -5 | I125: 71 | J125: =Inputs!$R$38*Inputs!$R$33*(G125-Inputs!$R$26) -> -62650.95247 | K125: =Inputs!$R$34*E125*Inputs!$R$39 -> 0 | L125: =params!$C$16*Inputs!$R$30*(G125-Inputs!$R$26) -> -9810.762482 | M125: =Inputs!$R$41*Inputs!$R$42/8760 -> 0 | N125: 0 | O125: 566.5431037 | P125: 0.00349725959 | Q125: 0.002483054309 | R125: =-N125/(1.202*2465560*MAX(0,(Inputs!$R$49-Q125))) -> 0 | S125: =params!$C$16*R125*(G125-Inputs!$R$26) -> 0 | T125: -72461.71495 | U125: =E125*params!$C$8 -> 0
A126: 2001-01-06 | B126: 1 | C126: 6 | D126: 05:00:00 | E126: 0 | F126: 10 | G126: -1 | H126: -6 | I126: 66 | J126: =Inputs!$R$38*Inputs!$R$33*(G126-Inputs!$R$26) -> -62650.95247 | K126: =Inputs!$R$34*E126*Inputs!$R$39 -> 0 | L126: =params!$C$16*Inputs!$R$30*(G126-Inputs!$R$26) -> -9810.762482 | M126: =Inputs!$R$41*Inputs!$R$42/8760 -> 0 | N126: 0 | O126: 566.5431037 | P126: 0.00349725959 | Q126: 0.002308191329 | R126: =-N126/(1.202*2465560*MAX(0,(Inputs!$R$49-Q126))) -> 0 | S126: =params!$C$16*R126*(G126-Inputs!$R$26) -> 0 | T126: -72461.71495 | U126: =E126*params!$C$8 -> 0
A127: 2001-01-06 | B127: 1 | C127: 6 | D127: 06:00:00 | E127: 0 | F127: 9 | G127: -2 | H127: -7 | I127: 65 | J127: =Inputs!$R$38*Inputs!$R$33*(G127-Inputs!$R$26) -> -68346.4936 | K127: =Inputs!$R$34*E127*Inputs!$R$39 -> 0 | L127: =params!$C$16*Inputs!$R$30*(G127-Inputs!$R$26) -> -10702.64998 | M127: =Inputs!$R$41*Inputs!$R$42/8760 -> 0 | N127: 0 | O127: 526.3651631 | P127: 0.003247946807 | Q127: 0.002111165424 | R127: =-N127/(1.202*2465560*MAX(0,(Inputs!$R$49-Q127))) -> 0 | S127: =params!$C$16*R127*(G127-Inputs!$R$26) -> 0 | T127: -79049.14358 | U127: =E127*params!$C$8 -> 0
A128: 2001-01-06 | B128: 1 | C128: 6 | D128: 07:00:00 | E128: 0 | F128: 10 | G128: -1 | H128: -6 | I128: 66 | J128: =Inputs!$R$38*Inputs!$R$33*(G128-Inputs!$R$26) -> -62650.95247 | K128: =Inputs!$R$34*E128*Inputs!$R$39 -> 0 | L128: =params!$C$16*Inputs!$R$30*(G128-Inputs!$R$26) -> -9810.762482 | M128: =Inputs!$R$41*Inputs!$R$42/8760 -> 0 | N128: 0 | O128: 566.5431037 | P128: 0.00349725959 | Q128: 0.002308191329 | R128: =-N128/(1.202*2465560*MAX(0,(Inputs!$R$49-Q128))) -> 0 | S128: =params!$C$16*R128*(G128-Inputs!$R$26) -> 0 | T128: -72461.71495 | U128: =E128*params!$C$8 -> 0
A129: 2001-01-06 | B129: 1 | C129: 6 | D129: 08:00:00 | E129: 0 | F129: 10 | G129: -2 | H129: -6 | I129: 71 | J129: =Inputs!$R$38*Inputs!$R$33*(G129-Inputs!$R$26) -> -68346.4936 | K129: =Inputs!$R$34*E129*Inputs!$R$39 -> 0 | L129: =params!$C$16*Inputs!$R$30*(G129-Inputs!$R$26) -> -10702.64998 | M129: =Inputs!$R$41*Inputs!$R$42/8760 -> 0 | N129: 0 | O129: 526.3651631 | P129: 0.003247946807 | Q129: 0.002306042233 | R129: =-N129/(1.202*2465560*MAX(0,(Inputs!$R$49-Q129))) -> 0 | S129: =params!$C$16*R129*(G129-Inputs!$R$26) -> 0 | T129: -79049.14358 | U129: =E129*params!$C$8 -> 0
A130: 2001-01-06 | B130: 1 | C130: 6 | D130: 09:00:00 | E130: 31 | F130: 10 | G130: -2 | H130: -7 | I130: 65 | J130: =Inputs!$R$38*Inputs!$R$33*(G130-Inputs!$R$26) -> -68346.4936 | K130: =Inputs!$R$34*E130*Inputs!$R$39 -> 18143.98127 | L130: =params!$C$16*Inputs!$R$30*(G130-Inputs!$R$26) -> -10702.64998 | M130: =Inputs!$R$41*Inputs!$R$42/8760 -> 0 | N130: 0 | O130: 526.3651631 | P130: 0.003247946807 | Q130: 0.002111165424 | R130: =-N130/(1.202*2465560*MAX(0,(Inputs!$R$49-Q130))) -> 0 | S130: =params!$C$16*R130*(G130-Inputs!$R$26) -> 0 | T130: -60905.16231 | U130: =E130*params!$C$8 -> 64.2165
A131: 2001-01-06 | B131: =MONTH(A131) -> 1 | C131: =DAY(A131) -> 6 | D131: 10:00:00 | E131: 94 | F131: 10 | G131: -2 | H131: -8 | I131: 60 | J131: =Inputs!$R$38*Inputs!$R$33*(G131-Inputs!$R$26) -> -68346.4936 | K131: =Inputs!$R$34*E131*Inputs!$R$39 -> 55017.23353 | L131: =params!$C$16*Inputs!$R$30*(G131-Inputs!$R$26) -> -10702.64998 | M131: =Inputs!$R$41*Inputs!$R$42/8760 -> 0 | N131: 0 | O131: =EXP(77.345+0.0057*(G131+273.15)-7235/(G131+273.15))/(G131+273.15)^8.2 -> 526.3651631 | P131: =0.62198*O131/(101325-O131) -> 0.003247946807 | Q131: =P131*I131/100 -> 0.001948768084 | R131: =-N131/(1.202*2465560*MAX(0,(Inputs!$R$49-Q131))) -> 0 | S131: =params!$C$16*R131*(G131-Inputs!$R$26) -> 0 | T131: =J131+K131+L131+M131+N131+S131 -> -24031.91005 | U131: =E131*params!$C$8 -> 194.721
A132: 2001-01-06 | B132: 1 | C132: 6 | D132: 11:00:00 | E132: 287 | F132: 4 | G132: -2 | H132: -8 | I132: 60 | J132: =Inputs!$R$38*Inputs!$R$33*(G132-Inputs!$R$26) -> -68346.4936 | K132: =Inputs!$R$34*E132*Inputs!$R$39 -> 167978.1492 | L132: =params!$C$16*Inputs!$R$30*(G132-Inputs!$R$26) -> -10702.64998 | M132: =Inputs!$R$41*Inputs!$R$42/8760 -> 0 | N132: 0 | O132: 526.3651631 | P132: 0.003247946807 | Q132: 0.001948768084 | R132: =-N132/(1.202*2465560*MAX(0,(Inputs!$R$49-Q132))) -> 0 | S132: =params!$C$16*R132*(G132-Inputs!$R$26) -> 0 | T132: 88929.0056 | U132: =E132*params!$C$8 -> 594.5205
A133: 2001-01-06 | B133: 1 | C133: 6 | D133: 12:00:00 | E133: 180 | F133: 4 | G133: -1 | H133: -9 | I133: 50 | J133: =Inputs!$R$38*Inputs!$R$33*(G133-Inputs!$R$26) -> -62650.95247 | K133: =Inputs!$R$34*E133*Inputs!$R$39 -> 105352.1493 | L133: =params!$C$16*Inputs!$R$30*(G133-Inputs!$R$26) -> -9810.762482 | M133: =Inputs!$R$41*Inputs!$R$42/8760 -> 0 | N133: 0 | O133: 566.5431037 | P133: 0.00349725959 | Q133: 0.001748629795 | R133: =-N133/(1.202*2465560*MAX(0,(Inputs!$R$49-Q133))) -> 0 | S133: =params!$C$16*R133*(G133-Inputs!$R$26) -> 0 | T133: 32890.43436 | U133: =E133*params!$C$8 -> 372.87
A134: 2001-01-06 | B134: 1 | C134: 6 | D134: 13:00:00 | E134: 424 | F134: 5 | G134: -1 | H134: -10 | I134: 46 | J134: =Inputs!$R$38*Inputs!$R$33*(G134-Inputs!$R$26) -> -62650.95247 | K134: =Inputs!$R$34*E134*Inputs!$R$39 -> 248162.8406 | L134: =params!$C$16*Inputs!$R$30*(G134-Inputs!$R$26) -> -9810.762482 | M134: =Inputs!$R$41*Inputs!$R$42/8760 -> 0 | N134: 0 | O134: 566.5431037 | P134: 0.00349725959 | Q134: 0.001608739411 | R134: =-N134/(1.202*2465560*MAX(0,(Inputs!$R$49-Q134))) -> 0 | S134: =params!$C$16*R134*(G134-Inputs!$R$26) -> 0 | T134: 175701.1257 | U134: =E134*params!$C$8 -> 878.316
A135: 2001-01-06 | B135: 1 | C135: 6 | D135: 14:00:00 | E135: 379 | F135: 8 | G135: -2 | H135: -9 | I135: 55 | J135: =Inputs!$R$38*Inputs!$R$33*(G135-Inputs!$R$26) -> -68346.4936 | K135: =Inputs!$R$34*E135*Inputs!$R$39 -> 221824.8033 | L135: =params!$C$16*Inputs!$R$30*(G135-Inputs!$R$26) -> -10702.64998 | M135: =Inputs!$R$41*Inputs!$R$42/8760 -> 0 | N135: 0 | O135: 526.3651631 | P135: 0.003247946807 | Q135: 0.001786370744 | R135: =-N135/(1.202*2465560*MAX(0,(Inputs!$R$49-Q135))) -> 0 | S135: =params!$C$16*R135*(G135-Inputs!$R$26) -> 0 | T135: 142775.6597 | U135: =E135*params!$C$8 -> 785.0985
A136: 2001-01-06 | B136: 1 | C136: 6 | D136: 15:00:00 | E136: 260 | F136: 8 | G136: -2 | H136: -9 | I136: 55 | J136: =Inputs!$R$38*Inputs!$R$33*(G136-Inputs!$R$26) -> -68346.4936 | K136: =Inputs!$R$34*E136*Inputs!$R$39 -> 152175.3268 | L136: =params!$C$16*Inputs!$R$30*(G136-Inputs!$R$26) -> -10702.64998 | M136: =Inputs!$R$41*Inputs!$R$42/8760 -> 0 | N136: 0 | O136: 526.3651631 | P136: 0.003247946807 | Q136: 0.001786370744 | R136: =-N136/(1.202*2465560*MAX(0,(Inputs!$R$49-Q136))) -> 0 | S136: =params!$C$16*R136*(G136-Inputs!$R$26) -> 0 | T136: 73126.1832 | U136: =E136*params!$C$8 -> 538.59
A137: 2001-01-06 | B137: 1 | C137: 6 | D137: 16:00:00 | E137: 156 | F137: 8 | G137: -2 | H137: -9 | I137: 55 | J137: =Inputs!$R$38*Inputs!$R$33*(G137-Inputs!$R$26) -> -68346.4936 | K137: =Inputs!$R$34*E137*Inputs!$R$39 -> 91305.19607 | L137: =params!$C$16*Inputs!$R$30*(G137-Inputs!$R$26) -> -10702.64998 | M137: =Inputs!$R$41*Inputs!$R$42/8760 -> 0 | N137: 0 | O137: 526.3651631 | P137: 0.003247946807 | Q137: 0.001786370744 | R137: =-N137/(1.202*2465560*MAX(0,(Inputs!$R$49-Q137))) -> 0 | S137: =params!$C$16*R137*(G137-Inputs!$R$26) -> 0 | T137: 12256.05249 | U137: =E137*params!$C$8 -> 323.154
A138: 2001-01-06 | B138: 1 | C138: 6 | D138: 17:00:00 | E138: 11 | F138: 10 | G138: -2 | H138: -8 | I138: 60 | J138: =Inputs!$R$38*Inputs!$R$33*(G138-Inputs!$R$26) -> -68346.4936 | K138: =Inputs!$R$34*E138*Inputs!$R$39 -> 6438.186903 | L138: =params!$C$16*Inputs!$R$30*(G138-Inputs!$R$26) -> -10702.64998 | M138: =Inputs!$R$41*Inputs!$R$42/8760 -> 0 | N138: 0 | O138: 526.3651631 | P138: 0.003247946807 | Q138: 0.001948768084 | R138: =-N138/(1.202*2465560*MAX(0,(Inputs!$R$49-Q138))) -> 0 | S138: =params!$C$16*R138*(G138-Inputs!$R$26) -> 0 | T138: -72610.95668 | U138: =E138*params!$C$8 -> 22.7865
A139: 2001-01-06 | B139: 1 | C139: 6 | D139: 18:00:00 | E139: 0 | F139: 10 | G139: -3 | H139: -8 | I139: 65 | J139: =Inputs!$R$38*Inputs!$R$33*(G139-Inputs!$R$26) -> -74042.03474 | K139: =Inputs!$R$34*E139*Inputs!$R$39 -> 0 | L139: =params!$C$16*Inputs!$R$30*(G139-Inputs!$R$26) -> -11594.53748 | M139: =Inputs!$R$41*Inputs!$R$42/8760 -> 0 | N139: 0 | O139: 488.7362191 | P139: 0.003014631266 | Q139: 0.001959510323 | R139: =-N139/(1.202*2465560*MAX(0,(Inputs!$R$49-Q139))) -> 0 | S139: =params!$C$16*R139*(G139-Inputs!$R$26) -> 0 | T139: -85636.57222 | U139: =E139*params!$C$8 -> 0
A140: 2001-01-06 | B140: 1 | C140: 6 | D140: 19:00:00 | E140: 0 | F140: 10 | G140: -3 | H140: -7 | I140: 71 | J140: =Inputs!$R$38*Inputs!$R$33*(G140-Inputs!$R$26) -> -74042.03474 | K140: =Inputs!$R$34*E140*Inputs!$R$39 -> 0 | L140: =params!$C$16*Inputs!$R$30*(G140-Inputs!$R$26) -> -11594.53748 | M140: =Inputs!$R$41*Inputs!$R$42/8760 -> 0 | N140: 0 | O140: 488.7362191 | P140: 0.003014631266 | Q140: 0.002140388199 | R140: =-N140/(1.202*2465560*MAX(0,(Inputs!$R$49-Q140))) -> 0 | S140: =params!$C$16*R140*(G140-Inputs!$R$26) -> 0 | T140: -85636.57222 | U140: =E140*params!$C$8 -> 0
A141: 2001-01-06 | B141: 1 | C141: 6 | D141: 20:00:00 | E141: 0 | F141: 10 | G141: -3 | H141: -7 | I141: 71 | J141: =Inputs!$R$38*Inputs!$R$33*(G141-Inputs!$R$26) -> -74042.03474 | K141: =Inputs!$R$34*E141*Inputs!$R$39 -> 0 | L141: =params!$C$16*Inputs!$R$30*(G141-Inputs!$R$26) -> -11594.53748 | M141: =Inputs!$R$41*Inputs!$R$42/8760 -> 0 | N141: 0 | O141: 488.7362191 | P141: 0.003014631266 | Q141: 0.002140388199 | R141: =-N141/(1.202*2465560*MAX(0,(Inputs!$R$49-Q141))) -> 0 | S141: =params!$C$16*R141*(G141-Inputs!$R$26) -> 0 | T141: -85636.57222 | U141: =E141*params!$C$8 -> 0
A142: 2001-01-06 | B142: 1 | C142: 6 | D142: 21:00:00 | E142: 0 | F142: 10 | G142: -3 | H142: -6 | I142: 77 | J142: =Inputs!$R$38*Inputs!$R$33*(G142-Inputs!$R$26) -> -74042.03474 | K142: =Inputs!$R$34*E142*Inputs!$R$39 -> 0 | L142: =params!$C$16*Inputs!$R$30*(G142-Inputs!$R$26) -> -11594.53748 | M142: =Inputs!$R$41*Inputs!$R$42/8760 -> 0 | N142: 0 | O142: 488.7362191 | P142: 0.003014631266 | Q142: 0.002321266075 | R142: =-N142/(1.202*2465560*MAX(0,(Inputs!$R$49-Q142))) -> 0 | S142: =params!$C$16*R142*(G142-Inputs!$R$26) -> 0 | T142: -85636.57222 | U142: =E142*params!$C$8 -> 0
A143: 2001-01-06 | B143: 1 | C143: 6 | D143: 22:00:00 | E143: 0 | F143: 10 | G143: -3 | H143: -6 | I143: 77 | J143: =Inputs!$R$38*Inputs!$R$33*(G143-Inputs!$R$26) -> -74042.03474 | K143: =Inputs!$R$34*E143*Inputs!$R$39 -> 0 | L143: =params!$C$16*Inputs!$R$30*(G143-Inputs!$R$26) -> -11594.53748 | M143: =Inputs!$R$41*Inputs!$R$42/8760 -> 0 | N143: 0 | O143: 488.7362191 | P143: 0.003014631266 | Q143: 0.002321266075 | R143: =-N143/(1.202*2465560*MAX(0,(Inputs!$R$49-Q143))) -> 0 | S143: =params!$C$16*R143*(G143-Inputs!$R$26) -> 0 | T143: -85636.57222 | U143: =E143*params!$C$8 -> 0
A144: 2001-01-06 | B144: 1 | C144: 6 | D144: 23:00:00 | E144: 0 | F144: 10 | G144: -4 | H144: -6 | I144: 84 | J144: =Inputs!$R$38*Inputs!$R$33*(G144-Inputs!$R$26) -> -79737.57587 | K144: =Inputs!$R$34*E144*Inputs!$R$39 -> 0 | L144: =params!$C$16*Inputs!$R$30*(G144-Inputs!$R$26) -> -12486.42498 | M144: =Inputs!$R$41*Inputs!$R$42/8760 -> 0 | N144: 0 | O144: 453.5153204 | P144: 0.002796404355 | Q144: 0.002348979658 | R144: =-N144/(1.202*2465560*MAX(0,(Inputs!$R$49-Q144))) -> 0 | S144: =params!$C$16*R144*(G144-Inputs!$R$26) -> 0 | T144: -92224.00085 | U144: =E144*params!$C$8 -> 0
A145: 2001-01-06 | B145: 1 | C145: 6 | D145: 1 | E145: 0 | F145: 10 | G145: -4 | H145: -7 | I145: 77 | J145: =Inputs!$R$38*Inputs!$R$33*(G145-Inputs!$R$26) -> -79737.57587 | K145: =Inputs!$R$34*E145*Inputs!$R$39 -> 0 | L145: =params!$C$16*Inputs!$R$30*(G145-Inputs!$R$26) -> -12486.42498 | M145: =Inputs!$R$41*Inputs!$R$42/8760 -> 0 | N145: 0 | O145: 453.5153204 | P145: 0.002796404355 | Q145: 0.002153231353 | R145: =-N145/(1.202*2465560*MAX(0,(Inputs!$R$49-Q145))) -> 0 | S145: =params!$C$16*R145*(G145-Inputs!$R$26) -> 0 | T145: -92224.00085 | U145: =E145*params!$C$8 -> 0
A146: 2001-01-07 | B146: 1 | C146: 7 | D146: 01:00:00 | E146: 0 | F146: 10 | G146: -3 | H146: -6 | I146: 77 | J146: =Inputs!$R$38*Inputs!$R$33*(G146-Inputs!$R$26) -> -74042.03474 | K146: =Inputs!$R$34*E146*Inputs!$R$39 -> 0 | L146: =params!$C$16*Inputs!$R$30*(G146-Inputs!$R$26) -> -11594.53748 | M146: =Inputs!$R$41*Inputs!$R$42/8760 -> 0 | N146: 0 | O146: 488.7362191 | P146: 0.003014631266 | Q146: 0.002321266075 | R146: =-N146/(1.202*2465560*MAX(0,(Inputs!$R$49-Q146))) -> 0 | S146: =params!$C$16*R146*(G146-Inputs!$R$26) -> 0 | T146: -85636.57222 | U146: =E146*params!$C$8 -> 0
A147: 2001-01-07 | B147: 1 | C147: 7 | D147: 02:00:00 | E147: 0 | F147: 5 | G147: -6 | H147: -7 | I147: 92 | J147: =Inputs!$R$38*Inputs!$R$33*(G147-Inputs!$R$26) -> -91128.65814 | K147: =Inputs!$R$34*E147*Inputs!$R$39 -> 0 | L147: =params!$C$16*Inputs!$R$30*(G147-Inputs!$R$26) -> -14270.19997 | M147: =Inputs!$R$41*Inputs!$R$42/8760 -> 0 | N147: 0 | O147: 389.766162 | P147: 0.00240180508 | Q147: 0.002209660674 | R147: =-N147/(1.202*2465560*MAX(0,(Inputs!$R$49-Q147))) -> 0 | S147: =params!$C$16*R147*(G147-Inputs!$R$26) -> 0 | T147: -105398.8581 | U147: =E147*params!$C$8 -> 0
A148: 2001-01-07 | B148: 1 | C148: 7 | D148: 03:00:00 | E148: 0 | F148: 10 | G148: -6 | H148: -7 | I148: 92 | J148: =Inputs!$R$38*Inputs!$R$33*(G148-Inputs!$R$26) -> -91128.65814 | K148: =Inputs!$R$34*E148*Inputs!$R$39 -> 0 | L148: =params!$C$16*Inputs!$R$30*(G148-Inputs!$R$26) -> -14270.19997 | M148: =Inputs!$R$41*Inputs!$R$42/8760 -> 0 | N148: 0 | O148: 389.766162 | P148: 0.00240180508 | Q148: 0.002209660674 | R148: =-N148/(1.202*2465560*MAX(0,(Inputs!$R$49-Q148))) -> 0 | S148: =params!$C$16*R148*(G148-Inputs!$R$26) -> 0 | T148: -105398.8581 | U148: =E148*params!$C$8 -> 0
A149: 2001-01-07 | B149: 1 | C149: 7 | D149: 04:00:00 | E149: 0 | F149: 10 | G149: -5 | H149: -7 | I149: 84 | J149: =Inputs!$R$38*Inputs!$R$33*(G149-Inputs!$R$26) -> -85433.117 | K149: =Inputs!$R$34*E149*Inputs!$R$39 -> 0 | L149: =params!$C$16*Inputs!$R$30*(G149-Inputs!$R$26) -> -13378.31248 | M149: =Inputs!$R$41*Inputs!$R$42/8760 -> 0 | N149: 0 | O149: 420.5680235 | P149: 0.002592402475 | Q149: 0.002177618079 | R149: =-N149/(1.202*2465560*MAX(0,(Inputs!$R$49-Q149))) -> 0 | S149: =params!$C$16*R149*(G149-Inputs!$R$26) -> 0 | T149: -98811.42948 | U149: =E149*params!$C$8 -> 0
A150: 2001-01-07 | B150: 1 | C150: 7 | D150: 05:00:00 | E150: 0 | F150: 3 | G150: -8 | H150: -9 | I150: 92 | J150: =Inputs!$R$38*Inputs!$R$33*(G150-Inputs!$R$26) -> -102519.7404 | K150: =Inputs!$R$34*E150*Inputs!$R$39 -> 0 | L150: =params!$C$16*Inputs!$R$30*(G150-Inputs!$R$26) -> -16053.97497 | M150: =Inputs!$R$41*Inputs!$R$42/8760 -> 0 | N150: 0 | O150: 334.1161189 | P150: 0.002057745567 | Q150: 0.001893125922 | R150: =-N150/(1.202*2465560*MAX(0,(Inputs!$R$49-Q150))) -> 0 | S150: =params!$C$16*R150*(G150-Inputs!$R$26) -> 0 | T150: -118573.7154 | U150: =E150*params!$C$8 -> 0
A151: 2001-01-07 | B151: 1 | C151: 7 | D151: 06:00:00 | E151: 0 | F151: 10 | G151: -6 | H151: -7 | I151: 92 | J151: =Inputs!$R$38*Inputs!$R$33*(G151-Inputs!$R$26) -> -91128.65814 | K151: =Inputs!$R$34*E151*Inputs!$R$39 -> 0 | L151: =params!$C$16*Inputs!$R$30*(G151-Inputs!$R$26) -> -14270.19997 | M151: =Inputs!$R$41*Inputs!$R$42/8760 -> 0 | N151: 0 | O151: 389.766162 | P151: 0.00240180508 | Q151: 0.002209660674 | R151: =-N151/(1.202*2465560*MAX(0,(Inputs!$R$49-Q151))) -> 0 | S151: =params!$C$16*R151*(G151-Inputs!$R$26) -> 0 | T151: -105398.8581 | U151: =E151*params!$C$8 -> 0
A152: 2001-01-07 | B152: 1 | C152: 7 | D152: 07:00:00 | E152: 0 | F152: 10 | G152: -4 | H152: -6 | I152: 84 | J152: =Inputs!$R$38*Inputs!$R$33*(G152-Inputs!$R$26) -> -79737.57587 | K152: =Inputs!$R$34*E152*Inputs!$R$39 -> 0 | L152: =params!$C$16*Inputs!$R$30*(G152-Inputs!$R$26) -> -12486.42498 | M152: =Inputs!$R$41*Inputs!$R$42/8760 -> 0 | N152: 0 | O152: 453.5153204 | P152: 0.002796404355 | Q152: 0.002348979658 | R152: =-N152/(1.202*2465560*MAX(0,(Inputs!$R$49-Q152))) -> 0 | S152: =params!$C$16*R152*(G152-Inputs!$R$26) -> 0 | T152: -92224.00085 | U152: =E152*params!$C$8 -> 0
A153: 2001-01-07 | B153: 1 | C153: 7 | D153: 08:00:00 | E153: 0 | F153: 10 | G153: -4 | H153: -6 | I153: 84 | J153: =Inputs!$R$38*Inputs!$R$33*(G153-Inputs!$R$26) -> -79737.57587 | K153: =Inputs!$R$34*E153*Inputs!$R$39 -> 0 | L153: =params!$C$16*Inputs!$R$30*(G153-Inputs!$R$26) -> -12486.42498 | M153: =Inputs!$R$41*Inputs!$R$42/8760 -> 0 | N153: 0 | O153: 453.5153204 | P153: 0.002796404355 | Q153: 0.002348979658 | R153: =-N153/(1.202*2465560*MAX(0,(Inputs!$R$49-Q153))) -> 0 | S153: =params!$C$16*R153*(G153-Inputs!$R$26) -> 0 | T153: -92224.00085 | U153: =E153*params!$C$8 -> 0
A154: 2001-01-07 | B154: 1 | C154: 7 | D154: 09:00:00 | E154: 21 | F154: 10 | G154: -4 | H154: -6 | I154: 84 | J154: =Inputs!$R$38*Inputs!$R$33*(G154-Inputs!$R$26) -> -79737.57587 | K154: =Inputs!$R$34*E154*Inputs!$R$39 -> 12291.08409 | L154: =params!$C$16*Inputs!$R$30*(G154-Inputs!$R$26) -> -12486.42498 | M154: =Inputs!$R$41*Inputs!$R$42/8760 -> 0 | N154: 0 | O154: 453.5153204 | P154: 0.002796404355 | Q154: 0.002348979658 | R154: =-N154/(1.202*2465560*MAX(0,(Inputs!$R$49-Q154))) -> 0 | S154: =params!$C$16*R154*(G154-Inputs!$R$26) -> 0 | T154: -79932.91676 | U154: =E154*params!$C$8 -> 43.5015
A155: 2001-01-07 | B155: 1 | C155: 7 | D155: 10:00:00 | E155: 58 | F155: 10 | G155: -3 | H155: -5 | I155: 84 | J155: =Inputs!$R$38*Inputs!$R$33*(G155-Inputs!$R$26) -> -74042.03474 | K155: =Inputs!$R$34*E155*Inputs!$R$39 -> 33946.80367 | L155: =params!$C$16*Inputs!$R$30*(G155-Inputs!$R$26) -> -11594.53748 | M155: =Inputs!$R$41*Inputs!$R$42/8760 -> 0 | N155: 0 | O155: 488.7362191 | P155: 0.003014631266 | Q155: 0.002532290264 | R155: =-N155/(1.202*2465560*MAX(0,(Inputs!$R$49-Q155))) -> 0 | S155: =params!$C$16*R155*(G155-Inputs!$R$26) -> 0 | T155: -51689.76855 | U155: =E155*params!$C$8 -> 120.147
A156: 2001-01-07 | B156: 1 | C156: 7 | D156: 11:00:00 | E156: 78 | F156: 10 | G156: -1 | H156: -4 | I156: 78 | J156: =Inputs!$R$38*Inputs!$R$33*(G156-Inputs!$R$26) -> -62650.95247 | K156: =Inputs!$R$34*E156*Inputs!$R$39 -> 45652.59804 | L156: =params!$C$16*Inputs!$R$30*(G156-Inputs!$R$26) -> -9810.762482 | M156: =Inputs!$R$41*Inputs!$R$42/8760 -> 0 | N156: 0 | O156: 566.5431037 | P156: 0.00349725959 | Q156: 0.00272786248 | R156: =-N156/(1.202*2465560*MAX(0,(Inputs!$R$49-Q156))) -> 0 | S156: =params!$C$16*R156*(G156-Inputs!$R$26) -> 0 | T156: -26809.11692 | U156: =E156*params!$C$8 -> 161.577
A157: 2001-01-07 | B157: 1 | C157: 7 | D157: 12:00:00 | E157: 118 | F157: 10 | G157: 1 | H157: -3 | I157: 72 | J157: =Inputs!$R$38*Inputs!$R$33*(G157-Inputs!$R$26) -> -51259.8702 | K157: =Inputs!$R$34*E157*Inputs!$R$39 -> 69064.18677 | L157: =params!$C$16*Inputs!$R$30*(G157-Inputs!$R$26) -> -8026.987485 | M157: =Inputs!$R$41*Inputs!$R$42/8760 -> 0 | N157: 0 | O157: 655.1437377 | P157: 0.00404774892 | Q157: 0.002914379223 | R157: =-N157/(1.202*2465560*MAX(0,(Inputs!$R$49-Q157))) -> 0 | S157: =params!$C$16*R157*(G157-Inputs!$R$26) -> 0 | T157: 9777.329084 | U157: =E157*params!$C$8 -> 244.437
A158: 2001-01-07 | B158: 1 | C158: 7 | D158: 13:00:00 | E158: 78 | F158: 10 | G158: 2 | H158: -3 | I158: 67 | J158: =Inputs!$R$38*Inputs!$R$33*(G158-Inputs!$R$26) -> -45564.32907 | K158: =Inputs!$R$34*E158*Inputs!$R$39 -> 45652.59804 | L158: =params!$C$16*Inputs!$R$30*(G158-Inputs!$R$26) -> -7135.099987 | M158: =Inputs!$R$41*Inputs!$R$42/8760 -> 0 | N158: 0 | O158: 703.8830162 | P158: 0.004350986866 | Q158: 0.0029151612 | R158: =-N158/(1.202*2465560*MAX(0,(Inputs!$R$49-Q158))) -> 0 | S158: =params!$C$16*R158*(G158-Inputs!$R$26) -> 0 | T158: -7046.83102 | U158: =E158*params!$C$8 -> 161.577
A159: 2001-01-07 | B159: 1 | C159: 7 | D159: 14:00:00 | E159: 92 | F159: 10 | G159: 1 | H159: -3 | I159: 72 | J159: =Inputs!$R$38*Inputs!$R$33*(G159-Inputs!$R$26) -> -51259.8702 | K159: =Inputs!$R$34*E159*Inputs!$R$39 -> 53846.65409 | L159: =params!$C$16*Inputs!$R$30*(G159-Inputs!$R$26) -> -8026.987485 | M159: =Inputs!$R$41*Inputs!$R$42/8760 -> 0 | N159: 0 | O159: 655.1437377 | P159: 0.00404774892 | Q159: 0.002914379223 | R159: =-N159/(1.202*2465560*MAX(0,(Inputs!$R$49-Q159))) -> 0 | S159: =params!$C$16*R159*(G159-Inputs!$R$26) -> 0 | T159: -5440.203594 | U159: =E159*params!$C$8 -> 190.578
A160: 2001-01-07 | B160: 1 | C160: 7 | D160: 15:00:00 | E160: 65 | F160: 10 | G160: 1 | H160: -3 | I160: 72 | J160: =Inputs!$R$38*Inputs!$R$33*(G160-Inputs!$R$26) -> -51259.8702 | K160: =Inputs!$R$34*E160*Inputs!$R$39 -> 38043.8317 | L160: =params!$C$16*Inputs!$R$30*(G160-Inputs!$R$26) -> -8026.987485 | M160: =Inputs!$R$41*Inputs!$R$42/8760 -> 0 | N160: 0 | O160: 655.1437377 | P160: 0.00404774892 | Q160: 0.002914379223 | R160: =-N160/(1.202*2465560*MAX(0,(Inputs!$R$49-Q160))) -> 0 | S160: =params!$C$16*R160*(G160-Inputs!$R$26) -> 0 | T160: -21243.02599 | U160: =E160*params!$C$8 -> 134.6475
A161: 2001-01-07 | B161: 1 | C161: 7 | D161: 16:00:00 | E161: 90 | F161: 10 | G161: 1 | H161: -3 | I161: 72 | J161: =Inputs!$R$38*Inputs!$R$33*(G161-Inputs!$R$26) -> -51259.8702 | K161: =Inputs!$R$34*E161*Inputs!$R$39 -> 52676.07466 | L161: =params!$C$16*Inputs!$R$30*(G161-Inputs!$R$26) -> -8026.987485 | M161: =Inputs!$R$41*Inputs!$R$42/8760 -> 0 | N161: 0 | O161: 655.1437377 | P161: 0.00404774892 | Q161: 0.002914379223 | R161: =-N161/(1.202*2465560*MAX(0,(Inputs!$R$49-Q161))) -> 0 | S161: =params!$C$16*R161*(G161-Inputs!$R$26) -> 0 | T161: -6610.783031 | U161: =E161*params!$C$8 -> 186.435
A162: 2001-01-07 | B162: 1 | C162: 7 | D162: 17:00:00 | E162: 9 | F162: 10 | G162: 1 | H162: -3 | I162: 72 | J162: =Inputs!$R$38*Inputs!$R$33*(G162-Inputs!$R$26) -> -51259.8702 | K162: =Inputs!$R$34*E162*Inputs!$R$39 -> 5267.607466 | L162: =params!$C$16*Inputs!$R$30*(G162-Inputs!$R$26) -> -8026.987485 | M162: =Inputs!$R$41*Inputs!$R$42/8760 -> 0 | N162: 0 | O162: 655.1437377 | P162: 0.00404774892 | Q162: 0.002914379223 | R162: =-N162/(1.202*2465560*MAX(0,(Inputs!$R$49-Q162))) -> 0 | S162: =params!$C$16*R162*(G162-Inputs!$R$26) -> 0 | T162: -54019.25022 | U162: =E162*params!$C$8 -> 18.6435
A163: 2001-01-07 | B163: 1 | C163: 7 | D163: 18:00:00 | E163: 0 | F163: 10 | G163: 1 | H163: -3 | I163: 72 | J163: =Inputs!$R$38*Inputs!$R$33*(G163-Inputs!$R$26) -> -51259.8702 | K163: =Inputs!$R$34*E163*Inputs!$R$39 -> 0 | L163: =params!$C$16*Inputs!$R$30*(G163-Inputs!$R$26) -> -8026.987485 | M163: =Inputs!$R$41*Inputs!$R$42/8760 -> 0 | N163: 0 | O163: 655.1437377 | P163: 0.00404774892 | Q163: 0.002914379223 | R163: =-N163/(1.202*2465560*MAX(0,(Inputs!$R$49-Q163))) -> 0 | S163: =params!$C$16*R163*(G163-Inputs!$R$26) -> 0 | T163: -59286.85769 | U163: =E163*params!$C$8 -> 0
A164: 2001-01-07 | B164: 1 | C164: 7 | D164: 19:00:00 | E164: 0 | F164: 10 | G164: -1 | H164: -2 | I164: 92 | J164: =Inputs!$R$38*Inputs!$R$33*(G164-Inputs!$R$26) -> -62650.95247 | K164: =Inputs!$R$34*E164*Inputs!$R$39 -> 0 | L164: =params!$C$16*Inputs!$R$30*(G164-Inputs!$R$26) -> -9810.762482 | M164: =Inputs!$R$41*Inputs!$R$42/8760 -> 0 | N164: 0 | O164: 566.5431037 | P164: 0.00349725959 | Q164: 0.003217478823 | R164: =-N164/(1.202*2465560*MAX(0,(Inputs!$R$49-Q164))) -> 0 | S164: =params!$C$16*R164*(G164-Inputs!$R$26) -> 0 | T164: -72461.71495 | U164: =E164*params!$C$8 -> 0
A165: 2001-01-07 | B165: 1 | C165: 7 | D165: 20:00:00 | E165: 0 | F165: 10 | G165: -1 | H165: -3 | I165: 85 | J165: =Inputs!$R$38*Inputs!$R$33*(G165-Inputs!$R$26) -> -62650.95247 | K165: =Inputs!$R$34*E165*Inputs!$R$39 -> 0 | L165: =params!$C$16*Inputs!$R$30*(G165-Inputs!$R$26) -> -9810.762482 | M165: =Inputs!$R$41*Inputs!$R$42/8760 -> 0 | N165: 0 | O165: 566.5431037 | P165: 0.00349725959 | Q165: 0.002972670652 | R165: =-N165/(1.202*2465560*MAX(0,(Inputs!$R$49-Q165))) -> 0 | S165: =params!$C$16*R165*(G165-Inputs!$R$26) -> 0 | T165: -72461.71495 | U165: =E165*params!$C$8 -> 0
A166: 2001-01-07 | B166: 1 | C166: 7 | D166: 21:00:00 | E166: 0 | F166: 10 | G166: -1 | H166: -3 | I166: 85 | J166: =Inputs!$R$38*Inputs!$R$33*(G166-Inputs!$R$26) -> -62650.95247 | K166: =Inputs!$R$34*E166*Inputs!$R$39 -> 0 | L166: =params!$C$16*Inputs!$R$30*(G166-Inputs!$R$26) -> -9810.762482 | M166: =Inputs!$R$41*Inputs!$R$42/8760 -> 0 | N166: 0 | O166: 566.5431037 | P166: 0.00349725959 | Q166: 0.002972670652 | R166: =-N166/(1.202*2465560*MAX(0,(Inputs!$R$49-Q166))) -> 0 | S166: =params!$C$16*R166*(G166-Inputs!$R$26) -> 0 | T166: -72461.71495 | U166: =E166*params!$C$8 -> 0
A167: 2001-01-07 | B167: 1 | C167: 7 | D167: 22:00:00 | E167: 0 | F167: 10 | G167: -1 | H167: -3 | I167: 85 | J167: =Inputs!$R$38*Inputs!$R$33*(G167-Inputs!$R$26) -> -62650.95247 | K167: =Inputs!$R$34*E167*Inputs!$R$39 -> 0 | L167: =params!$C$16*Inputs!$R$30*(G167-Inputs!$R$26) -> -9810.762482 | M167: =Inputs!$R$41*Inputs!$R$42/8760 -> 0 | N167: 0 | O167: 566.5431037 | P167: 0.00349725959 | Q167: 0.002972670652 | R167: =-N167/(1.202*2465560*MAX(0,(Inputs!$R$49-Q167))) -> 0 | S167: =params!$C$16*R167*(G167-Inputs!$R$26) -> 0 | T167: -72461.71495 | U167: =E167*params!$C$8 -> 0
A168: 2001-01-07 | B168: 1 | C168: 7 | D168: 23:00:00 | E168: 0 | F168: 10 | G168: -1 | H168: -3 | I168: 85 | J168: =Inputs!$R$38*Inputs!$R$33*(G168-Inputs!$R$26) -> -62650.95247 | K168: =Inputs!$R$34*E168*Inputs!$R$39 -> 0 | L168: =params!$C$16*Inputs!$R$30*(G168-Inputs!$R$26) -> -9810.762482 | M168: =Inputs!$R$41*Inputs!$R$42/8760 -> 0 | N168: 0 | O168: 566.5431037 | P168: 0.00349725959 | Q168: 0.002972670652 | R168: =-N168/(1.202*2465560*MAX(0,(Inputs!$R$49-Q168))) -> 0 | S168: =params!$C$16*R168*(G168-Inputs!$R$26) -> 0 | T168: -72461.71495 | U168: =E168*params!$C$8 -> 0
A169: 2001-01-07 | B169: 1 | C169: 7 | D169: 1 | E169: 0 | F169: 10 | G169: -1 | H169: -3 | I169: 85 | J169: =Inputs!$R$38*Inputs!$R$33*(G169-Inputs!$R$26) -> -62650.95247 | K169: =Inputs!$R$34*E169*Inputs!$R$39 -> 0 | L169: =params!$C$16*Inputs!$R$30*(G169-Inputs!$R$26) -> -9810.762482 | M169: =Inputs!$R$41*Inputs!$R$42/8760 -> 0 | N169: 0 | O169: 566.5431037 | P169: 0.00349725959 | Q169: 0.002972670652 | R169: =-N169/(1.202*2465560*MAX(0,(Inputs!$R$49-Q169))) -> 0 | S169: =params!$C$16*R169*(G169-Inputs!$R$26) -> 0 | T169: -72461.71495 | U169: =E169*params!$C$8 -> 0
A170: 2001-01-08 | B170: 1 | C170: 8 | D170: 01:00:00 | E170: 0 | F170: 10 | G170: -1 | H170: -3 | I170: 85 | J170: =Inputs!$R$38*Inputs!$R$33*(G170-Inputs!$R$26) -> -62650.95247 | K170: =Inputs!$R$34*E170*Inputs!$R$39 -> 0 | L170: =params!$C$16*Inputs!$R$30*(G170-Inputs!$R$26) -> -9810.762482 | M170: =Inputs!$R$41*Inputs!$R$42/8760 -> 0 | N170: 0 | O170: 566.5431037 | P170: 0.00349725959 | Q170: 0.002972670652 | R170: =-N170/(1.202*2465560*MAX(0,(Inputs!$R$49-Q170))) -> 0 | S170: =params!$C$16*R170*(G170-Inputs!$R$26) -> 0 | T170: -72461.71495 | U170: =E170*params!$C$8 -> 0
A171: 2001-01-08 | B171: 1 | C171: 8 | D171: 02:00:00 | E171: 0 | F171: 10 | G171: -1 | H171: -3 | I171: 85 | J171: =Inputs!$R$38*Inputs!$R$33*(G171-Inputs!$R$26) -> -62650.95247 | K171: =Inputs!$R$34*E171*Inputs!$R$39 -> 0 | L171: =params!$C$16*Inputs!$R$30*(G171-Inputs!$R$26) -> -9810.762482 | M171: =Inputs!$R$41*Inputs!$R$42/8760 -> 0 | N171: 0 | O171: 566.5431037 | P171: 0.00349725959 | Q171: 0.002972670652 | R171: =-N171/(1.202*2465560*MAX(0,(Inputs!$R$49-Q171))) -> 0 | S171: =params!$C$16*R171*(G171-Inputs!$R$26) -> 0 | T171: -72461.71495 | U171: =E171*params!$C$8 -> 0
A172: 2001-01-08 | B172: 1 | C172: 8 | D172: 03:00:00 | E172: 0 | F172: 10 | G172: -2 | H172: -3 | I172: 92 | J172: =Inputs!$R$38*Inputs!$R$33*(G172-Inputs!$R$26) -> -68346.4936 | K172: =Inputs!$R$34*E172*Inputs!$R$39 -> 0 | L172: =params!$C$16*Inputs!$R$30*(G172-Inputs!$R$26) -> -10702.64998 | M172: =Inputs!$R$41*Inputs!$R$42/8760 -> 0 | N172: 0 | O172: 526.3651631 | P172: 0.003247946807 | Q172: 0.002988111062 | R172: =-N172/(1.202*2465560*MAX(0,(Inputs!$R$49-Q172))) -> 0 | S172: =params!$C$16*R172*(G172-Inputs!$R$26) -> 0 | T172: -79049.14358 | U172: =E172*params!$C$8 -> 0
A173: 2001-01-08 | B173: 1 | C173: 8 | D173: 04:00:00 | E173: 0 | F173: 10 | G173: -2 | H173: -3 | I173: 92 | J173: =Inputs!$R$38*Inputs!$R$33*(G173-Inputs!$R$26) -> -68346.4936 | K173: =Inputs!$R$34*E173*Inputs!$R$39 -> 0 | L173: =params!$C$16*Inputs!$R$30*(G173-Inputs!$R$26) -> -10702.64998 | M173: =Inputs!$R$41*Inputs!$R$42/8760 -> 0 | N173: 0 | O173: 526.3651631 | P173: 0.003247946807 | Q173: 0.002988111062 | R173: =-N173/(1.202*2465560*MAX(0,(Inputs!$R$49-Q173))) -> 0 | S173: =params!$C$16*R173*(G173-Inputs!$R$26) -> 0 | T173: -79049.14358 | U173: =E173*params!$C$8 -> 0
A174: 2001-01-08 | B174: 1 | C174: 8 | D174: 05:00:00 | E174: 0 | F174: 10 | G174: -1 | H174: -3 | I174: 85 | J174: =Inputs!$R$38*Inputs!$R$33*(G174-Inputs!$R$26) -> -62650.95247 | K174: =Inputs!$R$34*E174*Inputs!$R$39 -> 0 | L174: =params!$C$16*Inputs!$R$30*(G174-Inputs!$R$26) -> -9810.762482 | M174: =Inputs!$R$41*Inputs!$R$42/8760 -> 0 | N174: 0 | O174: 566.5431037 | P174: 0.00349725959 | Q174: 0.002972670652 | R174: =-N174/(1.202*2465560*MAX(0,(Inputs!$R$49-Q174))) -> 0 | S174: =params!$C$16*R174*(G174-Inputs!$R$26) -> 0 | T174: -72461.71495 | U174: =E174*params!$C$8 -> 0
A175: 2001-01-08 | B175: 1 | C175: 8 | D175: 06:00:00 | E175: 0 | F175: 10 | G175: -2 | H175: -3 | I175: 92 | J175: =Inputs!$R$38*Inputs!$R$33*(G175-Inputs!$R$26) -> -68346.4936 | K175: =Inputs!$R$34*E175*Inputs!$R$39 -> 0 | L175: =params!$C$16*Inputs!$R$30*(G175-Inputs!$R$26) -> -10702.64998 | M175: =Inputs!$R$41*Inputs!$R$42/8760 -> 0 | N175: 0 | O175: 526.3651631 | P175: 0.003247946807 | Q175: 0.002988111062 | R175: =-N175/(1.202*2465560*MAX(0,(Inputs!$R$49-Q175))) -> 0 | S175: =params!$C$16*R175*(G175-Inputs!$R$26) -> 0 | T175: -79049.14358 | U175: =E175*params!$C$8 -> 0
A176: 2001-01-08 | B176: 1 | C176: 8 | D176: 07:00:00 | E176: 0 | F176: 10 | G176: -2 | H176: -3 | I176: 92 | J176: =Inputs!$R$38*Inputs!$R$33*(G176-Inputs!$R$26) -> -68346.4936 | K176: =Inputs!$R$34*E176*Inputs!$R$39 -> 0 | L176: =params!$C$16*Inputs!$R$30*(G176-Inputs!$R$26) -> -10702.64998 | M176: =Inputs!$R$41*Inputs!$R$42/8760 -> 0 | N176: 0 | O176: 526.3651631 | P176: 0.003247946807 | Q176: 0.002988111062 | R176: =-N176/(1.202*2465560*MAX(0,(Inputs!$R$49-Q176))) -> 0 | S176: =params!$C$16*R176*(G176-Inputs!$R$26) -> 0 | T176: -79049.14358 | U176: =E176*params!$C$8 -> 0
A177: 2001-01-08 | B177: 1 | C177: 8 | D177: 08:00:00 | E177: 0 | F177: 10 | G177: -2 | H177: -3 | I177: 92 | J177: =Inputs!$R$38*Inputs!$R$33*(G177-Inputs!$R$26) -> -68346.4936 | K177: =Inputs!$R$34*E177*Inputs!$R$39 -> 0 | L177: =params!$C$16*Inputs!$R$30*(G177-Inputs!$R$26) -> -10702.64998 | M177: =Inputs!$R$41*Inputs!$R$42/8760 -> 0 | N177: 0 | O177: 526.3651631 | P177: 0.003247946807 | Q177: 0.002988111062 | R177: =-N177/(1.202*2465560*MAX(0,(Inputs!$R$49-Q177))) -> 0 | S177: =params!$C$16*R177*(G177-Inputs!$R$26) -> 0 | T177: -79049.14358 | U177: =E177*params!$C$8 -> 0
A178: 2001-01-08 | B178: 1 | C178: 8 | D178: 09:00:00 | E178: 115 | F178: 10 | G178: -1 | H178: -3 | I178: 85 | J178: =Inputs!$R$38*Inputs!$R$33*(G178-Inputs!$R$26) -> -62650.95247 | K178: =Inputs!$R$34*E178*Inputs!$R$39 -> 67308.31762 | L178: =params!$C$16*Inputs!$R$30*(G178-Inputs!$R$26) -> -9810.762482 | M178: =Inputs!$R$41*Inputs!$R$42/8760 -> 0 | N178: 0 | O178: 566.5431037 | P178: 0.00349725959 | Q178: 0.002972670652 | R178: =-N178/(1.202*2465560*MAX(0,(Inputs!$R$49-Q178))) -> 0 | S178: =params!$C$16*R178*(G178-Inputs!$R$26) -> 0 | T178: -5153.397335 | U178: =E178*params!$C$8 -> 238.2225
A179: 2001-01-08 | B179: 1 | C179: 8 | D179: 10:00:00 | E179: 137 | F179: 10 | G179: -1 | H179: -2 | I179: 92 | J179: =Inputs!$R$38*Inputs!$R$33*(G179-Inputs!$R$26) -> -62650.95247 | K179: =Inputs!$R$34*E179*Inputs!$R$39 -> 80184.69142 | L179: =params!$C$16*Inputs!$R$30*(G179-Inputs!$R$26) -> -9810.762482 | M179: =Inputs!$R$41*Inputs!$R$42/8760 -> 0 | N179: 0 | O179: 566.5431037 | P179: 0.00349725959 | Q179: 0.003217478823 | R179: =-N179/(1.202*2465560*MAX(0,(Inputs!$R$49-Q179))) -> 0 | S179: =params!$C$16*R179*(G179-Inputs!$R$26) -> 0 | T179: 7722.97647 | U179: =E179*params!$C$8 -> 283.7955
A180: 2001-01-08 | B180: 1 | C180: 8 | D180: 11:00:00 | E180: 137 | F180: 10 | G180: 1 | H180: -2 | I180: 79 | J180: =Inputs!$R$38*Inputs!$R$33*(G180-Inputs!$R$26) -> -51259.8702 | K180: =Inputs!$R$34*E180*Inputs!$R$39 -> 80184.69142 | L180: =params!$C$16*Inputs!$R$30*(G180-Inputs!$R$26) -> -8026.987485 | M180: =Inputs!$R$41*Inputs!$R$42/8760 -> 0 | N180: 0 | O180: 655.1437377 | P180: 0.00404774892 | Q180: 0.003197721647 | R180: =-N180/(1.202*2465560*MAX(0,(Inputs!$R$49-Q180))) -> 0 | S180: =params!$C$16*R180*(G180-Inputs!$R$26) -> 0 | T180: 20897.83373 | U180: =E180*params!$C$8 -> 283.7955
A181: 2001-01-08 | B181: 1 | C181: 8 | D181: 12:00:00 | E181: 136 | F181: 10 | G181: 1 | H181: -2 | I181: 79 | J181: =Inputs!$R$38*Inputs!$R$33*(G181-Inputs!$R$26) -> -51259.8702 | K181: =Inputs!$R$34*E181*Inputs!$R$39 -> 79599.4017 | L181: =params!$C$16*Inputs!$R$30*(G181-Inputs!$R$26) -> -8026.987485 | M181: =Inputs!$R$41*Inputs!$R$42/8760 -> 0 | N181: 0 | O181: 655.1437377 | P181: 0.00404774892 | Q181: 0.003197721647 | R181: =-N181/(1.202*2465560*MAX(0,(Inputs!$R$49-Q181))) -> 0 | S181: =params!$C$16*R181*(G181-Inputs!$R$26) -> 0 | T181: 20312.54402 | U181: =E181*params!$C$8 -> 281.724
A182: 2001-01-08 | B182: 1 | C182: 8 | D182: 13:00:00 | E182: 107 | F182: 10 | G182: 1 | H182: -2 | I182: 79 | J182: =Inputs!$R$38*Inputs!$R$33*(G182-Inputs!$R$26) -> -51259.8702 | K182: =Inputs!$R$34*E182*Inputs!$R$39 -> 62625.99987 | L182: =params!$C$16*Inputs!$R$30*(G182-Inputs!$R$26) -> -8026.987485 | M182: =Inputs!$R$41*Inputs!$R$42/8760 -> 0 | N182: 0 | O182: 655.1437377 | P182: 0.00404774892 | Q182: 0.003197721647 | R182: =-N182/(1.202*2465560*MAX(0,(Inputs!$R$49-Q182))) -> 0 | S182: =params!$C$16*R182*(G182-Inputs!$R$26) -> 0 | T182: 3339.142182 | U182: =E182*params!$C$8 -> 221.6505
A183: 2001-01-08 | B183: 1 | C183: 8 | D183: 14:00:00 | E183: 121 | F183: 10 | G183: 1 | H183: -4 | I183: 67 | J183: =Inputs!$R$38*Inputs!$R$33*(G183-Inputs!$R$26) -> -51259.8702 | K183: =Inputs!$R$34*E183*Inputs!$R$39 -> 70820.05593 | L183: =params!$C$16*Inputs!$R$30*(G183-Inputs!$R$26) -> -8026.987485 | M183: =Inputs!$R$41*Inputs!$R$42/8760 -> 0 | N183: 0 | O183: 655.1437377 | P183: 0.00404774892 | Q183: 0.002711991777 | R183: =-N183/(1.202*2465560*MAX(0,(Inputs!$R$49-Q183))) -> 0 | S183: =params!$C$16*R183*(G183-Inputs!$R$26) -> 0 | T183: 11533.19824 | U183: =E183*params!$C$8 -> 250.6515
A184: 2001-01-08 | B184: 1 | C184: 8 | D184: 15:00:00 | E184: 98 | F184: 10 | G184: 1 | H184: -3 | I184: 72 | J184: =Inputs!$R$38*Inputs!$R$33*(G184-Inputs!$R$26) -> -51259.8702 | K184: =Inputs!$R$34*E184*Inputs!$R$39 -> 57358.3924 | L184: =params!$C$16*Inputs!$R$30*(G184-Inputs!$R$26) -> -8026.987485 | M184: =Inputs!$R$41*Inputs!$R$42/8760 -> 0 | N184: 0 | O184: 655.1437377 | P184: 0.00404774892 | Q184: 0.002914379223 | R184: =-N184/(1.202*2465560*MAX(0,(Inputs!$R$49-Q184))) -> 0 | S184: =params!$C$16*R184*(G184-Inputs!$R$26) -> 0 | T184: -1928.465284 | U184: =E184*params!$C$8 -> 203.007
A185: 2001-01-08 | B185: 1 | C185: 8 | D185: 16:00:00 | E185: 52 | F185: 10 | G185: -1 | H185: -4 | I185: 78 | J185: =Inputs!$R$38*Inputs!$R$33*(G185-Inputs!$R$26) -> -62650.95247 | K185: =Inputs!$R$34*E185*Inputs!$R$39 -> 30435.06536 | L185: =params!$C$16*Inputs!$R$30*(G185-Inputs!$R$26) -> -9810.762482 | M185: =Inputs!$R$41*Inputs!$R$42/8760 -> 0 | N185: 0 | O185: 566.5431037 | P185: 0.00349725959 | Q185: 0.00272786248 | R185: =-N185/(1.202*2465560*MAX(0,(Inputs!$R$49-Q185))) -> 0 | S185: =params!$C$16*R185*(G185-Inputs!$R$26) -> 0 | T185: -42026.64959 | U185: =E185*params!$C$8 -> 107.718
A186: 2001-01-08 | B186: 1 | C186: 8 | D186: 17:00:00 | E186: 27 | F186: 10 | G186: -2 | H186: -5 | I186: 78 | J186: =Inputs!$R$38*Inputs!$R$33*(G186-Inputs!$R$26) -> -68346.4936 | K186: =Inputs!$R$34*E186*Inputs!$R$39 -> 15802.8224 | L186: =params!$C$16*Inputs!$R$30*(G186-Inputs!$R$26) -> -10702.64998 | M186: =Inputs!$R$41*Inputs!$R$42/8760 -> 0 | N186: 0 | O186: 526.3651631 | P186: 0.003247946807 | Q186: 0.002533398509 | R186: =-N186/(1.202*2465560*MAX(0,(Inputs!$R$49-Q186))) -> 0 | S186: =params!$C$16*R186*(G186-Inputs!$R$26) -> 0 | T186: -63246.32119 | U186: =E186*params!$C$8 -> 55.9305
A187: 2001-01-08 | B187: 1 | C187: 8 | D187: 18:00:00 | E187: 0 | F187: 10 | G187: -2 | H187: -5 | I187: 78 | J187: =Inputs!$R$38*Inputs!$R$33*(G187-Inputs!$R$26) -> -68346.4936 | K187: =Inputs!$R$34*E187*Inputs!$R$39 -> 0 | L187: =params!$C$16*Inputs!$R$30*(G187-Inputs!$R$26) -> -10702.64998 | M187: =Inputs!$R$41*Inputs!$R$42/8760 -> 0 | N187: 0 | O187: 526.3651631 | P187: 0.003247946807 | Q187: 0.002533398509 | R187: =-N187/(1.202*2465560*MAX(0,(Inputs!$R$49-Q187))) -> 0 | S187: =params!$C$16*R187*(G187-Inputs!$R$26) -> 0 | T187: -79049.14358 | U187: =E187*params!$C$8 -> 0
A188: 2001-01-08 | B188: 1 | C188: 8 | D188: 19:00:00 | E188: 0 | F188: 10 | G188: -2 | H188: -5 | I188: 78 | J188: =Inputs!$R$38*Inputs!$R$33*(G188-Inputs!$R$26) -> -68346.4936 | K188: =Inputs!$R$34*E188*Inputs!$R$39 -> 0 | L188: =params!$C$16*Inputs!$R$30*(G188-Inputs!$R$26) -> -10702.64998 | M188: =Inputs!$R$41*Inputs!$R$42/8760 -> 0 | N188: 0 | O188: 526.3651631 | P188: 0.003247946807 | Q188: 0.002533398509 | R188: =-N188/(1.202*2465560*MAX(0,(Inputs!$R$49-Q188))) -> 0 | S188: =params!$C$16*R188*(G188-Inputs!$R$26) -> 0 | T188: -79049.14358 | U188: =E188*params!$C$8 -> 0
A189: 2001-01-08 | B189: 1 | C189: 8 | D189: 20:00:00 | E189: 0 | F189: 10 | G189: -2 | H189: -5 | I189: 78 | J189: =Inputs!$R$38*Inputs!$R$33*(G189-Inputs!$R$26) -> -68346.4936 | K189: =Inputs!$R$34*E189*Inputs!$R$39 -> 0 | L189: =params!$C$16*Inputs!$R$30*(G189-Inputs!$R$26) -> -10702.64998 | M189: =Inputs!$R$41*Inputs!$R$42/8760 -> 0 | N189: 0 | O189: 526.3651631 | P189: 0.003247946807 | Q189: 0.002533398509 | R189: =-N189/(1.202*2465560*MAX(0,(Inputs!$R$49-Q189))) -> 0 | S189: =params!$C$16*R189*(G189-Inputs!$R$26) -> 0 | T189: -79049.14358 | U189: =E189*params!$C$8 -> 0
A190: 2001-01-08 | B190: 1 | C190: 8 | D190: 21:00:00 | E190: 0 | F190: 10 | G190: -3 | H190: -6 | I190: 77 | J190: =Inputs!$R$38*Inputs!$R$33*(G190-Inputs!$R$26) -> -74042.03474 | K190: =Inputs!$R$34*E190*Inputs!$R$39 -> 0 | L190: =params!$C$16*Inputs!$R$30*(G190-Inputs!$R$26) -> -11594.53748 | M190: =Inputs!$R$41*Inputs!$R$42/8760 -> 0 | N190: 0 | O190: 488.7362191 | P190: 0.003014631266 | Q190: 0.002321266075 | R190: =-N190/(1.202*2465560*MAX(0,(Inputs!$R$49-Q190))) -> 0 | S190: =params!$C$16*R190*(G190-Inputs!$R$26) -> 0 | T190: -85636.57222 | U190: =E190*params!$C$8 -> 0
A191: 2001-01-08 | B191: 1 | C191: 8 | D191: 22:00:00 | E191: 0 | F191: 10 | G191: -3 | H191: -7 | I191: 71 | J191: =Inputs!$R$38*Inputs!$R$33*(G191-Inputs!$R$26) -> -74042.03474 | K191: =Inputs!$R$34*E191*Inputs!$R$39 -> 0 | L191: =params!$C$16*Inputs!$R$30*(G191-Inputs!$R$26) -> -11594.53748 | M191: =Inputs!$R$41*Inputs!$R$42/8760 -> 0 | N191: 0 | O191: 488.7362191 | P191: 0.003014631266 | Q191: 0.002140388199 | R191: =-N191/(1.202*2465560*MAX(0,(Inputs!$R$49-Q191))) -> 0 | S191: =params!$C$16*R191*(G191-Inputs!$R$26) -> 0 | T191: -85636.57222 | U191: =E191*params!$C$8 -> 0
A192: 2001-01-08 | B192: 1 | C192: 8 | D192: 23:00:00 | E192: 0 | F192: 10 | G192: -4 | H192: -7 | I192: 77 | J192: =Inputs!$R$38*Inputs!$R$33*(G192-Inputs!$R$26) -> -79737.57587 | K192: =Inputs!$R$34*E192*Inputs!$R$39 -> 0 | L192: =params!$C$16*Inputs!$R$30*(G192-Inputs!$R$26) -> -12486.42498 | M192: =Inputs!$R$41*Inputs!$R$42/8760 -> 0 | N192: 0 | O192: 453.5153204 | P192: 0.002796404355 | Q192: 0.002153231353 | R192: =-N192/(1.202*2465560*MAX(0,(Inputs!$R$49-Q192))) -> 0 | S192: =params!$C$16*R192*(G192-Inputs!$R$26) -> 0 | T192: -92224.00085 | U192: =E192*params!$C$8 -> 0
A193: 2001-01-08 | B193: 1 | C193: 8 | D193: 1 | E193: 0 | F193: 10 | G193: -4 | H193: -8 | I193: 71 | J193: =Inputs!$R$38*Inputs!$R$33*(G193-Inputs!$R$26) -> -79737.57587 | K193: =Inputs!$R$34*E193*Inputs!$R$39 -> 0 | L193: =params!$C$16*Inputs!$R$30*(G193-Inputs!$R$26) -> -12486.42498 | M193: =Inputs!$R$41*Inputs!$R$42/8760 -> 0 | N193: 0 | O193: 453.5153204 | P193: 0.002796404355 | Q193: 0.001985447092 | R193: =-N193/(1.202*2465560*MAX(0,(Inputs!$R$49-Q193))) -> 0 | S193: =params!$C$16*R193*(G193-Inputs!$R$26) -> 0 | T193: -92224.00085 | U193: =E193*params!$C$8 -> 0
A194: 2001-01-09 | B194: 1 | C194: 9 | D194: 01:00:00 | E194: 0 | F194: 10 | G194: -4 | H194: -9 | I194: 65 | J194: =Inputs!$R$38*Inputs!$R$33*(G194-Inputs!$R$26) -> -79737.57587 | K194: =Inputs!$R$34*E194*Inputs!$R$39 -> 0 | L194: =params!$C$16*Inputs!$R$30*(G194-Inputs!$R$26) -> -12486.42498 | M194: =Inputs!$R$41*Inputs!$R$42/8760 -> 0 | N194: 0 | O194: 453.5153204 | P194: 0.002796404355 | Q194: 0.00181766283 | R194: =-N194/(1.202*2465560*MAX(0,(Inputs!$R$49-Q194))) -> 0 | S194: =params!$C$16*R194*(G194-Inputs!$R$26) -> 0 | T194: -92224.00085 | U194: =E194*params!$C$8 -> 0
A195: 2001-01-09 | B195: =MONTH(A195) -> 1 | C195: =DAY(A195) -> 9 | D195: 02:00:00 | E195: 0 | F195: 10 | G195: -6 | H195: -9 | I195: 77 | J195: =Inputs!$R$38*Inputs!$R$33*(G195-Inputs!$R$26) -> -91128.65814 | K195: =Inputs!$R$34*E195*Inputs!$R$39 -> 0 | L195: =params!$C$16*Inputs!$R$30*(G195-Inputs!$R$26) -> -14270.19997 | M195: =Inputs!$R$41*Inputs!$R$42/8760 -> 0 | N195: 0 | O195: =EXP(77.345+0.0057*(G195+273.15)-7235/(G195+273.15))/(G195+273.15)^8.2 -> 389.766162 | P195: =0.62198*O195/(101325-O195) -> 0.00240180508 | Q195: =P195*I195/100 -> 0.001849389912 | R195: =-N195/(1.202*2465560*MAX(0,(Inputs!$R$49-Q195))) -> 0 | S195: =params!$C$16*R195*(G195-Inputs!$R$26) -> 0 | T195: =J195+K195+L195+M195+N195+S195 -> -105398.8581 | U195: =E195*params!$C$8 -> 0
A196: 2001-01-09 | B196: 1 | C196: 9 | D196: 03:00:00 | E196: 0 | F196: 10 | G196: -6 | H196: -10 | I196: 70 | J196: =Inputs!$R$38*Inputs!$R$33*(G196-Inputs!$R$26) -> -91128.65814 | K196: =Inputs!$R$34*E196*Inputs!$R$39 -> 0 | L196: =params!$C$16*Inputs!$R$30*(G196-Inputs!$R$26) -> -14270.19997 | M196: =Inputs!$R$41*Inputs!$R$42/8760 -> 0 | N196: 0 | O196: 389.766162 | P196: 0.00240180508 | Q196: 0.001681263556 | R196: =-N196/(1.202*2465560*MAX(0,(Inputs!$R$49-Q196))) -> 0 | S196: =params!$C$16*R196*(G196-Inputs!$R$26) -> 0 | T196: -105398.8581 | U196: =E196*params!$C$8 -> 0
A197: 2001-01-09 | B197: 1 | C197: 9 | D197: 04:00:00 | E197: 0 | F197: 10 | G197: -7 | H197: -11 | I197: 70 | J197: =Inputs!$R$38*Inputs!$R$33*(G197-Inputs!$R$26) -> -96824.19927 | K197: =Inputs!$R$34*E197*Inputs!$R$39 -> 0 | L197: =params!$C$16*Inputs!$R$30*(G197-Inputs!$R$26) -> -15162.08747 | M197: =Inputs!$R$41*Inputs!$R$42/8760 -> 0 | N197: 0 | O197: 360.9876215 | P197: 0.002223832785 | Q197: 0.00155668295 | R197: =-N197/(1.202*2465560*MAX(0,(Inputs!$R$49-Q197))) -> 0 | S197: =params!$C$16*R197*(G197-Inputs!$R$26) -> 0 | T197: -111986.2867 | U197: =E197*params!$C$8 -> 0
A198: 2001-01-09 | B198: 1 | C198: 9 | D198: 05:00:00 | E198: 0 | F198: 8 | G198: -8 | H198: -11 | I198: 77 | J198: =Inputs!$R$38*Inputs!$R$33*(G198-Inputs!$R$26) -> -102519.7404 | K198: =Inputs!$R$34*E198*Inputs!$R$39 -> 0 | L198: =params!$C$16*Inputs!$R$30*(G198-Inputs!$R$26) -> -16053.97497 | M198: =Inputs!$R$41*Inputs!$R$42/8760 -> 0 | N198: 0 | O198: 334.1161189 | P198: 0.002057745567 | Q198: 0.001584464087 | R198: =-N198/(1.202*2465560*MAX(0,(Inputs!$R$49-Q198))) -> 0 | S198: =params!$C$16*R198*(G198-Inputs!$R$26) -> 0 | T198: -118573.7154 | U198: =E198*params!$C$8 -> 0
A199: 2001-01-09 | B199: 1 | C199: 9 | D199: 06:00:00 | E199: 0 | F199: 10 | G199: -8 | H199: -12 | I199: 70 | J199: =Inputs!$R$38*Inputs!$R$33*(G199-Inputs!$R$26) -> -102519.7404 | K199: =Inputs!$R$34*E199*Inputs!$R$39 -> 0 | L199: =params!$C$16*Inputs!$R$30*(G199-Inputs!$R$26) -> -16053.97497 | M199: =Inputs!$R$41*Inputs!$R$42/8760 -> 0 | N199: 0 | O199: 334.1161189 | P199: 0.002057745567 | Q199: 0.001440421897 | R199: =-N199/(1.202*2465560*MAX(0,(Inputs!$R$49-Q199))) -> 0 | S199: =params!$C$16*R199*(G199-Inputs!$R$26) -> 0 | T199: -118573.7154 | U199: =E199*params!$C$8 -> 0
A200: 2001-01-09 | B200: 1 | C200: 9 | D200: 07:00:00 | E200: 0 | F200: 10 | G200: -9 | H200: -13 | I200: 70 | J200: =Inputs!$R$38*Inputs!$R$33*(G200-Inputs!$R$26) -> -108215.2815 | K200: =Inputs!$R$34*E200*Inputs!$R$39 -> 0 | L200: =params!$C$16*Inputs!$R$30*(G200-Inputs!$R$26) -> -16945.86247 | M200: =Inputs!$R$41*Inputs!$R$42/8760 -> 0 | N200: 0 | O200: 309.040986 | P200: 0.001902841039 | Q200: 0.001331988728 | R200: =-N200/(1.202*2465560*MAX(0,(Inputs!$R$49-Q200))) -> 0 | S200: =params!$C$16*R200*(G200-Inputs!$R$26) -> 0 | T200: -125161.144 | U200: =E200*params!$C$8 -> 0
... 4300 more rows

Sheet nyc (hidden)
A1: Date (MM/DD/YYYY) | B1: Month | C1: Day | D1: Time (HH:MM) | E1: GHI (W/m^2) | F1: TotCld (tenths) | G1: Dry-bulb (C) | H1: Dew-point (C) | I1: RHum (%) | J1: Conduction (W) | K1: Solar (W) | L1: Infiltration (W) | M1: Lights (W) | N1: ET (W) | O1: pws (Pa) | P1: hrsat (kg/kg) | Q1: hr (kg/kg) | R1: Ventilation (m3/s) | S1: Vent load (W) | T1: Htg Load (W) | U1: PAR (umol/m2/s)
A2: 1999-01-01 | B2: =MONTH(A2) -> 1 | C2: =DAY(A2) -> 1 | D2: 01:00:00 | E2: 0 | F2: 8 | G2: -4.4 | H2: -9.4 | I2: 65 | J2: =Inputs!$R$38*Inputs!$R$33*(G2-Inputs!$R$26) -> -82015.79232 | K2: =Inputs!$R$34*E2*Inputs!$R$39 -> 0 | L2: =params!$C$16*Inputs!$R$30*(G2-Inputs!$R$26) -> -12843.17998 | M2: =Inputs!$R$41*Inputs!$R$42/8760 -> 0 | N2: 0 | O2: =EXP(77.345+0.0057*(G2+273.15)-7235/(G2+273.15))/(G2+273.15)^8.2 -> 440.0708849 | P2: =0.62198*O2/(101325-O2) -> 0.002713143493 | Q2: =P2*I2/100 -> 0.001763543271 | R2: =-N2/(1.202*2465560*MAX(0,(Inputs!$R$49-Q2))) -> 0 | S2: =params!$C$16*R2*(G2-Inputs!$R$26) -> 0 | T2: =J2+K2+L2+M2+N2+S2 -> -94858.9723 | U2: =E2*params!$C$8 -> 0
A3: 1999-01-01 | B3: =MONTH(A3) -> 1 | C3: =DAY(A3) -> 1 | D3: 02:00:00 | E3: 0 | F3: 8 | G3: -4.4 | H3: -8.9 | I3: 68 | J3: =Inputs!$R$38*Inputs!$R$33*(G3-Inputs!$R$26) -> -82015.79232 | K3: =Inputs!$R$34*E3*Inputs!$R$39 -> 0 | L3: =params!$C$16*Inputs!$R$30*(G3-Inputs!$R$26) -> -12843.17998 | M3: =Inputs!$R$41*Inputs!$R$42/8760 -> 0 | N3: 0 | O3: =EXP(77.345+0.0057*(G3+273.15)-7235/(G3+273.15))/(G3+273.15)^8.2 -> 440.0708849 | P3: =0.62198*O3/(101325-O3) -> 0.002713143493 | Q3: =P3*I3/100 -> 0.001844937575 | R3: =-N3/(1.202*2465560*MAX(0,(Inputs!$R$49-Q3))) -> 0 | S3: =params!$C$16*R3*(G3-Inputs!$R$26) -> 0 | T3: =J3+K3+L3+M3+N3+S3 -> -94858.9723 | U3: =E3*params!$C$8 -> 0
A4: 1999-01-01 | B4: 1 | C4: 1 | D4: 03:00:00 | E4: 0 | F4: 10 | G4: -3.9 | H4: -9.4 | I4: 62 | J4: =Inputs!$R$38*Inputs!$R$33*(G4-Inputs!$R$26) -> -79168.02176 | K4: =Inputs!$R$34*E4*Inputs!$R$39 -> 0 | L4: =params!$C$16*Inputs!$R$30*(G4-Inputs!$R$26) -> -12397.23623 | M4: =Inputs!$R$41*Inputs!$R$42/8760 -> 0 | N4: 0 | O4: 456.9329299 | P4: 0.002817573014 | Q4: 0.001746895268 | R4: =-N4/(1.202*2465560*MAX(0,(Inputs!$R$49-Q4))) -> 0 | S4: =params!$C$16*R4*(G4-Inputs!$R$26) -> 0 | T4: -91565.25798 | U4: =E4*params!$C$8 -> 0
A5: 1999-01-01 | B5: 1 | C5: 1 | D5: 04:00:00 | E5: 0 | F5: 10 | G5: -3.3 | H5: -10 | I5: 56 | J5: =Inputs!$R$38*Inputs!$R$33*(G5-Inputs!$R$26) -> -75750.69708 | K5: =Inputs!$R$34*E5*Inputs!$R$39 -> 0 | L5: =params!$C$16*Inputs!$R$30*(G5-Inputs!$R$26) -> -11862.10373 | M5: =Inputs!$R$41*Inputs!$R$42/8760 -> 0 | N5: 0 | O5: 477.9233457 | P5: 0.002947619033 | Q5: 0.001650666659 | R5: =-N5/(1.202*2465560*MAX(0,(Inputs!$R$49-Q5))) -> 0 | S5: =params!$C$16*R5*(G5-Inputs!$R$26) -> 0 | T5: -87612.80081 | U5: =E5*params!$C$8 -> 0
A6: 1999-01-01 | B6: 1 | C6: 1 | D6: 05:00:00 | E6: 0 | F6: 8 | G6: -3.3 | H6: -9.4 | I6: 59 | J6: =Inputs!$R$38*Inputs!$R$33*(G6-Inputs!$R$26) -> -75750.69708 | K6: =Inputs!$R$34*E6*Inputs!$R$39 -> 0 | L6: =params!$C$16*Inputs!$R$30*(G6-Inputs!$R$26) -> -11862.10373 | M6: =Inputs!$R$41*Inputs!$R$42/8760 -> 0 | N6: 0 | O6: 477.9233457 | P6: 0.002947619033 | Q6: 0.00173909523 | R6: =-N6/(1.202*2465560*MAX(0,(Inputs!$R$49-Q6))) -> 0 | S6: =params!$C$16*R6*(G6-Inputs!$R$26) -> 0 | T6: -87612.80081 | U6: =E6*params!$C$8 -> 0
A7: 1999-01-01 | B7: 1 | C7: 1 | D7: 06:00:00 | E7: 0 | F7: 8 | G7: -3.9 | H7: -9.4 | I7: 62 | J7: =Inputs!$R$38*Inputs!$R$33*(G7-Inputs!$R$26) -> -79168.02176 | K7: =Inputs!$R$34*E7*Inputs!$R$39 -> 0 | L7: =params!$C$16*Inputs!$R$30*(G7-Inputs!$R$26) -> -12397.23623 | M7: =Inputs!$R$41*Inputs!$R$42/8760 -> 0 | N7: 0 | O7: 456.9329299 | P7: 0.002817573014 | Q7: 0.001746895268 | R7: =-N7/(1.202*2465560*MAX(0,(Inputs!$R$49-Q7))) -> 0 | S7: =params!$C$16*R7*(G7-Inputs!$R$26) -> 0 | T7: -91565.25798 | U7: =E7*params!$C$8 -> 0
A8: 1999-01-01 | B8: 1 | C8: 1 | D8: 07:00:00 | E8: 0 | F8: 5 | G8: -4.4 | H8: -8.9 | I8: 68 | J8: =Inputs!$R$38*Inputs!$R$33*(G8-Inputs!$R$26) -> -82015.79232 | K8: =Inputs!$R$34*E8*Inputs!$R$39 -> 0 | L8: =params!$C$16*Inputs!$R$30*(G8-Inputs!$R$26) -> -12843.17998 | M8: =Inputs!$R$41*Inputs!$R$42/8760 -> 0 | N8: 0 | O8: 440.0708849 | P8: 0.002713143493 | Q8: 0.001844937575 | R8: =-N8/(1.202*2465560*MAX(0,(Inputs!$R$49-Q8))) -> 0 | S8: =params!$C$16*R8*(G8-Inputs!$R$26) -> 0 | T8: -94858.9723 | U8: =E8*params!$C$8 -> 0
A9: 1999-01-01 | B9: 1 | C9: 1 | D9: 08:00:00 | E9: 5 | F9: 4 | G9: -3.3 | H9: -9.4 | I9: 59 | J9: =Inputs!$R$38*Inputs!$R$33*(G9-Inputs!$R$26) -> -75750.69708 | K9: =Inputs!$R$34*E9*Inputs!$R$39 -> 2926.448592 | L9: =params!$C$16*Inputs!$R$30*(G9-Inputs!$R$26) -> -11862.10373 | M9: =Inputs!$R$41*Inputs!$R$42/8760 -> 0 | N9: 0 | O9: 477.9233457 | P9: 0.002947619033 | Q9: 0.00173909523 | R9: =-N9/(1.202*2465560*MAX(0,(Inputs!$R$49-Q9))) -> 0 | S9: =params!$C$16*R9*(G9-Inputs!$R$26) -> 0 | T9: -84686.35221 | U9: =E9*params!$C$8 -> 10.3575
A10: 1999-01-01 | B10: 1 | C10: 1 | D10: 09:00:00 | E10: 131 | F10: 3 | G10: -2.8 | H10: -11.1 | I10: 49 | J10: =Inputs!$R$38*Inputs!$R$33*(G10-Inputs!$R$26) -> -72902.92651 | K10: =Inputs!$R$34*E10*Inputs!$R$39 -> 76672.95311 | L10: =params!$C$16*Inputs!$R$30*(G10-Inputs!$R$26) -> -11416.15998 | M10: =Inputs!$R$41*Inputs!$R$42/8760 -> 0 | N10: 0 | O10: 496.064949 | P10: 0.003060058869 | Q10: 0.001499428846 | R10: =-N10/(1.202*2465560*MAX(0,(Inputs!$R$49-Q10))) -> 0 | S10: =params!$C$16*R10*(G10-Inputs!$R$26) -> 0 | T10: -7646.133378 | U10: =E10*params!$C$8 -> 271.3665
A11: 1999-01-01 | B11: 1 | C11: 1 | D11: 10:00:00 | E11: 270 | F11: 3 | G11: -2.2 | H11: -13.3 | I11: 38 | J11: =Inputs!$R$38*Inputs!$R$33*(G11-Inputs!$R$26) -> -69485.60183 | K11: =Inputs!$R$34*E11*Inputs!$R$39 -> 158028.224 | L11: =params!$C$16*Inputs!$R$30*(G11-Inputs!$R$26) -> -10881.02748 | M11: =Inputs!$R$41*Inputs!$R$42/8760 -> 0 | N11: 0 | O11: 518.6400606 | P11: 0.003200033659 | Q11: 0.001216012791 | R11: =-N11/(1.202*2465560*MAX(0,(Inputs!$R$49-Q11))) -> 0 | S11: =params!$C$16*R11*(G11-Inputs!$R$26) -> 0 | T11: 77661.59466 | U11: =E11*params!$C$8 -> 559.305
A12: 1999-01-01 | B12: 1 | C12: 1 | D12: 11:00:00 | E12: 346 | F12: 5 | G12: -1.1 | H12: -13.3 | I12: 35 | J12: =Inputs!$R$38*Inputs!$R$33*(G12-Inputs!$R$26) -> -63220.50658 | K12: =Inputs!$R$34*E12*Inputs!$R$39 -> 202510.2426 | L12: =params!$C$16*Inputs!$R$30*(G12-Inputs!$R$26) -> -9899.951232 | M12: =Inputs!$R$41*Inputs!$R$42/8760 -> 0 | N12: 0 | O12: 562.4064494 | P12: 0.003471581577 | Q12: 0.001215053552 | R12: =-N12/(1.202*2465560*MAX(0,(Inputs!$R$49-Q12))) -> 0 | S12: =params!$C$16*R12*(G12-Inputs!$R$26) -> 0 | T12: 129389.7848 | U12: =E12*params!$C$8 -> 716.739
A13: 1999-01-01 | B13: 1 | C13: 1 | D13: 12:00:00 | E13: 264 | F13: 8 | G13: -1.7 | H13: -14.4 | I13: 33 | J13: =Inputs!$R$38*Inputs!$R$33*(G13-Inputs!$R$26) -> -66637.83126 | K13: =Inputs!$R$34*E13*Inputs!$R$39 -> 154516.4857 | L13: =params!$C$16*Inputs!$R$30*(G13-Inputs!$R$26) -> -10435.08373 | M13: =Inputs!$R$41*Inputs!$R$42/8760 -> 0 | N13: 0 | O13: 538.144313 | P13: 0.003321018376 | Q13: 0.001095936064 | R13: =-N13/(1.202*2465560*MAX(0,(Inputs!$R$49-Q13))) -> 0 | S13: =params!$C$16*R13*(G13-Inputs!$R$26) -> 0 | T13: 77443.57067 | U13: =E13*params!$C$8 -> 546.876
A14: 1999-01-01 | B14: 1 | C14: 1 | D14: 13:00:00 | E14: 390 | F14: 8 | G14: -2.2 | H14: -15 | I14: 32 | J14: =Inputs!$R$38*Inputs!$R$33*(G14-Inputs!$R$26) -> -69485.60183 | K14: =Inputs!$R$34*E14*Inputs!$R$39 -> 228262.9902 | L14: =params!$C$16*Inputs!$R$30*(G14-Inputs!$R$26) -> -10881.02748 | M14: =Inputs!$R$41*Inputs!$R$42/8760 -> 0 | N14: 0 | O14: 518.6400606 | P14: 0.003200033659 | Q14: 0.001024010771 | R14: =-N14/(1.202*2465560*MAX(0,(Inputs!$R$49-Q14))) -> 0 | S14: =params!$C$16*R14*(G14-Inputs!$R$26) -> 0 | T14: 147896.3609 | U14: =E14*params!$C$8 -> 807.885
A15: 1999-01-01 | B15: 1 | C15: 1 | D15: 14:00:00 | E15: 74 | F15: 8 | G15: -3.3 | H15: -12.2 | I15: 46 | J15: =Inputs!$R$38*Inputs!$R$33*(G15-Inputs!$R$26) -> -75750.69708 | K15: =Inputs!$R$34*E15*Inputs!$R$39 -> 43311.43916 | L15: =params!$C$16*Inputs!$R$30*(G15-Inputs!$R$26) -> -11862.10373 | M15: =Inputs!$R$41*Inputs!$R$42/8760 -> 0 | N15: 0 | O15: 477.9233457 | P15: 0.002947619033 | Q15: 0.001355904755 | R15: =-N15/(1.202*2465560*MAX(0,(Inputs!$R$49-Q15))) -> 0 | S15: =params!$C$16*R15*(G15-Inputs!$R$26) -> 0 | T15: -44301.36164 | U15: =E15*params!$C$8 -> 153.291
A16: 1999-01-01 | B16: 1 | C16: 1 | D16: 15:00:00 | E16: 207 | F16: 5 | G16: -2.8 | H16: -15.6 | I16: 32 | J16: =Inputs!$R$38*Inputs!$R$33*(G16-Inputs!$R$26) -> -72902.92651 | K16: =Inputs!$R$34*E16*Inputs!$R$39 -> 121154.9717 | L16: =params!$C$16*Inputs!$R$30*(G16-Inputs!$R$26) -> -11416.15998 | M16: =Inputs!$R$41*Inputs!$R$42/8760 -> 0 | N16: 0 | O16: 496.064949 | P16: 0.003060058869 | Q16: 0.0009792188382 | R16: =-N16/(1.202*2465560*MAX(0,(Inputs!$R$49-Q16))) -> 0 | S16: =params!$C$16*R16*(G16-Inputs!$R$26) -> 0 | T16: 36835.88522 | U16: =E16*params!$C$8 -> 428.8005
A17: 1999-01-01 | B17: 1 | C17: 1 | D17: 16:00:00 | E17: 72 | F17: 4 | G17: -2.8 | H17: -18.9 | I17: 24 | J17: =Inputs!$R$38*Inputs!$R$33*(G17-Inputs!$R$26) -> -72902.92651 | K17: =Inputs!$R$34*E17*Inputs!$R$39 -> 42140.85973 | L17: =params!$C$16*Inputs!$R$30*(G17-Inputs!$R$26) -> -11416.15998 | M17: =Inputs!$R$41*Inputs!$R$42/8760 -> 0 | N17: 0 | O17: 496.064949 | P17: 0.003060058869 | Q17: 0.0007344141287 | R17: =-N17/(1.202*2465560*MAX(0,(Inputs!$R$49-Q17))) -> 0 | S17: =params!$C$16*R17*(G17-Inputs!$R$26) -> 0 | T17: -42178.22676 | U17: =E17*params!$C$8 -> 149.148
A18: 1999-01-01 | B18: 1 | C18: 1 | D18: 17:00:00 | E18: 5 | F18: 5 | G18: -5 | H18: -16.7 | I18: 35 | J18: =Inputs!$R$38*Inputs!$R$33*(G18-Inputs!$R$26) -> -85433.117 | K18: =Inputs!$R$34*E18*Inputs!$R$39 -> 2926.448592 | L18: =params!$C$16*Inputs!$R$30*(G18-Inputs!$R$26) -> -13378.31248 | M18: =Inputs!$R$41*Inputs!$R$42/8760 -> 0 | N18: 0 | O18: 420.5680235 | P18: 0.002592402475 | Q18: 0.0009073408664 | R18: =-N18/(1.202*2465560*MAX(0,(Inputs!$R$49-Q18))) -> 0 | S18: =params!$C$16*R18*(G18-Inputs!$R$26) -> 0 | T18: -95884.98089 | U18: =E18*params!$C$8 -> 10.3575
A19: 1999-01-01 | B19: 1 | C19: 1 | D19: 18:00:00 | E19: 0 | F19: 3 | G19: -5.6 | H19: -18.9 | I19: 30 | J19: =Inputs!$R$38*Inputs!$R$33*(G19-Inputs!$R$26) -> -88850.44168 | K19: =Inputs!$R$34*E19*Inputs!$R$39 -> 0 | L19: =params!$C$16*Inputs!$R$30*(G19-Inputs!$R$26) -> -13913.44497 | M19: =Inputs!$R$41*Inputs!$R$42/8760 -> 0 | N19: 0 | O19: 401.8374026 | P19: 0.002476486282 | Q19: 0.0007429458845 | R19: =-N19/(1.202*2465560*MAX(0,(Inputs!$R$49-Q19))) -> 0 | S19: =params!$C$16*R19*(G19-Inputs!$R$26) -> 0 | T19: -102763.8867 | U19: =E19*params!$C$8 -> 0
A20: 1999-01-01 | B20: 1 | C20: 1 | D20: 19:00:00 | E20: 0 | F20: 9 | G20: -6.1 | H20: -18.9 | I20: 31 | J20: =Inputs!$R$38*Inputs!$R$33*(G20-Inputs!$R$26) -> -91698.21225 | K20: =Inputs!$R$34*E20*Inputs!$R$39 -> 0 | L20: =params!$C$16*Inputs!$R$30*(G20-Inputs!$R$26) -> -14359.38872 | M20: =Inputs!$R$41*Inputs!$R$42/8760 -> 0 | N20: 0 | O20: 386.7992221 | P20: 0.002383452234 | Q20: 0.0007388701927 | R20: =-N20/(1.202*2465560*MAX(0,(Inputs!$R$49-Q20))) -> 0 | S20: =params!$C$16*R20*(G20-Inputs!$R$26) -> 0 | T20: -106057.601 | U20: =E20*params!$C$8 -> 0
A21: 1999-01-01 | B21: 1 | C21: 1 | D21: 20:00:00 | E21: 0 | F21: 3 | G21: -6.7 | H21: -18.9 | I21: 33 | J21: =Inputs!$R$38*Inputs!$R$33*(G21-Inputs!$R$26) -> -95115.53693 | K21: =Inputs!$R$34*E21*Inputs!$R$39 -> 0 | L21: =params!$C$16*Inputs!$R$30*(G21-Inputs!$R$26) -> -14894.52122 | M21: =Inputs!$R$41*Inputs!$R$42/8760 -> 0 | N21: 0 | O21: 369.4157643 | P21: 0.002275943612 | Q21: 0.0007510613921 | R21: =-N21/(1.202*2465560*MAX(0,(Inputs!$R$49-Q21))) -> 0 | S21: =params!$C$16*R21*(G21-Inputs!$R$26) -> 0 | T21: -110010.0582 | U21: =E21*params!$C$8 -> 0
A22: 1999-01-01 | B22: 1 | C22: 1 | D22: 21:00:00 | E22: 0 | F22: 0 | G22: -8.3 | H22: -23.9 | I22: 23 | J22: =Inputs!$R$38*Inputs!$R$33*(G22-Inputs!$R$26) -> -104228.4027 | K22: =Inputs!$R$34*E22*Inputs!$R$39 -> 0 | L22: =params!$C$16*Inputs!$R$30*(G22-Inputs!$R$26) -> -16321.54122 | M22: =Inputs!$R$41*Inputs!$R$42/8760 -> 0 | N22: 0 | O22: 326.4098523 | P22: 0.002010131029 | Q22: 0.0004623301367 | R22: =-N22/(1.202*2465560*MAX(0,(Inputs!$R$49-Q22))) -> 0 | S22: =params!$C$16*R22*(G22-Inputs!$R$26) -> 0 | T22: -120549.944 | U22: =E22*params!$C$8 -> 0
A23: 1999-01-01 | B23: 1 | C23: 1 | D23: 22:00:00 | E23: 0 | F23: 0 | G23: -9.4 | H23: -23.9 | I23: 26 | J23: =Inputs!$R$38*Inputs!$R$33*(G23-Inputs!$R$26) -> -110493.498 | K23: =Inputs!$R$34*E23*Inputs!$R$39 -> 0 | L23: =params!$C$16*Inputs!$R$30*(G23-Inputs!$R$26) -> -17302.61747 | M23: =Inputs!$R$41*Inputs!$R$42/8760 -> 0 | N23: 0 | O23: 299.4901605 | P23: 0.001843859935 | Q23: 0.0004794035831 | R23: =-N23/(1.202*2465560*MAX(0,(Inputs!$R$49-Q23))) -> 0 | S23: =params!$C$16*R23*(G23-Inputs!$R$26) -> 0 | T23: -127796.1155 | U23: =E23*params!$C$8 -> 0
A24: 1999-01-01 | B24: 1 | C24: 1 | D24: 23:00:00 | E24: 0 | F24: 2 | G24: -10 | H24: -23.3 | I24: 29 | J24: =Inputs!$R$38*Inputs!$R$33*(G24-Inputs!$R$26) -> -113910.8227 | K24: =Inputs!$R$34*E24*Inputs!$R$39 -> 0 | L24: =params!$C$16*Inputs!$R$30*(G24-Inputs!$R$26) -> -17837.74997 | M24: =Inputs!$R$41*Inputs!$R$42/8760 -> 0 | N24: 0 | O24: 285.6569595 | P24: 0.0017584528 | Q24: 0.0005099513119 | R24: =-N24/(1.202*2465560*MAX(0,(Inputs!$R$49-Q24))) -> 0 | S24: =params!$C$16*R24*(G24-Inputs!$R$26) -> 0 | T24: -131748.5726 | U24: =E24*params!$C$8 -> 0
A25: 1999-01-01 | B25: 1 | C25: 1 | D25: 1 | E25: 0 | F25: 1 | G25: -10.6 | H25: -21.7 | I25: 36 | J25: =Inputs!$R$38*Inputs!$R$33*(G25-Inputs!$R$26) -> -117328.1474 | K25: =Inputs!$R$34*E25*Inputs!$R$39 -> 0 | L25: =params!$C$16*Inputs!$R$30*(G25-Inputs!$R$26) -> -18372.88247 | M25: =Inputs!$R$41*Inputs!$R$42/8760 -> 0 | N25: 0 | O25: 272.3964376 | P25: 0.001676603376 | Q25: 0.0006035772152 | R25: =-N25/(1.202*2465560*MAX(0,(Inputs!$R$49-Q25))) -> 0 | S25: =params!$C$16*R25*(G25-Inputs!$R$26) -> 0 | T25: -135701.0298 | U25: =E25*params!$C$8 -> 0
A26: 1999-01-02 | B26: 1 | C26: 2 | D26: 01:00:00 | E26: 0 | F26: 1 | G26: -11.1 | H26: -21.1 | I26: 39 | J26: =Inputs!$R$38*Inputs!$R$33*(G26-Inputs!$R$26) -> -120175.9179 | K26: =Inputs!$R$34*E26*Inputs!$R$39 -> 0 | L26: =params!$C$16*Inputs!$R$30*(G26-Inputs!$R$26) -> -18818.82622 | M26: =Inputs!$R$41*Inputs!$R$42/8760 -> 0 | N26: 0 | O26: 261.7684813 | P26: 0.001611018741 | Q26: 0.0006282973091 | R26: =-N26/(1.202*2465560*MAX(0,(Inputs!$R$49-Q26))) -> 0 | S26: =params!$C$16*R26*(G26-Inputs!$R$26) -> 0 | T26: -138994.7441 | U26: =E26*params!$C$8 -> 0
A27: 1999-01-02 | B27: 1 | C27: 2 | D27: 02:00:00 | E27: 0 | F27: 4 | G27: -11.7 | H27: -21.1 | I27: 42 | J27: =Inputs!$R$38*Inputs!$R$33*(G27-Inputs!$R$26) -> -123593.2426 | K27: =Inputs!$R$34*E27*Inputs!$R$39 -> 0 | L27: =params!$C$16*Inputs!$R$30*(G27-Inputs!$R$26) -> -19353.95871 | M27: =Inputs!$R$41*Inputs!$R$42/8760 -> 0 | N27: 0 | O27: 249.5044524 | P27: 0.001535355117 | Q27: 0.0006448491492 | R27: =-N27/(1.202*2465560*MAX(0,(Inputs!$R$49-Q27))) -> 0 | S27: =params!$C$16*R27*(G27-Inputs!$R$26) -> 0 | T27: -142947.2013 | U27: =E27*params!$C$8 -> 0
A28: 1999-01-02 | B28: 1 | C28: 2 | D28: 03:00:00 | E28: 0 | F28: 0 | G28: -11.7 | H28: -20.6 | I28: 44 | J28: =Inputs!$R$38*Inputs!$R$33*(G28-Inputs!$R$26) -> -123593.2426 | K28: =Inputs!$R$34*E28*Inputs!$R$39 -> 0 | L28: =params!$C$16*Inputs!$R$30*(G28-Inputs!$R$26) -> -19353.95871 | M28: =Inputs!$R$41*Inputs!$R$42/8760 -> 0 | N28: 0 | O28: 249.5044524 | P28: 0.001535355117 | Q28: 0.0006755562515 | R28: =-N28/(1.202*2465560*MAX(0,(Inputs!$R$49-Q28))) -> 0 | S28: =params!$C$16*R28*(G28-Inputs!$R$26) -> 0 | T28: -142947.2013 | U28: =E28*params!$C$8 -> 0
A29: 1999-01-02 | B29: 1 | C29: 2 | D29: 04:00:00 | E29: 0 | F29: 1 | G29: -11.7 | H29: -20 | I29: 46 | J29: =Inputs!$R$38*Inputs!$R$33*(G29-Inputs!$R$26) -> -123593.2426 | K29: =Inputs!$R$34*E29*Inputs!$R$39 -> 0 | L29: =params!$C$16*Inputs!$R$30*(G29-Inputs!$R$26) -> -19353.95871 | M29: =Inputs!$R$41*Inputs!$R$42/8760 -> 0 | N29: 0 | O29: 249.5044524 | P29: 0.001535355117 | Q29: 0.0007062633539 | R29: =-N29/(1.202*2465560*MAX(0,(Inputs!$R$49-Q29))) -> 0 | S29: =params!$C$16*R29*(G29-Inputs!$R$26) -> 0 | T29: -142947.2013 | U29: =E29*params!$C$8 -> 0
A30: 1999-01-02 | B30: 1 | C30: 2 | D30: 05:00:00 | E30: 0 | F30: 1 | G30: -12.2 | H30: -19.4 | I30: 51 | J30: =Inputs!$R$38*Inputs!$R$33*(G30-Inputs!$R$26) -> -126441.0132 | K30: =Inputs!$R$34*E30*Inputs!$R$39 -> 0 | L30: =params!$C$16*Inputs!$R$30*(G30-Inputs!$R$26) -> -19799.90246 | M30: =Inputs!$R$41*Inputs!$R$42/8760 -> 0 | N30: 0 | O30: 239.6790549 | P30: 0.001474750015 | Q30: 0.0007521225076 | R30: =-N30/(1.202*2465560*MAX(0,(Inputs!$R$49-Q30))) -> 0 | S30: =params!$C$16*R30*(G30-Inputs!$R$26) -> 0 | T30: -146240.9156 | U30: =E30*params!$C$8 -> 0
A31: 1999-01-02 | B31: 1 | C31: 2 | D31: 06:00:00 | E31: 0 | F31: 3 | G31: -11.7 | H31: -19.4 | I31: 49 | J31: =Inputs!$R$38*Inputs!$R$33*(G31-Inputs!$R$26) -> -123593.2426 | K31: =Inputs!$R$34*E31*Inputs!$R$39 -> 0 | L31: =params!$C$16*Inputs!$R$30*(G31-Inputs!$R$26) -> -19353.95871 | M31: =Inputs!$R$41*Inputs!$R$42/8760 -> 0 | N31: 0 | O31: 249.5044524 | P31: 0.001535355117 | Q31: 0.0007523240074 | R31: =-N31/(1.202*2465560*MAX(0,(Inputs!$R$49-Q31))) -> 0 | S31: =params!$C$16*R31*(G31-Inputs!$R$26) -> 0 | T31: -142947.2013 | U31: =E31*params!$C$8 -> 0
A32: 1999-01-02 | B32: 1 | C32: 2 | D32: 07:00:00 | E32: 0 | F32: 3 | G32: -11.7 | H32: -19.4 | I32: 49 | J32: =Inputs!$R$38*Inputs!$R$33*(G32-Inputs!$R$26) -> -123593.2426 | K32: =Inputs!$R$34*E32*Inputs!$R$39 -> 0 | L32: =params!$C$16*Inputs!$R$30*(G32-Inputs!$R$26) -> -19353.95871 | M32: =Inputs!$R$41*Inputs!$R$42/8760 -> 0 | N32: 0 | O32: 249.5044524 | P32: 0.001535355117 | Q32: 0.0007523240074 | R32: =-N32/(1.202*2465560*MAX(0,(Inputs!$R$49-Q32))) -> 0 | S32: =params!$C$16*R32*(G32-Inputs!$R$26) -> 0 | T32: -142947.2013 | U32: =E32*params!$C$8 -> 0
A33: 1999-01-02 | B33: 1 | C33: 2 | D33: 08:00:00 | E33: 5 | F33: 4 | G33: -11.1 | H33: -18.9 | I33: 49 | J33: =Inputs!$R$38*Inputs!$R$33*(G33-Inputs!$R$26) -> -120175.9179 | K33: =Inputs!$R$34*E33*Inputs!$R$39 -> 2926.448592 | L33: =params!$C$16*Inputs!$R$30*(G33-Inputs!$R$26) -> -18818.82622 | M33: =Inputs!$R$41*Inputs!$R$42/8760 -> 0 | N33: 0 | O33: 261.7684813 | P33: 0.001611018741 | Q33: 0.0007893991832 | R33: =-N33/(1.202*2465560*MAX(0,(Inputs!$R$49-Q33))) -> 0 | S33: =params!$C$16*R33*(G33-Inputs!$R$26) -> 0 | T33: -136068.2955 | U33: =E33*params!$C$8 -> 10.3575
A34: 1999-01-02 | B34: 1 | C34: 2 | D34: 09:00:00 | E34: 148 | F34: 4 | G34: -10.6 | H34: -18.9 | I34: 47 | J34: =Inputs!$R$38*Inputs!$R$33*(G34-Inputs!$R$26) -> -117328.1474 | K34: =Inputs!$R$34*E34*Inputs!$R$39 -> 86622.87832 | L34: =params!$C$16*Inputs!$R$30*(G34-Inputs!$R$26) -> -18372.88247 | M34: =Inputs!$R$41*Inputs!$R$42/8760 -> 0 | N34: 0 | O34: 272.3964376 | P34: 0.001676603376 | Q34: 0.0007880035865 | R34: =-N34/(1.202*2465560*MAX(0,(Inputs!$R$49-Q34))) -> 0 | S34: =params!$C$16*R34*(G34-Inputs!$R$26) -> 0 | T34: -49078.15149 | U34: =E34*params!$C$8 -> 306.582
A35: 1999-01-02 | B35: 1 | C35: 2 | D35: 10:00:00 | E35: 194 | F35: 8 | G35: -8.9 | H35: -18.9 | I35: 40 | J35: =Inputs!$R$38*Inputs!$R$33*(G35-Inputs!$R$26) -> -107645.7274 | K35: =Inputs!$R$34*E35*Inputs!$R$39 -> 113546.2054 | L35: =params!$C$16*Inputs!$R$30*(G35-Inputs!$R$26) -> -16856.67372 | M35: =Inputs!$R$41*Inputs!$R$42/8760 -> 0 | N35: 0 | O35: 311.470704 | P35: 0.001917847538 | Q35: 0.0007671390153 | R35: =-N35/(1.202*2465560*MAX(0,(Inputs!$R$49-Q35))) -> 0 | S35: =params!$C$16*R35*(G35-Inputs!$R$26) -> 0 | T35: -10956.19577 | U35: =E35*params!$C$8 -> 401.871
A36: 1999-01-02 | B36: 1 | C36: 2 | D36: 11:00:00 | E36: 314 | F36: 6 | G36: -8.3 | H36: -19.4 | I36: 36 | J36: =Inputs!$R$38*Inputs!$R$33*(G36-Inputs!$R$26) -> -104228.4027 | K36: =Inputs!$R$34*E36*Inputs!$R$39 -> 183780.9716 | L36: =params!$C$16*Inputs!$R$30*(G36-Inputs!$R$26) -> -16321.54122 | M36: =Inputs!$R$41*Inputs!$R$42/8760 -> 0 | N36: 0 | O36: 326.4098523 | P36: 0.002010131029 | Q36: 0.0007236471704 | R36: =-N36/(1.202*2465560*MAX(0,(Inputs!$R$49-Q36))) -> 0 | S36: =params!$C$16*R36*(G36-Inputs!$R$26) -> 0 | T36: 63231.02762 | U36: =E36*params!$C$8 -> 650.451
A37: 1999-01-02 | B37: 1 | C37: 2 | D37: 12:00:00 | E37: 380 | F37: 5 | G37: -7.2 | H37: -18.3 | I37: 37 | J37: =Inputs!$R$38*Inputs!$R$33*(G37-Inputs!$R$26) -> -97963.3075 | K37: =Inputs!$R$34*E37*Inputs!$R$39 -> 222410.093 | L37: =params!$C$16*Inputs!$R$30*(G37-Inputs!$R$26) -> -15340.46497 | M37: =Inputs!$R$41*Inputs!$R$42/8760 -> 0 | N37: 0 | O37: 355.4643789 | P37: 0.002189687543 | Q37: 0.0008101843909 | R37: =-N37/(1.202*2465560*MAX(0,(Inputs!$R$49-Q37))) -> 0 | S37: =params!$C$16*R37*(G37-Inputs!$R$26) -> 0 | T37: 109106.3205 | U37: =E37*params!$C$8 -> 787.17
A38: 1999-01-02 | B38: 1 | C38: 2 | D38: 13:00:00 | E38: 331 | F38: 8 | G38: -6.1 | H38: -17.8 | I38: 35 | J38: =Inputs!$R$38*Inputs!$R$33*(G38-Inputs!$R$26) -> -91698.21225 | K38: =Inputs!$R$34*E38*Inputs!$R$39 -> 193730.8968 | L38: =params!$C$16*Inputs!$R$30*(G38-Inputs!$R$26) -> -14359.38872 | M38: =Inputs!$R$41*Inputs!$R$42/8760 -> 0 | N38: 0 | O38: 386.7992221 | P38: 0.002383452234 | Q38: 0.000834208282 | R38: =-N38/(1.202*2465560*MAX(0,(Inputs!$R$49-Q38))) -> 0 | S38: =params!$C$16*R38*(G38-Inputs!$R$26) -> 0 | T38: 87673.29582 | U38: =E38*params!$C$8 -> 685.6665
A39: 1999-01-02 | B39: 1 | C39: 2 | D39: 14:00:00 | E39: 221 | F39: 10 | G39: -6.1 | H39: -17.8 | I39: 35 | J39: =Inputs!$R$38*Inputs!$R$33*(G39-Inputs!$R$26) -> -91698.21225 | K39: =Inputs!$R$34*E39*Inputs!$R$39 -> 129349.0278 | L39: =params!$C$16*Inputs!$R$30*(G39-Inputs!$R$26) -> -14359.38872 | M39: =Inputs!$R$41*Inputs!$R$42/8760 -> 0 | N39: 0 | O39: 386.7992221 | P39: 0.002383452234 | Q39: 0.000834208282 | R39: =-N39/(1.202*2465560*MAX(0,(Inputs!$R$49-Q39))) -> 0 | S39: =params!$C$16*R39*(G39-Inputs!$R$26) -> 0 | T39: 23291.42679 | U39: =E39*params!$C$8 -> 457.8015
A40: 1999-01-02 | B40: 1 | C40: 2 | D40: 15:00:00 | E40: 85 | F40: 7 | G40: -6.1 | H40: -18.3 | I40: 33 | J40: =Inputs!$R$38*Inputs!$R$33*(G40-Inputs!$R$26) -> -91698.21225 | K40: =Inputs!$R$34*E40*Inputs!$R$39 -> 49749.62606 | L40: =params!$C$16*Inputs!$R$30*(G40-Inputs!$R$26) -> -14359.38872 | M40: =Inputs!$R$41*Inputs!$R$42/8760 -> 0 | N40: 0 | O40: 386.7992221 | P40: 0.002383452234 | Q40: 0.0007865392373 | R40: =-N40/(1.202*2465560*MAX(0,(Inputs!$R$49-Q40))) -> 0 | S40: =params!$C$16*R40*(G40-Inputs!$R$26) -> 0 | T40: -56307.97491 | U40: =E40*params!$C$8 -> 176.0775
A41: 1999-01-02 | B41: 1 | C41: 2 | D41: 16:00:00 | E41: 76 | F41: 8 | G41: -6.1 | H41: -17.8 | I41: 35 | J41: =Inputs!$R$38*Inputs!$R$33*(G41-Inputs!$R$26) -> -91698.21225 | K41: =Inputs!$R$34*E41*Inputs!$R$39 -> 44482.0186 | L41: =params!$C$16*Inputs!$R$30*(G41-Inputs!$R$26) -> -14359.38872 | M41: =Inputs!$R$41*Inputs!$R$42/8760 -> 0 | N41: 0 | O41: 386.7992221 | P41: 0.002383452234 | Q41: 0.000834208282 | R41: =-N41/(1.202*2465560*MAX(0,(Inputs!$R$49-Q41))) -> 0 | S41: =params!$C$16*R41*(G41-Inputs!$R$26) -> 0 | T41: -61575.58238 | U41: =E41*params!$C$8 -> 157.434
A42: 1999-01-02 | B42: 1 | C42: 2 | D42: 17:00:00 | E42: 4 | F42: 10 | G42: -5.6 | H42: -18.3 | I42: 32 | J42: =Inputs!$R$38*Inputs!$R$33*(G42-Inputs!$R$26) -> -88850.44168 | K42: =Inputs!$R$34*E42*Inputs!$R$39 -> 2341.158874 | L42: =params!$C$16*Inputs!$R$30*(G42-Inputs!$R$26) -> -13913.44497 | M42: =Inputs!$R$41*Inputs!$R$42/8760 -> 0 | N42: 0 | O42: 401.8374026 | P42: 0.002476486282 | Q42: 0.0007924756101 | R42: =-N42/(1.202*2465560*MAX(0,(Inputs!$R$49-Q42))) -> 0 | S42: =params!$C$16*R42*(G42-Inputs!$R$26) -> 0 | T42: -100422.7278 | U42: =E42*params!$C$8 -> 8.286
A43: 1999-01-02 | B43: 1 | C43: 2 | D43: 18:00:00 | E43: 0 | F43: 8 | G43: -5 | H43: -20 | I43: 26 | J43: =Inputs!$R$38*Inputs!$R$33*(G43-Inputs!$R$26) -> -85433.117 | K43: =Inputs!$R$34*E43*Inputs!$R$39 -> 0 | L43: =params!$C$16*Inputs!$R$30*(G43-Inputs!$R$26) -> -13378.31248 | M43: =Inputs!$R$41*Inputs!$R$42/8760 -> 0 | N43: 0 | O43: 420.5680235 | P43: 0.002592402475 | Q43: 0.0006740246436 | R43: =-N43/(1.202*2465560*MAX(0,(Inputs!$R$49-Q43))) -> 0 | S43: =params!$C$16*R43*(G43-Inputs!$R$26) -> 0 | T43: -98811.42948 | U43: =E43*params!$C$8 -> 0
A44: 1999-01-02 | B44: 1 | C44: 2 | D44: 19:00:00 | E44: 0 | F44: 10 | G44: -5 | H44: -19.4 | I44: 27 | J44: =Inputs!$R$38*Inputs!$R$33*(G44-Inputs!$R$26) -> -85433.117 | K44: =Inputs!$R$34*E44*Inputs!$R$39 -> 0 | L44: =params!$C$16*Inputs!$R$30*(G44-Inputs!$R$26) -> -13378.31248 | M44: =Inputs!$R$41*Inputs!$R$42/8760 -> 0 | N44: 0 | O44: 420.5680235 | P44: 0.002592402475 | Q44: 0.0006999486683 | R44: =-N44/(1.202*2465560*MAX(0,(Inputs!$R$49-Q44))) -> 0 | S44: =params!$C$16*R44*(G44-Inputs!$R$26) -> 0 | T44: -98811.42948 | U44: =E44*params!$C$8 -> 0
A45: 1999-01-02 | B45: 1 | C45: 2 | D45: 20:00:00 | E45: 0 | F45: 10 | G45: -4.4 | H45: -19.4 | I45: 26 | J45: =Inputs!$R$38*Inputs!$R$33*(G45-Inputs!$R$26) -> -82015.79232 | K45: =Inputs!$R$34*E45*Inputs!$R$39 -> 0 | L45: =params!$C$16*Inputs!$R$30*(G45-Inputs!$R$26) -> -12843.17998 | M45: =Inputs!$R$41*Inputs!$R$42/8760 -> 0 | N45: 0 | O45: 440.0708849 | P45: 0.002713143493 | Q45: 0.0007054173083 | R45: =-N45/(1.202*2465560*MAX(0,(Inputs!$R$49-Q45))) -> 0 | S45: =params!$C$16*R45*(G45-Inputs!$R$26) -> 0 | T45: -94858.9723 | U45: =E45*params!$C$8 -> 0
A46: 1999-01-02 | B46: 1 | C46: 2 | D46: 21:00:00 | E46: 0 | F46: 10 | G46: -4.4 | H46: -18.3 | I46: 29 | J46: =Inputs!$R$38*Inputs!$R$33*(G46-Inputs!$R$26) -> -82015.79232 | K46: =Inputs!$R$34*E46*Inputs!$R$39 -> 0 | L46: =params!$C$16*Inputs!$R$30*(G46-Inputs!$R$26) -> -12843.17998 | M46: =Inputs!$R$41*Inputs!$R$42/8760 -> 0 | N46: 0 | O46: 440.0708849 | P46: 0.002713143493 | Q46: 0.0007868116131 | R46: =-N46/(1.202*2465560*MAX(0,(Inputs!$R$49-Q46))) -> 0 | S46: =params!$C$16*R46*(G46-Inputs!$R$26) -> 0 | T46: -94858.9723 | U46: =E46*params!$C$8 -> 0
A47: 1999-01-02 | B47: 1 | C47: 2 | D47: 22:00:00 | E47: 0 | F47: 10 | G47: -4.4 | H47: -18.3 | I47: 29 | J47: =Inputs!$R$38*Inputs!$R$33*(G47-Inputs!$R$26) -> -82015.79232 | K47: =Inputs!$R$34*E47*Inputs!$R$39 -> 0 | L47: =params!$C$16*Inputs!$R$30*(G47-Inputs!$R$26) -> -12843.17998 | M47: =Inputs!$R$41*Inputs!$R$42/8760 -> 0 | N47: 0 | O47: 440.0708849 | P47: 0.002713143493 | Q47: 0.0007868116131 | R47: =-N47/(1.202*2465560*MAX(0,(Inputs!$R$49-Q47))) -> 0 | S47: =params!$C$16*R47*(G47-Inputs!$R$26) -> 0 | T47: -94858.9723 | U47: =E47*params!$C$8 -> 0
A48: 1999-01-02 | B48: 1 | C48: 2 | D48: 23:00:00 | E48: 0 | F48: 10 | G48: -4.4 | H48: -17.8 | I48: 30 | J48: =Inputs!$R$38*Inputs!$R$33*(G48-Inputs!$R$26) -> -82015.79232 | K48: =Inputs!$R$34*E48*Inputs!$R$39 -> 0 | L48: =params!$C$16*Inputs!$R$30*(G48-Inputs!$R$26) -> -12843.17998 | M48: =Inputs!$R$41*Inputs!$R$42/8760 -> 0 | N48: 0 | O48: 440.0708849 | P48: 0.002713143493 | Q48: 0.000813943048 | R48: =-N48/(1.202*2465560*MAX(0,(Inputs!$R$49-Q48))) -> 0 | S48: =params!$C$16*R48*(G48-Inputs!$R$26) -> 0 | T48: -94858.9723 | U48: =E48*params!$C$8 -> 0
A49: 1999-01-02 | B49: 1 | C49: 2 | D49: 1 | E49: 0 | F49: 10 | G49: -3.9 | H49: -15.6 | I49: 35 | J49: =Inputs!$R$38*Inputs!$R$33*(G49-Inputs!$R$26) -> -79168.02176 | K49: =Inputs!$R$34*E49*Inputs!$R$39 -> 0 | L49: =params!$C$16*Inputs!$R$30*(G49-Inputs!$R$26) -> -12397.23623 | M49: =Inputs!$R$41*Inputs!$R$42/8760 -> 0 | N49: 0 | O49: 456.9329299 | P49: 0.002817573014 | Q49: 0.0009861505548 | R49: =-N49/(1.202*2465560*MAX(0,(Inputs!$R$49-Q49))) -> 0 | S49: =params!$C$16*R49*(G49-Inputs!$R$26) -> 0 | T49: -91565.25798 | U49: =E49*params!$C$8 -> 0
A50: 1999-01-03 | B50: 1 | C50: 3 | D50: 01:00:00 | E50: 0 | F50: 10 | G50: -3.9 | H50: -12.8 | I50: 46 | J50: =Inputs!$R$38*Inputs!$R$33*(G50-Inputs!$R$26) -> -79168.02176 | K50: =Inputs!$R$34*E50*Inputs!$R$39 -> 0 | L50: =params!$C$16*Inputs!$R$30*(G50-Inputs!$R$26) -> -12397.23623 | M50: =Inputs!$R$41*Inputs!$R$42/8760 -> 0 | N50: 0 | O50: 456.9329299 | P50: 0.002817573014 | Q50: 0.001296083586 | R50: =-N50/(1.202*2465560*MAX(0,(Inputs!$R$49-Q50))) -> 0 | S50: =params!$C$16*R50*(G50-Inputs!$R$26) -> 0 | T50: -91565.25798 | U50: =E50*params!$C$8 -> 0
